Workbook

Sheet Calculator
F1: NOTE 1: The cell containing your desired pressure must be GREEN. A RED cell indicates some component pressure has exceeded its vapor pressure at the specified density and temperature (i.e. it will condense)
F2: NOTE 2: If the cell containing your desired pressure is ORANGE then it is a value extrapolated outside the range of available data. Use with caution.
F4: Input the desired density, temperature, and composition in the PURPLE cells:
F5: Desired mass density | G5: 5 | H5: (mg/cc=kg/m3) | J5: Calculations involving T,H,D (including mixtures) valid for 15K < T < 300K
F6: Shot temperature | G6: 32 | H6: (K) | J6: Pure 3He and 4He calculations ok from 5K < T <300K
F7: Fraction D/DT (for He+D/DT mixtures) | G7: 0.3 | H7: (n.u) | J7: C3H8 calculations are valid from 240K < T < 330K
F8: Fraction xH for 1% Ar-xH2-yHe mixtures | G8: 0.297 | H8: (n.u) | J8: Ar mix calculations are valid above 80K but are extrapolated 40K < T <80K
F9: Fraction Xe/Kr for Xe/Kr-HDT or Kr-D2 mixtures | G9: 0.0005 | H9: (n.u) | J9: Kr mix calculations are valid above 110K but are extrapolated 59K < T <110K, Xe mix calculations are valid above 160K but are extrapolated 70K < T <160K
F10: Fraction Ne (for He+Ne mixtures) | G10: 0.0175 | H10: (n.u) | J10: Ne and Ne-He calculations valid from 30K < T < 300K but are extrapolated 15K < T < 30K
F11: THD_MIXTURE: Fraction T | G11: 0.5 | H11: (n.u) | I11: =SUM(G11:G13) -> 1 | J11: THD Check Sum | L11: f_min= | M11: =THD_EquilibriumCalculator!M11 -> 0 | N11: <- If this cell stays RED, don't trust the calculated THD composition or THD_MIXTURE pressure
F12: THD_MIXTURE: Fraction H | G12: 0 | H12: (n.u)
F13: THD_MIXTURE: Fraction D | G13: 0.5 | H13: (n.u)
B15: Electron density | D15: Atom density | F15: Single Component Gas Pressure Using Virial Expansion: | Q15: p/p_sat checks
F16: Pure Gases | N16: rho_sat | O16: Psat | Q16: p_pure/Psat | R16: p_mix/Psat | S16: p_part/Psat
B17: ='3He'!$C$35 -> 1.996731267e+21 | C17: 3He | D17: ='3He'!C30 -> 9.983656333e+20 | E17: atom/cc | F17: 3He | G17: ='3He'!C22 -> 3342.032158 | H17: (torr) | I17: 2nd virial
B18: ='4He'!$C$35 -> 1.504557413e+21 | C18: 4He | D18: ='4He'!C30 -> 7.522787063e+20 | E18: atom/cc | F18: 4He | G18: ='4He'!C22 -> 2507.205576 | H18: (torr) | I18: 2nd virial
B19: =Ne!$C$75 -> 1.4921286e+21 | C19: Ne | D19: =Ne!C68 -> 1.4921286e+20 | E19: atom/cc | F19: Ne | G19: =Ne!$C$60 -> 484.5904219 | H19: (torr) | I19: 2nd virial | M19: Ne | O19: =Ne!C70 -> supercritical | P19: (torr) | Q19: =IF(O19="supercritical",O19,G19/O19) -> supercritical | R19: -
B20: ='H2'!$C$49 -> 2.98769206e+21 | C20: H | D20: ='H2'!C31 -> 2.98769206e+21 | E20: atom/cc - Pure H2 | F20: H2 | G20: ='H2'!C22 -> 4103.334754 | H20: (torr) | I20: 3rd virial | M20: H2 | N20: ='H2'!$C$35 -> 16.82696995 | O20: ='H2'!$C$34 -> 8158.981073 | P20: (torr) | Q20: =IF(O20="supercritical",O20,G20/O20) -> 0.5029224504 | R20: -
B21: ='D2'!$C$49 -> 1.494994171e+21 | C21: D | D21: ='D2'!C31 -> 1.494994171e+21 | E21: atom/cc - Pure D2 | F21: D2 | G21: ='D2'!C22 -> 2221.118116 | H21: (torr) | I21: 3rd virial, corresponding states from H2 | M21: D2 | N21: ='D2'!$C$35 -> 14.13580809 | O21: ='D2'!$C$34 -> 4840.409847 | P21: (torr) | Q21: =IF(O21="supercritical",O21,G21/O21) -> 0.458869845 | R21: -
B22: ='T2'!$C$49 -> 9.983490824e+20 | C22: T | D22: ='T2'!C31 -> 9.983490824e+20 | E22: atom/cc - Pure T2 | F22: T2 | G22: ='T2'!C22 -> 1532.001968 | H22: (torr) | I22: 3rd virial, corresponding states from H2 | M22: T2 | N22: ='T2'!$C$35 -> 14.61279655 | O22: ='T2'!$C$34 -> 3772.688371 | P22: (torr) | Q22: =IF(O22="supercritical",O22,G22/O22) -> 0.4060769981 | R22: -
B23: =Neopentane!$C$45 -> 1.752793625e+21 | C23: C+H | D23: =Neopentane!C30 -> 7.094640863e+20 | E23: atom/cc | F23: Neopentane | G23: =Neopentane!C22 -> no data | H23: (torr) | I23: 2nd virial | M23: Neopentane | O23: =Neopentane!C33 -> no data | P23: (torr) | Q23: =IF(G23="no data","no data",IF(O23="supercritical","supercritical",G23/O23)) -> no data | R23: -
B24: =Kr!$C$37 -> 1.29356962e+21 | C24: Krypton | D24: =Kr!$C$30 -> 3.593248944e+19 | E24: atom/cc | F24: Krypton | G24: =Kr!C22 -> no data | H24: (torr) | I24: 2nd virial | M24: Krypton | O24: =Kr!$C$32 -> no data | P24: (torr) | Q24: =IF(G24="no data","no data",IF(O24="supercritical","supercritical",G24/O24)) -> no data | R24: -
B25: =Ar!$C$37 -> 1.356745607e+21 | C25: Argon | D25: =Ar!$C$30 -> 7.537475593e+19 | E25: atom/cc | F25: Argon | G25: =Ar!$C$22 -> no data | H25: (torr) | I25: 2nd virial | M25: Argon | O25: =Ar!$C$32 -> 2.382991596e-06 | P25: (torr) | Q25: =IF(G25="no data","no data",IF(O25="supercritical","supercritical",G25/O25)) -> no data | R25: -
B26: =Xe!$C$37 -> 1.238434802e+21 | C26: Xenon | D26: =Xe!$C$30 -> 2.293397782e+19 | E26: atom/cc | F26: Xenon | G26: =Xe!$C$22 -> no data | H26: (torr) | I26: 2nd virial | M26: Xenon | O26: =Xe!$C$32 -> no data | P26: (torr) | Q26: =IF(G26="no data","no data",IF(O26="supercritical","supercritical",G26/O26)) -> no data
B27: ='C3D8'!$C$38 -> 1.501325428e+21 | C27: D+H | D27: ='C3D8'!C30 -> 6.351761424e+20 | E27: atom/cc | F27: C3D8 | G27: ='C3D8'!C22 -> no data | H27: (torr) | I27: 2nd virial for C3H8 | M27: C3D8 | O27: ='C3D8'!C33 -> no data | P27: (torr) | Q27: =IF(O27="no data","no data",IF(O27="supercritical","supercritical",G27/O27)) -> no data
B28: ='C3H8'!$C$38 -> 1.775368112e+21 | C28: C+H | D28: ='C3H8'!C30 -> 7.51117278e+20 | E28: atom/cc | F28: C3H8 | G28: ='C3H8'!C22 -> no data | H28: (torr) | I28: 2nd virial | M28: C3H8 | O28: ='C3H8'!C33 -> no data | P28: (torr) | Q28: =IF(O28="no data","no data",IF(O28="supercritical","supercritical",G28/O28)) -> no data | R28: -
B30: Electron density | D30: Atom density | F30: Mixture Gas Pressure Using Virial Expansion: | Q30: p/p_sat checks
F31: Gas Mixtures | N31: rho_sat | O31: Psat | Q31: p_pure/Psat | R31: p_mix/Psat | S31: p_part/Psat
C32: 3He+D | D32: ='D2+3He'!C46 -> 1.108874132e+21 | E32: atom/cc - Mixture | F32: 3He+D2 | G32: ='D2+3He'!C31 -> 3074.643258 | H32: (torr) | I32: 2rd virial, partial volume mixing | M32: 3He+D2 | N32: ='D2+3He'!$C$58 -> 63.52674932 | O32: ='D2+3He'!C53 -> 27428.98913 | P32: (torr) | Q32: - | R32: =IF(O32="supercritical",O32,G32/O32) -> 0.1120946617
C33: 3He+DT | D33: ='DT+3He'!$C$58 -> 1.050719473e+21 | E33: atom/cc - Mixture | F33: 3He+DT | G33: ='DT+3He'!$C$38 -> 2913.824595 | H33: (torr) | I33: 2rd virial, partial volume mixing | M33: 3He+DT | N33: ='DT+3He'!$C$76 -> 92.56306372 | O33: ='DT+3He'!$C$68 -> 42757.13487 | P33: (torr) | Q33: - | R33: =IF(O33="supercritical",O33,G33/O33) -> 0.06814826587
C34: 4He+D | D34: ='D2+4He'!C46 -> 8.840358244e+20 | E34: atom/cc - Mixture | F34: 4He+D2 | G34: ='D2+4He'!C31 -> 2455.157435 | H34: (torr) | I34: 2rd virial, partial volume mixing | M34: 4He+D2 | N34: ='D2+4He'!$C$58 -> 79.68361358 | O34: ='D2+4He'!$C$53 -> 27428.98913 | P34: (torr) | Q34: - | R34: =IF(O34="supercritical",O34,G34/O34) -> 0.08950958502
C35: 4He+Ne | D35: ='He+Ne'!$C$46 -> 7.025856399e+20 | E35: atom/cc - Mixture | F35: 4He+Ne | G35: ='He+Ne'!$C$31 -> 2336.653622 | H35: (torr) | I35: 2rd virial, partial volume mixing | M35: 4He+Ne | O35: ='He+Ne'!$C$54 -> supercritical | P35: (torr) | Q35: - | R35: =IF(O35="supercritical",O35,G35/O35) -> supercritical
C36: Ar+4He+D | D36: ='1%Ar+D2+4He'!$C$57 -> 7.983811816e+20 | E36: atom/cc - Mixture | F36: Ar+4He+D2 | G36: ='1%Ar+D2+4He'!$C$37 -> 2134.113565 | H36: (torr) | I36: 2rd virial, partial volume mixing | M36: Ar+4He+D2 | P36: (torr) | Q36: - | R36: -
C37: Ar+3He+D | D37: ='1%Ar+D2+3He'!$C$57 -> 9.751646384e+20 | E37: atom/cc - Mixture | F37: Ar+3He+D2 | G37: ='1%Ar+D2+3He'!$C$37 -> 2583.204924 | H37: (torr) | I37: 2rd virial, partial volume mixing | M37: Ar+3He+D2 | P37: (torr) | Q37: - | R37: -
C38: Ar+4He+H | D38: ='1%Ar+H2+4He'!$C$57 -> 8.670925817e+20 | E38: atom/cc - Mixture | F38: Ar+4He+H2 | G38: ='1%Ar+H2+4He'!$C$37 -> 2314.246041 | H38: (torr) | I38: 2rd virial, partial volume mixing | M38: Ar+4He+H2 | P38: (torr) | Q38: - | R38: -
C39: Kr+D | D39: ='Kr+D2'!$C$46 -> 1.465245555e+21 | E39: atom/cc - Mixture | F39: Kr+D2 | G39: ='Kr+D2'!$C$31 -> 2137.061287 | H39: (torr) | I39: 2rd virial, partial volume mixing | M39: Kr+D2 | O39: ='Kr+D2'!$C$53 -> no data | P39: (torr) | Q39: - | R39: =IF(G24="no data","no data",IF(O24="supercritical","supercritical",'Kr+D2'!C50/'Kr+D2'!C51)) -> no data
C40: Kr+D+T | D40: ='Kr+HDT'!$C$69 -> 1.178759519e+21 | E40: atom/cc - Mixture | F40: Kr+HDT | G40: ='Kr+HDT'!$C$44 -> 1759.437715 | H40: (torr) | I40: 2rd virial, partial volume mixing | M40: Kr+HDT | O40: ='Kr+HDT'!$C$76 -> no data | P40: (torr) | Q40: - | R40: =IF(G24="no data","no data",IF(O24="supercritical","supercritical",'Kr+HDT'!C73/'Kr+HDT'!C74)) -> no data
B41: ='Xe+HDT'!$I$69 -> 1.229775586e+21 | C41: Xe+D+T | D41: ='Xe+HDT'!$C$69 -> 1.167907426e+21 | E41: atom/cc - Mixture | F41: Xe+HDT | G41: ='Xe+HDT'!$C$44 -> 1584.504504 | H41: (torr) | I41: 2rd virial, partial volume mixing | M41: Xe+HDT | O41: ='Xe+HDT'!$C$76 -> no data | P41: (torr) | Q41: - | R41: =IF(G25="no data","no data",IF(O25="supercritical","supercritical",'Xe+HDT'!C73/'Xe+HDT'!C74)) -> no data
B42: ='Ar+Neo+C3H8'!$J$63 -> 1.756286763e+21 | C42: Ar+C+H | D42: ='Ar+Neo+C3H8'!$C$63 -> 7.167853767e+20 | E42: atom/cc - Mixture | F42: Ar+C5H12+C3H8 | G42: ='Ar+Neo+C3H8'!$C$39 -> 166.3331964 | H42: (torr) | I42: 2rd virial, partial volume mixing | M42: Ar+C5H12+C3H8 | N42: - | O42: ='Ar+Neo+C3H8'!$C$76 ->  | P42: (torr) | Q42: - | R42: -
C43: T+H+D | D43: =THD_MIXTURES!C70+THD_MIXTURES!C71+THD_MIXTURES!C72 -> 1.197208653e+21 | E43: atom/cc - Mixture | F43: THD_MIXTURE | G43: =THD_MIXTURES!C61 -> 1813.23629 | H43: (torr) | I43: 3rd virial, corresponding states from H2 | M43: THD_MIXTURE | N43: =IF(AND(N20,N21,N22)="supercritical","supercritical",MIN(IF(N22="supercritical",1000000,N22/G11),IF(N20="supercritical",1000000,N20/G12),IF(N21="supercritical",1000000,N21/G13))) ->  | O43: =THD_MIXTURES!$C$91 -> 7545.376741 | P43: (torr) | Q43: - | R43: =THD_MIXTURES!$C$90 -> 0.2403109019
M44: DT | O44: =DT!C34 -> 4273.351017 | P44: (torr) | Q44: - | S44: =THD_MIXTURES!C111 -> 0.1792003156
M45: HD | O45: =HD!C34 -> 6235.490855 | P45: (torr) | Q45: - | S45: =THD_MIXTURES!C112 -> 0
M46: HT | O46: =HT!C34 -> 5548.048913 | P46: (torr) | Q46: - | S46: =THD_MIXTURES!C113 -> 0
M47: H2 | O47: ='H2'!$C$34 -> 8158.981073 | P47: (torr) | Q47: - | S47: =THD_MIXTURES!C109 -> 0
M48: D2 | O48: ='D2'!$C$34 -> 4840.409847 | P48: (torr) | Q48: - | S48: =THD_MIXTURES!C108 -> 0.1081985278
M49: T2 | O49: ='T2'!$C$34 -> 3772.688371 | P49: (torr) | Q49: - | S49: =THD_MIXTURES!C110 -> 0.1388201643
F51: Ideal gas pressure: | O51: Deviations from ideal gas:
F52: 3He | G52: ='3He'!C23 -> 3308.413453 | H52: (torr) | I52: Ideal gas | O52: 3He | P52: =100*(G17-G52)/(G52) -> 1.016157908 | Q52: %
F53: 4He | G53: ='4He'!C23 -> 2492.923344 | H53: (torr) | I53: Ideal gas | O53: 4He | P53: 0.5729110298 | Q53: %
F54: Ne | G54: =Ne!$C$61 -> 494.465972 | H54: (torr) | I54: Ideal gas | O54: Ne | P54: -1.997215319 | Q54: %
F55: H2 | G55: ='H2'!C24 -> 4950.350991 | H55: (torr) | I55: Ideal gas | O55: H2 | P55: -17.1102259 | Q55: %
F56: D2 | G56: ='D2'!C24 -> 2477.077868 | H56: (torr) | I56: Ideal gas | O56: D2 | P56: -10.33313304 | Q56: %
F57: T2 | G57: ='T2'!C24 -> 1654.179303 | H57: (torr) | I57: Ideal gas | O57: T2 | P57: -7.385978935 | Q57: %
F58: Neopentane | G58: =Neopentane!C23 -> no data | H58: (torr) | I58: Ideal gas | O58: Neopentane | Q58: %
F59: Krypton | G59: =Kr!C23 -> no data | H59: (torr) | I59: Ideal gas | O59: Krypton | Q59: %
F60: Argon | G60: =Ar!C23 -> 249.7790872 | H60: (torr) | I60: Ideal gas | O60: Argon | Q60: %
F61: Xenon | G61: =Xe!C23 -> no data | H61: (torr) | I61: Ideal gas | O61: Xenon | Q61: %
F62: C3D8 | G62: ='C3D8'!C23 -> no data | H62: (torr) | I62: Ideal gas | O62: C3D8 | Q62: %
F63: C3H8 | G63: ='C3H8'!C23 -> no data | H63: (torr) | I63: Ideal gas | O63: C3H8 | P63: =100*(G28-G63)/(G63) ->  | Q63: %
F64: 3He+D2 | G64: ='D2+3He'!C32 -> 3123.426807 | H64: (torr) | I64: Ideal gas, partial pressure mixing | O64: 3He+D2 | P64: =100*(G32-G64)/(G64) -> -1.561859863 | Q64: %
F65: 3He+DT | G65: ='DT+3He'!$C$39 -> 2959.619377 | H65: (torr) | I65: Ideal gas, partial pressure mixing | O65: 3He+DT | P65: -1.547319998 | Q65: %
F66: 4He+D2 | G66: ='D2+4He'!C32 -> 2490.112369 | H66: (torr) | I66: Ideal gas, partial pressure mixing | O66: 4He+D2 | P66: -1.403749274 | Q66: %
F67: Ne-He | G67: ='He+Ne'!$C$32 -> 2328.248996 | H67: (torr) | I67: Ideal gas, partial pressure mixing | O67: Ne-He | P67: 0.3609848446 | Q67: %
F68: Ar+4He+D2 | G68: ='1%Ar+D2+4He'!$C$38 -> 2252.812771 | H68: (torr) | I68: Ideal gas, partial pressure mixing | O68: Ar+4He+D2 | P68: -5.268933438 | Q68: %
F69: Ar+3He+D2 | G69: ='1%Ar+D2+3He'!$C$38 -> 2751.64721 | H69: (torr) | I69: Ideal gas, partial pressure mixing | O69: Ar+3He+D2 | P69: -6.121507326 | Q69: %
F70: Ar+4He+H2 | G70: ='1%Ar+H2+4He'!$C$38 -> 2446.6975 | H70: (torr) | I70: Ideal gas, partial pressure mixing | O70: Ar+4He+H2 | P70: -5.413479178 | Q70: %
F71: Kr+D2 | G71: ='Kr+D2'!$C$32 -> 2429.000842 | H71: (torr) | I71: Ideal gas, partial pressure mixing | O71: Kr+D2 | P71: -12.01891534 | Q71: %
F72: Kr+HDT | G72: ='Kr+HDT'!C45 -> 1953.104013 | H72: (torr) | I72: Ideal gas, partial pressure mixing | O72: Kr+HDT | P72: -9.915821028 | Q72: %
F73: Ar+C5H12+C3H8 | G73: ='Ar+Neo+C3H8'!$C$40 -> 166.9067509 | H73: (torr) | I73: Ideal gas, partial pressure mixing | O73: Ar+C5H12+C3H8 | P73: =100*(G42-G73)/(G73) -> -0.3436376702 | Q73: %
F74: THD_MIXTURE | G74: =THD_MIXTURES!C62 -> 1983.672656 | H74: (torr) | I74: Ideal gas, partial pressure mixing | O74: THD_MIXTURE | P74: =100*(G43-G74)/(G74) -> -8.591960221 | Q74: %
B76: Change Log
B78: Major version | D78: v1.0 - First production release | G78: Jim Fair | H78: 2012-10-17
B79: Features | D79: v2.0beta - adding THD_MIXTURES | G79: Jim Fair | H79: 2012-10-24
B80: Features | D80: v2.1beta - change Calculate button behavior to only save, not reset THD initial ratio | G80: Jim Fair | H80: 2012-10-24
B81: Features | D81: v2.2beta-Single button push only. No need to reference other tabs normally. | G81: Jim Fair | H81: 2012-10-25
B82: Features | D82: v2.3beta -added Atom Densities and turnd auto calculate back on | G82: Jim Fair | H82: 2012-10-25
B83: Features | D83: v2.4beta - 1) added atom densities, 2) saturation checks, 3) removed auto save | G83: Jim Fair | H83: 2012-10-26
B84: Major version | D84: v2.0 Second production release | G84: Jim Fair | H84: ca. 11/1/2012
B85: Bug fix | D85: v2.1 fixed error in the way the deviation from ideal gas is calculated. Now reference pressure is that for the ideal gas, which is the logical choice for something labeled "Deviation from ideal gas" | G85: Jim Fair | H85: 2013-04-17
B86: Minor version beta | D86: V2.2beta Change source of virial coefficients to Ref. 1. Extends calculation range to 15K < T < 300K | G86: Jim Fair | H86: 2013-05-14
B87: Minor version | D87: V2.2Change source of virial coefficients to Ref. 1. Extends calculation range to 15K < T < 300K | G87: Jim Fair | H87: 2013-06-03 | I87: Ref. 1 | J87: G. Garberoglio, P. Jankowski, K. Szalewicz, and A. Harvey, "Second virial coefficients of H2 and its isotopologues from a six-dimensional potential", J. Chem. Phys. 137, 154308 (2012)
B88: Minor version | D88: 1) Added D2+4He mix, 2) Renamed tool to remove Cryogenic (tool is not limited to low temperature anymore) | G88: Jim Fair | H88: 2013-10-03 | I88: Release version
B89: Minor version | D89: V2.4 Added Ne, Ne-He and Propane | G89: Holunga | H89: 2014-07-29
B90: Major version | D90: V2.5 - Add 3rd VC for THD & THD mixtures using a corresponding states approximation extrapolated from H2; and simple mixing rules with mixing coefficients as proposed by Prausnitz. - Remove THD_Equilbrium Calculation Buttons, replace with auto-calculating VBA function. - Add Neopentane, Kr & Kr-mixes, Ar & Ar-mixes, Ne & Ne-mixes, and C3H8. | G90: Holunga | H90: 2015-10-02
B91: Major version | D91: v2.6 - add electron density to pure component species - add DT-He3 - begin adding a saturated density check for mixes with HDT. - add Ar-Neopentane-Propane - add Xe & Xe-HDT | G91: Holunga

Sheet Neopentane
T1: T | U1: B | V1: B -extrapolated low | W1: B -extrapolated high
B2: Neopentane | T2: =0.5*$C$10 -> 125 | V2: =($C$7-$C$8*EXP($C$9/T2))/100^3 -> -0.009877103879 | AE2: Tmin, K | AF2: Tmax, K | AG2: Psat (Torr)
E3: Units | G3: Reference | T3: =($T$12-$T$2)/10+T2 -> 137.5 | V3: =($C$7-$C$8*EXP($C$9/T3))/100^3 -> -0.007006677931 | AE3: =MIN(AE5:AE9) -> 4 | AF3: =MAX(AF5:AF8) -> 433.1 | AG3: =LOOKUP(1,AG5:AG9,AH5:AH9) -> no data
B4: R | C4: 8.3144621 | E4: Pa-m3/mol-K | T4: =($T$12-$T$2)/10+T3 -> 150 | V4: -0.005237035875 | AB4: A | AC4: B | AD4: C | AE4: Tmin, K | AF4: Tmax, K | AG4: Lookup | AH4: Test
B5: M | C5: =(5*12.011+1.00796*12)/1000 -> 0.07215052 | E5: kg/mol | T5: 162.5 | V5: -0.004073927963 | AE5: 4 | AF5: 205.69 | AG5: =IF(AND($C$16>AE5,$C$16<AF5),1,"") -> 1 | AH5: =IF(AND($C$16>AE5,$C$16<AF5),"no data","") -> no data
C6: B/(cm3 mol−1) = a − b exp{c(K/T)}. | T6: 175 | V6: -0.003269745411 | AB6: 3.28533 | AC6: 695.152 | AD6: -70.679 | AE6: 205.7 | AF6: 293.16 | AG6: =IF(AND($C$16>AE6,$C$16<AF6),1,"") ->  | AH6: =IF(AND($C$16>AE6,$C$16<AF6),(10^(AB6-(AC6/(AD6+$C$16))))/1.01325*760,"") -> 
B7: A | C7: ='VC List'!$F$110 -> 407 | E7: cm3 mol−1 | T7: 187.5 | V7: -0.002690512563 | AA7: Neopentane | AB7: 3.86373 | AC7: 950.318 | AD7: -36.329 | AE7: 268.02 | AF7: 313.2 | AH7: =IF(AND($C$16>AE7,$C$16<AF7),(10^(AB7-(AC7/(AD7+$C$16))))/1.01325*760,"") -> 
B8: B | C8: ='VC List'!$G$110 -> 281 | E8: cm3 mol−1 | T8: 200 | V8: -0.00225905377 | AB8: 4.61616 | AC8: 1478.868 | AD8: 41.256 | AE8: 343 | AF8: 433.1
B9: C | C9: ='VC List'!$H$110 -> 450 | E9: K | T9: 212.5 | V9: -0.001928547757 | AE9: 433.1 | AF9: 1000 | AH9: =IF(AND($C$16>AE9,$C$16<AF9),"supercritical","") -> 
B10: TL | C10: ='VC List'!$I$110 -> 250 | E10: K | T10: 225 | V10: -0.001669324764
B11: TU | C11: ='VC List'!$J$110 -> 440 | E11: K | T11: 237.5 | V11: -0.001461874228
T12: =C10 -> 250 | U12: =((IF($C$10>T12,0,IF($C$11<T12,0,$C$7-$C$8*EXP($C$9/T12)))))/100^3 -> -0.001292950938
B13: rho | C13: =Calculator!G5 -> 5 | E13: mg/cm3 | G13: From Calculator tab (input) | T13: =($C$11-$C$10)/50+T12 -> 253.8 | U13: -0.001247748504
B14: rho | C14: =(C13/1000^2)*100^3 -> 5 | E14: kg/m3 | T14: =($C$11-$C$10)/50+T13 -> 257.6 | U14: -0.001205029268
B15: rho | C15: =C14/C5 -> 69.29956984 | E15: mol/m3 | T15: 261.4 | U15: -0.001164607542
B16: T | C16: =Calculator!G6 -> 32 | E16: K | G16: From Calculator tab (input) | T16: 265.2 | U16: -0.001126314864
T17: 269 | U17: -0.001089998111
B18: B | C18: =((IF(C10>C16,0,IF(C11<C16,0,C7-C8*EXP(C9/C16)))))/100^3 -> 0 | E18: m3/mol | T18: 272.8 | U18: -0.001055517854
B19: C | C19: 0 | E19: m6/mol2 | G19: Not used here (set to zero) | T19: 276.6 | U19: -0.001022746904
T20: 280.4 | U20: -0.0009915690466
B21: P | C21: =C4*C16*(C15+C18*C15^2+C19*C15^3) -> 18438.0367 | E21: Pa | G21: The calculated pressure for this page | T21: 284.2 | U21: -0.0009618779201
B22: P_virial | C22: =IF(AND(C16>=C10,C16<=C11),C21/133.32237,"no data") -> no data | E22: torr | T22: 288 | U22: -0.0009335760241
B23: P_ideal | C23: =IF(C16<AF5,AG3,C4*C16*C15/133.32237) -> no data | E23: torr | T23: 291.8 | U23: -0.000906573846
T24: 295.6 | U24: -0.0008807890844
B25: Na | C25: 6.0221415e+23 | E25: molecule/mol | T25: 299.4 | U25: -0.0008561459595
T26: 303.2 | U26: -0.0008325745994
B27: atoms/molecule | C27: 17 | T27: 307 | U27: -0.000810010493
T28: 310.8 | U28: -0.0007883940001
B29: atom density | C29: =C15*C25*C27 -> 7.094640863e+26 | E29: atom Neopentane/m3 | T29: 314.6 | U29: -0.0007676699146
B30: atom density | C30: =C29/100^3 -> 7.094640863e+20 | E30: atom Neopentane/cm3 | T30: 318.4 | U30: -0.0007477870715
T31: 322.2 | U31: -0.0007286979945
T32: 326 | U32: -0.0007103585793
B33: p_sat | C33: =AG3 -> no data | E33: torr | T33: 329.8 | U33: -0.0006927278075
T34: 333.6 | U34: -0.0006757674893
B35: psat(TL) | C35: =$AE$6 -> 205.7 | E35: K | T35: 337.4 | U35: -0.0006594420304
B36: psat(TU) | C36: =$AF$8 -> 433.1 | E36: K | T36: 341.2 | U36: -0.0006437182214
T37: 345 | U37: -0.0006285650465
B38: Tc | C38: ='VC List'!$D$110 -> 433.8 | E38: K | T38: 348.8 | U38: -0.0006139535107
B39: Pc | C39: ='VC List'!$B$110*1000000/101325*760 -> 24001.97385 | E39: Torr | T39: 352.6 | U39: -0.0005998564817
B40: Ttp | E40: K | T40: 356.4 | U40: -0.0005862485471
T41: 360.2 | U41: -0.0005731058838
C42: 42 | E42: electrons/molecule | T42: 364 | U42: -0.0005604061384
T43: 367.8 | U43: -0.0005481283192
C44: =C15*C25*C42 -> 1.752793625e+27 | E44: electrons /m3 | T44: 371.6 | U44: -0.0005362526962
C45: =C44/100^3 -> 1.752793625e+21 | E45: electrons /cm3 | T45: 375.4 | U45: -0.0005247607104
T46: 379.2 | U46: -0.0005136348902
T47: 383 | U47: -0.000502858775
T48: 386.8 | U48: -0.0004924168449
T49: 390.6 | U49: -0.0004822944558
T50: 394.4 | U50: -0.0004724777806
T51: 398.2 | U51: -0.0004629537537
T52: 402 | U52: -0.000453710021
T53: 405.8 | U53: -0.000444734893
T54: 409.6 | U54: -0.0004360173018
T55: 413.4 | U55: -0.0004275467614
T56: 417.2 | U56: -0.0004193133307
T57: 421 | U57: -0.0004113075793
T58: 424.8 | U58: -0.0004035205562
T59: 428.6 | U59: -0.0003959437599
T60: 432.4 | U60: -0.0003885691115
T61: =($C$11-$C$10)/50+T60 -> 436.2 | U61: -0.0003813889293
T62: =C11 -> 440 | U62: -0.000374395905
T63: =($T$72-$T$62)/10+T62 -> 484 | W63: =($C$7-$C$8*EXP($C$9/T63))/100^3 -> -0.000305020523
T64: =($T$72-$T$62)/10+T63 -> 528 | W64: -0.0002519366482
T65: 572 | W65: -0.0002101227533
T66: 616 | W66: -0.0001764006373
T67: 660 | W67: -0.0001486690322
T68: 704 | W68: -0.0001254873891
T69: 748 | W69: -0.0001058374572
T70: 792 | W70: -8.898043854e-05
T71: 836 | W71: -7.436806303e-05
T72: =2*$C$11 -> 880 | W72: -6.158537036e-05

Sheet Ar
T1: T | U1: B | V1: B -extrapolated low | W1: B -extrapolated high
B2: Ar | T2: 25 | V2: =($C$7-$C$8*EXP($C$9/T2))/100^3 -> -0.007833365741
E3: Units | G3: Reference | T3: 30 | V3: =($C$7-$C$8*EXP($C$9/T3))/100^3 -> -0.003809664303
B4: R | C4: 8.3144621 | E4: Pa-m3/mol-K | T4: 35 | V4: -0.002248860643 | AA4: Vapor Pressure | AJ4: Psat (Torr) | AK4: Tmin, K | AL4: Tmax, K
B5: M | C5: 0.039948 | E5: kg/mol | T5: 40 | V5: -0.001496808065 | AA5: Summary | AJ5: =LOOKUP(1,AJ7:AJ11,AM7:AM11) -> 2.382991596e-06 | AK5: =MIN(AK7:AL11) -> 4 | AL5: =MAX(AK7:AL11) -> 150.72
C6: B/(cm3 mol−1) = a − b exp{c(K/T)}. | T6: 45 | V6: -0.001078789373 | AB6: A | AC6: B | AD6: C | AE6: D | AF6: E | AG6: F | AH6: G | AI6: R | AJ6: Psat (Torr) | AK6: Tmin, K | AL6: Tmax, K | AN6: Published or Datafit Formula
B7: A | C7: ='VC List'!$F$21 -> 154.2 | E7: cm3 mol−1 | T7: 50 | V7: -0.0008219744685 | AA7: Argon | AJ7: =IF(AND($C$16>AK7,$C$16<=AL7),1,"") ->  | AK7: 4 | AL7: 20.4 | AM7: =IF(AND($C$16<=AL7,$C$16>AK7),"no data","") -> 
B8: B | C8: ='VC List'!$G$21 -> 119.3 | E8: cm3 mol−1 | T8: 55 | V8: -0.0006521762299 | AB8: 7.3007e-58 | AC8: 34.225 | AI8: =0.99223 -> 0.99223 | AJ8: =IF(AND($C$16>AK8,$C$16<=AL8),1,"") -> 1 | AK8: 20.4 | AL8: 39.2 | AM8: =IF(AND($C$16<=AL8,$C$16>AK8),AB8*$C$16^AC8,"") -> 2.382991596e-06 | AN8: ATB
B9: C | C9: ='VC List'!$H$21 -> 105.1 | E9: K | T9: 60 | V9: -0.0005334692601 | AB9: 9.2118e-36 | AC9: 20.207 | AI9: 0.99385 | AK9: 39.2 | AL9: 61 | AM9: =IF(AND($C$16<=AL9,$C$16>AK9),AB9*$C$16^AC9,"") ->  | AN9: ATB
B10: TL | C10: ='VC List'!$I$21 -> 80 | E10: K | T10: 65 | V10: -0.0004467816526 | AB10: 2.4616e-07 | AC10: 0.00013055 | AD10: -0.01285 | AE10: -0.95994 | AF10: 125.92 | AG10: -3197.1 | AI10: 0.99998 | AK10: 61 | AL10: 150.72 | AM10: =IF(AND($C$16<=AL10,$C$16>AK10),AB10*$C$16^5+AC10*$C$16^4+AD10*$C$16^3+AE10*$C$16^2+AF10*$C$16+AG10,"") ->  | AN10: Ax5+Bx4+Cx3+Dx2+Ex+F
B11: TU | C11: ='VC List'!$J$21 -> 1024 | E11: K | T11: 70 | V11: -0.0003812298598 | AJ11: =IF($C$16>AK11,1,"") ->  | AK11: 150.72 | AM11: =IF($C$16>AK11,"supercritical","") -> 
T12: 75 | V12: -0.0003302308334
B13: rho | C13: =Calculator!G5 -> 5 | E13: mg/cm3 | G13: From Calculator tab (input) | T13: 80 | U13: =IF(AND($C$10<=T13,$C$11>=T13),($C$7-$C$8*EXP($C$9/T13))/100^3,"") -> -0.0002896076861
B14: rho | C14: =(C13/1000^2)*100^3 -> 5 | E14: kg/m3 | T14: 90 | U14: =IF(AND($C$10<T14,$C$11>T14),($C$7-$C$8*EXP($C$9/T14))/100^3,"") -> -0.0002293304841
B15: rho | C15: =C14/C5 -> 125.1627115 | E15: mol/m3 | T15: 100 | U15: -0.0001870588667
B16: T | C16: =Calculator!G6 -> 32 | E16: K | G16: From Calculator tab (input) | T16: 150 | U16: -8.620091187e-05
T17: 200 | U17: -4.75726017e-05
B18: B | C18: =(C7-C8*EXP(C9/C16))/100^3 -> -0.003030190962 | E18: m3/mol | T18: 250 | U18: -2.744265612e-05
B19: C | C19: 0 | E19: m6/mol2 | G19: Not used here (set to zero) | T19: 300 | U19: -1.515119954e-05
T20: 350 | U20: =((IF($C$10>T20,0,IF($C$11<T20,0,$C$7-$C$8*EXP($C$9/T20)))))/100^3 -> -6.884173219e-06
B21: P | C21: =C4*C16*(C15+C18*C15^2+C19*C15^3) -> 20671.11922 | E21: Pa | G21: The calculated pressure for this page | T21: 400 | U21: -9.498352633e-07
B22: P_virial | C22: =IF(AND(C16>=C10/2,C16<=C11),C21/133.32237,"no data") -> no data | E22: torr | T22: 450 | U22: 3.514198432e-06
B23: P_ideal | C23: =IF(C16<AL7,AJ5,C4*C16*C15/133.32237) -> 249.7790872 | E23: torr | T23: 500 | U23: 6.992768945e-06
T24: 550 | U24: 9.779058787e-06
B25: Na | C25: 6.0221415e+23 | E25: molecule/mol | T25: 600 | U25: 1.206063844e-05
T26: 650 | U26: 1.396302969e-05
B27: atoms/molecule | C27: 1 | T27: 700 | U27: 1.557337245e-05
T28: 750 | U28: 1.695403755e-05
B29: atom density | C29: =C15*C25*C27 -> 7.537475593e+25 | E29: atom Ar/m3 | T29: 800 | U29: 1.815083482e-05
B30: atom density | C30: =C29/100^3 -> 7.537475593e+19 | E30: atom Ar/cm3 | T30: 850 | U30: 1.919816271e-05
T31: 900 | U31: 2.012235038e-05
B32: Psat(Ar) | C32: =$AJ$5 -> 2.382991596e-06 | E32: torr | T32: 950 | U32: 2.094389101e-05
T33: 1000 | U33: 2.167897274e-05
C34: 18 | E34: electrons/molecule | T34: 1024 | U34: 2.200500758e-05
T35: 1025 | W35: =($C$7-$C$8*EXP($C$9/T35))/100^3 -> 2.201824405e-05
B36: electron density | C36: =C34*C29 -> 1.356745607e+27 | E36: electron Ar/m3 | T36: 1050 | W36: 2.234055203e-05
B37: electron density | C37: =C34*C30 -> 1.356745607e+21 | E37: electron Ar/cm3 | T37: 1100 | W37: 2.293912126e-05
T38: 1150 | W38: 2.348326765e-05
B39: psat(TL) | C39: =$AK$8 -> 20.4 | E39: K | T39: 1200 | W39: 2.398008664e-05
B40: psat(TU) | C40: =AL5 -> 150.72 | E40: K | T40: 1250 | W40: 2.443549222e-05
T41: 1300 | W41: 2.485445289e-05
B42: Tc | C42: 150.86 | E42: K | T42: 1350 | W42: 2.524117325e-05
B43: Pc | C43: =48.34/14.696*760 -> 2499.891127 | E43: Torr | T43: 1400 | W43: 2.559923536e-05
B44: Ttp | E44: K | T44: 1450 | W44: 2.593170977e-05
T45: 1500 | W45: 2.624124368e-05
T46: 1550 | W46: 2.653013139e-05
T47: 1600 | W47: 2.680037125e-05
T48: 1650 | W48: 2.705371184e-05
T49: 1700 | W49: 2.729168983e-05
T50: 1750 | W50: 2.75156611e-05
T51: 1800 | W51: 2.772682656e-05
T52: 1850 | W52: 2.792625371e-05
T53: 1900 | W53: 2.811489461e-05
T54: 1950 | W54: 2.82936011e-05

Sheet C3H8
B2: C3H8
E3: Units | G3: Reference
B4: R | C4: 8.3144621 | E4: Pa-m3/mol-K | AA4: Tmin, K | AB4: Tmax, K | AC4: Psat (Torr)
B5: M | C5: =(3*12.011+1.00796*8)/1000 -> 0.04409668 | E5: kg/mol | AA5: =MIN(AA7:AA11) -> 4 | AB5: =MAX(AB7:AB10) -> 1000 | AC5: =LOOKUP(1,AC7:AC10,AD7:AD10) -> no data
C6: B/(cm3 mol−1) = a − b exp{c(K/T)}. | V6: A | W6: B | X6: C | Y6: Tmin, °C | Z6: Tmax, °C | AA6: Tmin, K | AB6: Tmax, K | AC6: Lookup | AD6: Test
B7: A | C7: ='VC List'!$F$146 -> 322.8 | E7: cm3 mol−1 | AA7: 4 | AB7: 144.25 | AC7: =IF(AND($C$16>AA7,$C$16<AB7),1,"") -> 1 | AD7: =IF(AND($C$16>AA7,$C$16<AB7),"no data","") -> no data
B8: B | C8: ='VC List'!$G$146 -> 220.3 | E8: cm3 mol−1 | U8: Propane | V8: 6.82973 | W8: -813.2 | X8: 248 | Y8: -128.9 | Z8: 94.8 | AA8: =Y8+273.15 -> 144.25 | AB8: =Z8+273.15 -> 367.95 | AC8: =IF(AND($C$16>AA8,$C$16<AB8),1,"") ->  | AD8: =IF(AND($C$16>AA8,$C$16<AB8),10^(V8+(W8/(X8+(C16-273.15)))),"") -> 
B9: C | C9: ='VC List'!$H$146 -> 350 | E9: K | AA9: =AB8 -> 367.95 | AB9: 1000 | AD9: =IF(AND($C$16>AA9,$C$16<AB9),"supercritical","") -> 
B10: TL | C10: ='VC List'!$I$146 -> 240 | E10: K | U10: \log_{10}P = A - \frac{B}{C + T}
B11: TU | C11: ='VC List'!$J$146 -> 330 | E11: K | U11: where the temperature T is in degrees Celsius and the vapour pressure P is in mmHg. The constants are given as
B13: rho | C13: =Calculator!G5 -> 5 | E13: mg/cm3 | G13: From Calculator tab (input)
B14: rho | C14: =(C13/1000^2)*100^3 -> 5 | E14: kg/m3
B15: rho | C15: =C14/C5 -> 113.387221 | E15: mol/m3
B16: T | C16: =Calculator!G6 -> 32 | E16: K | G16: From Calculator tab (input)
B18: B | C18: =((IF(C10>C16,0,IF(C11<C16,0,C7-C8*EXP(C9/C16)))))/100^3 -> 0 | E18: m3/mol
B19: C | C19: 0 | E19: m6/mol2 | G19: Not used here (set to zero)
B21: P | C21: =C4*C16*(C15+C18*C15^2+C19*C15^3) -> 30168.12005 | E21: Pa | G21: The calculated pressure for this page
B22: P_virial | C22: =IF(AND(C16>=C10,C16<=C11),C21/133.32237,"no data") -> no data | E22: torr
B23: P_ideal | C23: =IF(C16<AB7,AC5,C4*C16*C15/133.32237) -> no data | E23: torr
B25: Na | C25: 6.0221415e+23 | E25: molecule/mol
B27: atoms/molecule | C27: 11
B29: atom density | C29: =C15*C25*C27 -> 7.51117278e+26 | E29: atoms C+H: C3H8/m3
B30: atom density | C30: =C29/100^3 -> 7.51117278e+20 | E30: atoms C+H: C3H8/cm3
B33: p_sat | C33: =$AC$5 -> no data | E33: torr
C35: 26 | E35: electrons/molecule
B37: electron density | C37: =C15*C25*C35 -> 1.775368112e+27 | E37: electron C3H8/m3
B38: electron density | C38: =C37/100^3 -> 1.775368112e+21 | E38: electron C3H8/cm3

Sheet Kr
T1: T | U1: B | V1: B -extrapolated low | W1: B -extrapolated high
B2: Kr | T2: 55 | V2: =($C$7-$C$8*EXP($C$9/T2))/100^3 -> -0.00188812839
E3: Units | G3: Reference | T3: 60 | V3: =($C$7-$C$8*EXP($C$9/T3))/100^3 -> -0.00147756347
B4: R | C4: 8.3144621 | E4: Pa-m3/mol-K | T4: 65 | V4: -0.001194211447 | AA4: Vapor Pressure | AJ4: Psat (Torr) | AK4: Tmin, K | AL4: Tmax, K
B5: M | C5: 0.083798 | E5: kg/mol | T5: 70 | V5: -0.0009899951431 | AA5: Summary | AJ5: =LOOKUP(1,AJ7:AJ12,AM7:AM12) -> no data | AK5: =MIN(AK7:AL13) -> 4 | AL5: =MAX(AK7:AL13) -> 209.3
C6: B/(cm3 mol−1) = a − b exp{c(K/T)}. | T6: 75 | V6: -0.0008375524152 | AB6: A | AC6: B | AD6: C | AE6: D | AF6: E | AG6: F | AH6: G | AI6: R | AJ6: Psat (Torr) | AK6: Tmin, K | AL6: Tmax, K | AM6: Formula | AN6: Formula
B7: A | C7: ='VC List'!$F$44 -> 189.6 | E7: cm3 mol−1 | T7: 80 | V7: -0.0007204160837 | AA7: Krypton | AJ7: =IF(AND($C$16>AK7,$C$16<=AL7),1,"") -> 1 | AK7: 4 | AL7: 59 | AM7: =IF(AND($C$16<=AL7,$C$16>AK7),"no data","") -> no data
B8: B | C8: ='VC List'!$G$44 -> 148 | E8: cm3 mol−1 | T8: 85 | V8: -0.0006282050954 | AB8: 4.5916e-35 | AC8: 18.309 | AI8: 0.9957 | AJ8: =IF(AND($C$16>AK8,$C$16<=AL8),1,"") ->  | AK8: 59 | AL8: 85 | AM8: =IF(AND($C$16<=AL8,$C$16>AK8),AB8*$C$16^AC8,"") ->  | AN8: ATB
B9: C | C9: ='VC List'!$H$44 -> 145.3 | E9: K | T9: 90 | V9: -0.0005541141234 | AB9: 1.535e-25 | AC9: 13.363 | AI9: 0.9987 | AK9: 85 | AL9: 115.97 | AM9: =IF(AND($C$16<=AL9,$C$16>AK9),AB9*$C$16^AC9,"") ->  | AN9: ATB
B10: TL | C10: ='VC List'!$I$44 -> 110 | E10: K | T10: 95 | V10: -0.0004935305327 | AB10: 1.4771e-17 | AC10: 9.4798 | AI10: 0.99856 | AK10: 115.97 | AL10: 126.68 | AM10: =IF(AND($C$16<=AL10,$C$16>AK10),AB10*$C$16^AC10,"") ->  | AN10: ATB
B11: TU | C11: ='VC List'!$J$44 -> 700 | E11: K | T11: 100 | V11: -0.0004432366132 | AB11: 4.2064 | AC11: 539.004 | AD11: 8.855 | AJ11: =IF(AND($C$16>AK11,$C$16<=AL11),1,"") ->  | AK11: 126.68 | AL11: 209.3 | AM11: =IF(AND($C$16<=AL11,$C$16>AK11),10^(AB11-(AC11/($C$16+AD11))),"") ->  | AN11: 10^(A - (B/(T+C)))
T12: 105 | V12: -0.0004009308024 | AJ12: =IF($C$16>AK12,1,"") ->  | AK12: =$C$42 -> 209.3 | AM12: =IF($C$16>AK12,"supercritical","") -> 
B13: rho | C13: =Calculator!$G$5 -> 5 | E13: mg/cm3 | G13: From Calculator tab (input) | T13: 110 | U13: =((IF($C$10>T13,0,IF($C$11<T13,0,$C$7-$C$8*EXP($C$9/T13)))))/100^3 -> -0.0003649302532
B14: rho | C14: =(C13/1000^2)*100^3 -> 5 | E14: kg/m3 | T14: 115 | U14: -0.0003339803657
B15: rho | C15: =C14/C5 -> 59.66729516 | E15: mol/m3 | T15: 120 | U15: -0.0003071294974
B16: T | C16: =Calculator!$G$6 -> 32 | E16: K | G16: From Calculator tab (input) | T16: 125 | U16: -0.0002836445499
T17: 130 | U17: -0.0002629528634
B18: B | C18: =(C7-C8*EXP(C9/C16))/100^3 -> -0.01368530753 | E18: m3/mol | T18: 135 | U18: -0.0002446014383
B19: C | C19: 0 | E19: m6/mol2 | G19: Not used here (set to zero) | T19: 140 | U19: -0.0002282278128
T20: 145 | U20: -0.0002135389289
B21: P | C21: =C4*C16*(C15+C18*C15^2+C19*C15^3) -> 2912.071406 | E21: Pa | G21: The calculated pressure for this page | T21: 150 | U21: -0.0002002955725
B22: P_virial | C22: =IF(AND(C16>=AK8,C16<=C11),C21/133.32237,"no data") -> no data | E22: torr | T22: 155 | U22: -0.0001883007627
B23: P_ideal | C23: =IF(C16<AL7,AJ5,C4*C16*C15/133.32237) -> no data | E23: torr | T23: 160 | U23: -0.0001773909813
T24: 165 | U24: -0.0001674294725
B25: Na | C25: 6.0221415e+23 | E25: molecule/mol | T25: 170 | U25: -0.0001583010694
T26: 175 | U26: -0.000149908162
B27: atoms/molecule | C27: 1 | T27: 180 | U27: -0.0001421675244
T28: 185 | U28: -0.0001350077983
B29: atom density | C29: =C15*C25*C27 -> 3.593248944e+25 | E29: atom Kr/m3 | T29: 190 | U29: -0.0001283674808
B30: atom density | C30: =C29/100^3 -> 3.593248944e+19 | E30: atom Kr/cm3 | T30: 195 | U30: -0.0001221933033
T31: 200 | U31: -0.000116438917
B32: Psat(Kr) | C32: =$AJ$5 -> no data | E32: torr | T32: 205 | U32: -0.0001110638194
T33: 210 | U33: -0.0001060324724
C34: 36 | E34: electrons/molecule | T34: 215 | U34: -0.0001013135742
T35: 220 | U35: -9.687945383e-05
B36: electron density | C36: =C34*C29 -> 1.29356962e+27 | E36: electron Kr/m3 | T36: 225 | U36: -9.270556596e-05
B37: electron density | C37: =C34*C30 -> 1.29356962e+21 | E37: electron Kr/cm3 | T37: 230 | U37: -8.877006685e-05
T38: 235 | U38: -8.505345685e-05
B39: psat(TL) | C39: =$AK$8 -> 59 | E39: K | T39: 240 | U39: -8.153827766e-05
B40: psat(TU) | C40: =AL5 -> 209.3 | E40: K | T40: 245 | U40: -7.820885495e-05
T41: 250 | U41: -7.505107857e-05
B42: Tc | C42: 209.3 | E42: K | T42: 255 | U42: -7.205221423e-05
B43: Pc | C43: =55.25*100000/101325*760 -> 41440.90797 | E43: Torr | T43: 260 | U43: -6.920074146e-05
B44: Ttp | C44: =-157.38+273.15 -> 115.77 | E44: K | T44: 265 | U44: -6.648621383e-05
T45: 270 | U45: -6.389913782e-05
T46: 275 | U46: -6.143086762e-05
T47: 280 | U47: -5.907351346e-05
T48: 285 | U48: -5.68198615e-05
T49: 290 | U49: -5.466330359e-05
T50: 295 | U50: -5.259777553e-05
T51: 300 | U51: -5.061770278e-05
T52: 305 | U52: -4.871795236e-05
T53: 310 | U53: -4.689379036e-05
T54: 315 | U54: -4.514084421e-05
T55: 320 | U55: -4.345506911e-05
T56: 325 | U56: -4.183271813e-05
T57: 330 | U57: -4.027031546e-05
T58: 335 | U58: -3.876463255e-05
T59: 340 | U59: -3.731266663e-05
T60: 345 | U60: -3.591162147e-05
T61: 350 | U61: -3.455889003e-05
T62: 355 | U62: -3.325203887e-05
T63: 360 | U63: -3.198879397e-05
T64: 365 | U64: -3.076702804e-05
T65: 370 | U65: -2.95847489e-05
T66: 375 | U66: -2.844008901e-05
T67: 380 | U67: =((IF($C$10>T67,0,IF($C$11<T67,0,$C$7-$C$8*EXP($C$9/T67)))))/100^3 -> -2.733129594e-05
T68: 385 | U68: -2.625672365e-05
T69: 390 | U69: -2.521482465e-05
T70: 395 | U70: -2.420414272e-05
T71: 400 | U71: -2.322330634e-05
T72: 405 | U72: -2.227102266e-05
T73: 410 | U73: -2.134607196e-05
T74: 415 | U74: -2.044730257e-05
T75: 420 | U75: -1.957362625e-05
T76: 425 | U76: -1.872401388e-05
T77: 430 | U77: -1.789749151e-05
T78: 435 | U78: -1.709313676e-05
T79: 440 | U79: -1.631007544e-05
T80: 445 | U80: -1.554747848e-05
T81: 450 | U81: -1.480455905e-05
T82: 455 | U82: -1.408056996e-05
T83: 460 | U83: -1.337480113e-05
T84: 465 | U84: -1.268657741e-05
T85: 470 | U85: -1.20152564e-05
T86: 475 | U86: -1.136022655e-05
T87: 480 | U87: -1.072090529e-05
T88: 485 | U88: -1.009673737e-05
T89: 490 | U89: -9.487193292e-06
T90: 495 | U90: -8.891767814e-06
T91: 500 | U91: -8.309978598e-06
T92: 505 | U92: -7.741364929e-06
T93: 510 | U93: -7.185486521e-06
T94: 515 | U94: -6.641922405e-06
T95: 520 | U95: -6.110269878e-06
T96: 525 | U96: -5.590143536e-06
T97: 530 | U97: -5.081174351e-06
T98: 535 | U98: -4.583008817e-06
T99: 540 | U99: -4.095308144e-06
T100: 545 | U100: -3.617747505e-06
T101: 550 | U101: -3.150015324e-06
T102: 555 | U102: -2.691812612e-06
T103: 560 | U103: -2.242852337e-06
T104: 565 | U104: -1.802858836e-06
T105: 570 | U105: -1.371567263e-06
T106: 575 | U106: -9.48723056e-07
T107: 580 | U107: -5.340814546e-07
T108: 585 | U108: -1.274070279e-07
T109: 590 | U109: 2.715267622e-07
T110: 595 | U110: 6.629379761e-07
T111: 600 | U111: 1.047036588e-06
T112: 605 | U112: 1.424024856e-06
T113: 610 | U113: 1.794097672e-06
T114: 615 | U114: 2.157442895e-06
T115: 620 | U115: 2.514241661e-06
T116: 625 | U116: 2.864668683e-06
T117: 630 | U117: 3.208892532e-06
T118: 635 | U118: 3.547075902e-06
T119: 640 | U119: 3.879375866e-06
T120: 645 | U120: 4.205944114e-06
T121: 650 | U121: 4.526927181e-06
T122: 655 | U122: 4.842466664e-06
T123: 660 | U123: 5.152699429e-06
T124: 665 | U124: 5.457757805e-06
T125: 670 | U125: 5.757769767e-06
T126: 675 | U126: 6.052859121e-06
T127: 680 | U127: 6.343145665e-06
T128: 685 | U128: 6.62874535e-06
T129: 690 | U129: 6.909770439e-06
T130: 695 | U130: 7.186329643e-06
T131: 700 | U131: =((IF($C$10>T131,0,IF($C$11<T131,0,$C$7-$C$8*EXP($C$9/T131)))))/100^3 -> 7.458528267e-06
T132: 705 | W132: =($C$7-$C$8*EXP($C$9/T132))/100^3 -> 7.72646834e-06
T133: 710 | W133: 7.990248741e-06
T134: 715 | W134: 8.249965316e-06
T135: 720 | W135: 8.505711002e-06
T136: 725 | W136: 8.757575925e-06
T137: 730 | W137: 9.005647514e-06
T138: 735 | W138: 9.250010597e-06
T139: 740 | W139: 9.490747497e-06
T140: 745 | W140: 9.727938126e-06
T141: 750 | W141: 9.961660068e-06
T142: 755 | W142: 1.019198867e-05
T143: 760 | W143: 1.041899711e-05
T144: 765 | W144: 1.064275648e-05
T145: 770 | W145: 1.086333588e-05
T146: 775 | W146: 1.108080245e-05
T147: 780 | W147: 1.129522146e-05
T148: 785 | W148: 1.150665639e-05
T149: 790 | W149: 1.171516894e-05
T150: 795 | W150: 1.192081914e-05
T151: 800 | W151: 1.212366541e-05

Sheet THD_MIXTURES
B2: THD | C2: Mixture calculator | R2: Psat constants (Souers)
R3: A_lv(1)= | S3: 4.75319 | T3: H2
B4: R | C4: 8.3144621 | E4: Pa-m^3/mol-K | R4: A_lv(2)= | S4: 6.68995 | T4: HD
R5: A_lv(3)= | S5: 7.83671 | T5: HT
B6: f_D | C6: =Calculator!G13 -> 0.5 | E6: n.u | G6: atom fraction from Calculator tab (input) | R6: A_lv(4)= | S6: 7.73898 | T6: D2
B7: f_H | C7: =Calculator!G12 -> 0 | E7: n.u. | G7: atom fraction from Calculator tab (input) | R7: A_lv(5)= | S7: 9.32752 | T7: DT
B8: f_T | C8: =Calculator!G11 -> 0.5 | G8: atom fraction from Calculator tab (input) | R8: A_lv(6)= | S8: 10.922 | T8: T2
M9: partial pressure
B10: y_D2 | C10: =THD_EquilibriumCalculator!I9 -> 0.2888345123 | E10: n.u. | G10: molecule fraction | L10: D2 | M10: =C10*$C$61 -> 523.7252195 | N10: torr | R10: B_lv(1)= | S10: 83.5177 | T10: H2
B11: y_H2 | C11: =THD_EquilibriumCalculator!J9 -> 0 | E11: n.u. | G11: molecule fraction | L11: H2 | M11: 0 | N11: torr | R11: B_lv(2)= | S11: 109.419 | T11: HD
B12: y_T2 | C12: =THD_EquilibriumCalculator!H9 -> 0.2888345123 | E12: n.u. | G12: molecule fraction | L12: T2 | M12: 523.7252195 | N12: torr | R12: B_lv(3)= | S12: 123.995 | T12: HT
B13: y_DT | C13: =THD_EquilibriumCalculator!K9 -> 0.4223309754 | E13: n.u. | G13: molecule fraction | L13: DT | M13: 765.785851 | N13: torr | R13: B_lv(4)= | S13: 130.249 | T13: D2
B14: y_HD | C14: =THD_EquilibriumCalculator!L9 -> 0 | E14: n.u. | G14: molecule fraction | L14: HD | M14: 0 | N14: torr | R14: B_lv(5)= | S14: 147.349 | T14: DT
B15: y_HT | C15: =THD_EquilibriumCalculator!M9 -> 0 | E15: n.u. | G15: molecule fraction | L15: HT | M15: 0 | N15: torr | R15: B_lv(6)= | S15: 164.486 | T15: T2
B17: M_D2 | C17: 0.004028204 | E17: kg/mol | G17: (Souers Table 1.1) | K17: =$C$27/C17 -> 1241.247961 | L17: mol/m^3 | N17: =C10*K17 -> 358.5152493 | R17: C_lv(1)= | S17: 1.98042 | T17: H2
B18: M_H2 | C18: 0.00201565 | E18: kg/mol | G18: (Souers Table 1.1) | K18: =$C$27/C18 -> 2480.589388 | L18: mol/m^3 | N18: =C11*K18 -> 0 | R18: C_lv(2)= | S18: 1.57756 | T18: HD
B19: M_T2 | C19: 0.0060321 | E19: kg/mol | G19: (Souers Table 1.1) | K19: 828.8987252 | L19: mol/m^3 | N19: 239.414559 | R19: C_lv(3)= | S19: 1.3444 | T19: HT
B20: M_DT | C20: 0.005030152 | E20: kg/mol | G20: (Souers Table 1.1) | K20: 994.0057477 | L20: mol/m^3 | N20: 419.799417 | R20: C_lv(4)= | S20: 1.38962 | T20: D2
B21: M_HD | C21: 0.003021927 | E21: kg/mol | G21: (Souers Table 1.1) | K21: 1654.57339 | L21: mol/m^3 | N21: 0 | R21: C_lv(5)= | S21: 1.0495 | T21: DT
B22: M_HT | C22: 0.004023875 | E22: kg/mol | G22: (Souers Table 1.1) | K22: 1242.583331 | L22: mol/m^3 | N22: 0 | R22: C_lv(6)= | S22: 0.707997 | T22: T2
B24: M_mix | C24: =C10*C17+C11*C18+C12*C19+C13*C20+C14*C21+C15*C22 -> 0.005030152 | E24: kg/mol | G24: M_mix=y_D2*M_D2+y_H2*M_H2 + …
B26: rho | C26: =Calculator!G5 -> 5 | E26: mg/cc | G26: From Calculator tab (input)
B27: rho | C27: =(C26/1000^2)*100^3 -> 5 | E27: kg/m^3
B28: rhoM_mix | C28: =C27/C24 -> 994.0057477 | E28: mol/m^3
B29: T | C29: =Calculator!G6 -> 32 | E29: K | G29: From Calculator tab (input)
L30: B_1 | M30: B_2 | N30: B_3 | O30: B_4 | P30: B_5 | Q30: B_6 | T30: y1 | U30: y2 | V30: y3 | W30: y4 | X30: y5 | Y30: y6 | AB30: yB | AC30: yB | AD30: yB | AE30: yB | AF30: yB | AG30: yB
A31: B_1 | B31: B_D2 | C31: ='D2'!C16 -> -8.515246186e-05 | E31: m3/mol | G31: PIMC Garberoglio et al. (2012) | K31: B_1 | L31: =AVERAGE(C$31,C31) -> -8.515246186e-05 | M31: =AVERAGE(C$32,C31) -> -7.900133159e-05 | N31: =AVERAGE(C$33,C31) -> -8.772670363e-05 | O31: =AVERAGE(C$34,C31) -> -8.66736552e-05 | P31: =AVERAGE(C$35,C31) -> -8.307120212e-05 | Q31: =AVERAGE(C$36,C31) -> -8.542186584e-05 | S31: y1 | T31: =C10*C$10 -> 0.08342537549 | U31: =C10*C$11 -> 0 | V31: =C10*C$12 -> 0.08342537549 | W31: =C10*C$13 -> 0.1219837613 | X31: =C10*C$14 -> 0 | Y31: =C10*C$15 -> 0 | AA31: yB | AB31: =L31*T31 -> -7.103876105e-06 | AC31: =M31*U31 -> 0 | AD31: -7.318633191e-06 | AE31: -1.057277847e-05 | AF31: 0 | AG31: 0
A32: B_2 | B32: B_H2 | C32: ='H2'!C16 -> -7.285020133e-05 | E32: m3/mol | G32: PIMC Garberoglio et al. (2012) | K32: B_2 | L32: -7.900133159e-05 | M32: -7.285020133e-05 | N32: -8.157557337e-05 | O32: -8.052252493e-05 | P32: -7.692007186e-05 | Q32: -7.927073558e-05 | S32: y2 | T32: =C11*C$10 -> 0 | U32: =C11*C$11 -> 0 | V32: =C11*C$12 -> 0 | W32: =C11*C$13 -> 0 | X32: =C11*C$14 -> 0 | Y32: =C11*C$15 -> 0 | AA32: yB | AB32: =L32*T32 -> 0 | AC32: 0 | AD32: 0 | AE32: 0 | AF32: 0 | AG32: 0
A33: B_3 | B33: B_T2 | C33: ='T2'!C16 -> -9.030094541e-05 | E33: m3/mol | G33: PIMC Garberoglio et al. (2012) | K33: B_3 | L33: -8.772670363e-05 | M33: -8.157557337e-05 | N33: -9.030094541e-05 | O33: -8.924789697e-05 | P33: -8.564544389e-05 | Q33: -8.799610762e-05 | S33: y3 | T33: 0.08342537549 | U33: 0 | V33: 0.08342537549 | W33: 0.1219837613 | X33: 0 | Y33: 0 | AA33: yB | AB33: -7.318633191e-06 | AC33: 0 | AD33: -7.533390278e-06 | AE33: -1.088679416e-05 | AF33: 0 | AG33: 0
A34: B_4 | B34: B_DT | C34: =DT!C16 -> -8.819484854e-05 | E34: m3/mol | G34: PIMC Garberoglio et al. (2012) | K34: B_4 | L34: -8.66736552e-05 | M34: -8.052252493e-05 | N34: -8.924789697e-05 | O34: -8.819484854e-05 | P34: -8.459239546e-05 | Q34: -8.694305918e-05 | S34: y4 | T34: 0.1219837613 | U34: 0 | V34: 0.1219837613 | W34: 0.1783634528 | X34: 0 | Y34: 0 | AA34: yB | AB34: -1.057277847e-05 | AC34: 0 | AD34: -1.088679416e-05 | AE34: -1.57307377e-05 | AF34: 0 | AG34: 0
A35: B_5 | B35: B_HD | C35: =HD!C16 -> -8.098994238e-05 | E35: m3/mol | G35: PIMC Garberoglio et al. (2012) | K35: B_5 | L35: -8.307120212e-05 | M35: -7.692007186e-05 | N35: -8.564544389e-05 | O35: -8.459239546e-05 | P35: -8.098994238e-05 | Q35: -8.33406061e-05 | S35: y5 | T35: 0 | U35: 0 | V35: 0 | W35: 0 | X35: 0 | Y35: 0 | AA35: yB | AB35: 0 | AC35: 0 | AD35: 0 | AE35: 0 | AF35: 0 | AG35: 0
A36: B_6 | B36: B_HT | C36: =HT!C16 -> -8.569126983e-05 | E36: m3/mol | G36: PIMC Garberoglio et al. (2012) | K36: B_6 | L36: -8.542186584e-05 | M36: -7.927073558e-05 | N36: -8.799610762e-05 | O36: -8.694305918e-05 | P36: -8.33406061e-05 | Q36: -8.569126983e-05 | S36: y6 | T36: 0 | U36: 0 | V36: 0 | W36: 0 | X36: 0 | Y36: 0 | AA36: yB | AB36: 0 | AC36: 0 | AD36: 0 | AE36: 0 | AF36: 0 | AG36: 0
R46: i | S46: C11i | T46: C12i | U46: C13i | V46: C14i | W46: C15i | X46: C16i | Z46: C21i | AA46: C22i | AB46: C23i | AC46: C24i | AD46: C25i | AE46: C26i | AG46: C31i | AH46: C32i | AI46: C33i | AJ46: C34i | AK46: C35i | AL46: C36i | AN46: C41i | AO46: C42i | AP46: C43i | AQ46: C44i | AR46: C45i | AS46: C46i | AU46: C51i | AV46: C52i | AW46: C53i | AX46: C54i | AY46: C55i | AZ46: C56i | BB46: C61i | BC46: C62i | BD46: C63i | BE46: C64i | BF46: C65i | BG46: C66i
R47: 1 | S47: =($C$48+$C$48+$C$48)/3 -> 1.534363992e-09 | T47: =($C$48+$C$49+$C$48)/3 -> 1.543450623e-09 | U47: =($C$48+$C$50+$C$48)/3 -> 1.503474002e-09 | V47: =($C$48+$C$51+$C$48)/3 -> 1.524933424e-09 | W47: =($C$48+$C$52+$C$48)/3 -> 1.553248631e-09 | X47: =($C$48+$C$53+$C$48)/3 -> 1.565594416e-09 | Z47: =($C$49+$C$48+$C$48)/3 -> 1.543450623e-09 | AA47: =($C$49+$C$49+$C$48)/3 -> 1.552537254e-09 | AB47: =($C$49+$C$50+$C$48)/3 -> 1.512560633e-09 | AC47: =($C$49+$C$51+$C$48)/3 -> 1.534020055e-09 | AD47: =($C$49+$C$52+$C$48)/3 -> 1.562335262e-09 | AE47: =($C$49+$C$53+$C$48)/3 -> 1.574681047e-09 | AG47: =($C$50+$C$48+$C$48)/3 -> 1.503474002e-09 | AH47: =($C$50+$C$49+$C$48)/3 -> 1.512560633e-09 | AI47: =($C$50+$C$50+$C$48)/3 -> 1.472584013e-09 | AJ47: =($C$50+$C$51+$C$48)/3 -> 1.494043434e-09 | AK47: =($C$50+$C$52+$C$48)/3 -> 1.522358641e-09 | AL47: =($C$50+$C$53+$C$48)/3 -> 1.534704426e-09 | AN47: =($C$51+$C$48+$C$48)/3 -> 1.524933424e-09 | AO47: =($C$51+$C$49+$C$48)/3 -> 1.534020055e-09 | AP47: =($C$51+$C$50+$C$48)/3 -> 1.494043434e-09 | AQ47: =($C$51+$C$51+$C$48)/3 -> 1.515502856e-09 | AR47: =($C$51+$C$52+$C$48)/3 -> 1.543818063e-09 | AS47: =($C$51+$C$53+$C$48)/3 -> 1.556163848e-09 | AU47: =($C$52+$C$48+$C$48)/3 -> 1.553248631e-09 | AV47: =($C$52+$C$49+$C$48)/3 -> 1.562335262e-09 | AW47: =($C$52+$C$50+$C$48)/3 -> 1.522358641e-09 | AX47: =($C$52+$C$51+$C$48)/3 -> 1.543818063e-09 | AY47: =($C$52+$C$52+$C$48)/3 -> 1.57213327e-09 | AZ47: =($C$52+$C$53+$C$48)/3 -> 1.584479055e-09 | BB47: =($C$53+$C$48+$C$48)/3 -> 1.565594416e-09 | BC47: =($C$53+$C$49+$C$48)/3 -> 1.574681047e-09 | BD47: =($C$53+$C$50+$C$48)/3 -> 1.534704426e-09 | BE47: =($C$53+$C$51+$C$48)/3 -> 1.556163848e-09 | BF47: =($C$53+$C$52+$C$48)/3 -> 1.584479055e-09 | BG47: =($C$53+$C$53+$C$48)/3 -> 1.59682484e-09
A48: C_1 | B48: C_D2 | C48: =IF('D2'!$C$18=0,'D2'!$C$19,'D2'!$C$18) -> 1.534363992e-09 | E48: m6/mol2 | R48: 2 | S48: =($C$48+$C$48+$C$49)/3 -> 1.543450623e-09 | T48: =($C$48+$C$49+$C$49)/3 -> 1.552537254e-09 | U48: =($C$48+$C$50+$C$49)/3 -> 1.512560633e-09 | V48: =($C$48+$C$51+$C$49)/3 -> 1.534020055e-09 | W48: =($C$48+$C$52+$C$49)/3 -> 1.562335262e-09 | X48: =($C$48+$C$53+$C$49)/3 -> 1.574681047e-09 | Z48: =($C$49+$C$48+$C$49)/3 -> 1.552537254e-09 | AA48: =($C$49+$C$49+$C$49)/3 -> 1.561623885e-09 | AB48: =($C$49+$C$50+$C$49)/3 -> 1.521647265e-09 | AC48: =($C$49+$C$51+$C$49)/3 -> 1.543106686e-09 | AD48: =($C$49+$C$52+$C$49)/3 -> 1.571421893e-09 | AE48: =($C$49+$C$53+$C$49)/3 -> 1.583767678e-09 | AG48: =($C$50+$C$48+$C$49)/3 -> 1.512560633e-09 | AH48: =($C$50+$C$49+$C$49)/3 -> 1.521647265e-09 | AI48: =($C$50+$C$50+$C$49)/3 -> 1.481670644e-09 | AJ48: =($C$50+$C$51+$C$49)/3 -> 1.503130066e-09 | AK48: =($C$50+$C$52+$C$49)/3 -> 1.531445273e-09 | AL48: =($C$50+$C$53+$C$49)/3 -> 1.543791057e-09 | AN48: =($C$51+$C$48+$C$49)/3 -> 1.534020055e-09 | AO48: =($C$51+$C$49+$C$49)/3 -> 1.543106686e-09 | AP48: =($C$51+$C$50+$C$49)/3 -> 1.503130066e-09 | AQ48: =($C$51+$C$51+$C$49)/3 -> 1.524589487e-09 | AR48: =($C$51+$C$52+$C$49)/3 -> 1.552904694e-09 | AS48: =($C$51+$C$53+$C$49)/3 -> 1.565250479e-09 | AU48: =($C$52+$C$48+$C$49)/3 -> 1.562335262e-09 | AV48: =($C$52+$C$49+$C$49)/3 -> 1.571421893e-09 | AW48: =($C$52+$C$50+$C$49)/3 -> 1.531445273e-09 | AX48: =($C$52+$C$51+$C$49)/3 -> 1.552904694e-09 | AY48: =($C$52+$C$52+$C$49)/3 -> 1.581219901e-09 | AZ48: =($C$52+$C$53+$C$49)/3 -> 1.593565686e-09 | BB48: =($C$53+$C$48+$C$49)/3 -> 1.574681047e-09 | BC48: =($C$53+$C$49+$C$49)/3 -> 1.583767678e-09 | BD48: =($C$53+$C$50+$C$49)/3 -> 1.543791057e-09 | BE48: =($C$53+$C$51+$C$49)/3 -> 1.565250479e-09 | BF48: =($C$53+$C$52+$C$49)/3 -> 1.593565686e-09 | BG48: =($C$53+$C$53+$C$49)/3 -> 1.605911471e-09
A49: C_2 | B49: C_H2 | C49: ='H2'!$C$18 -> 1.561623885e-09 | E49: m6/mol2 | R49: 3 | S49: =($C$48+$C$48+$C$50)/3 -> 1.503474002e-09 | T49: =($C$48+$C$49+$C$50)/3 -> 1.512560633e-09 | U49: =($C$48+$C$50+$C$50)/3 -> 1.472584013e-09 | V49: =($C$48+$C$51+$C$50)/3 -> 1.494043434e-09 | W49: =($C$48+$C$52+$C$50)/3 -> 1.522358641e-09 | X49: =($C$48+$C$53+$C$50)/3 -> 1.534704426e-09 | Z49: =($C$49+$C$48+$C$50)/3 -> 1.512560633e-09 | AA49: =($C$49+$C$49+$C$50)/3 -> 1.521647265e-09 | AB49: =($C$49+$C$50+$C$50)/3 -> 1.481670644e-09 | AC49: =($C$49+$C$51+$C$50)/3 -> 1.503130066e-09 | AD49: =($C$49+$C$52+$C$50)/3 -> 1.531445273e-09 | AE49: =($C$49+$C$53+$C$50)/3 -> 1.543791057e-09 | AG49: =($C$50+$C$48+$C$50)/3 -> 1.472584013e-09 | AH49: =($C$50+$C$49+$C$50)/3 -> 1.481670644e-09 | AI49: =($C$50+$C$50+$C$50)/3 -> 1.441694023e-09 | AJ49: =($C$50+$C$51+$C$50)/3 -> 1.463153445e-09 | AK49: =($C$50+$C$52+$C$50)/3 -> 1.491468652e-09 | AL49: =($C$50+$C$53+$C$50)/3 -> 1.503814436e-09 | AN49: =($C$51+$C$48+$C$50)/3 -> 1.494043434e-09 | AO49: =($C$51+$C$49+$C$50)/3 -> 1.503130066e-09 | AP49: =($C$51+$C$50+$C$50)/3 -> 1.463153445e-09 | AQ49: =($C$51+$C$51+$C$50)/3 -> 1.484612867e-09 | AR49: =($C$51+$C$52+$C$50)/3 -> 1.512928074e-09 | AS49: =($C$51+$C$53+$C$50)/3 -> 1.525273858e-09 | AU49: =($C$52+$C$48+$C$50)/3 -> 1.522358641e-09 | AV49: =($C$52+$C$49+$C$50)/3 -> 1.531445273e-09 | AW49: =($C$52+$C$50+$C$50)/3 -> 1.491468652e-09 | AX49: =($C$52+$C$51+$C$50)/3 -> 1.512928074e-09 | AY49: =($C$52+$C$52+$C$50)/3 -> 1.541243281e-09 | AZ49: =($C$52+$C$53+$C$50)/3 -> 1.553589065e-09 | BB49: =($C$53+$C$48+$C$50)/3 -> 1.534704426e-09 | BC49: =($C$53+$C$49+$C$50)/3 -> 1.543791057e-09 | BD49: =($C$53+$C$50+$C$50)/3 -> 1.503814436e-09 | BE49: =($C$53+$C$51+$C$50)/3 -> 1.525273858e-09 | BF49: =($C$53+$C$52+$C$50)/3 -> 1.553589065e-09 | BG49: =($C$53+$C$53+$C$50)/3 -> 1.56593485e-09
A50: C_3 | B50: C_T2 | C50: =IF('T2'!$C$18=0,'T2'!$C$19,'T2'!$C$18) -> 1.441694023e-09 | E50: m6/mol2 | R50: 4 | S50: =($C$48+$C$48+$C$51)/3 -> 1.524933424e-09 | T50: =($C$48+$C$49+$C$51)/3 -> 1.534020055e-09 | U50: =($C$48+$C$50+$C$51)/3 -> 1.494043434e-09 | V50: =($C$48+$C$51+$C$51)/3 -> 1.515502856e-09 | W50: =($C$48+$C$52+$C$51)/3 -> 1.543818063e-09 | X50: =($C$48+$C$53+$C$51)/3 -> 1.556163848e-09 | Z50: =($C$49+$C$48+$C$51)/3 -> 1.534020055e-09 | AA50: =($C$49+$C$49+$C$51)/3 -> 1.543106686e-09 | AB50: =($C$49+$C$50+$C$51)/3 -> 1.503130066e-09 | AC50: =($C$49+$C$51+$C$51)/3 -> 1.524589487e-09 | AD50: =($C$49+$C$52+$C$51)/3 -> 1.552904694e-09 | AE50: =($C$49+$C$53+$C$51)/3 -> 1.565250479e-09 | AG50: =($C$50+$C$48+$C$51)/3 -> 1.494043434e-09 | AH50: =($C$50+$C$49+$C$51)/3 -> 1.503130066e-09 | AI50: =($C$50+$C$50+$C$51)/3 -> 1.463153445e-09 | AJ50: =($C$50+$C$51+$C$51)/3 -> 1.484612867e-09 | AK50: =($C$50+$C$52+$C$51)/3 -> 1.512928074e-09 | AL50: =($C$50+$C$53+$C$51)/3 -> 1.525273858e-09 | AN50: =($C$51+$C$48+$C$51)/3 -> 1.515502856e-09 | AO50: =($C$51+$C$49+$C$51)/3 -> 1.524589487e-09 | AP50: =($C$51+$C$50+$C$51)/3 -> 1.484612867e-09 | AQ50: =($C$51+$C$51+$C$51)/3 -> 1.506072288e-09 | AR50: =($C$51+$C$52+$C$51)/3 -> 1.534387495e-09 | AS50: =($C$51+$C$53+$C$51)/3 -> 1.54673328e-09 | AU50: =($C$52+$C$48+$C$51)/3 -> 1.543818063e-09 | AV50: =($C$52+$C$49+$C$51)/3 -> 1.552904694e-09 | AW50: =($C$52+$C$50+$C$51)/3 -> 1.512928074e-09 | AX50: =($C$52+$C$51+$C$51)/3 -> 1.534387495e-09 | AY50: =($C$52+$C$52+$C$51)/3 -> 1.562702702e-09 | AZ50: =($C$52+$C$53+$C$51)/3 -> 1.575048487e-09 | BB50: =($C$53+$C$48+$C$51)/3 -> 1.556163848e-09 | BC50: =($C$53+$C$49+$C$51)/3 -> 1.565250479e-09 | BD50: =($C$53+$C$50+$C$51)/3 -> 1.525273858e-09 | BE50: =($C$53+$C$51+$C$51)/3 -> 1.54673328e-09 | BF50: =($C$53+$C$52+$C$51)/3 -> 1.575048487e-09 | BG50: =($C$53+$C$53+$C$51)/3 -> 1.587394272e-09
A51: C_4 | B51: C_DT | C51: =IF(DT!$C$18=0,DT!$C$19,DT!$C$18) -> 1.506072288e-09 | E51: m6/mol2 | R51: 5 | S51: =($C$48+$C$48+$C$52)/3 -> 1.553248631e-09 | T51: =($C$48+$C$49+$C$52)/3 -> 1.562335262e-09 | U51: =($C$48+$C$50+$C$52)/3 -> 1.522358641e-09 | V51: =($C$48+$C$51+$C$52)/3 -> 1.543818063e-09 | W51: =($C$48+$C$52+$C$52)/3 -> 1.57213327e-09 | X51: =($C$48+$C$53+$C$52)/3 -> 1.584479055e-09 | Z51: =($C$49+$C$48+$C$52)/3 -> 1.562335262e-09 | AA51: =($C$49+$C$49+$C$52)/3 -> 1.571421893e-09 | AB51: =($C$49+$C$50+$C$52)/3 -> 1.531445273e-09 | AC51: =($C$49+$C$51+$C$52)/3 -> 1.552904694e-09 | AD51: =($C$49+$C$52+$C$52)/3 -> 1.581219901e-09 | AE51: =($C$49+$C$53+$C$52)/3 -> 1.593565686e-09 | AG51: =($C$50+$C$48+$C$52)/3 -> 1.522358641e-09 | AH51: =($C$50+$C$49+$C$52)/3 -> 1.531445273e-09 | AI51: =($C$50+$C$50+$C$52)/3 -> 1.491468652e-09 | AJ51: =($C$50+$C$51+$C$52)/3 -> 1.512928074e-09 | AK51: =($C$50+$C$52+$C$52)/3 -> 1.541243281e-09 | AL51: =($C$50+$C$53+$C$52)/3 -> 1.553589065e-09 | AN51: =($C$51+$C$48+$C$52)/3 -> 1.543818063e-09 | AO51: =($C$51+$C$49+$C$52)/3 -> 1.552904694e-09 | AP51: =($C$51+$C$50+$C$52)/3 -> 1.512928074e-09 | AQ51: =($C$51+$C$51+$C$52)/3 -> 1.534387495e-09 | AR51: =($C$51+$C$52+$C$52)/3 -> 1.562702702e-09 | AS51: =($C$51+$C$53+$C$52)/3 -> 1.575048487e-09 | AU51: =($C$52+$C$48+$C$52)/3 -> 1.57213327e-09 | AV51: =($C$52+$C$49+$C$52)/3 -> 1.581219901e-09 | AW51: =($C$52+$C$50+$C$52)/3 -> 1.541243281e-09 | AX51: =($C$52+$C$51+$C$52)/3 -> 1.562702702e-09 | AY51: =($C$52+$C$52+$C$52)/3 -> 1.59101791e-09 | AZ51: =($C$52+$C$53+$C$52)/3 -> 1.603363694e-09 | BB51: =($C$53+$C$48+$C$52)/3 -> 1.584479055e-09 | BC51: =($C$53+$C$49+$C$52)/3 -> 1.593565686e-09 | BD51: =($C$53+$C$50+$C$52)/3 -> 1.553589065e-09 | BE51: =($C$53+$C$51+$C$52)/3 -> 1.575048487e-09 | BF51: =($C$53+$C$52+$C$52)/3 -> 1.603363694e-09 | BG51: =($C$53+$C$53+$C$52)/3 -> 1.615709479e-09
A52: C_5 | B52: C_HD | C52: =IF(HD!$C$18=0,HD!$C$19,HD!$C$18) -> 1.59101791e-09 | E52: m6/mol2 | R52: 6 | S52: =($C$48+$C$48+$C$53)/3 -> 1.565594416e-09 | T52: =($C$48+$C$49+$C$53)/3 -> 1.574681047e-09 | U52: =($C$48+$C$50+$C$53)/3 -> 1.534704426e-09 | V52: =($C$48+$C$51+$C$53)/3 -> 1.556163848e-09 | W52: =($C$48+$C$52+$C$53)/3 -> 1.584479055e-09 | X52: =($C$48+$C$53+$C$53)/3 -> 1.59682484e-09 | Z52: =($C$49+$C$48+$C$53)/3 -> 1.574681047e-09 | AA52: =($C$49+$C$49+$C$53)/3 -> 1.583767678e-09 | AB52: =($C$49+$C$50+$C$53)/3 -> 1.543791057e-09 | AC52: =($C$49+$C$51+$C$53)/3 -> 1.565250479e-09 | AD52: =($C$49+$C$52+$C$53)/3 -> 1.593565686e-09 | AE52: =($C$49+$C$53+$C$53)/3 -> 1.605911471e-09 | AG52: =($C$50+$C$48+$C$53)/3 -> 1.534704426e-09 | AH52: =($C$50+$C$49+$C$53)/3 -> 1.543791057e-09 | AI52: =($C$50+$C$50+$C$53)/3 -> 1.503814436e-09 | AJ52: =($C$50+$C$51+$C$53)/3 -> 1.525273858e-09 | AK52: =($C$50+$C$52+$C$53)/3 -> 1.553589065e-09 | AL52: =($C$50+$C$53+$C$53)/3 -> 1.56593485e-09 | AN52: =($C$51+$C$48+$C$53)/3 -> 1.556163848e-09 | AO52: =($C$51+$C$49+$C$53)/3 -> 1.565250479e-09 | AP52: =($C$51+$C$50+$C$53)/3 -> 1.525273858e-09 | AQ52: =($C$51+$C$51+$C$53)/3 -> 1.54673328e-09 | AR52: =($C$51+$C$52+$C$53)/3 -> 1.575048487e-09 | AS52: =($C$51+$C$53+$C$53)/3 -> 1.587394272e-09 | AU52: =($C$52+$C$48+$C$53)/3 -> 1.584479055e-09 | AV52: =($C$52+$C$49+$C$53)/3 -> 1.593565686e-09 | AW52: =($C$52+$C$50+$C$53)/3 -> 1.553589065e-09 | AX52: =($C$52+$C$51+$C$53)/3 -> 1.575048487e-09 | AY52: =($C$52+$C$52+$C$53)/3 -> 1.603363694e-09 | AZ52: =($C$52+$C$53+$C$53)/3 -> 1.615709479e-09 | BB52: =($C$53+$C$48+$C$53)/3 -> 1.59682484e-09 | BC52: =($C$53+$C$49+$C$53)/3 -> 1.605911471e-09 | BD52: =($C$53+$C$50+$C$53)/3 -> 1.56593485e-09 | BE52: =($C$53+$C$51+$C$53)/3 -> 1.587394272e-09 | BF52: =($C$53+$C$52+$C$53)/3 -> 1.615709479e-09 | BG52: =($C$53+$C$53+$C$53)/3 -> 1.628055263e-09
A53: C_6 | B53: C_HT | C53: =IF(HT!$C$18=0,HT!$C$19,HT!$C$18) -> 1.628055263e-09 | E53: m6/mol2
B55: B_old | C55: =C10*C31+C11*C32+C12*C33+C13*C34+C14*C35+C15*C36 -> -8.792441573e-05 | E55: m3/mol
B56: B_mix | C56: =SUM(AB31:AG36) -> -8.792441573e-05 | E56: m3/mol | G56: Smith & Vanness, Intro. To chemical engineering themodynamics, McGraw Hill (1975), Problem 7-38 | R56: i | S56: y11i | T56: y12i | U56: y13i | V56: y14i | W56: y15i | X56: y16i | Z56: y21i | AA56: y22i | AB56: y23i | AC56: y24i | AD56: y25i | AE56: y26i | AG56: y31i | AH56: y32i | AI56: y33i | AJ56: y34i | AK56: y35i | AL56: y36i | AN56: y41i | AO56: y42i | AP56: y43i | AQ56: y44i | AR56: y45i | AS56: y46i | AU56: y51i | AV56: y52i | AW56: y53i | AX56: y54i | AY56: y55i | AZ56: y56i | BB56: y61i | BC56: y62i | BD56: y63i | BE56: y64i | BF56: y65i | BG56: y66i
B57: C_old | C57: =C48*C10+C49*C11+C50*C12+C51*C13+C52*C14+C53*C22 -> 1.502200335e-09 | E57: m6/mol2 | R57: 1 | S57: =($C$10*$C$10*$C$10) -> 0.02409612764 | T57: =($C$10*$C$11*$C$10) -> 0 | U57: =($C$10*$C$12*$C$10) -> 0.02409612764 | V57: =($C$10*$C$13*$C$10) -> 0.03523312021 | W57: =($C$10*$C$14*$C$10) -> 0 | X57: =($C$10*$C$15*$C$10) -> 0 | Z57: =($C$11*$C$10*$C$10) -> 0 | AA57: =($C$11*$C$11*$C$10) -> 0 | AB57: =($C$11*$C$12*$C$10) -> 0 | AC57: =($C$11*$C$13*$C$10) -> 0 | AD57: =($C$11*$C$14*$C$10) -> 0 | AE57: =($C$11*$C$15*$C$10) -> 0 | AG57: =($C$12*$C$10*$C$10) -> 0.02409612764 | AH57: =($C$12*$C$11*$C$10) -> 0 | AI57: =($C$12*$C$12*$C$10) -> 0.02409612764 | AJ57: =($C$12*$C$13*$C$10) -> 0.03523312021 | AK57: =($C$12*$C$14*$C$10) -> 0 | AL57: =($C$12*$C$15*$C$10) -> 0 | AN57: =($C$13*$C$10*$C$10) -> 0.03523312021 | AO57: =($C$13*$C$11*$C$10) -> 0 | AP57: =($C$13*$C$12*$C$10) -> 0.03523312021 | AQ57: =($C$13*$C$13*$C$10) -> 0.0515175209 | AR57: =($C$13*$C$14*$C$10) -> 0 | AS57: =($C$13*$C$15*$C$10) -> 0 | AU57: =($C$14*$C$10*$C$10) -> 0 | AV57: =($C$14*$C$11*$C$10) -> 0 | AW57: =($C$14*$C$12*$C$10) -> 0 | AX57: =($C$14*$C$13*$C$10) -> 0 | AY57: =($C$14*$C$14*$C$10) -> 0 | AZ57: =($C$14*$C$15*$C$10) -> 0 | BB57: =($C$15*$C$10*$C$10) -> 0 | BC57: =($C$15*$C$11*$C$10) -> 0 | BD57: =($C$15*$C$12*$C$10) -> 0 | BE57: =($C$15*$C$13*$C$10) -> 0 | BF57: =($C$15*$C$14*$C$10) -> 0 | BG57: =($C$15*$C$15*$C$10) -> 0
B58: C_mix | C58: =SUM(S66:X71,Z66:AE71,AG66:AL71,AN66:AS71,AU66:AZ71,BB66:BG71) -> 1.495649244e-09 | E58: m6/mol2 | R58: 2 | S58: =($C$10*$C$10*$C$11) -> 0 | T58: =($C$10*$C$11*$C$11) -> 0 | U58: =($C$10*$C$12*$C$11) -> 0 | V58: =($C$10*$C$13*$C$11) -> 0 | W58: =($C$10*$C$14*$C$11) -> 0 | X58: =($C$10*$C$15*$C$11) -> 0 | Z58: =($C$11*$C$10*$C$11) -> 0 | AA58: =($C$11*$C$11*$C$11) -> 0 | AB58: =($C$11*$C$12*$C$11) -> 0 | AC58: =($C$11*$C$13*$C$11) -> 0 | AD58: =($C$11*$C$14*$C$11) -> 0 | AE58: =($C$11*$C$15*$C$11) -> 0 | AG58: =($C$12*$C$10*$C$11) -> 0 | AH58: =($C$12*$C$11*$C$11) -> 0 | AI58: =($C$12*$C$12*$C$11) -> 0 | AJ58: =($C$12*$C$13*$C$11) -> 0 | AK58: =($C$12*$C$14*$C$11) -> 0 | AL58: =($C$12*$C$15*$C$11) -> 0 | AN58: =($C$13*$C$10*$C$11) -> 0 | AO58: =($C$13*$C$11*$C$11) -> 0 | AP58: =($C$13*$C$12*$C$11) -> 0 | AQ58: =($C$13*$C$13*$C$11) -> 0 | AR58: =($C$13*$C$14*$C$11) -> 0 | AS58: =($C$13*$C$15*$C$11) -> 0 | AU58: =($C$14*$C$10*$C$11) -> 0 | AV58: =($C$14*$C$11*$C$11) -> 0 | AW58: =($C$14*$C$12*$C$11) -> 0 | AX58: =($C$14*$C$13*$C$11) -> 0 | AY58: =($C$14*$C$14*$C$11) -> 0 | AZ58: =($C$14*$C$15*$C$11) -> 0 | BB58: =($C$15*$C$10*$C$11) -> 0 | BC58: =($C$15*$C$11*$C$11) -> 0 | BD58: =($C$15*$C$12*$C$11) -> 0 | BE58: =($C$15*$C$13*$C$11) -> 0 | BF58: =($C$15*$C$14*$C$11) -> 0 | BG58: =($C$15*$C$15*$C$11) -> 0
R59: 3 | S59: =($C$10*$C$10*$C$12) -> 0.02409612764 | T59: =($C$10*$C$11*$C$12) -> 0 | U59: =($C$10*$C$12*$C$12) -> 0.02409612764 | V59: =($C$10*$C$13*$C$12) -> 0.03523312021 | W59: =($C$10*$C$14*$C$12) -> 0 | X59: =($C$10*$C$15*$C$12) -> 0 | Z59: =($C$11*$C$10*$C$12) -> 0 | AA59: =($C$11*$C$11*$C$12) -> 0 | AB59: =($C$11*$C$12*$C$12) -> 0 | AC59: =($C$11*$C$13*$C$12) -> 0 | AD59: =($C$11*$C$14*$C$12) -> 0 | AE59: =($C$11*$C$15*$C$12) -> 0 | AG59: =($C$12*$C$10*$C$12) -> 0.02409612764 | AH59: =($C$12*$C$11*$C$12) -> 0 | AI59: =($C$12*$C$12*$C$12) -> 0.02409612764 | AJ59: =($C$12*$C$13*$C$12) -> 0.03523312021 | AK59: =($C$12*$C$14*$C$12) -> 0 | AL59: =($C$12*$C$15*$C$12) -> 0 | AN59: =($C$13*$C$10*$C$12) -> 0.03523312021 | AO59: =($C$13*$C$11*$C$12) -> 0 | AP59: =($C$13*$C$12*$C$12) -> 0.03523312021 | AQ59: =($C$13*$C$13*$C$12) -> 0.0515175209 | AR59: =($C$13*$C$14*$C$12) -> 0 | AS59: =($C$13*$C$15*$C$12) -> 0 | AU59: =($C$14*$C$10*$C$12) -> 0 | AV59: =($C$14*$C$11*$C$12) -> 0 | AW59: =($C$14*$C$12*$C$12) -> 0 | AX59: =($C$14*$C$13*$C$12) -> 0 | AY59: =($C$14*$C$14*$C$12) -> 0 | AZ59: =($C$14*$C$15*$C$12) -> 0 | BB59: =($C$15*$C$10*$C$12) -> 0 | BC59: =($C$15*$C$11*$C$12) -> 0 | BD59: =($C$15*$C$12*$C$12) -> 0 | BE59: =($C$15*$C$13*$C$12) -> 0 | BF59: =($C$15*$C$14*$C$12) -> 0 | BG59: =($C$15*$C$15*$C$12) -> 0
B60: P_mix | C60: =C4*C29*(C28+C56*C28^2+C58*C28^3) -> 241744.9596 | E60: Pa | G60: The calculated pressure for this page | R60: 4 | S60: =($C$10*$C$10*$C$13) -> 0.03523312021 | T60: =($C$10*$C$11*$C$13) -> 0 | U60: =($C$10*$C$12*$C$13) -> 0.03523312021 | V60: =($C$10*$C$13*$C$13) -> 0.0515175209 | W60: =($C$10*$C$14*$C$13) -> 0 | X60: =($C$10*$C$15*$C$13) -> 0 | Z60: =($C$11*$C$10*$C$13) -> 0 | AA60: =($C$11*$C$11*$C$13) -> 0 | AB60: =($C$11*$C$12*$C$13) -> 0 | AC60: =($C$11*$C$13*$C$13) -> 0 | AD60: =($C$11*$C$14*$C$13) -> 0 | AE60: =($C$11*$C$15*$C$13) -> 0 | AG60: =($C$12*$C$10*$C$13) -> 0.03523312021 | AH60: =($C$12*$C$11*$C$13) -> 0 | AI60: =($C$12*$C$12*$C$13) -> 0.03523312021 | AJ60: =($C$12*$C$13*$C$13) -> 0.0515175209 | AK60: =($C$12*$C$14*$C$13) -> 0 | AL60: =($C$12*$C$15*$C$13) -> 0 | AN60: =($C$13*$C$10*$C$13) -> 0.0515175209 | AO60: =($C$13*$C$11*$C$13) -> 0 | AP60: =($C$13*$C$12*$C$13) -> 0.0515175209 | AQ60: =($C$13*$C$13*$C$13) -> 0.075328411 | AR60: =($C$13*$C$14*$C$13) -> 0 | AS60: =($C$13*$C$15*$C$13) -> 0 | AU60: =($C$14*$C$10*$C$13) -> 0 | AV60: =($C$14*$C$11*$C$13) -> 0 | AW60: =($C$14*$C$12*$C$13) -> 0 | AX60: =($C$14*$C$13*$C$13) -> 0 | AY60: =($C$14*$C$14*$C$13) -> 0 | AZ60: =($C$14*$C$15*$C$13) -> 0 | BB60: =($C$15*$C$10*$C$13) -> 0 | BC60: =($C$15*$C$11*$C$13) -> 0 | BD60: =($C$15*$C$12*$C$13) -> 0 | BE60: =($C$15*$C$13*$C$13) -> 0 | BF60: =($C$15*$C$14*$C$13) -> 0 | BG60: =($C$15*$C$15*$C$13) -> 0
B61: P_virial | C61: =C60/133.32237 -> 1813.23629 | E61: torr | R61: 5 | S61: =($C$10*$C$10*$C$14) -> 0 | T61: =($C$10*$C$11*$C$14) -> 0 | U61: =($C$10*$C$12*$C$14) -> 0 | V61: =($C$10*$C$13*$C$14) -> 0 | W61: =($C$10*$C$14*$C$14) -> 0 | X61: =($C$10*$C$15*$C$14) -> 0 | Z61: =($C$11*$C$10*$C$14) -> 0 | AA61: =($C$11*$C$11*$C$14) -> 0 | AB61: =($C$11*$C$12*$C$14) -> 0 | AC61: =($C$11*$C$13*$C$14) -> 0 | AD61: =($C$11*$C$14*$C$14) -> 0 | AE61: =($C$11*$C$15*$C$14) -> 0 | AG61: =($C$12*$C$10*$C$14) -> 0 | AH61: =($C$12*$C$11*$C$14) -> 0 | AI61: =($C$12*$C$12*$C$14) -> 0 | AJ61: =($C$12*$C$13*$C$14) -> 0 | AK61: =($C$12*$C$14*$C$14) -> 0 | AL61: =($C$12*$C$15*$C$14) -> 0 | AN61: =($C$13*$C$10*$C$14) -> 0 | AO61: =($C$13*$C$11*$C$14) -> 0 | AP61: =($C$13*$C$12*$C$14) -> 0 | AQ61: =($C$13*$C$13*$C$14) -> 0 | AR61: =($C$13*$C$14*$C$14) -> 0 | AS61: =($C$13*$C$15*$C$14) -> 0 | AU61: =($C$14*$C$10*$C$14) -> 0 | AV61: =($C$14*$C$11*$C$14) -> 0 | AW61: =($C$14*$C$12*$C$14) -> 0 | AX61: =($C$14*$C$13*$C$14) -> 0 | AY61: =($C$14*$C$14*$C$14) -> 0 | AZ61: =($C$14*$C$15*$C$14) -> 0 | BB61: =($C$15*$C$10*$C$14) -> 0 | BC61: =($C$15*$C$11*$C$14) -> 0 | BD61: =($C$15*$C$12*$C$14) -> 0 | BE61: =($C$15*$C$13*$C$14) -> 0 | BF61: =($C$15*$C$14*$C$14) -> 0 | BG61: =($C$15*$C$15*$C$14) -> 0
B62: P_ideal | C62: =C28*C4*C29/133.32237 -> 1983.672656 | E62: torr | R62: 6 | S62: =($C$10*$C$10*$C$15) -> 0 | T62: =($C$10*$C$11*$C$15) -> 0 | U62: =($C$10*$C$12*$C$15) -> 0 | V62: =($C$10*$C$13*$C$15) -> 0 | W62: =($C$10*$C$14*$C$15) -> 0 | X62: =($C$10*$C$15*$C$15) -> 0 | Z62: =($C$11*$C$10*$C$15) -> 0 | AA62: =($C$11*$C$11*$C$15) -> 0 | AB62: =($C$11*$C$12*$C$15) -> 0 | AC62: =($C$11*$C$13*$C$15) -> 0 | AD62: =($C$11*$C$14*$C$15) -> 0 | AE62: =($C$11*$C$15*$C$15) -> 0 | AG62: =($C$12*$C$10*$C$15) -> 0 | AH62: =($C$12*$C$11*$C$15) -> 0 | AI62: =($C$12*$C$12*$C$15) -> 0 | AJ62: =($C$12*$C$13*$C$15) -> 0 | AK62: =($C$12*$C$14*$C$15) -> 0 | AL62: =($C$12*$C$15*$C$15) -> 0 | AN62: =($C$13*$C$10*$C$15) -> 0 | AO62: =($C$13*$C$11*$C$15) -> 0 | AP62: =($C$13*$C$12*$C$15) -> 0 | AQ62: =($C$13*$C$13*$C$15) -> 0 | AR62: =($C$13*$C$14*$C$15) -> 0 | AS62: =($C$13*$C$15*$C$15) -> 0 | AU62: =($C$14*$C$10*$C$15) -> 0 | AV62: =($C$14*$C$11*$C$15) -> 0 | AW62: =($C$14*$C$12*$C$15) -> 0 | AX62: =($C$14*$C$13*$C$15) -> 0 | AY62: =($C$14*$C$14*$C$15) -> 0 | AZ62: =($C$14*$C$15*$C$15) -> 0 | BB62: =($C$15*$C$10*$C$15) -> 0 | BC62: =($C$15*$C$11*$C$15) -> 0 | BD62: =($C$15*$C$12*$C$15) -> 0 | BE62: =($C$15*$C$13*$C$15) -> 0 | BF62: =($C$15*$C$14*$C$15) -> 0 | BG62: =($C$15*$C$15*$C$15) -> 0
B64: Na | C64: 6.0221415e+23 | E64: molecule/mol
R65: i | S65: y11iC11i
B66: T | C66: =C64*(C28*C12*2+C28*C13*1+C28*C15*1) -> 5.986043265e+26 | E66: atom/m3 | R66: 1 | S66: =S47*S57 -> 3.69722306e-11 | T66: =T47*T57 -> 0 | U66: 3.622790147e-11 | V66: 5.372816264e-11 | W66: 0 | X66: 0 | Z66: =Z47*Z57 -> 0 | AA66: =AA47*AA57 -> 0 | AB66: 0 | AC66: 0 | AD66: 0 | AE66: 0 | AG66: =AG47*AG57 -> 3.622790147e-11 | AH66: =AH47*AH57 -> 0 | AI66: 3.548357233e-11 | AJ66: 5.263981192e-11 | AK66: 0 | AL66: 0 | AN66: =AN47*AN57 -> 5.372816264e-11 | AO66: =AO47*AO57 -> 0 | AP66: 5.263981192e-11 | AQ66: 7.807495007e-11 | AR66: 0 | AS66: 0 | AU66: =AU47*AU57 -> 0 | AV66: =AV47*AV57 -> 0 | AW66: 0 | AX66: 0 | AY66: 0 | AZ66: 0 | BB66: =BB47*BB57 -> 0 | BC66: =BC47*BC57 -> 0 | BD66: 0 | BE66: 0 | BF66: 0 | BG66: 0
B67: H | C67: =C64*(C28*C11*2+C28*C14*1+C28*C15*1) -> 0 | E67: atom/m3 | R67: 2 | S67: =S48*S58 -> 0 | T67: 0 | U67: 0 | V67: 0 | W67: 0 | X67: 0 | Z67: =Z48*Z58 -> 0 | AA67: 0 | AB67: 0 | AC67: 0 | AD67: 0 | AE67: 0 | AG67: =AG48*AG58 -> 0 | AH67: 0 | AI67: 0 | AJ67: 0 | AK67: 0 | AL67: 0 | AN67: =AN48*AN58 -> 0 | AO67: 0 | AP67: 0 | AQ67: 0 | AR67: 0 | AS67: 0 | AU67: =AU48*AU58 -> 0 | AV67: 0 | AW67: 0 | AX67: 0 | AY67: 0 | AZ67: 0 | BB67: =BB48*BB58 -> 0 | BC67: 0 | BD67: 0 | BE67: 0 | BF67: 0 | BG67: 0
B68: D | C68: =C64*(C28*C10*2+C28*C13*1+C28*C14*1) -> 5.986043265e+26 | E68: atom/m3 | R68: 3 | S68: 3.622790147e-11 | T68: 0 | U68: 3.548357233e-11 | V68: 5.263981192e-11 | W68: 0 | X68: 0 | Z68: 0 | AA68: 0 | AB68: 0 | AC68: 0 | AD68: 0 | AE68: 0 | AG68: 3.548357233e-11 | AH68: 0 | AI68: 3.47392432e-11 | AJ68: 5.15514612e-11 | AK68: 0 | AL68: 0 | AN68: 5.263981192e-11 | AO68: 0 | AP68: 5.15514612e-11 | AQ68: 7.648357438e-11 | AR68: 0 | AS68: 0 | AU68: 0 | AV68: 0 | AW68: 0 | AX68: 0 | AY68: 0 | AZ68: 0 | BB68: 0 | BC68: 0 | BD68: 0 | BE68: 0 | BF68: 0 | BG68: 0
R69: 4 | S69: 5.372816264e-11 | T69: 0 | U69: 5.263981192e-11 | V69: 7.807495007e-11 | W69: 0 | X69: 0 | Z69: 0 | AA69: 0 | AB69: 0 | AC69: 0 | AD69: 0 | AE69: 0 | AG69: 5.263981192e-11 | AH69: 0 | AI69: 5.15514612e-11 | AJ69: 7.648357438e-11 | AK69: 0 | AL69: 0 | AN69: 7.807495007e-11 | AO69: 0 | AP69: 7.648357438e-11 | AQ69: 1.134500323e-10 | AR69: 0 | AS69: 0 | AU69: 0 | AV69: 0 | AW69: 0 | AX69: 0 | AY69: 0 | AZ69: 0 | BB69: 0 | BC69: 0 | BD69: 0 | BE69: 0 | BF69: 0 | BG69: 0
B70: T | C70: =C66/100^3 -> 5.986043265e+20 | E70: atom/cm3 | R70: 5 | S70: 0 | T70: 0 | U70: 0 | V70: 0 | W70: 0 | X70: 0 | Z70: 0 | AA70: 0 | AB70: 0 | AC70: 0 | AD70: 0 | AE70: 0 | AG70: 0 | AH70: 0 | AI70: 0 | AJ70: 0 | AK70: 0 | AL70: 0 | AN70: 0 | AO70: 0 | AP70: 0 | AQ70: 0 | AR70: 0 | AS70: 0 | AU70: 0 | AV70: 0 | AW70: 0 | AX70: 0 | AY70: 0 | AZ70: 0 | BB70: 0 | BC70: 0 | BD70: 0 | BE70: 0 | BF70: 0 | BG70: 0
B71: H | C71: =C67/100^3 -> 0 | E71: atom/cm3 | R71: 6 | S71: 0 | T71: 0 | U71: 0 | V71: 0 | W71: 0 | X71: 0 | Z71: 0 | AA71: 0 | AB71: 0 | AC71: 0 | AD71: 0 | AE71: 0 | AG71: 0 | AH71: 0 | AI71: 0 | AJ71: 0 | AK71: 0 | AL71: 0 | AN71: 0 | AO71: 0 | AP71: 0 | AQ71: 0 | AR71: 0 | AS71: 0 | AU71: 0 | AV71: 0 | AW71: 0 | AX71: 0 | AY71: 0 | AZ71: 0 | BB71: 0 | BC71: 0 | BD71: 0 | BE71: 0 | BF71: 0 | BG71: 0
B72: D | C72: 5.986043265e+20 | E72: atom/cm3
B75: G. Garberoglio, P. Jankowski, K. Szalewicz, and A. Harvey, "Second virial coefficients of H2 and its isotopologues from a six-dimensional potential", J. Chem. Phys. 137, 154308 (2012)
B78: P_purepart_D2 | C78: =C6*$C$61 -> 906.618145 | E78: torr
B79: P_purepart_H2 | C79: =C7*$C$61 -> 0 | E79: torr
B80: P_purepart_T2 | C80: 906.618145 | E80: torr
B82: P_sat_D2 | C82: ='D2'!$C$34 -> 4840.409847 | E82: torr
B83: P_sat_H2 | C83: ='H2'!$C$34 -> 8158.981073 | E83: torr
B84: P_sat_T2 | C84: ='T2'!$C$34 -> 3772.688371 | E84: torr
B86: p_purepart/Psat_D2 | C86: =IF(C82="supercritical",0,C78/C82) -> 0.187301938
B87: p_purepart/Psat_H2 | C87: =IF(C83="supercritical",0,C79/C83) -> 0
B88: p_purepart/Psat_T2 | C88: =IF(C84="supercritical",0,C80/C84) -> 0.2403109019
B90: Fraction of P_sat | C90: =IF(AND(C82="supercritical",C83="supercritical",C84="supercritical"),"supercritical",MAX(C86:C88)) -> 0.2403109019
B91: P_sat | C91: =IF(C90="supercritical","supercritical",C61/C90) -> 7545.376741
B94: P_part_D2 | C94: =C10*$C$61 -> 523.7252195
B95: P_part_H2 | C95: =C11*$C$61 -> 0
B96: P_part_T2 | C96: 523.7252195
B97: P_part_DT | C97: 765.785851
B98: P_part_HD | C98: 0
B99: P_part_HT | C99: 0
B101: P_sat_D2 | C101: ='D2'!$C$34 -> 4840.409847
B102: P_sat_H2 | C102: ='H2'!$C$34 -> 8158.981073
B103: P_sat_T2 | C103: ='T2'!$C$34 -> 3772.688371
B104: P_sat_DT | C104: =DT!$C$34 -> 4273.351017
B105: P_sat_HD | C105: =HD!$C$34 -> 6235.490855
B106: P_sat_HT | C106: =HT!$C$34 -> 5548.048913
B108: =B94&"/"&B101 -> P_part_D2/P_sat_D2 | C108: =IF(C101="supercritical",0,C94/C101) -> 0.1081985278
B109: =B95&"/"&B102 -> P_part_H2/P_sat_H2 | C109: =IF(C102="supercritical",0,C95/C102) -> 0
B110: P_part_T2/P_sat_T2 | C110: 0.1388201643
B111: P_part_DT/P_sat_DT | C111: 0.1792003156
B112: P_part_HD/P_sat_HD | C112: 0
B113: P_part_HT/P_sat_HT | C113: 0
B115: Fraction of P_sat | C115: =MAX(C108:C113) -> 0.1792003156
B118: Tc | C118: =$C$10*'D2'!C41+$C$11*'H2'!C41+$C$12*'T2'!C41+$C$13*DT!C41+$C$14*HD!C41+$C$15*HT!C41 -> 39.395 | E118: K | G118: linear estimate of critical temperature
B119: Pc | C119: =$C$10*'D2'!C42+$C$11*'H2'!C42+$C$12*'T2'!C42+$C$13*DT!C42+$C$14*HD!C42+$C$15*HT!C42 -> 13182.33407 | E119: Torr | G119: linear estimate of critical pressure
B120: Ttp | C120: =$C$10*'D2'!C43+$C$11*'H2'!C43+$C$12*'T2'!C43+$C$13*DT!C43+$C$14*HD!C43+$C$15*HT!C43 -> 19.645 | E120: K | G120: linear estimate of triple point

Sheet D2+3He
B2: D2+3He
B4: R | C4: 8.3144621 | E4: Pa-m3/mol-K
B6: f_D | C6: =Calculator!G7 -> 0.3 | E6: n.u | G6: atom fraction from Calculator tab (input)
B7: f_3He | C7: =1-C6 -> 0.7 | E7: n.u. | G7: atom fraction
B9: y_D2 | C9: =1-C10 -> 0.1764705882 | E9: n.u. | G9: molecule fraction
B10: y_3He | C10: =1-(1-C7)/(1+C7) -> 0.8235294118 | E10: n.u. | G10: molecule fraction
B12: M_D2 | C12: 0.004028204 | E12: kg/mol | G12: (Souers Table 1.1)
B13: M_3He | C13: 0.003016 | E13: kg/mol | G13: (Souers Table 1.1)
B15: M_mix | C15: =C9*C12+C10*C13 -> 0.003194624235 | E15: kg/mol | G15: M_mix=y_3He*M_3He+y_D2*M_D2
B17: rho | C17: =Calculator!G5 -> 5 | E17: mg/cc | G17: From Calculator tab (input)
B18: rho | C18: =(C17/1000^2)*100^3 -> 5 | E18: kg/m^3
B19: rhoM_mix | C19: =C18/C15 -> 1565.129302 | E19: mol/m3
B20: T | C20: =Calculator!G6 -> 32 | E20: K | G20: From Calculator tab (input)
B22: B_D2 | C22: ='D2'!C16 -> -8.515246186e-05 | E22: m3/mol | G22: PIMC Garberoglio et al. (2012)
B23: B_3He | C23: ='3He'!C18 -> 6.129464501e-06 | E23: m3/mol | G23: Slaman & Aziz, International Journal of Thermophysics, Vol. 12, No. 5, 1991
B25: B_12 | C25: =(C22+C23)/2 -> -3.951149868e-05 | E25: m3/mol | G25: Second virial cross-coefficient assuming partial volume mixing. Wu & Yeo, SNU Journal of Education Research
B27: B_mix | C27: =C9^2*C22+C10^2*C23+2*C9*C10*C25 -> -9.979110739e-06 | E27: m3/mol | G27: Smith & Vanness, Intro. To chemical engineering themodynamics, McGraw Hill (1975), Eqn. 1-103
B28: C_mix | C28: 0 | E28: m6/mol2 | G28: Not using 3rd virial term here because we don't really have a mixing rule
B30: P_mix | C30: =C4*C20*(C19+C27*C19^2+C28*C19^3) -> 409918.726 | E30: Pa | G30: The calculated pressure for this page
B31: P_virial | C31: =C30/133.32237 -> 3074.643258 | E31: torr
B32: P_ideal | C32: =C19*C4*C20/133.32237 -> 3123.426807 | E32: torr
B34: Na | C34: 6.0221415e+23 | E34: molecule/mol
B36: D atoms/molecule D2 | C36: 2
B38: D atom density | C38: =C19*C34*C36*C9 -> 3.326622396e+26 | E38: atom D/m3
B39: D atom density | C39: =C38/100^3 -> 3.326622396e+20 | E39: atom D/cm3
B41: 3He atoms/molecule 3He | C41: 1
B43: 3He atom density | C43: =C19*C34*C41*C10 -> 7.762118925e+26 | E43: atom 3He/m3
B44: 3He atom density | C44: =C43/100^3 -> 7.762118925e+20 | E44: atom 3He/cm3
B46: Total atom density | C46: =C39+C44 -> 1.108874132e+21 | E46: atom/cm3
B50: Pp_D2 | C50: =C9*C31 -> 542.5841043 | E50: torr
B51: Psat_D2 | C51: ='D2'!C34 -> 4840.409847 | E51: torr
B53: Psat_Mix | C53: =IF(C51="supercritical",C51,C51/C9) -> 27428.98913 | E53: torr
B55: rho_sat_D2 | C55: ='D2'!C35 -> 14.13580809 | E55: mg/cm3
B56: mass fraction D2 | C56: =C9*C12/(C9*C12+C10*C13) -> 0.2225174158
B58: rho_sat_Mix | C58: =IF(C55="supercritical","supercritical",C55/C56) -> 63.52674932 | E58: mg/cm3

Sheet DT+3He
B2: DT+3He
B4: R | C4: 8.3144621 | E4: Pa-m3/mol-K
B6: f_DT | C6: =Calculator!G7 -> 0.3 | E6: n.u | G6: atom fraction from Calculator tab (input)
B7: f_3He | C7: =1-C6 -> 0.7 | E7: n.u. | G7: atom fraction
B9: y_D2 | C9: =(1-C11)/2 -> 0.08823529412 | E9: n.u. | G9: molecule fraction
B10: y_T2 | C10: =C9 -> 0.08823529412 | E10: n.u. | G10: molecule fraction
B11: y_3He | C11: =1-(1-C7)/(1+C7) -> 0.8235294118 | E11: n.u. | G11: molecule fraction
B13: M_D2 | C13: 0.004028204 | E13: kg/mol | G13: (Souers Table 1.1)
B14: M_T2 | C14: ='T2'!$C$5 -> 0.0060321 | E14: kg/mol | G14: (Souers Table 1.1)
B15: M_3He | C15: 0.003016 | E15: kg/mol | G15: (Souers Table 1.1)
B17: M_mix | C17: =C9*C13+C10*C14+C11*C15 -> 0.003371438588 | E17: kg/mol | G17: Mmix = y3He*M3He + yD2*MD2 + yT2*MT2
B19: rho | C19: =Calculator!G5 -> 5 | E19: mg/cm3 | G19: From Calculator tab (input)
B20: rho | C20: =(C19/1000^2)*100^3 -> 5 | E20: kg/m3
B21: rhoM_mix | C21: =C20/C17 -> 1483.046441 | E21: mol/m3
B22: T | C22: =Calculator!G6 -> 32 | E22: K | G22: From Calculator tab (input)
A24: 1 | B24: B_D2 | C24: ='D2'!C16 -> -8.515246186e-05 | E24: m3/mol | G24: PIMC Garberoglio et al. (2012)
A25: 2 | B25: B_T2 | C25: ='T2'!$C$16 -> -9.030094541e-05 | E25: m3/mol | G25: PIMC Garberoglio et al. (2012)
A26: 3 | B26: B_3He | C26: ='3He'!C18 -> 6.129464501e-06 | E26: m3/mol | G26: Slaman & Aziz, International Journal of Thermophysics, Vol. 12, No. 5, 1991
G28: Second virial cross-coefficient assuming partial volume mixing. Wu & Yeo, SNU Journal of Education Research
H29: B_1 | I29: B_2 | J29: B_3 | N29: y1 | O29: y2 | P29: y3 | T29: yB | U29: yB | V29: yB
G30: B_1 | H30: =($C$24+C24)/2 -> -8.515246186e-05 | I30: =($C$25+C24)/2 -> -8.772670363e-05 | J30: =($C$26+C24)/2 -> -3.951149868e-05 | M30: y1 | N30: =C$9*C9 -> 0.007785467128 | O30: =C$10*C9 -> 0.007785467128 | P30: =C$11*C9 -> 0.07266435986 | S30: yB | T30: =H30*N30 -> -6.629516927e-07 | U30: =I30*O30 -> -6.829933674e-07 | V30: -2.871077759e-06
G31: B_2 | H31: =($C$24+C25)/2 -> -8.772670363e-05 | I31: =($C$25+C25)/2 -> -9.030094541e-05 | J31: =($C$26+C25)/2 -> -4.208574045e-05 | M31: y2 | N31: =C$9*C10 -> 0.007785467128 | O31: =C$10*C10 -> 0.007785467128 | P31: =C$11*C10 -> 0.07266435986 | S31: yB | T31: =H31*N31 -> -6.829933674e-07 | U31: -7.030350421e-07 | V31: -3.058133389e-06
G32: B_3 | H32: =($C$24+C26)/2 -> -3.951149868e-05 | I32: =($C$25+C26)/2 -> -4.208574045e-05 | J32: =($C$26+C26)/2 -> 6.129464501e-06 | M32: y3 | N32: 0.07266435986 | O32: 0.07266435986 | P32: 0.678200692 | S32: yB | T32: -2.871077759e-06 | U32: -3.058133389e-06 | V32: 4.157007066e-06
B34: B_mix | C34: =SUM(T30:V32) -> -1.04333887e-05 | E34: m3/mol | G34: Smith & Vanness, Intro. To chemical engineering themodynamics, McGraw Hill (1975), Eqn. 1-103
B35: C_mix | C35: 0 | E35: m6/mol2 | G35: Not using 3rd virial term here because we don't really have a mixing rule
B37: P_mix | C37: =C4*C22*(C21+C34*C21^2+C35*C21^3) -> 388478.0008 | E37: Pa | G37: The calculated pressure for this page
B38: P_virial | C38: =C37/133.32237 -> 2913.824595 | E38: torr
B39: P_ideal | C39: =C21*C4*C22/133.32237 -> 2959.619377 | E39: torr
B41: Na | C41: 6.0221415e+23 | E41: molecule/mol
B43: D atoms/molecule D2 | C43: 2
B45: D atom density | C45: =$C$21*C41*C43*C9 -> 1.576079209e+26 | E45: atom D/m3
B46: D atom density | C46: =C45/100^3 -> 1.576079209e+20 | E46: atom D/cm3
B48: T atoms/molecule D2 | C48: 2
B50: T atom density | C50: =$C$21*$C$41*C48*C10 -> 1.576079209e+26 | E50: atom T/m3
B51: T atom density | C51: =C50/100^3 -> 1.576079209e+20 | E51: atom T/cm3
B53: 3He atoms/molecule 3He | C53: 1
B55: 3He atom density | C55: =C21*C41*C53*C11 -> 7.355036311e+26 | E55: atom 3He/m3
B56: 3He atom density | C56: =C55/100^3 -> 7.355036311e+20 | E56: atom 3He/cm3
B58: Total atom density | C58: =C46+C51+C56 -> 1.050719473e+21 | E58: atom/cm3
B62: Pp_D2 | C62: =C9*C38 -> 257.1021701 | E62: torr
B63: Psat_D2 | C63: ='D2'!C34 -> 4840.409847 | E63: torr
B65: Pp_T2 | C65: =C10*C38 -> 257.1021701 | E65: torr
B66: Psat_T2 | C66: ='T2'!C34 -> 3772.688371 | E66: torr
B68: Psat_Mix | C68: =IF(AND(C63="supercritical",C66="supercritical"),"supercritical",MIN(C63/C9,C66/C10)) -> 42757.13487 | E68: torr
B70: rho_sat_D2 | C70: ='D2'!C35 -> 14.13580809 | E70: mg/cm3
B71: mass fraction D2 | C71: =C9*C13/(C9*C13+C10*C14+C11*C15) -> 0.1054237695
B73: rho_sat_T2 | C73: ='T2'!C35 -> 14.61279655 | E73: mg/cm3
B74: mass fraction T2 | C74: =C10*C14/(C9*C13+C10*C14+C11*C15) -> 0.1578685489
B76: rho_sat_Mix | C76: =IF(AND(C70="supercritical",C73="supercritical"),C70,IF(C70="supercritical",C73/C74,IF(C73="supercritical",C70/71,MIN(C73/C74,C70/C71)))) -> 92.56306372 | E76: mg/cm3

Sheet Ar+Neo+C3H8
B2: Ar - Neopentane - Propane | K2: Gas Drawing mol % | L2: mol % | N2: Desire this mix composition | S2: Desire this Hohlraum Fill
K3: =L3 -> 0.01355932203 | L3: =N3/SUM(N$3:N$5) -> 0.01355932203 | N3: =S7 -> 23.59322034 | O3: torr | P3: Argon | S3: 1475 | T3: Torr | U3: In target
B4: R | C4: 8.3144621 | E4: Pa-m3/mol-K | K4: =0.98*L4 -> 0.5499302552 | L4: =N4/SUM(N$3:N$5) -> 0.5611533216 | N4: =1000-N3 -> 976.4067797 | O4: torr | P4: Neopentane | S4: 20 | T4: Torr | U4: Ar in target
K5: =0.9988*L5 -> 0.4247770115 | L5: 0.4252873563 | N5: =S5-SUM(N3:N4) -> 740 | O5: torr | P5: Propane | S5: 1740 | T5: Torr | U5: Gas Bottle Fill
B6: f_Ar | C6: =Calculator!G7 -> 0.3 | E6: n.u | G6: atom fraction | K6: =0.02*L4+0.0012*L5 -> 0.01173341126 | L6: 0 | P6: Others
B7: f_Neopentane | G7: atom fraction | S7: =S4/S3*S5 -> 23.59322034
B8: f_Propane | C8: =1-C6 -> 0.7 | E8: n.u. | G8: atom fraction
K9: =SUM(K3:K6) -> 1
B10: y_Ar | C10: =N3/SUM(N$3:N$5) -> 0.01355932203 | E10: n.u. | G10: molecule fraction
B11: y_C5H12 | C11: =N4/SUM(N$3:N$5) -> 0.5611533216 | E11: n.u. | G11: molecule fraction
B12: y_C3H8 | C12: 0.4252873563 | E12: n.u. | G12: molecule fraction
B14: M_Ar | C14: =Ar!$C$5 -> 0.039948 | E14: kg/mol
B15: M_C5H12 | C15: =Neopentane!$C$5 -> 0.07215052 | E15: kg/mol
B16: M_C3H8 | C16: ='C3H8'!$C$5 -> 0.04409668 | E16: kg/mol
B18: M_mix | C18: =C10*C14+C11*C15+C12*C16 -> 0.05978293221 | E18: kg/mol | G18: Mmix = yAr*MAr + yC5H12*MC5H12 + yC3H8*MC3H8
B20: rho | C20: =Calculator!G5 -> 5 | E20: mg/cm3 | G20: From Calculator tab (input)
B21: rho | C21: =(C20/1000^2)*100^3 -> 5 | E21: kg/m3
B22: rhoM_mix | C22: =C21/C18 -> 83.63591104 | E22: mol/m3
B23: T | C23: =Calculator!G6 -> 32 | E23: K | G23: From Calculator tab (input)
A25: 1 | B25: B_Ar | C25: =Ar!$C$18 -> -0.003030190962 | E25: m3/mol
A26: 2 | B26: B_C5H12 | C26: =Neopentane!$C$18 -> 0 | E26: m3/mol
A27: 3 | B27: B_C3H8 | C27: ='C3H8'!$C$18 -> 0 | E27: m3/mol
G29: Second virial cross-coefficient assuming partial volume mixing. Wu & Yeo, SNU Journal of Education Research
H30: B_1 | I30: B_2 | J30: B_3 | N30: y1 | O30: y2 | P30: y3 | T30: yB | U30: yB | V30: yB
G31: B_1 | H31: =($C$25+C25)/2 -> -0.003030190962 | I31: =($C$26+C25)/2 -> -0.001515095481 | J31: =($C$27+C25)/2 -> -0.001515095481 | M31: y1 | N31: =C$10*C10 -> 0.000183855214 | O31: =C$11*C10 -> 0.007608858599 | P31: =C$12*C10 -> 0.005766608221 | S31: yB | T31: =H31*N31 -> -5.571164079e-07 | U31: =I31*O31 -> -1.152814728e-05 | V31: -8.736962058e-06
G32: B_2 | H32: =($C$25+C26)/2 -> -0.001515095481 | I32: =($C$26+C26)/2 -> 0 | J32: =($C$27+C26)/2 -> 0 | M32: y2 | N32: =C$10*C11 -> 0.007608858599 | O32: =C$11*C11 -> 0.3148930504 | P32: =C$12*C11 -> 0.2386514127 | S32: yB | T32: =H32*N32 -> -1.152814728e-05 | U32: 0 | V32: 0
G33: B_3 | H33: =($C$25+C27)/2 -> -0.001515095481 | I33: =($C$26+C27)/2 -> 0 | J33: =($C$27+C27)/2 -> 0 | M33: y3 | N33: 0.005766608221 | O33: 0.2386514127 | P33: 0.1808693354 | S33: yB | T33: -8.736962058e-06 | U33: 0 | V33: 0
B35: B_mix | C35: =SUM(T31:V33) -> -4.108733508e-05 | E35: m3/mol | G35: Smith & Vanness, Intro. To chemical engineering themodynamics, McGraw Hill (1975), Eqn. 1-103
B36: C_mix | C36: 0 | E36: m6/mol2 | G36: Not using 3rd virial term here because we don't really have a mixing rule
B38: P_mix | C38: =C4*C23*(C22+C35*C22^2+C36*C22^3) -> 22175.93596 | E38: Pa | G38: The calculated pressure for this page
B39: P_virial | C39: =C38/133.32237 -> 166.3331964 | E39: torr
B40: P_ideal | C40: =C22*C4*C23/133.32237 -> 166.9067509 | E40: torr
B42: NA | C42: 6.0221415e+23 | E42: molecule/mol
I43: Electron density
B44: Ar atoms/molecule Ar | C44: 1 | I44: Ar electrons/molecule Ar | J44: 18
B45: Ar atom density | C45: =$C$22*C42*C44*C10 -> 6.829386993e+23 | E45: atom Ar/m3 | I45: Ar electron density | J45: =C45*J44 -> 1.229289659e+25 | K45: electron Ar/m3
B46: Ar atom density | C46: =C45/100^3 -> 6.829386993e+17 | E46: atom Ar/cm3 | I46: Ar electron density | J46: =C46*J44 -> 1.229289659e+19 | K46: electron Ar/cm3
B48: C atoms/molecule C5H12 | C48: 5 | I48: C electrons/molecule C | J48: 6
B49: C atom density | C49: =$C$22*$C$42*C48*C11 -> 1.413172866e+26 | E49: atom C/m3 | I49: C electron density | J49: =C49*J48 -> 8.479037196e+26 | K49: electron C/m3
B50: C atom density | C50: =C49/100^3 -> 1.413172866e+20 | E50: atom C/cm3 | I50: C electron density | J50: =C50*J48 -> 8.479037196e+20 | K50: electron C/cm3
B51: H atoms/molecule C5H12 | C51: 12 | I51: H electrons/molecule H | J51: 1
B52: H atom density | C52: =$C$22*$C$42*C51*C11 -> 3.391614878e+26 | E52: atom H/m3 | I52: H electron density | J52: =C52*J51 -> 3.391614878e+26 | K52: electron H/m3
B53: H atom density | C53: =C52/100^3 -> 3.391614878e+20 | E53: atom H/cm3 | I53: H electron density | J53: =C53*J51 -> 3.391614878e+20 | K53: electron H/cm3
B55: C atoms/molecule C3H8 | C55: 3 | I55: C electrons/molecule C | J55: 6
B56: C atom density | C56: =C22*C42*C55*C12 -> 6.426099916e+25 | E56: atom C+H/m3 | I56: C electron density | J56: =C56*J55 -> 3.85565995e+26 | K56: electron C/m3
B57: C atom density | C57: =C56/100^3 -> 6.426099916e+19 | E57: atom C+H/cm3 | I57: C electron density | J57: =C57*J55 -> 3.85565995e+20 | K57: electron C/cm3
B58: H atoms/molecule C3H8 | C58: 8 | I58: H electrons/molecule H | J58: 1
B59: H atom density | C59: =C22*C42*C58*C12 -> 1.713626644e+26 | E59: atom H/m3 | I59: H electron density | J59: =C59*J58 -> 1.713626644e+26 | K59: electron H/m3
B60: H atom density | C60: =C59/100^3 -> 1.713626644e+20 | E60: atom H/cm3 | I60: H electron density | J60: =C60*J58 -> 1.713626644e+20 | K60: electron H/cm3
B63: Total atom density | C63: =C46+C50+C53+C57+C60 -> 7.167853767e+20 | E63: atom/cm3 | I63: Total electron density | J63: =J46+J50+J53+J57+J60 -> 1.756286763e+21 | K63: electron/cm3
B67: Pp_Ar | C67: =C10*C39 -> 2.255365375 | E67: torr
B68: Psat_Ar | C68: =Ar!$C$32 -> 2.382991596e-06 | E68: torr
B70: Pp_C5H12 | C70: =C11*C39 -> 93.33842568 | E70: torr
B71: Psat_C5H12 | C71: =Neopentane!$C$33 -> no data | E71: torr
B73: Pp_C3H8 | C73: =C12*C39 -> 70.73940538 | E73: torr
B74: Psat_C3H8 | C74: ='C3H8'!$C$33 -> no data | E74: torr
B76: Psat_Mix | C76: =MIN(IF(C68="supercritical",1000000000000,C68/C10),C71/C11,C74/C12) ->  | E76: torr

Sheet Kr+D2
B2: Kr+D2
B4: R | C4: 8.3144621 | E4: Pa-m3/mol-K
B6: f_D2 | C6: =1-C7 -> 0.9995 | E6: n.u | G6: atom fraction from Calculator tab (input)
B7: f_Kr | C7: =Calculator!G9 -> 0.0005 | E7: n.u. | G7: atom fraction
B9: y_D2 | C9: =C6/2/(C6/2+C7) -> 0.9990004998 | E9: n.u. | G9: molecular fraction
B10: y_Kr | C10: =1-C9 -> 0.0009995002499 | E10: n.u. | G10: molecular fraction
B12: M_D2 | C12: 0.004028204 | E12: kg/mol | G12: (Souers Table 1.1)
B13: M_Kr | C13: =Kr!$C$5 -> 0.083798 | E13: kg/mol
B15: M_mix | C15: =C9*C12+C10*C13 -> 0.004107933931 | E15: kg/mol | G15: M_mix=y_Kr*M_Kr+y_D2*M_D2
B17: rho | C17: =Calculator!G5 -> 5 | E17: mg/cm3 | G17: From Calculator tab (input)
B18: rho | C18: =(C17/1000^2)*100^3 -> 5 | E18: kg/m3
B19: rhoM_mix | C19: =C18/C15 -> 1217.156869 | E19: mol/m3
B20: T | C20: =Calculator!G6 -> 32 | E20: K | G20: From Calculator tab (input)
B22: B_D2 | C22: ='D2'!C16 -> -8.515246186e-05 | E22: m3/mol | G22: PIMC Garberoglio et al. (2012)
B23: B_Kr | C23: =Kr!$C$18 -> -0.01368530753 | E23: m3/mol
B25: B_12 | C25: =(C22+C23)/2 -> -0.006885229994 | E25: m3/mol | G25: Second virial cross-coefficient assuming partial volume mixing. Wu & Yeo, SNU Journal of Education Research
B27: B_mix | C27: =C9^2*C22+C10^2*C23+2*C9*C10*C25 -> -9.874582024e-05 | E27: m3/mol | G27: Smith & Vanness, Intro. To chemical engineering themodynamics, McGraw Hill (1975), Eqn. 1-103
B28: C_mix | C28: 0 | E28: m6/mol2 | G28: Not using 3rd virial term here because we don't really have a mixing rule
B30: P_mix | C30: =C4*C20*(C19+C27*C19^2+C28*C19^3) -> 284918.0756 | E30: Pa | G30: The calculated pressure for this page
B31: P_virial | C31: =C30/133.32237 -> 2137.061287 | E31: torr
B32: P_ideal | C32: =C19*C4*C20/133.32237 -> 2429.000842 | E32: torr
B34: Na | C34: 6.0221415e+23 | E34: molecule/mol
B36: D atoms/molecule D2 | C36: 2
B38: D atom density | C38: =C19*C34*C36*C9 -> 1.464512933e+27 | E38: atom D/m^3
B39: D atom density | C39: =C38/100^3 -> 1.464512933e+21 | E39: atom D/cc
B41: Kr atoms/molecule Kr | C41: 1
B43: Kr atom density | C43: =C19*C34*C41*C10 -> 7.326227777e+23 | E43: atom Kr/m^3
B44: Kr atom density | C44: =C43/100^3 -> 7.326227777e+17 | E44: atom Kr/cc
B46: Total atom density | C46: =C39+C44 -> 1.465245555e+21 | E46: atom/cc
B50: Ppart(Kr) | C50: =C10*C31 -> 2.13599329 | E50: Torr
B51: Psat(Kr) | C51: =Kr!$C$32 -> no data | E51: Torr
B53: Psat_Mix | C53: =IF(OR(C51="no data",C51="supercritical"),C51,C51/C10) -> no data | E53: Torr

Sheet Kr+HDT
B2: Kr-HDT
B4: R | C4: 8.3144621 | E4: Pa-m3/mol-K
B6: f_H | C6: =Calculator!G12/SUM(Calculator!G11:'Calculator'!G13)*(1-Calculator!G9) -> 0 | E6: n.u. | G6: atom fraction from Calculator tab (input)
B7: f_D | C7: =Calculator!G13/SUM(Calculator!G11:'Calculator'!G13)*(1-Calculator!G9) -> 0.49975 | E7: n.u | G7: atom fraction from Calculator tab (input)
B8: f_T | C8: =Calculator!G11/SUM(Calculator!G11:'Calculator'!G13)*(1-Calculator!G9) -> 0.49975 | E8: n.u. | G8: atom fraction from Calculator tab (input)
B9: f_Kr | C9: =Calculator!G9 -> 0.0005 | E9: n.u | G9: atom fraction from Calculator tab (input)
B11: y_H | C11: =C6 /2 / ($C$7/2+$C$9+$C$8/2+$C$6/2) -> 0 | E11: n.u. | G11: molecular fraction
B12: y_D | C12: =C7/2 / ($C$7/2+$C$9+$C$8/2+$C$6/2) -> 0.4995002499 | E12: n.u. | G12: molecular fraction
B13: y_T | C13: =C8 /2 / ($C$7/2+$C$9+$C$8/2+$C$6/2) -> 0.4995002499 | E13: n.u. | G13: molecular fraction
B14: y_Kr | C14: =C9 /($C$7/2+$C$9+$C$8/2+$C$6/2) -> 0.0009995002499 | E14: n.u. | G14: molecular fraction
B16: M_H2 | C16: ='H2'!$C$5 -> 0.00201565 | E16: kg/mol | G16: (Souers Table 1.1)
B17: M_D2 | C17: ='D2'!$C$5 -> 0.004028204 | E17: kg/mol | G17: (Souers Table 1.1)
B18: M_T2 | C18: ='T2'!$C$5 -> 0.0060321 | E18: kg/mol | G18: (Souers Table 1.1)
B19: M_Kr | C19: =Kr!$C$5 -> 0.083798 | E19: kg/mol | G19: Google
B21: M_mix | C21: =C11*C16+C12*C17+C14*C19+C13*C18 -> 0.005108880484 | E21: kg/mol | G21: M_mix= y_T2*M_T2 + y_D2*M_D2 + y_Kr*M_Kr + y_H2*M_H2
B23: rho | C23: =Calculator!G5 -> 5 | E23: mg/cm3 | G23: From Calculator tab (input)
B24: rho | C24: =(C23/1000^2)*100^3 -> 5 | E24: kg/m3
B25: rhoM_mix | C25: =C24/C21 -> 978.6879955 | E25: mol/m3
B26: T | C26: =Calculator!G6 -> 32 | E26: K | G26: From Calculator tab (input)
A28: 1 | B28: B_H2 | C28: ='H2'!$C$16 -> -7.285020133e-05 | E28: m3/mol | G28: PIMC Garberoglio et al. (2012)
A29: 2 | B29: B_D2 | C29: ='D2'!$C$16 -> -8.515246186e-05 | E29: m3/mol | G29: PIMC Garberoglio et al. (2012)
A30: 3 | B30: B_T2 | C30: ='T2'!$C$16 -> -9.030094541e-05 | E30: m3/mol | G30: PIMC Garberoglio et al. (2012)
A31: 4 | B31: B_Kr | C31: =('VC List'!F44-'VC List'!G44*EXP('VC List'!H44/C26))/100^3 -> -0.01368530753 | E31: m3/mol
E33: Second virial cross-coefficient assuming partial volume mixing. Wu & Yeo, SNU Journal of Education Research
F34: B_1 | G34: B_2 | H34: B_3 | I34: B_4 | L34: y1 | M34: y2 | N34: y3 | O34: y4 | R34: yB | S34: yB | T34: yB | U34: yB
E35: B_1 | F35: =($C$28+C28)/2 -> -7.285020133e-05 | G35: =($C$29+C28)/2 -> -7.900133159e-05 | H35: =($C$30+C28)/2 -> -8.157557337e-05 | I35: =($C$31+C28)/2 -> -0.006879078863 | K35: y1 | L35: =C$11*C11 -> 0 | M35: =C$12*C11 -> 0 | N35: =$C$13*C11 -> 0 | O35: =$C$14*C11 -> 0 | Q35: yB | R35: =F35*L35 -> 0 | S35: =G35*M35 -> 0 | T35: 0 | U35: =I35*O35 -> 0
E36: B_2 | F36: =($C$28+C29)/2 -> -7.900133159e-05 | G36: =($C$29+C29)/2 -> -8.515246186e-05 | H36: =($C$30+C29)/2 -> -8.772670363e-05 | I36: =($C$31+C29)/2 -> -0.006885229994 | K36: y2 | L36: =C$11*C12 -> 0 | M36: =C$12*C12 -> 0.2495004996 | N36: =$C$13*C12 -> 0.2495004996 | O36: =$C$14*C12 -> 0.0004992506246 | Q36: yB | R36: =F36*L36 -> 0 | S36: =G36*M36 -> -2.124558178e-05 | T36: =H36*N36 -> -2.188785639e-05 | U36: =I36*O36 -> -3.437455375e-06
E37: B_3 | F37: =($C$28+C30)/2 -> -8.157557337e-05 | G37: =($C$29+C30)/2 -> -8.772670363e-05 | H37: =($C$30+C30)/2 -> -9.030094541e-05 | I37: =($C$31+C30)/2 -> -0.006887804235 | K37: y3 | L37: =C$11*C13 -> 0 | M37: =C$12*C13 -> 0.2495004996 | N37: =$C$13*C13 -> 0.2495004996 | O37: =$C$14*C13 -> 0.0004992506246 | Q37: yB | R37: 0 | S37: -2.188785639e-05 | T37: -2.2530131e-05 | U37: -3.438740566e-06
E38: B_4 | F38: =($C$28+C31)/2 -> -0.006879078863 | G38: =($C$29+C31)/2 -> -0.006885229994 | H38: =($C$30+C31)/2 -> -0.006887804235 | I38: =($C$31+C31)/2 -> -0.01368530753 | K38: y4 | L38: =C$11*C14 -> 0 | M38: =C$12*C14 -> 0.0004992506246 | N38: =$C$13*C14 -> 0.0004992506246 | O38: =$C$14*C14 -> 9.990007495e-07 | Q38: yB | R38: 0 | S38: -3.437455375e-06 | T38: -3.438740566e-06 | U38: -1.367163248e-08
B40: B_mix | C40: =SUM(R35:U38) -> -0.0001013174891 | E40: m3/mol | G40: Smith & Vanness, Intro. To chemical engineering themodynamics, McGraw Hill (1975), Eqn. 1-103
B41: C_mix | C41: 0 | E41: m6/mol2 | G41: Not using 3rd virial term here because we don't really have a mixing rule
B43: P_mix | C43: =C4*C26*(C25+C40*C25^2+C41*C25^3) -> 234572.406 | E43: Pa | G43: The calculated pressure for this page
B44: P_virial | C44: =C43/133.32237 -> 1759.437715 | E44: torr
B45: P_ideal | C45: =C25*C4*C26/133.32237 -> 1953.104013 | E45: torr
B47: Na | C47: 6.0221415e+23 | E47: molecule/mol
B49: H atoms/molecule D2 | C49: 2
B51: H atom density | C51: =C25*C47*C49*C11 -> 0 | E51: atom H/m^3
B52: H atom density | C52: =C51/100^3 -> 0 | E52: atom H/cc
B54: D atoms/molecule D2 | C54: 2
B56: D atom density | C56: =C25*C47*C54*C12 -> 5.887906741e+26 | E56: atom D/m^3
B57: D atom density | C57: =C56/100^3 -> 5.887906741e+20 | E57: atom D/cc
B59: Kr atoms/molecule Kr | C59: 1
B61: Kr atom density | C61: =C25*C47*C64*C14 -> 1.178170433e+24 | E61: atom Kr/m^3
B62: Kr atom density | C62: =C61/100^3 -> 1.178170433e+18 | E62: atom Kr/cc
B64: T2 atoms/molecule T2 | C64: 2
B66: T2 atom density | C66: =C25*C47*C64*C13 -> 5.887906741e+26 | E66: atom 4He/m^3
B67: T2 atom density | C67: =C66/100^3 -> 5.887906741e+20 | E67: atom 4He/cc
B69: Total atom density | C69: =C52+C57+C62+C67 -> 1.178759519e+21 | E69: atom/cc
B73: Ppart(Kr) | C73: =C14*C44 -> 1.758558435 | E73: Torr
B74: Psat(Kr) | C74: =Kr!$C$32 -> no data | E74: Torr
B76: Psat_Mix | C76: =IF(OR(C74="no data",C74="supercritical"),C74,C74/C14) -> no data | E76: Torr

Sheet 3He
B2: 3He
B4: R | C4: 8.3144621 | E4: Pa-m3/mol-K
B5: M | C5: 0.003016 | E5: kg/mol | G5: (Souers Table 1.1)
B7: A | C7: 68.805656 | G7: Slaman & Aziz, International Journal of Thermophysics, Vol. 12, No. 5, 1991, Table XI
B8: B | C8: -310.43767 | G8: Slaman & Aziz, International Journal of Thermophysics, Vol. 12, No. 5, 1991, Table XI
B9: C | C9: 49.158072 | G9: Slaman & Aziz, International Journal of Thermophysics, Vol. 12, No. 5, 1991, Table XI
B10: D | C10: -185.53409 | G10: Slaman & Aziz, International Journal of Thermophysics, Vol. 12, No. 5, 1991, Table XI
B11: E | C11: 142.99747 | G11: Slaman & Aziz, International Journal of Thermophysics, Vol. 12, No. 5, 1991, Table XI
B13: rho | C13: =Calculator!G5 -> 5 | E13: mg/cm3 | G13: From Calculator tab (input)
B14: rho | C14: =(C13/1000^2)*100^3 -> 5 | E14: kg/m3
B15: rho | C15: =C14/C5 -> 1657.824934 | E15: mol/m3
B16: T | C16: =Calculator!G6 -> 32 | E16: K | G16: From Calculator tab (input)
B18: B | C18: =(1/100^3)*(C16^(-0.25)*(C7+C8*C16^(-0.5)+C9*C16^(-1)+C10*C16^(-1.5)+C11*C16^(-2))) -> 6.129464501e-06 | E18: m3/mol | G18: Slaman & Aziz, International Journal of Thermophysics, Vol. 12, No. 5, 1991, Eqn. 4
B19: C | C19: 0 | E19: m6/mol2 | G19: Not used here (set to zero)
B21: P | C21: =C4*C16*(C15+C18*C15^2+C19*C15^3) -> 445567.648 | E21: Pa | G21: The calculated pressure for this page
B22: P_virial | C22: =C21/133.32237 -> 3342.032158 | E22: torr
B23: P_ideal | C23: =C4*C16*C15/133.32237 -> 3308.413453 | E23: torr
B25: Na | C25: 6.0221415e+23 | E25: molecule/mol
C27: 1 | E27: atoms/molecule
B29: atom density | C29: =C15*C25*C27 -> 9.983656333e+26 | E29: atom 3He/m3
B30: atom density | C30: =C29/100^3 -> 9.983656333e+20 | E30: atom 3He/cm3
C32: 2 | E32: electrons/molecule
B34: electron density | C34: =$C$32*C29 -> 1.996731267e+27 | E34: electrons 3He/m3
B35: electron density | C35: =$C$32*C30 -> 1.996731267e+21 | E35: electrons 3He/cm3

Sheet 4He
C2: 4He
C4: 8.3144621 | E4: Pa-m3/mol-K
C5: 0.0040026 | E5: kg/mol | H5: (Souers Table 1.1)
C7: 64.688468 | G7: Slaman & Aziz, International Journal of Thermophysics, Vol. 12, No. 5, 1991, Table XI
C8: -249.26729 | G8: Slaman & Aziz, International Journal of Thermophysics, Vol. 12, No. 5, 1991, Table XI
C9: -382.25353 | G9: Slaman & Aziz, International Journal of Thermophysics, Vol. 12, No. 5, 1991, Table XI
C10: 471.13857 | G10: Slaman & Aziz, International Journal of Thermophysics, Vol. 12, No. 5, 1991, Table XI
C11: -382.00454 | G11: Slaman & Aziz, International Journal of Thermophysics, Vol. 12, No. 5, 1991, Table XI
C13: =Calculator!G5 -> 5 | E13: mg/cm3 | G13: From Calculator tab (input)
C14: =(C13/1000^2)*100^3 -> 5 | E14: kg/m3
C15: =C14/C5 -> 1249.188028 | E15: mol/m3
C16: =Calculator!G6 -> 32 | E16: K | G16: From Calculator tab (input)
C18: =(1/100^3)*(C16^(-0.25)*(C7+C8*C16^(-0.5)+C9*C16^(-1)+C10*C16^(-1.5)+C11*C16^(-2))) -> 4.586267376e-06 | E18: m3/mol | G18: Slaman & Aziz, International Journal of Thermophysics, Vol. 12, No. 5, 1991, Eqn. 4
C19: 0 | E19: m6/mol2 | G19: Not used here (set to zero)
B21: P | C21: =C4*C16*(C15+C18*C15^2+C19*C15^3) -> 334266.5895 | E21: Pa | G21: The calculated pressure for this page
B22: P_virial | C22: =C21/133.32237 -> 2507.205576 | E22: torr
B23: P_ideal | C23: =C4*C16*C15/133.32237 -> 2492.923344 | E23: torr
B25: Na | C25: 6.0221415e+23 | E25: molecule/mol
C27: 1 | E27: atoms/molecule
B29: atom density | C29: =C15*C25*C27 -> 7.522787063e+26 | E29: atom 4He/m3
B30: atom density | C30: =C29/100^3 -> 7.522787063e+20 | E30: atom 4He/cm3
C32: 2 | E32: electrons/molecule
B34: electron density | C34: =$C$32*C29 -> 1.504557413e+27 | E34: electrons 4He/m3
B35: electron density | C35: =$C$32*C30 -> 1.504557413e+21 | E35: electrons 4He/cm3

Sheet Ne
C2: Ne
C4: 8.3144621 | E4: Pa-m3/mol-K
C5: 0.0201797 | E5: kg/mol | G5: 2nd VC for Neon
G6: y = 9.3891E-10x6 - 2.0096E-07x5 - 4.4861E-06x4 + 4.7182E-03x3 - 5.1562E-01x2 + 2.4275E+01x - 4.7365E+02
B7: B6 | C7: =0.00000000093891 -> 9.3891e-10 | G7: Sixth order polynomial fit from Wiebke 2012 - Up to fourth Virial coefficients from simple and efficient internal-coordinate sampling: Application to neon
B8: B5 | C8: =- 0.00000020096 -> -2.0096e-07
B9: B4 | C9: =- 0.0000044861 -> -4.4861e-06
B10: B3 | C10: 0.0047182
B11: B2 | C11: -0.51562
B12: B1 | C12: =+ 24.275 -> 24.275
B13: B0 | C13: =- 473.65 -> -473.65
B15: TL | C15: 15 | E15: K
B16: TU | C16: 100 | E16: K
G17: 2nd VC for Neon - Mid Range
B18: B6 | C18: =0.00000000000049362 -> 4.9362e-13 | G18: y = 4.9362E-13x6 - 6.0761E-10x5 + 2.9008E-07x4 - 6.5371E-05x3 + 6.0621E-03x2 + 1.0702E-01x - 3.4424E+01
B19: B5 | C19: =- 0.00000000060761 -> -6.0761e-10 | G19: Sixth order polynomial fit from Wiebke 2012 - Up to fourth Virial coefficients from simple and efficient internal-coordinate sampling: Application to neon
B20: B4 | C20: =0.00000029008 -> 2.9008e-07
B21: B3 | C21: =- 0.000065371 -> -6.5371e-05
B22: B2 | C22: =0.0060621 -> 0.0060621
B23: B1 | C23: 0.10702
B24: B0 | C24: -34.424
B26: TL | C26: 100 | E26: K
B27: TU | C27: 300 | E27: K
B29: C6 | C29: -6.7234e-07 | G29: 3rd VC for Neon
B30: C5 | C30: 0.0002643 | G30: y = -6.7234E-07x6 + 2.6430E-04x5 - 4.2754E-02x4 + 3.6417E+00x3 - 1.7213E+02x2 + 4.2693E+03x - 4.2715E+04
B31: C4 | C31: -0.042754 | G31: Sixth order polynomial fit from Wiebke 2012 - Up to fourth Virial coefficients from simple and efficient internal-coordinate sampling: Application to neon
B32: C3 | C32: 3.6417
B33: C2 | C33: -172.13
B34: C1 | C34: 4269.3
B35: C0 | C35: -42715
B37: TL | C37: 15 | E37: K
B38: TU | C38: 50 | E38: K
B40: C6 | C40: 2.0082e-11 | G40: 3rd VC for Neon
B41: C5 | C41: =- 0.000000026603 -> -2.6603e-08 | G41: y = 2.0082E-11x6 - 2.6603E-08x5 + 1.4075E-05x4 - 3.8206E-03x3 + 5.6588E-01x2 - 4.4205E+01x + 1.6987E+03
B42: C4 | C42: 1.4075e-05 | G42: Sixth order polynomial fit from Wiebke 2012 - Up to fourth Virial coefficients from simple and efficient internal-coordinate sampling: Application to neon
B43: C3 | C43: -0.0038206
B44: C2 | C44: 0.56588
B45: C1 | C45: -44.205
B46: C0 | C46: 1698.7
B48: TL | C48: 50 | E48: K
B49: TU | C49: 300 | E49: K
C51: =Calculator!G5 -> 5 | E51: mg/cm3 | G51: From Calculator tab (input)
C52: =(C51/1000^2)*100^3 -> 5 | E52: kg/m3
C53: =C52/C5 -> 247.7737528 | E53: mol/m3
C54: =Calculator!G6 -> 32 | E54: K | G54: From Calculator tab (input)
C56: =IF(C54<C16,(((C7*C$54^6 + C8*C$54^5 +C9*C$54^4 +C10*C$54^3+C11*C$54^2+C12*C$54+C13))/1000000),(((C18*C$54^6 + C19*C$54^5 +C20*C$54^4 +C21*C$54^3+C22*C$54^2+C23*C$54+C24))/1000000)) -> -8.067787091e-05 | E56: m3/mol | G56: Sixth order polynomial fit from Wiebke 2012 - Up to fourth Virial coefficients from simple and efficient internal-coordinate sampling: Application to neon
C57: =IF(C54<C38,((C29*C$54^6 + C30*C$54^5 +C31*C$54^4 +C32*C$54^3+C33*C$54^2+C34*C$54+C35))/1000000000000,((C40*C$54^6 + C41*C$54^5 +C42*C$54^4 +C43*C$54^3+C44*C$54^2+C45*C$54+C46))/1000000000000) -> 2.884040957e-10 | E57: m6/mol2 | G57: Sixth order polynomial fit from Wiebke 2012 - Up to fourth Virial coefficients from simple and efficient internal-coordinate sampling: Application to neon
B59: P | C59: =C4*C54*C53*(1+C56*C53+C57*C53^2) -> 64606.74352 | E59: Pa | G59: The calculated pressure for this page
B60: P_virial | C60: =C59/133.32237 -> 484.5904219 | E60: torr
B61: P_ideal | C61: =C4*C54*C53/133.32237 -> 494.465972 | E61: torr
B63: Na | C63: 6.0221415e+23 | E63: molecule/mol
C65: 1 | E65: atoms/molecule
B67: atom density | C67: =C53*C63*C65 -> 1.4921286e+26 | E67: atom Ne/m3
B68: atom density | C68: =C67/100^3 -> 1.4921286e+20 | E68: atom Ne/cm3
B70: Psat_Ne | C70: =IF(C54>27,"supercritical",(10^(Q$79-(R$79/(C54+S$79))))*(100000/101325)*760) -> supercritical | E70: torr | P70: Antoine Equation Parameters
C72: 10 | E72: electrons/molecule | P72: log10(P) = A − (B / (T + C))
P73: P = vapor pressure (bar)
B74: electron density | C74: =$C$72*C67 -> 1.4921286e+27 | E74: electron Ne/m3 | P74: T = temperature (K)
B75: electron density | C75: =$C$72*C68 -> 1.4921286e+21 | E75: electron Ne/cm3
P76: View plot Requires a Java capable browser.
P78: Temperature (K) | Q78: A | R78: B | S78: C | T78: Reference | U78: Comment
P79: 15.9 - 27. | Q79: 3.75641 | R79: 95.599 | S79: -1.503 | T79: Stull, 1947 | U79: Coefficents calculated by NIST from author's data

Sheet H2
AE1: Coefficients of Polynomial Fit for C(T)_H2 from Data | AQ1: Coefficients for Polynomial Fit for C(Tr)_H2
B2: H2 | U2: Psat constants (Souers) | AA2: TL (K) | AB2: TU (K) | AC2: C [cm3/mol]2 | AE2: C_H2 (14K-20K) | AI2: C_H2 (20K-30K) | AM2: C H2 (30K-500K) | AQ2: C H2 (Tr: 0.42-0.6) | AU2: C H2 (Tr: 0.6-0.9) | AY2: C H2 (Tr: 0.9-2.56)
U3: A_lv(1)= | V3: 4.75319 | W3: H2 | Y3: % 1-H2-blue | AA3: 14 | AB3: 20 | AC3: =IF(AND($C$14>=AA3,$C$14<=AB3),$AF$6*$C$14^10 + $AF$7*$C$14^9 + $AF$8*$C$14^8 + $AF$9*$C$14^7 + $AF$10*$C$14^6 + $AF$11*$C$14^5 + $AF$12*$C$14^4 + $AF$13*$C$14^3+ $AF$14*$C$14^2 + $AF$15*$C$14^1 + $AF$16,"") ->  | AE3: R2 | AF3: 0.9999983077 | AJ3: 0.9906196978 | AN3: 0.9962645811 | AQ3: R2 | AR3: 1 | AV3: 0.999881664 | AZ3: 0.9998986438
B4: R | C4: 8.3144621 | E4: Pa-m3/mol-K | U4: A_lv(2)= | V4: 6.68995 | W4: HD | Y4: % 2-HD-green | AA4: 20 | AB4: 30 | AC4: =IF(AND($C$14>AA4,$C$14<=AB4),$AJ$6*$C$14^10 + $AJ$7*$C$14^9 + $AJ$8*$C$14^8 + $AJ$9*$C$14^7 + $AJ$10*$C$14^6 + $AJ$11*$C$14^5 + $AJ$12*$C$14^4 + $AJ$13*$C$14^3+ $AJ$14*$C$14^2 + $AJ$15*$C$14^1 + $AJ$16,"") -> 
B5: M | C5: 0.00201565 | E5: kg/mol | G5: (Souers Table 1.1) | U5: A_lv(3)= | V5: 7.83671 | W5: HT | Y5: % 3-HT-red | AA5: 30 | AB5: 500 | AC5: =IF(AND($C$14>AA5,$C$14<=AB5),$AN$6*$C$14^10 + $AN$7*$C$14^9 + $AN$8*$C$14^8 + $AN$9*$C$14^7 + $AN$10*$C$14^6 + $AN$11*$C$14^5 + $AN$12*$C$14^4 + $AN$13*$C$14^3+ $AN$14*$C$14^2 + $AN$15*$C$14^1 + $AN$16,"") -> 1561.623885
U6: A_lv(4)= | V6: 7.73898 | W6: D2 | Y6: % 4-D2-cyan | AA6: 4 | AB6: 20 | AC6: =IF(AND($C$14>AA6,$C$14<AB6),0,"") ->  | AE6: 10 | AF6: 2.209441499e-05 | AG6: 1 | AI6: 10 | AJ6: -1.521396401e-10 | AK6: 1 | AM6: 10 | AN6: 4.692744449e-20 | AO6: 1 | AQ6: 10 | AR6: 0 | AS6: 1 | AU6: 10 | AV6: -1704546.965 | AW6: 1 | AY6: 10 | AZ6: -573.8428948 | BA6: 1
U7: A_lv(5)= | V7: 9.32752 | W7: DT | Y7: % 5-DT-magenta | AE7: 9 | AF7: -0.002510104343 | AG7: 2 | AI7: 9 | AJ7: 5.348699927e-08 | AK7: 2 | AM7: 9 | AN7: -1.170920971e-16 | AO7: 2 | AQ7: 9 | AR7: 0 | AS7: 2 | AU7: 9 | AV7: 3931218.037 | AW7: 2 | AY7: 9 | AZ7: 7135.116659 | BA7: 2
U8: A_lv(6)= | V8: 10.922 | W8: T2 | Y8: % 6-T2-lime | AE8: 8 | AF8: 0.1146249056 | AG8: 3 | AI8: 8 | AJ8: -5.68891954e-06 | AK8: 3 | AM8: 8 | AN8: 1.262472274e-13 | AO8: 3 | AQ8: 8 | AR8: 0 | AS8: 3 | AU8: 8 | AV8: 0 | AW8: 3 | AY8: 8 | AZ8: -35931.94789 | BA8: 3
AE9: 7 | AF9: -2.636892741 | AG9: 4 | AI9: 7 | AJ9: 0.0002727572397 | AK9: 4 | AM9: 7 | AN9: -7.71692971e-11 | AO9: 4 | AQ9: 7 | AR9: 0 | AS9: 4 | AU9: 7 | AV9: -4065214.326 | AW9: 4 | AY9: 7 | AZ9: 90291.56748 | BA9: 4
U10: B_lv(1)= | V10: 83.5177 | W10: H2 | AE10: 6 | AF10: 30.68116606 | AG10: 5 | AI10: 6 | AJ10: -0.006251382053 | AK10: 5 | AM10: 6 | AN10: 2.949977723e-08 | AO10: 5 | AQ10: 6 | AR10: 0 | AS10: 5 | AU10: 6 | AV10: 0 | AW10: 5 | AY10: 6 | AZ10: -103223.5887 | BA10: 5
B11: rho | C11: =Calculator!G5 -> 5 | E11: mg/cm3 | G11: From Calculator tab (input) | U11: B_lv(2)= | V11: 109.419 | W11: HD | AE11: 5 | AF11: -145.3828414 | AG11: 6 | AI11: 5 | AJ11: 0.05654170201 | AK11: 6 | AM11: 5 | AN11: -7.34220442e-06 | AO11: 6 | AQ11: 5 | AR11: 0 | AS11: 6 | AU11: 5 | AV11: 0 | AW11: 6 | AY11: 5 | AZ11: 0 | BA11: 6
B12: rho | C12: =(C11/1000^2)*100^3 -> 5 | E12: kg/m3 | U12: B_lv(3)= | V12: 123.995 | W12: HT | AE12: 4 | AF12: 0 | AG12: 7 | AI12: 4 | AJ12: 0 | AK12: 7 | AM12: 4 | AN12: 0.001201950144 | AO12: 7 | AQ12: 4 | AR12: -13036299.9 | AS12: 7 | AU12: 4 | AV12: 4555681.072 | AW12: 7 | AY12: 4 | AZ12: 99677.13998 | BA12: 7
B13: rho | C13: =C12/C5 -> 2480.589388 | E13: mol/m3 | U13: B_lv(4)= | V13: 130.249 | W13: D2 | AE13: 3 | AF13: 0 | AG13: 8 | AI13: 3 | AJ13: 0 | AK13: 8 | AM13: 3 | AN13: -0.1278998029 | AO13: 8 | AQ13: 3 | AR13: 0 | AS13: 8 | AU13: 3 | AV13: 0 | AW13: 8 | AY13: 3 | AZ13: 0 | BA13: 8
B14: T | C14: =Calculator!G6 -> 32 | E14: K | G14: From Calculator tab (input) | U14: B_lv(5)= | V14: 147.349 | W14: DT | AE14: 2 | AF14: 0 | AG14: 9 | AI14: 2 | AJ14: 0 | AK14: 9 | AM14: 2 | AN14: 8.540195026 | AO14: 9 | AQ14: 2 | AR14: 19119562.49 | AS14: 9 | AU14: 2 | AV14: -6356951.774 | AW14: 9 | AY14: 2 | AZ14: -172342.06 | BA14: 9
B15: Tr | C15: =C14/C41 -> 0.962406015 | U15: B_lv(6)= | V15: 164.486 | W15: T2 | AE15: 1 | AF15: 0 | AG15: 10 | AI15: 1 | AJ15: 0 | AK15: 10 | AM15: 1 | AN15: -332.1915499 | AO15: 10 | AQ15: 1 | AR15: -12000860.64 | AS15: 10 | AU15: 1 | AV15: 4654836.406 | AW15: 10 | AY15: 1 | AZ15: 160840.1437 | BA15: 10
B16: B_PIMC | C16: =((P25+P26*C14)/(P27+P28*C14+P29*C14^2))/100^3 -> -7.285020133e-05 | E16: m3/mol | G16: Garberoglio et al. (2012) 15K to 350K | AE16: 0 | AF16: 1380700.024 | AG16: 11 | AI16: 0 | AJ16: -10748.58349 | AK16: 11 | AM16: 0 | AN16: 6594.483573 | AO16: 11 | AQ16: 0 | AR16: 2005978.232 | AS16: 11 | AU16: 0 | AV16: -1011914.817 | AW16: 11 | AY16: 0 | AZ16: -44374.14595 | BA16: 11
B17: B_Souers | C17: =0.000001*( 0.008667*C14^3 - 0.98*C14^2 + 39.38*C14 - 612.9) -> -7.2259744e-05 | E17: m3/mol | G17: Polynomial fit to data in Souers Table 4.4 - 20K to 40K | U17: C_lv(1)= | V17: 1.98042 | W17: H2
B18: C_Data | C18: =AVERAGE(AC3:AC6)/100^6 -> 1.561623885e-09 | E18: m6/mol2 | G18: Polynomial fit to data from literature: 15K to 500K | U18: C_lv(2)= | V18: 1.57756 | W18: HD
B19: C_Souers | C19: =0.0000000229*C14^(-0.786) -> 1.502407003e-09 | E19: m6/mol2 | G19: (Souers Eq. 4.29) | U19: C_lv(3)= | V19: 1.3444 | W19: HT
B20: P_PIMC & Data | C20: =$C$4*$C$14*($C$13+$C$16*$C$13^2+$C$18*$C$13^3) -> 547066.3142 | E20: Pa | G20: Uses second VC (PIMC) & third VC (Data) | U20: C_lv(4)= | V20: 1.38962 | W20: D2
B21: P_Souers | C21: =$C$4*$C$14*($C$13+$C$17*$C$13^2+$C$19*$C$13^3) -> 547792.505 | E21: Pa | G21: Uses second and third virial coefficents from Souers | U21: C_lv(5)= | V21: 1.0495 | W21: DT
B22: P_virial | C22: =C20/133.32237 -> 4103.334754 | E22: torr | U22: C_lv(6)= | V22: 0.707997 | W22: T2
B23: P_Souers | C23: =C21/101325*760 -> 4108.781681 | E23: torr
B24: P_ideal | C24: =C4*C14*C13/133.32237 -> 4950.350991 | E24: torr
O25: a | P25: -365330 | U25: Sat Density Vapor Curve Fit
B26: Na | C26: 6.0221415e+23 | E26: molecule/mol | O26: b | P26: 3388.5 | V26: R2 | W26: 0.9999252294
O27: c | P27: -393.91
C28: 2 | E28: atoms/molecule | O28: d | P28: 118.86 | U28: Exponent | V28: Constant
O29: f | P29: 0.11404 | U29: 15 | V29: 1 | W29: -1.812118153e-15
B30: atom density | C30: =C13*C26*C28 -> 2.98769206e+27 | E30: atom H/m3 | U30: 14 | V30: 2 | W30: 4.930224148e-13
B31: atom density | C31: =C30/100^3 -> 2.98769206e+21 | E31: atom H/cm3 | U31: 13 | V31: 3 | W31: -6.099329173e-11
U32: 12 | V32: 4 | W32: 4.541258488e-09
U33: 11 | V33: 5 | W33: -2.269692742e-07
B34: Psat_H2 | C34: =IF(C14>C41,"supercritical",EXP(V3-V10/C14+V17*LN(C14))) -> 8158.981073 | E34: torr | U34: 10 | V34: 6 | W34: 8.040005664e-06
B35: rho_sat_H2 | C35: =IF($C$14<$C$41,ABS($W$29*$C$14^$U$29+$W$30*$C$14^$U$30+$W$31*$C$14^$U$31+$W$32*$C$14^$U$32+$W$33*$C$14^$U$33+$W$34*$C$14^$U$34+$W$35*$C$14^$U$35+$W$36*$C$14^$U$36+$W$37*$C$14^$U$37+$W$38*$C$14^$U$38+$W$39*$C$14^$U$39+$W$40*$C$14^$U$40+$W$41*$C$14^$U$41+$W$42*$C$14^$U$42+$W$43*$C$14^$U$43+$W$44*$C$14^$U$44),"supercritical") -> 16.82696995 | E35: mg/cm3 | U35: 9 | V35: 7 | W35: -0.0002076977851
U36: 8 | V36: 8 | W36: 0.003964042497
U37: 7 | V37: 9 | W37: -0.05597032883
B38: G. Garberoglio, P. Jankowski, K. Szalewicz, and A. Harvey, "Second virial coefficients of H2 and its isotopologues from a six-dimensional potential", J. Chem. Phys. 137, 154308 (2012) | U38: 6 | V38: 10 | W38: 0.578974079
U39: 5 | V39: 11 | W39: -4.286857358
U40: 4 | V40: 12 | W40: 21.7308364
B41: Tc | C41: 33.25 | E41: K | U41: 3 | V41: 13 | W41: -69.01861844
B42: Pc | C42: =1.297*1000/101.325*760 -> 9728.300025 | E42: Torr | U42: 2 | V42: 14 | W42: 109.0585075
B43: Ttp | C43: 13.92 | E43: K | U43: 1 | V43: 15 | W43: 0
U44: 0 | V44: 16 | W44: -169.0340598
C46: 2 | E46: electrons/molecule
B48: electron density | C48: =C13*C26*C46 -> 2.98769206e+27 | E48: electron H2/m3
B49: electron density | C49: =C48/100^3 -> 2.98769206e+21 | E49: electron H2/cm3

Sheet D2
AC1: Coefficients as a function of reduced temperature for C_D2 | AJ1: ='H2'!AQ2 -> C H2 (Tr: 0.42-0.6) | AN1: ='H2'!$AU$2 -> C H2 (Tr: 0.6-0.9) | AR1: ='H2'!$AY$2 -> C H2 (Tr: 0.9-2.56)
B2: D2 | U2: Psat constants (Souers) | AC2: 0.9999702519 | AJ2: ='H2'!AQ3 -> R2 | AK2: ='H2'!AR3 -> 1 | AO2: ='H2'!AV3 -> 0.999881664 | AS2: ='H2'!AZ3 -> 0.9998986438
U3: A_lv(1)= | V3: 4.75319 | W3: H2
B4: R | C4: 8.3144621 | E4: Pa-m3/mol-K | U4: A_lv(2)= | V4: 6.68995 | W4: HD
B5: M | C5: 0.004028204 | E5: kg/mol | G5: (Souers Table 1.1) | U5: A_lv(3)= | V5: 7.83671 | W5: HT | AC5: -0.01932651526 | AJ5: ='H2'!AQ6 -> 10 | AK5: ='H2'!AR6 -> 0 | AL5: ='H2'!AS6 -> 1 | AN5: ='H2'!AU6 -> 10 | AO5: ='H2'!AV6 -> -1704546.965 | AP5: ='H2'!AW6 -> 1 | AR5: ='H2'!AY6 -> 10 | AS5: ='H2'!AZ6 -> -573.8428948 | AT5: ='H2'!BA6 -> 1
U6: A_lv(4)= | V6: 7.73898 | W6: D2 | AC6: 0.2689317764 | AJ6: ='H2'!AQ7 -> 9 | AK6: ='H2'!AR7 -> 0 | AL6: ='H2'!AS7 -> 2 | AN6: ='H2'!AU7 -> 9 | AO6: ='H2'!AV7 -> 3931218.037 | AP6: ='H2'!AW7 -> 2 | AR6: ='H2'!AY7 -> 9 | AS6: ='H2'!AZ7 -> 7135.116659 | AT6: ='H2'!BA7 -> 2
U7: A_lv(5)= | V7: 9.32752 | W7: DT | AC7: -1.532382718 | AJ7: ='H2'!AQ8 -> 8 | AK7: ='H2'!AR8 -> 0 | AL7: ='H2'!AS8 -> 3 | AN7: ='H2'!AU8 -> 8 | AO7: ='H2'!AV8 -> 0 | AP7: ='H2'!AW8 -> 3 | AR7: ='H2'!AY8 -> 8 | AS7: ='H2'!AZ8 -> -35931.94789 | AT7: ='H2'!BA8 -> 3
U8: A_lv(6)= | V8: 10.922 | W8: T2 | AC8: 4.456366093 | AJ8: ='H2'!AQ9 -> 7 | AK8: ='H2'!AR9 -> 0 | AL8: ='H2'!AS9 -> 4 | AN8: ='H2'!AU9 -> 7 | AO8: ='H2'!AV9 -> -4065214.326 | AP8: ='H2'!AW9 -> 4 | AR8: ='H2'!AY9 -> 7 | AS8: ='H2'!AZ9 -> 90291.56748 | AT8: ='H2'!BA9 -> 4
AC9: -6.169859902 | AJ9: ='H2'!AQ10 -> 6 | AK9: ='H2'!AR10 -> 0 | AL9: ='H2'!AS10 -> 5 | AN9: ='H2'!AU10 -> 6 | AO9: ='H2'!AV10 -> 0 | AP9: ='H2'!AW10 -> 5 | AR9: ='H2'!AY10 -> 6 | AS9: ='H2'!AZ10 -> -103223.5887 | AT9: ='H2'!BA10 -> 5
U10: B_lv(1)= | V10: 83.5177 | W10: H2 | AC10: 0 | AJ10: ='H2'!AQ11 -> 5 | AK10: ='H2'!AR11 -> 0 | AL10: ='H2'!AS11 -> 6 | AN10: ='H2'!AU11 -> 5 | AO10: ='H2'!AV11 -> 0 | AP10: ='H2'!AW11 -> 6 | AR10: ='H2'!AY11 -> 5 | AS10: ='H2'!AZ11 -> 0 | AT10: ='H2'!BA11 -> 6
B11: rho | C11: =Calculator!G5 -> 5 | E11: mg/cm3 | G11: From Calculator tab (input) | U11: B_lv(2)= | V11: 109.419 | W11: HD | AC11: 13.88997322 | AJ11: ='H2'!AQ12 -> 4 | AK11: ='H2'!AR12 -> -13036299.9 | AL11: ='H2'!AS12 -> 7 | AN11: ='H2'!AU12 -> 4 | AO11: ='H2'!AV12 -> 4555681.072 | AP11: ='H2'!AW12 -> 7 | AR11: ='H2'!AY12 -> 4 | AS11: ='H2'!AZ12 -> 99677.13998 | AT11: ='H2'!BA12 -> 7
B12: rho | C12: =(C11/1000^2)*100^3 -> 5 | E12: kg/m3 | U12: B_lv(3)= | V12: 123.995 | W12: HT | AC12: -22.57518278 | AJ12: ='H2'!AQ13 -> 3 | AK12: ='H2'!AR13 -> 0 | AL12: ='H2'!AS13 -> 8 | AN12: ='H2'!AU13 -> 3 | AO12: ='H2'!AV13 -> 0 | AP12: ='H2'!AW13 -> 8 | AR12: ='H2'!AY13 -> 3 | AS12: ='H2'!AZ13 -> 0 | AT12: ='H2'!BA13 -> 8
B13: rho | C13: =C12/C5 -> 1241.247961 | E13: mol/m3 | U13: B_lv(4)= | V13: 130.249 | W13: D2 | AC13: 17.4804223 | AJ13: ='H2'!AQ14 -> 2 | AK13: ='H2'!AR14 -> 19119562.49 | AL13: ='H2'!AS14 -> 9 | AN13: ='H2'!AU14 -> 2 | AO13: ='H2'!AV14 -> -6356951.774 | AP13: ='H2'!AW14 -> 9 | AR13: ='H2'!AY14 -> 2 | AS13: ='H2'!AZ14 -> -172342.06 | AT13: ='H2'!BA14 -> 9
B14: T | C14: =Calculator!G6 -> 32 | E14: K | G14: From Calculator tab (input) | U14: B_lv(5)= | V14: 147.349 | W14: DT | AC14: -7.053895299 | AJ14: ='H2'!AQ15 -> 1 | AK14: ='H2'!AR15 -> -12000860.64 | AL14: ='H2'!AS15 -> 10 | AN14: ='H2'!AU15 -> 1 | AO14: ='H2'!AV15 -> 4654836.406 | AP14: ='H2'!AW15 -> 10 | AR14: ='H2'!AY15 -> 1 | AS14: ='H2'!AZ15 -> 160840.1437 | AT14: ='H2'!BA15 -> 10
B15: Tr | C15: =C14/C41 -> 0.8344198175 | U15: B_lv(6)= | V15: 164.486 | W15: T2 | AC15: 2.174522518 | AJ15: ='H2'!AQ16 -> 0 | AK15: ='H2'!AR16 -> 2005978.232 | AL15: ='H2'!AS16 -> 11 | AN15: ='H2'!AU16 -> 0 | AO15: ='H2'!AV16 -> -1011914.817 | AP15: ='H2'!AW16 -> 11 | AR15: ='H2'!AY16 -> 0 | AS15: ='H2'!AZ16 -> -44374.14595 | AT15: ='H2'!BA16 -> 11
B16: B_PIMC | C16: =((P25+P26*C14)/(P27+P28*C14+P29*C14^2))/100^3 -> -8.515246186e-05 | E16: m3/mol | G16: Garberoglio et al. (2012) 15K to 350K
B17: B_Souers | C17: =0.000001*(0.01*C14^3-1.168*C14^2+48.264*C14-761.79) -> -8.5694e-05 | E17: m3/mol | G17: (Polynomial fit to data in Souers Table 4.4) | U17: C_lv(1)= | V17: 1.98042 | W17: H2 | AJ17: Tr,L | AK17: Tr,U | AL17: C_H2
B18: C_Data | C18: =$AC$20/100^6 -> 1.534363992e-09 | E18: m6/mol2 | G18: Corresponding Tr approximation using H2 data from literature: 15K to 500K | U18: C_lv(2)= | V18: 1.57756 | W18: HD | AJ18: 0.42 | AK18: 0.6 | AL18: =IF(AND($C$15>=AJ18,$C$15<=AK18),$AK$5*$C$15^10 + $AK$6*$C$15^9 + $AK$7*$C$15^8 + $AK$8*$C$15^7 + $AK$9*$C$15^6 + $AK$10*$C$15^5 + $AK$11*$C$15^4 + $AK$12*$C$15^3+ $AK$13*$C$15^2 + $AK$14*$C$15^1 + $AK$15,"") -> 
B19: C_Souers | C19: =0.0000000229*C14^(-0.786) -> 1.502407003e-09 | E19: m6/mol2 | G19: (Souers Eq. 4.29) | U19: C_lv(3)= | V19: 1.3444 | W19: HT | AC19: Predicted Third Virial Coefficient | AJ19: 0.6 | AK19: 0.9 | AL19: =IF(AND($C$15>AJ19,$C$15<=AK19),$AO$5*$C$15^10 + $AO$6*$C$15^9 + $AO$7*$C$15^8 + $AO$8*$C$15^7 + $AO$9*$C$15^6 + $AO$10*$C$15^5 + $AO$11*$C$15^4 + $AO$12*$C$15^3+ $AO$13*$C$15^2 + $AO$14*$C$15^1 + $AO$15,"") -> 1633.177419
B20: P_PIMC & Data | C20: =$C$4*$C$14*($C$13+$C$16*$C$13^2+$C$18*$C$13^3) -> 296124.7313 | E20: Pa | G20: Uses second VC (PIMC) & third VC (Model) | U20: C_lv(4)= | V20: 1.38962 | W20: D2 | AC20: =(AC$5*$C$15^10 + AC$6*$C$15^9 + AC$7*$C$15^8 + AC$8*$C$15^7 + AC$9*$C$15^6 + AC$10*$C$15^5 + AC$11*$C$15^4 + AC$12*$C$15^3+ AC$13*$C$15^2 + AC$14*$C$15^1 +AC$15)*AVERAGE(AL18:AL22) -> 1534.363992 | AD20: C_D2 | AE20: cm6/mol2 | AJ20: 0.9 | AK20: 2.56 | AL20: =IF(AND($C$15>AJ20,$C$15<=AK20),$AS$5*$C$15^10 + $AS$6*$C$15^9 + $AS$7*$C$15^8 + $AS$8*$C$15^7 + $AS$9*$C$15^6 + $AS$10*$C$15^5 + $AS$11*$C$15^4 + $AS$12*$C$15^3+ $AS$13*$C$15^2 + $AS$14*$C$15^1 + $AS$15,"") ->  | AM20: cm6/mol2
B21: P_Souers | C21: =C4*C14*(C13+C17*C13^2+C19*C13^3) -> 295886.4827 | E21: Pa | G21: Uses second and third virial coefficents from Souers | U21: C_lv(5)= | V21: 1.0495 | W21: DT | AJ21: 0 | AK21: 0.42 | AL21: =IF(AND($C$15>=AJ21,$C$15<AK21),0,"") -> 
B22: P_virial | C22: =C20/133.32237 -> 2221.118116 | E22: torr | U22: C_lv(6)= | V22: 0.707997 | W22: T2 | AJ22: 2.56 | AK22: 100 | AL22: =IF(AND($C$15>AJ22,$C$15<AK22),0,"") -> 
B23: P_Souers | C23: =C21/101325*760 -> 2219.331131 | E23: torr
B24: P_ideal | C24: =C4*C14*C13/133.32237 -> 2477.077868 | E24: torr
O25: a | P25: -584120 | U25: Sat Density Vapor Curve Fit
B26: Na | C26: 6.0221415e+23 | E26: molecule/mol | O26: b | P26: 5165 | V26: R2 | W26: 0.9982601267
O27: c | P27: -886.6
B28: atoms/molecule | C28: 2 | O28: d | P28: 175.02 | V28: Constant
O29: f | P29: 0.19987 | U29: 15 | V29: 1 | W29: 3.383074068e-15
B30: atom density | C30: =C13*C26*C28 -> 1.494994171e+27 | E30: atom D/m^3 | U30: 14 | V30: 2 | W30: -1.091689244e-12
B31: atom density | C31: =C30/100^3 -> 1.494994171e+21 | E31: atom D/cc | U31: 13 | V31: 3 | W31: 1.611599973e-10
U32: 12 | V32: 4 | W32: -1.441914007e-08
U33: 11 | V33: 5 | W33: 8.731852731e-07
B34: Psat_D2 | C34: =IF(C14>C41,"supercritical",EXP(V6-V13/C14+V20*LN(C14))) -> 4840.409847 | E34: torr | U34: 10 | V34: 6 | W34: -3.785226952e-05
B35: rho_sat_D2 | C35: =IF($C$14<$C$41,ABS($W$29*$C$14^$U$29+$W$30*$C$14^$U$30+$W$31*$C$14^$U$31+$W$32*$C$14^$U$32+$W$33*$C$14^$U$33+$W$34*$C$14^$U$34+$W$35*$C$14^$U$35+$W$36*$C$14^$U$36+$W$37*$C$14^$U$37+$W$38*$C$14^$U$38+$W$39*$C$14^$U$39+$W$40*$C$14^$U$40+$W$41*$C$14^$U$41+$W$42*$C$14^$U$42+$W$43*$C$14^$U$43+$W$44*$C$14^$U$44),"supercritical") -> 14.13580809 | E35: mg/cm3 | U35: 9 | V35: 7 | W35: 0.001211413399
U36: 8 | V36: 8 | W36: -0.02909276331
U37: 7 | V37: 9 | W37: 0.5275557711
B38: G. Garberoglio, P. Jankowski, K. Szalewicz, and A. Harvey, "Second virial coefficients of H2 and its isotopologues from a six-dimensional potential", J. Chem. Phys. 137, 154308 (2012) | U38: 6 | V38: 10 | W38: -7.207899337
U39: 5 | V39: 11 | W39: 73.42371187
U40: 4 | V40: 12 | W40: -546.2524404
B41: Tc | C41: 38.35 | E41: K | U41: 3 | V41: 13 | W41: 2865.411333
B42: Pc | C42: =16.65/1.01325*760 -> 12488.52702 | E42: Torr | U42: 2 | V42: 14 | W42: -9976.204615
B43: Ttp | C43: 18.67 | E43: K | U43: 1 | V43: 15 | W43: 20550.479
U44: 0 | V44: 16 | W44: -18820.29827
C46: 2 | E46: electrons/molecule
B48: electron density | C48: =C13*C26*C46 -> 1.494994171e+27 | E48: electron D2/m3
B49: electron density | C49: =C48/100^3 -> 1.494994171e+21 | E49: electron D2/cm3

Sheet T2
AC1: Coefficients as a function of reduced temperature for C_T2 | AJ1: ='H2'!AQ2 -> C H2 (Tr: 0.42-0.6) | AK1: 0 | AL1: 0 | AN1: ='H2'!AU2 -> C H2 (Tr: 0.6-0.9) | AO1: 0 | AP1: 0 | AR1: ='H2'!AY2 -> C H2 (Tr: 0.9-2.56) | AS1: 0 | AT1: 0
B2: T2 | U2: Psat constants (Souers) | AC2: 0.9999958041 | AJ2: ='H2'!AQ3 -> R2 | AK2: ='H2'!AR3 -> 1 | AO2: ='H2'!AV3 -> 0.999881664 | AS2: ='H2'!AZ3 -> 0.9998986438
U3: A_lv(1)= | V3: 4.75319 | W3: H2
B4: R | C4: 8.3144621 | E4: Pa-m3/mol-K | U4: A_lv(2)= | V4: 6.68995 | W4: HD
B5: M | C5: 0.0060321 | E5: kg/mol | G5: (Souers Table 1.1) | U5: A_lv(3)= | V5: 7.83671 | W5: HT | AC5: 0.04721743839 | AJ5: ='H2'!AQ6 -> 10 | AK5: ='H2'!AR6 -> 0 | AL5: ='H2'!AS6 -> 1 | AN5: ='H2'!AU6 -> 10 | AO5: ='H2'!AV6 -> -1704546.965 | AP5: ='H2'!AW6 -> 1 | AR5: ='H2'!AY6 -> 10 | AS5: ='H2'!AZ6 -> -573.8428948 | AT5: ='H2'!BA6 -> 1
U6: A_lv(4)= | V6: 7.73898 | W6: D2 | AC6: -0.5620535535 | AJ6: ='H2'!AQ7 -> 9 | AK6: ='H2'!AR7 -> 0 | AL6: ='H2'!AS7 -> 2 | AN6: ='H2'!AU7 -> 9 | AO6: ='H2'!AV7 -> 3931218.037 | AP6: ='H2'!AW7 -> 2 | AR6: ='H2'!AY7 -> 9 | AS6: ='H2'!AZ7 -> 7135.116659 | AT6: ='H2'!BA7 -> 2
U7: A_lv(5)= | V7: 9.32752 | W7: DT | AC7: 2.729688155 | AJ7: ='H2'!AQ8 -> 8 | AK7: ='H2'!AR8 -> 0 | AL7: ='H2'!AS8 -> 3 | AN7: ='H2'!AU8 -> 8 | AO7: ='H2'!AV8 -> 0 | AP7: ='H2'!AW8 -> 3 | AR7: ='H2'!AY8 -> 8 | AS7: ='H2'!AZ8 -> -35931.94789 | AT7: ='H2'!BA8 -> 3
B8: b | C8: -1.65 | E8: n.u. | G8: Souers Table 4.5 | U8: A_lv(6)= | V8: 10.922 | W8: T2 | AC8: -6.728095011 | AJ8: ='H2'!AQ9 -> 7 | AK8: ='H2'!AR9 -> 0 | AL8: ='H2'!AS9 -> 4 | AN8: ='H2'!AU9 -> 7 | AO8: ='H2'!AV9 -> -4065214.326 | AP8: ='H2'!AW9 -> 4 | AR8: ='H2'!AY9 -> 7 | AS8: ='H2'!AZ9 -> 90291.56748 | AT8: ='H2'!BA9 -> 4
B9: Bo | C9: -0.02919 | E9: m3/mol-Kb | G9: Souers Table 4.5 | AC9: 7.824539097 | AJ9: ='H2'!AQ10 -> 6 | AK9: ='H2'!AR10 -> 0 | AL9: ='H2'!AS10 -> 5 | AN9: ='H2'!AU10 -> 6 | AO9: ='H2'!AV10 -> 0 | AP9: ='H2'!AW10 -> 5 | AR9: ='H2'!AY10 -> 6 | AS9: ='H2'!AZ10 -> -103223.5887 | AT9: ='H2'!BA10 -> 5
U10: B_lv(1)= | V10: 83.5177 | W10: H2 | AC10: 0 | AJ10: ='H2'!AQ11 -> 5 | AK10: ='H2'!AR11 -> 0 | AL10: ='H2'!AS11 -> 6 | AN10: ='H2'!AU11 -> 5 | AO10: ='H2'!AV11 -> 0 | AP10: ='H2'!AW11 -> 6 | AR10: ='H2'!AY11 -> 5 | AS10: ='H2'!AZ11 -> 0 | AT10: ='H2'!BA11 -> 6
B11: rho | C11: =Calculator!G5 -> 5 | E11: mg/cm3 | G11: From Calculator tab (input) | U11: B_lv(2)= | V11: 109.419 | W11: HD | AC11: -11.80498923 | AJ11: ='H2'!AQ12 -> 4 | AK11: ='H2'!AR12 -> -13036299.9 | AL11: ='H2'!AS12 -> 7 | AN11: ='H2'!AU12 -> 4 | AO11: ='H2'!AV12 -> 4555681.072 | AP11: ='H2'!AW12 -> 7 | AR11: ='H2'!AY12 -> 4 | AS11: ='H2'!AZ12 -> 99677.13998 | AT11: ='H2'!BA12 -> 7
B12: rho | C12: =(C11/1000^2)*100^3 -> 5 | E12: kg/m3 | U12: B_lv(3)= | V12: 123.995 | W12: HT | AC12: 14.84533079 | AJ12: ='H2'!AQ13 -> 3 | AK12: ='H2'!AR13 -> 0 | AL12: ='H2'!AS13 -> 8 | AN12: ='H2'!AU13 -> 3 | AO12: ='H2'!AV13 -> 0 | AP12: ='H2'!AW13 -> 8 | AR12: ='H2'!AY13 -> 3 | AS12: ='H2'!AZ13 -> 0 | AT12: ='H2'!BA13 -> 8
B13: rho | C13: =C12/C5 -> 828.8987252 | E13: mol/m3 | U13: B_lv(4)= | V13: 130.249 | W13: D2 | AC13: -8.105711407 | AJ13: ='H2'!AQ14 -> 2 | AK13: ='H2'!AR14 -> 19119562.49 | AL13: ='H2'!AS14 -> 9 | AN13: ='H2'!AU14 -> 2 | AO13: ='H2'!AV14 -> -6356951.774 | AP13: ='H2'!AW14 -> 9 | AR13: ='H2'!AY14 -> 2 | AS13: ='H2'!AZ14 -> -172342.06 | AT13: ='H2'!BA14 -> 9
B14: T | C14: =Calculator!G6 -> 32 | E14: K | G14: From Calculator tab (input) | U14: B_lv(5)= | V14: 147.349 | W14: DT | AC14: 1.64211048 | AJ14: ='H2'!AQ15 -> 1 | AK14: ='H2'!AR15 -> -12000860.64 | AL14: ='H2'!AS15 -> 10 | AN14: ='H2'!AU15 -> 1 | AO14: ='H2'!AV15 -> 4654836.406 | AP14: ='H2'!AW15 -> 10 | AR14: ='H2'!AY15 -> 1 | AS14: ='H2'!AZ15 -> 160840.1437 | AT14: ='H2'!BA15 -> 10
B15: Tr | C15: =C14/C41 -> 0.7912957468 | U15: B_lv(6)= | V15: 164.486 | W15: T2 | AC15: 0.9982433116 | AJ15: ='H2'!AQ16 -> 0 | AK15: ='H2'!AR16 -> 2005978.232 | AL15: ='H2'!AS16 -> 11 | AN15: ='H2'!AU16 -> 0 | AO15: ='H2'!AV16 -> -1011914.817 | AP15: ='H2'!AW16 -> 11 | AR15: ='H2'!AY16 -> 0 | AS15: ='H2'!AZ16 -> -44374.14595 | AT15: ='H2'!BA16 -> 11
B16: B_PIMC | C16: =((P25+P26*C14)/(P27+P28*C14+P29*C14^2))/100^3 -> -9.030094541e-05 | E16: m3/mol | G16: Garberoglio et al. (2012) 15K to 350K
B17: B_Souers | C17: =C9*C14^C8 -> -9.588189985e-05 | E17: m3/mol | G17: Souers Eqn. 4.28 | U17: C_lv(1)= | V17: 1.98042 | W17: H2 | AJ17: Tr,L | AK17: Tr,U | AL17: C_H2
B18: C_Data | C18: =$AC$20/100^6 -> 1.441694023e-09 | E18: m6/mol2 | G18: Corresponding Tr approximation using H2 data from literature: 15K to 500K | U18: C_lv(2)= | V18: 1.57756 | W18: HD | AJ18: 0.42 | AK18: 0.6 | AL18: =IF(AND($C$15>=AJ18,$C$15<=AK18),$AK$5*$C$15^10 + $AK$6*$C$15^9 + $AK$7*$C$15^8 + $AK$8*$C$15^7 + $AK$9*$C$15^6 + $AK$10*$C$15^5 + $AK$11*$C$15^4 + $AK$12*$C$15^3+ $AK$13*$C$15^2 + $AK$14*$C$15^1 + $AK$15,"") -> 
B19: C_Souers | C19: =0.0000000229*C14^(-0.786) -> 1.502407003e-09 | E19: m6/mol2 | G19: (Souers Eq. 4.29) | U19: C_lv(3)= | V19: 1.3444 | W19: HT | AC19: Predicted Third Virial Coefficient | AJ19: 0.6 | AK19: 0.9 | AL19: =IF(AND($C$15>AJ19,$C$15<=AK19),$AO$5*$C$15^10 + $AO$6*$C$15^9 + $AO$7*$C$15^8 + $AO$8*$C$15^7 + $AO$9*$C$15^6 + $AO$10*$C$15^5 + $AO$11*$C$15^4 + $AO$12*$C$15^3+ $AO$13*$C$15^2 + $AO$14*$C$15^1 + $AO$15,"") -> 1568.747073
B20: P_PIMC & Data | C20: =$C$4*$C$14*($C$13+$C$16*$C$13^2+$C$18*$C$13^3) -> 204250.1333 | E20: Pa | G20: Uses second VC (PIMC) & third VC (Model) | U20: C_lv(4)= | V20: 1.38962 | W20: D2 | AC20: =(AC$5*$C$15^10 + AC$6*$C$15^9 + AC$7*$C$15^8 + AC$8*$C$15^7 + AC$9*$C$15^6 + AC$10*$C$15^5 + AC$11*$C$15^4 + AC$12*$C$15^3+ AC$13*$C$15^2 + AC$14*$C$15^1 +AC$15)*AVERAGE(AL18:AL22) -> 1441.694023 | AD20: C_T2 | AE20: cm6/mol2 | AJ20: 0.9 | AK20: 2.56 | AL20: =IF(AND($C$15>AJ20,$C$15<=AK20),$AS$5*$C$15^10 + $AS$6*$C$15^9 + $AS$7*$C$15^8 + $AS$8*$C$15^7 + $AS$9*$C$15^6 + $AS$10*$C$15^5 + $AS$11*$C$15^4 + $AS$12*$C$15^3+ $AS$13*$C$15^2 + $AS$14*$C$15^1 + $AS$15,"") ->  | AM20: cm6/mol2
B21: P_Souers | C21: =$C$4*$C$14*($C$13+$C$17*$C$13^2+$C$19*$C$13^3) -> 203239.1088 | E21: Pa | G21: Uses second and third virial coefficents from Souers | U21: C_lv(5)= | V21: 1.0495 | W21: DT | AJ21: 0 | AK21: 0.42 | AL21: =IF(AND($C$15>AJ21,$C$15<AK21),0,"") -> 
B22: P_virial | C22: =C20/133.32237 -> 1532.001968 | E22: torr | U22: C_lv(6)= | V22: 0.707997 | W22: T2 | AJ22: 2.56 | AK22: 100 | AL22: =IF(AND($C$15>AJ22,$C$15<AK22),0,"") -> 
B23: P_Souers | C23: =C21/101325*760 -> 1524.41868 | E23: torr
B24: P_ideal | C24: =C4*C14*C13/133.32237 -> 1654.179303 | E24: torr
O25: a | P25: -570360 | U25: Sat Density Vapor Curve Fit
B26: Na | C26: 6.0221415e+23 | E26: molecule/mol | O26: b | P26: 4974.4 | V26: R2 | W26: 0.9999998207
O27: c | P27: -953.42
B28: atoms/molecule | C28: 2 | O28: d | P28: 165.46 | V28: Constant
O29: f | P29: 0.20716 | U29: 15 | V29: 1 | W29: 1.235260317e-16
B30: atom density | C30: =C13*C26*C28 -> 9.983490824e+26 | E30: atom T/m^3 | U30: 14 | V30: 2 | W30: -3.981381649e-14
B31: atom density | C31: =C30/100^3 -> 9.983490824e+20 | E31: atom T/cc | U31: 13 | V31: 3 | W31: 5.868309316e-12
U32: 12 | V32: 4 | W32: -5.240097224e-10
U33: 11 | V33: 5 | W33: 3.165648997e-08
B34: Psat_T2 | C34: =IF(C14>C41,"supercritical",EXP(V8-V15/C14+V22*LN(C14))) -> 3772.688371 | E34: torr | U34: 10 | V34: 6 | W34: -1.368372217e-06
B35: rho_sat_T2 | C35: =IF($C$14<$C$41,ABS($W$29*$C$14^$U$29+$W$30*$C$14^$U$30+$W$31*$C$14^$U$31+$W$32*$C$14^$U$32+$W$33*$C$14^$U$33+$W$34*$C$14^$U$34+$W$35*$C$14^$U$35+$W$36*$C$14^$U$36+$W$37*$C$14^$U$37+$W$38*$C$14^$U$38+$W$39*$C$14^$U$39+$W$40*$C$14^$U$40+$W$41*$C$14^$U$41+$W$42*$C$14^$U$42+$W$43*$C$14^$U$43+$W$44*$C$14^$U$44),"supercritical") -> 14.61279655 | E35: mg/cm3 | U35: 9 | V35: 7 | W35: 4.364625561e-05
U36: 8 | V36: 8 | W36: -0.001044133515
B37: G. Garberoglio, P. Jankowski, K. Szalewicz, and A. Harvey, "Second virial coefficients of H2 and its isotopologues from a six-dimensional potential", J. Chem. Phys. 137, 154308 (2012) | U37: 7 | V37: 9 | W37: 0.0188504725
U38: 6 | V38: 10 | W38: -0.2562791486
U39: 5 | V39: 11 | W39: 2.59643033
U40: 4 | V40: 12 | W40: -19.2040452
B41: Tc | C41: 40.44 | E41: K | U41: 3 | V41: 13 | W41: 100.1219861
B42: Pc | C42: =1.85*1000/101.325*760 -> 13876.14113 | E42: Torr | U42: 2 | V42: 14 | W42: -346.4304486
B43: Ttp | C43: 20.62 | E43: K | U43: 1 | V43: 15 | W43: 709.3154616
U44: 0 | V44: 16 | W44: -645.8991054
C46: 2 | E46: electrons/molecule
B48: electron density | C48: =C13*C26*C46 -> 9.983490824e+26 | E48: electron T2/m3
B49: electron density | C49: =C48/100^3 -> 9.983490824e+20 | E49: electron T2/cm3

Sheet HD
AC1: Coefficients as a function of reduced temperature for C_HD | AJ1: ='H2'!AQ2 -> C H2 (Tr: 0.42-0.6) | AK1: 0 | AL1: 0 | AN1: ='H2'!AU2 -> C H2 (Tr: 0.6-0.9) | AO1: 0 | AP1: 0 | AR1: ='H2'!AY2 -> C H2 (Tr: 0.9-2.56) | AS1: 0 | AT1: 0
B2: HD | U2: Psat constants (Souers) | AC2: 0.9995627043 | AJ2: ='H2'!AQ3 -> R2 | AK2: ='H2'!AR3 -> 1 | AN2: ='H2'!AU3 -> 0 | AO2: ='H2'!AV3 -> 0.999881664 | AR2: ='H2'!AY3 -> 0 | AS2: ='H2'!AZ3 -> 0.9998986438
U3: A_lv(1)= | V3: 4.75319 | W3: H2
B4: R | C4: 8.3144621 | E4: Pa-m3/mol-K | U4: A_lv(2)= | V4: 6.68995 | W4: HD
B5: M | C5: 0.003021927 | E5: kg/mol | G5: (Souers Table 1.1) | U5: A_lv(3)= | V5: 7.83671 | W5: HT | AC5: -0.2008116015 | AJ5: ='H2'!AQ6 -> 10 | AK5: ='H2'!AR6 -> 0 | AL5: ='H2'!AS6 -> 1 | AN5: ='H2'!AU6 -> 10 | AO5: ='H2'!AV6 -> -1704546.965 | AP5: ='H2'!AW6 -> 1 | AR5: ='H2'!AY6 -> 10 | AS5: ='H2'!AZ6 -> -573.8428948 | AT5: ='H2'!BA6 -> 1
U6: A_lv(4)= | V6: 7.73898 | W6: D2 | AC6: 2.414875472 | AJ6: ='H2'!AQ7 -> 9 | AK6: ='H2'!AR7 -> 0 | AL6: ='H2'!AS7 -> 2 | AN6: ='H2'!AU7 -> 9 | AO6: ='H2'!AV7 -> 3931218.037 | AP6: ='H2'!AW7 -> 2 | AR6: ='H2'!AY7 -> 9 | AS6: ='H2'!AZ7 -> 7135.116659 | AT6: ='H2'!BA7 -> 2
U7: A_lv(5)= | V7: 9.32752 | W7: DT | AC7: -11.94064398 | AJ7: ='H2'!AQ8 -> 8 | AK7: ='H2'!AR8 -> 0 | AL7: ='H2'!AS8 -> 3 | AN7: ='H2'!AU8 -> 8 | AO7: ='H2'!AV8 -> 0 | AP7: ='H2'!AW8 -> 3 | AR7: ='H2'!AY8 -> 8 | AS7: ='H2'!AZ8 -> -35931.94789 | AT7: ='H2'!BA8 -> 3
B8: b | C8: -1.56 | E8: n.u. | G8: Souers Table 4.5 | U8: A_lv(6)= | V8: 10.922 | W8: T2 | AC8: 30.25020492 | AJ8: ='H2'!AQ9 -> 7 | AK8: ='H2'!AR9 -> 0 | AL8: ='H2'!AS9 -> 4 | AN8: ='H2'!AU9 -> 7 | AO8: ='H2'!AV9 -> -4065214.326 | AP8: ='H2'!AW9 -> 4 | AR8: ='H2'!AY9 -> 7 | AS8: ='H2'!AZ9 -> 90291.56748 | AT8: ='H2'!BA9 -> 4
B9: Bo | C9: -0.01753 | E9: m3/mol-Kb | G9: Souers Table 4.5 | AC9: -36.61036832 | AJ9: ='H2'!AQ10 -> 6 | AK9: ='H2'!AR10 -> 0 | AL9: ='H2'!AS10 -> 5 | AN9: ='H2'!AU10 -> 6 | AO9: ='H2'!AV10 -> 0 | AP9: ='H2'!AW10 -> 5 | AR9: ='H2'!AY10 -> 6 | AS9: ='H2'!AZ10 -> -103223.5887 | AT9: ='H2'!BA10 -> 5
U10: B_lv(1)= | V10: 83.5177 | W10: H2 | AC10: 0 | AJ10: ='H2'!AQ11 -> 5 | AK10: ='H2'!AR11 -> 0 | AL10: ='H2'!AS11 -> 6 | AN10: ='H2'!AU11 -> 5 | AO10: ='H2'!AV11 -> 0 | AP10: ='H2'!AW11 -> 6 | AR10: ='H2'!AY11 -> 5 | AS10: ='H2'!AZ11 -> 0 | AT10: ='H2'!BA11 -> 6
B11: rho | C11: =Calculator!G5 -> 5 | E11: mg/cm3 | G11: From Calculator tab (input) | U11: B_lv(2)= | V11: 109.419 | W11: HD | AC11: 63.50721212 | AJ11: ='H2'!AQ12 -> 4 | AK11: ='H2'!AR12 -> -13036299.9 | AL11: ='H2'!AS12 -> 7 | AN11: ='H2'!AU12 -> 4 | AO11: ='H2'!AV12 -> 4555681.072 | AP11: ='H2'!AW12 -> 7 | AR11: ='H2'!AY12 -> 4 | AS11: ='H2'!AZ12 -> 99677.13998 | AT11: ='H2'!BA12 -> 7
B12: rho | C12: =(C11/1000^2)*100^3 -> 5 | E12: kg/m3 | U12: B_lv(3)= | V12: 123.995 | W12: HT | AC12: -90.71448649 | AJ12: ='H2'!AQ13 -> 3 | AK12: ='H2'!AR13 -> 0 | AL12: ='H2'!AS13 -> 8 | AN12: ='H2'!AU13 -> 3 | AO12: ='H2'!AV13 -> 0 | AP12: ='H2'!AW13 -> 8 | AR12: ='H2'!AY13 -> 3 | AS12: ='H2'!AZ13 -> 0 | AT12: ='H2'!BA13 -> 8
B13: rho | C13: =C12/C5 -> 1654.57339 | E13: mol/m3 | U13: B_lv(4)= | V13: 130.249 | W13: D2 | AC13: 61.5387551 | AJ13: ='H2'!AQ14 -> 2 | AK13: ='H2'!AR14 -> 19119562.49 | AL13: ='H2'!AS14 -> 9 | AN13: ='H2'!AU14 -> 2 | AO13: ='H2'!AV14 -> -6356951.774 | AP13: ='H2'!AW14 -> 9 | AR13: ='H2'!AY14 -> 2 | AS13: ='H2'!AZ14 -> -172342.06 | AT13: ='H2'!BA14 -> 9
B14: T | C14: =Calculator!G6 -> 32 | E14: K | G14: From Calculator tab (input) | U14: B_lv(5)= | V14: 147.349 | W14: DT | AC14: -21.31686803 | AJ14: ='H2'!AQ15 -> 1 | AK14: ='H2'!AR15 -> -12000860.64 | AL14: ='H2'!AS15 -> 10 | AN14: ='H2'!AU15 -> 1 | AO14: ='H2'!AV15 -> 4654836.406 | AP14: ='H2'!AW15 -> 10 | AR14: ='H2'!AY15 -> 1 | AS14: ='H2'!AZ15 -> 160840.1437 | AT14: ='H2'!BA15 -> 10
B15: Tr | C15: =C14/C41 -> 0.8938547486 | U15: B_lv(6)= | V15: 164.486 | W15: T2 | AC15: 4.055401173 | AJ15: ='H2'!AQ16 -> 0 | AK15: ='H2'!AR16 -> 2005978.232 | AL15: ='H2'!AS16 -> 11 | AN15: ='H2'!AU16 -> 0 | AO15: ='H2'!AV16 -> -1011914.817 | AP15: ='H2'!AW16 -> 11 | AR15: ='H2'!AY16 -> 0 | AS15: ='H2'!AZ16 -> -44374.14595 | AT15: ='H2'!BA16 -> 11
B16: B_PIMC | C16: =((P25+P26*C14)/(P27+P28*C14+P29*C14^2))/100^3 -> -8.098994238e-05 | E16: m3/mol | G16: Garberoglio et al. (2012) 15K to 350K
B17: B_Souers | C17: =C9*C14^C8 -> -7.86589147e-05 | E17: m3/mol | G17: Souers Eqn. 4.28 | U17: C_lv(1)= | V17: 1.98042 | W17: H2 | AJ17: Tr,L | AK17: Tr,U | AL17: C_H2
B18: C_Data | C18: =$AC$20/100^6 -> 1.59101791e-09 | E18: m6/mol2 | G18: Corresponding Tr approximation using H2 data from literature: 15K to 500K | U18: C_lv(2)= | V18: 1.57756 | W18: HD | AJ18: 0.42 | AK18: 0.6 | AL18: =IF(AND($C$15>=AJ18,$C$15<=AK18),$AK$5*$C$15^10 + $AK$6*$C$15^9 + $AK$7*$C$15^8 + $AK$8*$C$15^7 + $AK$9*$C$15^6 + $AK$10*$C$15^5 + $AK$11*$C$15^4 + $AK$12*$C$15^3+ $AK$13*$C$15^2 + $AK$14*$C$15^1 + $AK$15,"") -> 
B19: C_Souers | C19: =0.0000000229*C14^(-0.786) -> 1.502407003e-09 | E19: m6/mol2 | G19: (Souers Eq. 4.29) | U19: C_lv(3)= | V19: 1.3444 | W19: HT | AC19: Predicted Third Virial Coefficient | AJ19: 0.6 | AK19: 0.9 | AL19: =IF(AND($C$15>AJ19,$C$15<=AK19),$AO$5*$C$15^10 + $AO$6*$C$15^9 + $AO$7*$C$15^8 + $AO$8*$C$15^7 + $AO$9*$C$15^6 + $AO$10*$C$15^5 + $AO$11*$C$15^4 + $AO$12*$C$15^3+ $AO$13*$C$15^2 + $AO$14*$C$15^1 + $AO$15,"") -> 1605.189815
B20: P_PIMC & Data | C20: =$C$4*$C$14*($C$13+$C$16*$C$13^2+$C$18*$C$13^3) -> 383146.6189 | E20: Pa | G20: Uses second VC (PIMC) & third VC (Model) | U20: C_lv(4)= | V20: 1.38962 | W20: D2 | AC20: =(AC$5*$C$15^10 + AC$6*$C$15^9 + AC$7*$C$15^8 + AC$8*$C$15^7 + AC$9*$C$15^6 + AC$10*$C$15^5 + AC$11*$C$15^4 + AC$12*$C$15^3+ AC$13*$C$15^2 + AC$14*$C$15^1 +AC$15)*AVERAGE(AL18:AL22) -> 1591.01791 | AD20: C_HD | AE20: cm6/mol2 | AJ20: 0.9 | AK20: 2.56 | AL20: =IF(AND($C$15>AJ20,$C$15<=AK20),$AS$5*$C$15^10 + $AS$6*$C$15^9 + $AS$7*$C$15^8 + $AS$8*$C$15^7 + $AS$9*$C$15^6 + $AS$10*$C$15^5 + $AS$11*$C$15^4 + $AS$12*$C$15^3+ $AS$13*$C$15^2 + $AS$14*$C$15^1 + $AS$15,"") ->  | AM20: cm6/mol2
B21: P_Souers | C21: =$C$4*$C$14*($C$13+$C$17*$C$13^2+$C$19*$C$13^3) -> 384737.6961 | E21: Pa | G21: Uses second and third virial coefficents from Souers | U21: C_lv(5)= | V21: 1.0495 | W21: DT | AJ21: 0 | AK21: 0.42 | AL21: =IF(AND($C$15>AJ21,$C$15<AK21),0,"") -> 
B22: P_virial | C22: =C20/133.32237 -> 2873.835943 | E22: torr | U22: C_lv(6)= | V22: 0.707997 | W22: T2 | AJ22: 2.56 | AK22: 100 | AL22: =IF(AND($C$15>AJ22,$C$15<AK22),0,"") -> 
B23: P_Souers | C23: =C21/101325*760 -> 2885.770038 | E23: torr
B24: P_ideal | C24: =C4*C14*C13/133.32237 -> 3301.924559 | E24: torr
O25: a | P25: -541290
B26: Na | C26: 6.0221415e+23 | E26: molecule/mol | O26: b | P26: 4855.2
O27: c | P27: -732.97
B28: atoms/molecule | C28: 1 | O28: d | P28: 166
O29: f | P29: 0.18169
B30: H or D atom density | C30: =C13*C26*C28 -> 9.964075075e+26 | E30: atom H or D/m^3
B31: H or D atom density | C31: =C30/100^3 -> 9.964075075e+20 | E31: atom H or D/cc
B34: Psat_HD | C34: =IF(C14>C41,"supercritical",EXP(V4-V11/C14+V18*LN(C14))) -> 6235.490855 | E34: torr
B37: G. Garberoglio, P. Jankowski, K. Szalewicz, and A. Harvey, "Second virial coefficients of H2 and its isotopologues from a six-dimensional potential", J. Chem. Phys. 137, 154308 (2012)
B41: Tc | C41: =0.5*'H2'!C41+0.5*'D2'!C41 -> 35.8 | E41: K
B42: Pc | C42: =0.5*'H2'!C42+0.5*'D2'!C42 -> 11108.41352 | E42: Torr
B43: Ttp | C43: =0.5*'H2'!C43+0.5*'D2'!C43 -> 16.295 | E43: K

Sheet HT
AC1: Coefficients as a function of reduced temperature for C_HT | AJ1: ='H2'!AQ2 -> C H2 (Tr: 0.42-0.6) | AK1: 0 | AL1: 0 | AN1: ='H2'!AU2 -> C H2 (Tr: 0.6-0.9) | AO1: 0 | AP1: 0 | AR1: ='H2'!AY2 -> C H2 (Tr: 0.9-2.56) | AS1: 0 | AT1: 0
B2: HT | U2: Psat constants (Souers) | AC2: 0.9999738553 | AJ2: ='H2'!AQ3 -> R2 | AK2: ='H2'!AR3 -> 1 | AN2: ='H2'!AU3 -> 0 | AO2: ='H2'!AV3 -> 0.999881664 | AR2: ='H2'!AY3 -> 0 | AS2: ='H2'!AZ3 -> 0.9998986438
U3: A_lv(1)= | V3: 4.75319 | W3: H2
B4: R | C4: 8.3144621 | E4: Pa-m3/mol-K | U4: A_lv(2)= | V4: 6.68995 | W4: HD
B5: M | C5: 0.004023875 | E5: kg/mol | G5: (Souers Table 1.1) | U5: A_lv(3)= | V5: 7.83671 | W5: HT | AC5: 0.009939706725 | AJ5: ='H2'!AQ6 -> 10 | AK5: ='H2'!AR6 -> 0 | AL5: ='H2'!AS6 -> 1 | AN5: ='H2'!AU6 -> 10 | AO5: ='H2'!AV6 -> -1704546.965 | AP5: ='H2'!AW6 -> 1 | AR5: ='H2'!AY6 -> 10 | AS5: ='H2'!AZ6 -> -573.8428948 | AT5: ='H2'!BA6 -> 1
U6: A_lv(4)= | V6: 7.73898 | W6: D2 | AC6: -0.09242259502 | AJ6: ='H2'!AQ7 -> 9 | AK6: ='H2'!AR7 -> 0 | AL6: ='H2'!AS7 -> 2 | AN6: ='H2'!AU7 -> 9 | AO6: ='H2'!AV7 -> 3931218.037 | AP6: ='H2'!AW7 -> 2 | AR6: ='H2'!AY7 -> 9 | AS6: ='H2'!AZ7 -> 7135.116659 | AT6: ='H2'!BA7 -> 2
U7: A_lv(5)= | V7: 9.32752 | W7: DT | AC7: 0.308112582 | AJ7: ='H2'!AQ8 -> 8 | AK7: ='H2'!AR8 -> 0 | AL7: ='H2'!AS8 -> 3 | AN7: ='H2'!AU8 -> 8 | AO7: ='H2'!AV8 -> 0 | AP7: ='H2'!AW8 -> 3 | AR7: ='H2'!AY8 -> 8 | AS7: ='H2'!AZ8 -> -35931.94789 | AT7: ='H2'!BA8 -> 3
B8: b | C8: -1.579 | E8: n.u. | G8: Souers Table 4.5 | U8: A_lv(6)= | V8: 10.922 | W8: T2 | AC8: -0.361665478 | AJ8: ='H2'!AQ9 -> 7 | AK8: ='H2'!AR9 -> 0 | AL8: ='H2'!AS9 -> 4 | AN8: ='H2'!AU9 -> 7 | AO8: ='H2'!AV9 -> -4065214.326 | AP8: ='H2'!AW9 -> 4 | AR8: ='H2'!AY9 -> 7 | AS8: ='H2'!AZ9 -> 90291.56748 | AT8: ='H2'!BA9 -> 4
B9: Bo | C9: -0.01957 | E9: m3/mol-Kb | G9: Souers Table 4.6 | AC9: -0.1282293899 | AJ9: ='H2'!AQ10 -> 6 | AK9: ='H2'!AR10 -> 0 | AL9: ='H2'!AS10 -> 5 | AN9: ='H2'!AU10 -> 6 | AO9: ='H2'!AV10 -> 0 | AP9: ='H2'!AW10 -> 5 | AR9: ='H2'!AY10 -> 6 | AS9: ='H2'!AZ10 -> -103223.5887 | AT9: ='H2'!BA10 -> 5
U10: B_lv(1)= | V10: 83.5177 | W10: H2 | AC10: 0 | AJ10: ='H2'!AQ11 -> 5 | AK10: ='H2'!AR11 -> 0 | AL10: ='H2'!AS11 -> 6 | AN10: ='H2'!AU11 -> 5 | AO10: ='H2'!AV11 -> 0 | AP10: ='H2'!AW11 -> 6 | AR10: ='H2'!AY11 -> 5 | AS10: ='H2'!AZ11 -> 0 | AT10: ='H2'!BA11 -> 6
B11: rho | C11: =Calculator!G5 -> 5 | E11: mg/cm3 | G11: From Calculator tab (input) | U11: B_lv(2)= | V11: 109.419 | W11: HD | AC11: 2.607945143 | AJ11: ='H2'!AQ12 -> 4 | AK11: ='H2'!AR12 -> -13036299.9 | AL11: ='H2'!AS12 -> 7 | AN11: ='H2'!AU12 -> 4 | AO11: ='H2'!AV12 -> 4555681.072 | AP11: ='H2'!AW12 -> 7 | AR11: ='H2'!AY12 -> 4 | AS11: ='H2'!AZ12 -> 99677.13998 | AT11: ='H2'!BA12 -> 7
B12: rho | C12: =(C11/1000^2)*100^3 -> 5 | E12: kg/m3 | U12: B_lv(3)= | V12: 123.995 | W12: HT | AC12: -5.920979646 | AJ12: ='H2'!AQ13 -> 3 | AK12: ='H2'!AR13 -> 0 | AL12: ='H2'!AS13 -> 8 | AN12: ='H2'!AU13 -> 3 | AO12: ='H2'!AV13 -> 0 | AP12: ='H2'!AW13 -> 8 | AR12: ='H2'!AY13 -> 3 | AS12: ='H2'!AZ13 -> 0 | AT12: ='H2'!BA13 -> 8
B13: rho | C13: =C12/C5 -> 1242.583331 | E13: mol/m3 | U13: B_lv(4)= | V13: 130.249 | W13: D2 | AC13: 5.931666539 | AJ13: ='H2'!AQ14 -> 2 | AK13: ='H2'!AR14 -> 19119562.49 | AL13: ='H2'!AS14 -> 9 | AN13: ='H2'!AU14 -> 2 | AO13: ='H2'!AV14 -> -6356951.774 | AP13: ='H2'!AW14 -> 9 | AR13: ='H2'!AY14 -> 2 | AS13: ='H2'!AZ14 -> -172342.06 | AT13: ='H2'!BA14 -> 9
B14: T | C14: =Calculator!G6 -> 32 | E14: K | G14: From Calculator tab (input) | U14: B_lv(5)= | V14: 147.349 | W14: DT | AC14: -3.057708794 | AJ14: ='H2'!AQ15 -> 1 | AK14: ='H2'!AR15 -> -12000860.64 | AL14: ='H2'!AS15 -> 10 | AN14: ='H2'!AU15 -> 1 | AO14: ='H2'!AV15 -> 4654836.406 | AP14: ='H2'!AW15 -> 10 | AR14: ='H2'!AY15 -> 1 | AS14: ='H2'!AZ15 -> 160840.1437 | AT14: ='H2'!BA15 -> 10
B15: Tr | C15: =C14/C41 -> 0.868503189 | U15: B_lv(6)= | V15: 164.486 | W15: T2 | AC15: 1.694191853 | AJ15: ='H2'!AQ16 -> 0 | AK15: ='H2'!AR16 -> 2005978.232 | AL15: ='H2'!AS16 -> 11 | AN15: ='H2'!AU16 -> 0 | AO15: ='H2'!AV16 -> -1011914.817 | AP15: ='H2'!AW16 -> 11 | AR15: ='H2'!AY16 -> 0 | AS15: ='H2'!AZ16 -> -44374.14595 | AT15: ='H2'!BA16 -> 11
B16: B_PIMC | C16: =((P25+P26*C14)/(P27+P28*C14+P29*C14^2))/100^3 -> -8.569126983e-05 | E16: m3/mol | G16: Garberoglio et al. (2012) 15K to 350K
B17: B_Souers | C17: =C9*C14^C8 -> -8.221650477e-05 | E17: m3/mol | G17: Souers Eqn. 4.28 | U17: C_lv(1)= | V17: 1.98042 | W17: H2 | AJ17: Tr,L | AK17: Tr,U | AL17: C_H2
B18: C_Data | C18: =$AC$20/100^6 -> 1.628055263e-09 | E18: m6/mol2 | G18: Corresponding Tr approximation using H2 data from literature: 15K to 500K | U18: C_lv(2)= | V18: 1.57756 | W18: HD | AJ18: 0.42 | AK18: 0.6 | AL18: =IF(AND($C$15>=AJ18,$C$15<=AK18),$AK$5*$C$15^10 + $AK$6*$C$15^9 + $AK$7*$C$15^8 + $AK$8*$C$15^7 + $AK$9*$C$15^6 + $AK$10*$C$15^5 + $AK$11*$C$15^4 + $AK$12*$C$15^3+ $AK$13*$C$15^2 + $AK$14*$C$15^1 + $AK$15,"") -> 
B19: C_Souers | C19: =0.0000000229*C14^(-0.786) -> 1.502407003e-09 | E19: m6/mol2 | G19: (Souers Eq. 4.29) | U19: C_lv(3)= | V19: 1.3444 | W19: HT | AC19: Predicted Third Virial Coefficient | AJ19: 0.6 | AK19: 0.9 | AL19: =IF(AND($C$15>AJ19,$C$15<=AK19),$AO$5*$C$15^10 + $AO$6*$C$15^9 + $AO$7*$C$15^8 + $AO$8*$C$15^7 + $AO$9*$C$15^6 + $AO$10*$C$15^5 + $AO$11*$C$15^4 + $AO$12*$C$15^3+ $AO$13*$C$15^2 + $AO$14*$C$15^1 + $AO$15,"") -> 1621.425055
B20: P_PIMC & Data | C20: =$C$4*$C$14*($C$13+$C$16*$C$13^2+$C$19*$C$13^3) -> 296169.7427 | E20: Pa | G20: Uses second VC (PIMC) & third VC (Model) | U20: C_lv(4)= | V20: 1.38962 | W20: D2 | AC20: =(AC$5*$C$15^10 + AC$6*$C$15^9 + AC$7*$C$15^8 + AC$8*$C$15^7 + AC$9*$C$15^6 + AC$10*$C$15^5 + AC$11*$C$15^4 + AC$12*$C$15^3+ AC$13*$C$15^2 + AC$14*$C$15^1 +AC$15)*AVERAGE(AL18:AL22) -> 1628.055263 | AD20: C_HT | AE20: cm6/mol2 | AJ20: 0.9 | AK20: 2.56 | AL20: =IF(AND($C$15>AJ20,$C$15<=AK20),$AS$5*$C$15^10 + $AS$6*$C$15^9 + $AS$7*$C$15^8 + $AS$8*$C$15^7 + $AS$9*$C$15^6 + $AS$10*$C$15^5 + $AS$11*$C$15^4 + $AS$12*$C$15^3+ $AS$13*$C$15^2 + $AS$14*$C$15^1 + $AS$15,"") ->  | AM20: cm6/mol2
B21: P_Souers | C21: =$C$4*$C$14*($C$13+$C$17*$C$13^2+$C$19*$C$13^3) -> 297597.1918 | E21: Pa | G21: Uses second and third virial coefficents from Souers | U21: C_lv(5)= | V21: 1.0495 | W21: DT | AJ21: 0 | AK21: 0.42 | AL21: =IF(AND($C$15>AJ21,$C$15<AK21),0,"") -> 
B22: P_virial | C22: =C20/133.32237 -> 2221.45573 | E22: torr | U22: C_lv(6)= | V22: 0.707997 | W22: T2 | AJ22: 2.56 | AK22: 100 | AL22: =IF(AND($C$15>AJ22,$C$15<AK22),0,"") -> 
B23: P_Souers | C23: =C21/101325*760 -> 2232.162505 | E23: torr
B24: P_ideal | C24: =C4*C14*C13/133.32237 -> 2479.742779 | E24: torr
O25: a | P25: -16305000000
B26: Na | C26: 6.0221415e+23 | E26: molecule/mol | O26: b | P26: 143680000
O27: c | P27: -24612000
B28: atoms/molecule | C28: 1 | O28: d | P28: 4860200
O29: f | P29: 5573
B30: H or T atom density | C30: =C13*C26*C28 -> 7.483012643e+26 | E30: atom H or T/m^3
B31: H or T atom density | C31: =C30/100^3 -> 7.483012643e+20 | E31: atom H or T/cc
B34: Psat_HT | C34: =IF(C14>C41,"supercritical",EXP(V5-V12/C14+V19*LN(C14))) -> 5548.048913 | E34: torr
B37: G. Garberoglio, P. Jankowski, K. Szalewicz, and A. Harvey, "Second virial coefficients of H2 and its isotopologues from a six-dimensional potential", J. Chem. Phys. 137, 154308 (2012)
B41: Tc | C41: =0.5*'H2'!C41+0.5*'T2'!C41 -> 36.845 | E41: K
B42: Pc | C42: =0.5*'H2'!C42+0.5*'T2'!C42 -> 11802.22058 | E42: Torr
B43: Ttp | C43: =0.5*'H2'!C43+0.5*'T2'!C43 -> 17.27 | E43: K

Sheet DT
AC1: Coefficients as a function of reduced temperature for C_DT | AJ1: ='H2'!AQ2 -> C H2 (Tr: 0.42-0.6) | AK1: 0 | AL1: 0 | AN1: ='H2'!AU2 -> C H2 (Tr: 0.6-0.9) | AO1: 0 | AP1: 0 | AR1: ='H2'!AY2 -> C H2 (Tr: 0.9-2.56) | AS1: 0 | AT1: 0
B2: DT | U2: Psat constants (Souers) | AC2: 0.9999863236 | AJ2: ='H2'!AQ3 -> R2 | AK2: ='H2'!AR3 -> 1 | AN2: ='H2'!AU3 -> 0 | AO2: ='H2'!AV3 -> 0.999881664 | AR2: ='H2'!AY3 -> 0 | AS2: ='H2'!AZ3 -> 0.9998986438
U3: A_lv(1)= | V3: 4.75319 | W3: H2
B4: R | C4: 8.3144621 | E4: Pa-m3/mol-K | U4: A_lv(2)= | V4: 6.68995 | W4: HD
B5: M | C5: 0.005030152 | E5: kg/mol | G5: (Souers Table 1.1) | U5: A_lv(3)= | V5: 7.83671 | W5: HT | AC5: -0.001649733089 | AJ5: ='H2'!AQ6 -> 10 | AK5: ='H2'!AR6 -> 0 | AL5: ='H2'!AS6 -> 1 | AN5: ='H2'!AU6 -> 10 | AO5: ='H2'!AV6 -> -1704546.965 | AP5: ='H2'!AW6 -> 1 | AR5: ='H2'!AY6 -> 10 | AS5: ='H2'!AZ6 -> -573.8428948 | AT5: ='H2'!BA6 -> 1
U6: A_lv(4)= | V6: 7.73898 | W6: D2 | AC6: 0.02730311781 | AJ6: ='H2'!AQ7 -> 9 | AK6: ='H2'!AR7 -> 0 | AL6: ='H2'!AS7 -> 2 | AN6: ='H2'!AU7 -> 9 | AO6: ='H2'!AV7 -> 3931218.037 | AP6: ='H2'!AW7 -> 2 | AR6: ='H2'!AY7 -> 9 | AS6: ='H2'!AZ7 -> 7135.116659 | AT6: ='H2'!BA7 -> 2
U7: A_lv(5)= | V7: 9.32752 | W7: DT | AC7: -0.1955821655 | AJ7: ='H2'!AQ8 -> 8 | AK7: ='H2'!AR8 -> 0 | AL7: ='H2'!AS8 -> 3 | AN7: ='H2'!AU8 -> 8 | AO7: ='H2'!AV8 -> 0 | AP7: ='H2'!AW8 -> 3 | AR7: ='H2'!AY8 -> 8 | AS7: ='H2'!AZ8 -> -35931.94789 | AT7: ='H2'!BA8 -> 3
B8: b | C8: -1.625 | E8: n.u. | G8: Souers Table 4.5 | U8: A_lv(6)= | V8: 10.922 | W8: T2 | AC8: 0.7172831035 | AJ8: ='H2'!AQ9 -> 7 | AK8: ='H2'!AR9 -> 0 | AL8: ='H2'!AS9 -> 4 | AN8: ='H2'!AU9 -> 7 | AO8: ='H2'!AV9 -> -4065214.326 | AP8: ='H2'!AW9 -> 4 | AR8: ='H2'!AY9 -> 7 | AS8: ='H2'!AZ9 -> 90291.56748 | AT8: ='H2'!BA9 -> 4
B9: Bo | C9: -0.02541 | E9: m3/mol-Kb | G9: Souers Table 4.5 | AC9: -1.233090593 | AJ9: ='H2'!AQ10 -> 6 | AK9: ='H2'!AR10 -> 0 | AL9: ='H2'!AS10 -> 5 | AN9: ='H2'!AU10 -> 6 | AO9: ='H2'!AV10 -> 0 | AP9: ='H2'!AW10 -> 5 | AR9: ='H2'!AY10 -> 6 | AS9: ='H2'!AZ10 -> -103223.5887 | AT9: ='H2'!BA10 -> 5
U10: B_lv(1)= | V10: 83.5177 | W10: H2 | AC10: 0 | AJ10: ='H2'!AQ11 -> 5 | AK10: ='H2'!AR11 -> 0 | AL10: ='H2'!AS11 -> 6 | AN10: ='H2'!AU11 -> 5 | AO10: ='H2'!AV11 -> 0 | AP10: ='H2'!AW11 -> 6 | AR10: ='H2'!AY11 -> 5 | AS10: ='H2'!AZ11 -> 0 | AT10: ='H2'!BA11 -> 6
B11: rho | C11: =Calculator!G5 -> 5 | E11: mg/cm3 | G11: From Calculator tab (input) | U11: B_lv(2)= | V11: 109.419 | W11: HD | AC11: 4.049195174 | AJ11: ='H2'!AQ12 -> 4 | AK11: ='H2'!AR12 -> -13036299.9 | AL11: ='H2'!AS12 -> 7 | AN11: ='H2'!AU12 -> 4 | AO11: ='H2'!AV12 -> 4555681.072 | AP11: ='H2'!AW12 -> 7 | AR11: ='H2'!AY12 -> 4 | AS11: ='H2'!AZ12 -> 99677.13998 | AT11: ='H2'!BA12 -> 7
B12: rho | C12: =(C11/1000^2)*100^3 -> 5 | E12: kg/m3 | U12: B_lv(3)= | V12: 123.995 | W12: HT | AC12: -7.810945154 | AJ12: ='H2'!AQ13 -> 3 | AK12: ='H2'!AR13 -> 0 | AL12: ='H2'!AS13 -> 8 | AN12: ='H2'!AU13 -> 3 | AO12: ='H2'!AV13 -> 0 | AP12: ='H2'!AW13 -> 8 | AR12: ='H2'!AY13 -> 3 | AS12: ='H2'!AZ13 -> 0 | AT12: ='H2'!BA13 -> 8
B13: rho | C13: =C12/C5 -> 994.0057477 | E13: mol/m3 | U13: B_lv(4)= | V13: 130.249 | W13: D2 | AC13: 7.158832068 | AJ13: ='H2'!AQ14 -> 2 | AK13: ='H2'!AR14 -> 19119562.49 | AL13: ='H2'!AS14 -> 9 | AN13: ='H2'!AU14 -> 2 | AO13: ='H2'!AV14 -> -6356951.774 | AP13: ='H2'!AW14 -> 9 | AR13: ='H2'!AY14 -> 2 | AS13: ='H2'!AZ14 -> -172342.06 | AT13: ='H2'!BA14 -> 9
B14: T | C14: =Calculator!G6 -> 32 | E14: K | G14: From Calculator tab (input) | U14: B_lv(5)= | V14: 147.349 | W14: DT | AC14: -3.504645403 | AJ14: ='H2'!AQ15 -> 1 | AK14: ='H2'!AR15 -> -12000860.64 | AL14: ='H2'!AS15 -> 10 | AN14: ='H2'!AU15 -> 1 | AO14: ='H2'!AV15 -> 4654836.406 | AP14: ='H2'!AW15 -> 10 | AR14: ='H2'!AY15 -> 1 | AS14: ='H2'!AZ15 -> 160840.1437 | AT14: ='H2'!BA15 -> 10
B15: Tr | C15: =C14/C41 -> 0.8122858231 | U15: B_lv(6)= | V15: 164.486 | W15: T2 | AC15: 1.700695051 | AJ15: ='H2'!AQ16 -> 0 | AK15: ='H2'!AR16 -> 2005978.232 | AL15: ='H2'!AS16 -> 11 | AN15: ='H2'!AU16 -> 0 | AO15: ='H2'!AV16 -> -1011914.817 | AP15: ='H2'!AW16 -> 11 | AR15: ='H2'!AY16 -> 0 | AS15: ='H2'!AZ16 -> -44374.14595 | AT15: ='H2'!BA16 -> 11
B16: B_PIMC | C16: =((P24+P25*C14)/(P26+P27*C14+P28*C14^2))/100^3 -> -8.819484854e-05 | E16: m3/mol | G16: Garberoglio et al. (2012) 15K to 350K
B17: B_Souers | C17: =C9*C14^C8 -> -9.101981538e-05 | E17: m3/mol | G17: Souers Eqn. 4.28 | U17: C_lv(1)= | V17: 1.98042 | W17: H2 | AJ17: Tr,L | AK17: Tr,U | AL17: C_H2
B18: C_Data | C18: =$AC$20/100^6 -> 1.506072288e-09 | E18: m6/mol2 | U18: C_lv(2)= | V18: 1.57756 | W18: HD | AJ18: 0.42 | AK18: 0.6 | AL18: =IF(AND($C$15>=AJ18,$C$15<=AK18),$AK$5*$C$15^10 + $AK$6*$C$15^9 + $AK$7*$C$15^8 + $AK$8*$C$15^7 + $AK$9*$C$15^6 + $AK$10*$C$15^5 + $AK$11*$C$15^4 + $AK$12*$C$15^3+ $AK$13*$C$15^2 + $AK$14*$C$15^1 + $AK$15,"") -> 
B19: C_Souers | C19: =0.0000000229*C14^(-0.786) -> 1.502407003e-09 | E19: m6/mol2 | G19: (Souers Eq. 4.29) | U19: C_lv(3)= | V19: 1.3444 | W19: HT | AC19: Predicted Third Virial Coefficient | AJ19: 0.6 | AK19: 0.9 | AL19: =IF(AND($C$15>AJ19,$C$15<=AK19),$AO$5*$C$15^10 + $AO$6*$C$15^9 + $AO$7*$C$15^8 + $AO$8*$C$15^7 + $AO$9*$C$15^6 + $AO$10*$C$15^5 + $AO$11*$C$15^4 + $AO$12*$C$15^3+ $AO$13*$C$15^2 + $AO$14*$C$15^1 + $AO$15,"") -> 1612.542938
B20: P_PIMC & Data | C20: =$C$4*$C$14*($C$13+$C$16*$C$13^2+$C$19*$C$13^3) -> 241675.6333 | E20: Pa | G20: Uses only second virial coefficient (PIMC) | U20: C_lv(4)= | V20: 1.38962 | W20: D2 | AC20: =(AC$5*$C$15^10 + AC$6*$C$15^9 + AC$7*$C$15^8 + AC$8*$C$15^7 + AC$9*$C$15^6 + AC$10*$C$15^5 + AC$11*$C$15^4 + AC$12*$C$15^3+ AC$13*$C$15^2 + AC$14*$C$15^1 +AC$15)*AVERAGE(AL18:AL22) -> 1506.072288 | AD20: C_DT | AE20: cm6/mol2 | AJ20: 0.9 | AK20: 2.56 | AL20: =IF(AND($C$15>AJ20,$C$15<=AK20),$AS$5*$C$15^10 + $AS$6*$C$15^9 + $AS$7*$C$15^8 + $AS$8*$C$15^7 + $AS$9*$C$15^6 + $AS$10*$C$15^5 + $AS$11*$C$15^4 + $AS$12*$C$15^3+ $AS$13*$C$15^2 + $AS$14*$C$15^1 + $AS$15,"") ->  | AM20: cm6/mol2
B21: P_Souers | C21: =$C$4*$C$14*($C$13+$C$17*$C$13^2+$C$19*$C$13^3) -> 240932.9985 | E21: Pa | G21: The calculated pressure for this page | U21: C_lv(5)= | V21: 1.0495 | W21: DT | AJ21: 0 | AK21: 0.42 | AL21: =IF(AND($C$15>=AJ21,$C$15<AK21),0,"") -> 
B22: P_virial | C22: =C20/133.32237 -> 1812.7163 | E22: torr | U22: C_lv(6)= | V22: 0.707997 | W22: T2 | AJ22: 2.56 | AK22: 100 | AL22: =IF(AND($C$15>=AJ22,$C$15<AK22),0,"") -> 
B23: P_Souers | C23: =C21/101325*760 -> 1807.146103 | E23: torr
B24: P_ideal | C24: =C4*C14*C13/133.32237 -> 1983.672656 | E24: torr | O24: a | P24: -1773700
O25: b | P25: 15553
B26: Na | C26: 6.0221415e+23 | E26: molecule/mol | O26: c | P26: -2816.6
O27: d | P27: 518.77
B28: atoms/molecule | C28: 1 | O28: f | P28: 0.66794
B30: D or T atom density | C30: =C13*C26*C28 -> 5.986043265e+26 | E30: atom D or T/m^3
B31: D or T atom density | C31: =C30/100^3 -> 5.986043265e+20 | E31: atom D or T/cc
B34: Psat_DT | C34: =IF(C14>C41,"supercritical",EXP(V7-V14/C14+V21*LN(C14))) -> 4273.351017 | E34: torr
B37: G. Garberoglio, P. Jankowski, K. Szalewicz, and A. Harvey, "Second virial coefficients of H2 and its isotopologues from a six-dimensional potential", J. Chem. Phys. 137, 154308 (2012)
B41: Tc | C41: =0.5*'D2'!C41+0.5*'T2'!C41 -> 39.395 | E41: K
B42: Pc | C42: =0.5*'D2'!C42+0.5*'T2'!C42 -> 13182.33407 | E42: Torr
B43: Ttp | C43: =0.5*'D2'!C43+0.5*'T2'!C43 -> 19.645 | E43: K

Sheet D2+4He
B2: D2+4He
B4: R | C4: 8.3144621 | E4: Pa-m3/mol-K
B6: f_D | C6: =Calculator!G7 -> 0.3 | E6: n.u | G6: atom fraction from Calculator tab (input)
B7: f_4He | C7: =1-C6 -> 0.7 | E7: n.u. | G7: atom fraction
B9: y_D2 | C9: =1-C10 -> 0.1764705882 | E9: n.u. | G9: molecule fraction
B10: y_4He | C10: =1-(1-C7)/(1+C7) -> 0.8235294118 | E10: n.u. | G10: molecule fraction
B12: M_D2 | C12: 0.004028204 | E12: kg/mol | G12: (Souers Table 1.1)
B13: M_4He | C13: 0.0040026 | E13: kg/mol | G13: (Souers Table 1.1)
B15: M_mix | C15: =C9*C12+C10*C13 -> 0.004007118353 | E15: kg/mol | G15: M_mix=y_4He*M_4He+y_D2*M_D2
B17: rho | C17: =Calculator!G5 -> 5 | E17: mg/cm3 | G17: From Calculator tab (input)
B18: rho | C18: =(C17/1000^2)*100^3 -> 5 | E18: kg/m3
B19: rhoM_mix | C19: =C18/C15 -> 1247.779466 | E19: mol/m3
B20: T | C20: =Calculator!G6 -> 32 | E20: K | G20: From Calculator tab (input)
B22: B_D2 | C22: ='D2'!C16 -> -8.515246186e-05 | D22: m^3/mol | G22: PIMC Garberoglio et al. (2012)
B23: B_4He | C23: ='4He'!C18 -> 4.586267376e-06 | D23: m^3/mol | G23: Slaman & Aziz, International Journal of Thermophysics, Vol. 12, No. 5, 1991
B25: B_12 | C25: =(C22+C23)/2 -> -4.028309724e-05 | D25: m^3/mol | G25: Second virial cross-coefficient assuming partial volume mixing. Wu & Yeo, SNU Journal of Education Research
B27: B_mix | C27: =C9^2*C22+C10^2*C23+2*C9*C10*C25 -> -1.124997896e-05 | D27: m^3/mol | G27: Smith & Vanness, Intro. To chemical engineering themodynamics, McGraw Hill (1975), Eqn. 1-103
B28: C_mix | C28: 0 | G28: Not using 3rd virial term here because we don't really have a mixing rule
B30: P_mix | C30: =C4*C20*(C19+C27*C19^2+C28*C19^3) -> 327327.4079 | E30: Pa | G30: The calculated pressure for this page
B31: P_virial | C31: =C30/133.32237 -> 2455.157435 | E31: torr
B32: P_ideal | C32: =C19*C4*C20/133.32237 -> 2490.112369 | E32: torr
B34: Na | C34: 6.0221415e+23 | E34: molecule/mol
B36: D atoms/molecule D2 | C36: 2
B38: D atom density | C38: =C19*C34*C36*C9 -> 2.652107473e+26 | E38: atom D/m^3
B39: D atom density | C39: =C38/100^3 -> 2.652107473e+20 | E39: atom D/cc
B41: 4He atoms/molecule 4He | C41: 1
B43: 4He atom density | C43: =C19*C34*C41*C10 -> 6.188250771e+26 | E43: atom 4He/m^3
B44: 4He atom density | C44: =C43/100^3 -> 6.188250771e+20 | E44: atom 4He/cc
B46: Total atom density | C46: =C39+C44 -> 8.840358244e+20 | E46: atom/cc
B50: Pp_D2 | C50: =C9*C31 -> 433.2630767 | E50: torr
B51: Psat_D2 | C51: ='D2'!C34 -> 4840.409847 | E51: torr
B53: Psat_Mix | C53: =IF(C51="supercritical",C51,C51/C9) -> 27428.98913 | E53: torr
B55: rho_sat_D2 | C55: ='D2'!C35 -> 14.13580809 | E55: mg/cm3
B56: mass fraction D2 | C56: =C9*C12/(C9*C12+C10*C13) -> 0.1773991849
B58: rho_sat_Mix | C58: =IF(C55="supercritical","supercritical",C55/C56) -> 79.68361358 | E58: mg/cm3

Sheet He+Ne
B2: Ne+4He
B4: R | C4: 8.3144621 | E4: Pa-m3/mol-K
B6: f_Ne | C6: =Calculator!$G$10 -> 0.0175 | E6: n.u | G6: atom fraction from Calculator tab (input)
B7: f_4He | C7: =1-C6 -> 0.9825 | E7: n.u. | G7: atom fraction
B9: y_Ne | C9: =C6 -> 0.0175 | E9: n.u. | G9: molecule fraction
B10: y_4He | C10: =C7 -> 0.9825 | E10: n.u. | G10: molecule fraction
B12: M_Ne | C12: 0.0201797 | E12: kg/mol
B13: M_4He | C13: 0.0040026 | E13: kg/mol | G13: (Souers Table 1.1)
B15: M_mix | C15: =C9*C12+C10*C13 -> 0.00428569925 | E15: kg/mol | G15: M_mix=y_4He*M_4He+y_Ne*M_Ne
B17: rho | C17: =Calculator!G5 -> 5 | E17: mg/cm3 | G17: From Calculator tab (input)
B18: rho | C18: =(C17/1000^2)*100^3 -> 5 | E18: kg/m3
B19: rhoM_mix | C19: =C18/C15 -> 1166.67076 | E19: mol/m3
B20: T | C20: =Calculator!G6 -> 32 | E20: K | G20: From Calculator tab (input)
B22: B_Ne | C22: =Ne!$C$56 -> -8.067787091e-05 | E22: m3/mol | G22: Sixth order polynomial fit from Wiebke 2012 - Up to fourth Virial coefficients from simple and efficient internal-coordinate sampling: Application to neon
B23: B_4He | C23: ='4He'!$C$18 -> 4.586267376e-06 | E23: m3/mol | G23: Slaman & Aziz, International Journal of Thermophysics, Vol. 12, No. 5, 1991, Eqn. 4
B25: B_12 | C25: =(C22+C23)/2 -> -3.804580177e-05 | E25: m3/mol | G25: Second virial cross-coefficient assuming partial volume mixing. Wu & Yeo, SNU Journal of Education Research
B27: B_mix | C27: =C9^2*C22+C10^2*C23+2*C9*C10*C25 -> 3.094144956e-06 | E27: m3/mol | G27: Smith & Vanness, Intro. To chemical engineering themodynamics, McGraw Hill (1975), Eqn. 1-103
B28: C_mix | C28: 0 | G28: Not using 3rd virial term here because we don't really have a mixing rule
B30: P_mix | C30: =C4*C20*(C19+C27*C19^2+C28*C19^3) -> 311528.1987 | E30: Pa | G30: The calculated pressure for this page
B31: P_virial | C31: =C30/133.32237 -> 2336.653622 | E31: torr
B32: P_ideal | C32: =C19*C4*C20/133.32237 -> 2328.248996 | E32: torr
B34: Na | C34: 6.0221415e+23 | E34: molecule/mol
B36: Ne atoms/molecule Ne | C36: 1
B38: Ne atom density | C38: =C19*C34*C36*C9 -> 1.22952487e+25 | E38: atom Ne/m^3
B39: Ne atom density | C39: =C38/100^3 -> 1.22952487e+19 | E39: atom Ne/cc
B41: 4He atoms/molecule 4He | C41: 1
B43: 4He atom density | C43: =C19*C34*C41*C10 -> 6.902903912e+26 | E43: atom 4He/m^3
B44: 4He atom density | C44: =C43/100^3 -> 6.902903912e+20 | E44: atom 4He/cc
B46: Total atom density | C46: =C39+C44 -> 7.025856399e+20 | E46: atom/cc
B50: Psat_Ne | C50: =(10^( Q$59- (R$59/(C20+S$59))))*(100000/101325)*760 -> 3139.100398 | E50: torr | P50: Antoine Equation Parameters
B51: Ppart_Ne | C51: =C6*C31 -> 40.89143838 | E51: torr
P52: log10(P) = A − (B / (T + C))
P53: P = vapor pressure (bar)
B54: Psat_Ne-He | C54: =IF(C20>27,"supercritical",C50/C9) -> supercritical | E54: torr | P54: T = temperature (K)
P56: View plot Requires a Java capable browser.
P58: Temperature (K) | Q58: A | R58: B | S58: C | T58: Reference | U58: Comment
P59: 15.9 - 27. | Q59: 3.75641 | R59: 95.599 | S59: -1.503 | T59: Stull, 1947 | U59: Coefficents calculated by NIST from author's data

Sheet VC List
A1: 3.5 Critical constants and second virial coefficients of gases
A3: The critical pressure pc, critical molar volume Vcm, and critical temperature Tc, are the values of the pressure p, molar volume Vm, and thermodynamic temperature T, at which the densities of coexisting liquid and gaseous phases become identical. At the critical point:
A4: (1) | B4: (∂p/∂V)T=Tc = 0 (∂2p/∂V2)T=Tc = 0
A5: At temperatures above the critical temperature a gas cannot be liquefied.
A6: The state of a gas can be accurately expressed by an equation of the form:
A7: (2) | B7: Z = pVm/RT= 1 + B/Vm +C/V2m + ...
A8: where R is the gas constant: R = (8.314 510 ± 0.000 070) J K−1 mol−1; B,C,..., are the second, third,..., virial coefficients which for a given substance are functions of temperature only; and Z is called the compression factor. As a rough rule, neglect of the third and higher virial coefficients in equation (2) leads to percentage errors 102 |δZ/Z| <x provided that p/pc < 0.2x1/2 at T/Tc = 0.6; or p/pc < 0.6x1/2 at T/Tc = 1; or p/pc < 1.3x1/2 at T/Tc = 2; or p/pc < 3x1/2 at T/Tc = 4.
A9: The second virial coefficient B of a gas can be fitted, usually within experimental errors over the range of temperatures at which measurements have been made, by an equation of the form:
A10: (3) | B10: B/(cm3 mol−1) = a − b exp{c(K/T)}.
A11: Values of a, b, and c are given, where possible, for the range of temperatures from TL to TU.
A12: For Ar, Kr, Xe, CH4, N2, O2, and CO accurately, and with useful but lower accuracy for other substances, the critical compression factor Zc = 0.29, and B is given by
A13: (4) | B13: Bpc/RTc = 0.599 − 0.467 exp(0.694Tc/T).
A14: An estimate of B for a substance with a value of Zc appreciably different from 0.29 can be obtained by the method described in The Properties of Gases and Liquids by Reid, Prausnitz, and Sherwood, 3rd edn, 1977, p. 53 (McGraw-Hill, New York). Experimental values of B can be found in The Virial Coefficients of Pure Gases and Mixtures, by Dymond and Smith, 2nd edn, 1980 (Clarendon Press, Oxford).
A15: Elements and inorganic compounds
A16: Element or Compound | B16: pc | C16: Vcm | D16: Tc | E16: pcVcm | F16: Coefficients of equations (3) | I16: TL | J16: TU
B17: MPa | C17: cm3 mol−1 | D17: K | E17: RTc | F17: a | G17: b | H17: c | I17: K | J17: K
A20: Ammonia . . . . . | B20: 11.35 | C20: 72.5 | D20: 405.5 | E20: 0.244 | F20: 44.3 | G20: 23.6 | H20: 766.6 | I20: 273 | J20: 573
A21: Argon . . . . . . | B21: 4.9 | C21: 74.6 | D21: 150.9 | E21: 0.291 | F21: 154.2 | G21: 119.3 | H21: 105.1 | I21: 80 | J21: 1024
A22: Bromine . . . . . | B22: 10.3 | C22: 127 | D22: 588 | E22: 0.268 | F22: — | G22: — | H22: — | I22: — | J22: —
A23: Carbon dioxide . . | B23: 7.38 | C23: 94.0 | D23: 304.1 | E23: 0.274 | F23: 137.6 | G23: 87.7 | H23: 325.7 | I23: 220 | J23: 1100
A24: Carbon disulphide . . | B24: 7.9 | C24: 173 | D24: 552 | E24: 0.298 | F24: 211 | G24: 167.1 | H24: 538.7 | I24: 280 | J24: 430
A25: Carbon monoxide . . | B25: 3.50 | C25: 93.1 | D25: 132.9 | E25: 0.295 | F25: 202.6 | G25: 154.2 | H25: 94.2 | I25: 90 | J25: 573
A26: Carbonyl chloride . .
A27: (phosgene) . . . | B27: 5.67 | C27: 190 | D27: 455 | E27: 0.285 | F27: — | G27: — | H27: — | I27: — | J27: —
A28: Chlorine . . . . . | B28: 7.98 | C28: 124 | D28: 416.9 | E28: 0.285 | F28: 201.9 | G28: 131.8 | H28: 409.9 | I28: 360 | J28: 700
A29: Cyanogen . . . . | B29: 6.0 | C29: — | D29: 400 | E29: — | F29: 746.9 | G29: 508.2 | H29: 238 | I29: 308 | J29: 423
A30: Deuterium . . . . | B30: 1.65 | C30: 60 | D30: 38.2 | E30: 0.312 | F30: 155.1 | G30: 132.5 | H30: 18.9 | I30: 18 | J30: 423
A31: Deuterium oxide . . | B31: 21.67 | C31: 56.3 | D31: 643.9 | E31: 0.228 | F31: −16.8 | G31: 3.37 | H31: 1928.2 | I31: 423 | J31: 773
A32: Dinitrogen oxide . . | B32: 7.25 | C32: 97.4 | D32: 309.6 | E32: 0.274 | F32: 180.7 | G32: 114.8 | H32: 305.4 | I32: 200 | J32: 423
A33: Fluorine . . . . . | B33: 5.22 | C33: 66 | D33: 144.3 | E33: 0.288 | F33: 71.4 | G33: 48 | H33: 165 | I33: 80 | J33: 300
A34: Helium . . . . . | B34: 0.227 | C34: 57.2 | D34: 5.19 | E34: 0.301 | F34: 114.1 | G34: 98.7 | H34: 3.245 | I34: 7 | J34: 150
A35: Hydrogen . . . . | B35: 1.297 | C35: 65.0 | D35: 33.2 | E35: 0.306 | F35: 315 | G35: 289.7 | H35: 9.47 | I35: 14 | J35: 400
A36: Hydrogen bromide . | B36: 8.55 | C36: — | D36: 363.2 | E36: — | F36: — | G36: — | H36: — | I36: — | J36: —
A37: Hydrogen chloride . | B37: 8.31 | C37: 81 | D37: 324.7 | E37: 0.249 | F37: 57.7 | G37: 37.8 | H37: 495.9 | I37: 190 | J37: 480
A38: Hydrogen cyanide . | B38: 5.39 | C38: 139 | D38: 456.7 | E38: 0.197 | F38: — | G38: — | H38: — | I38: — | J38: —
A39: Hydrogen deuteride | B39: 1.48 | C39: 63 | D39: 36.0 | E39: 0.312 | F39: — | G39: — | H39: — | I39: — | J39: —
A40: Hydrogen fluoride . | B40: 6.48 | C40: 69 | D40: 461 | E40: 0.117 | F40: — | G40: — | H40: — | I40: — | J40: —
A41: Hydrogen iodide . | B41: 8.31 | C41: — | D41: 424 | E41: — | F41: — | G41: — | H41: — | I41: — | J41: —
A42: Hydrogen sulphide | B42: 8.94 | C42: 98.5 | D42: 373.2 | E42: 0.284 | F42: 47.7 | G42: 30.3 | H42: 632.9 | I42: 278 | J42: 493
A43: Iodine . . . . . | B43: — | C43: 155 | D43: 819 | E43: — | F43: — | G43: — | H43: — | I43: — | J43: —
A44: Krypton . . . . | B44: 5.5 | C44: 91.2 | D44: 209.4 | E44: 0.288 | F44: 189.6 | G44: 148 | H44: 145.3 | I44: 110 | J44: 700
A45: Mercury . . . . | B45: 172 | C45: 42.7 | D45: 1750 | E45: 0.505 | F45: — | G45: — | H45: — | I45: — | J45: —
A46: Neon . . . . . | B46: 2.76 | C46: 41.7 | D46: 44.4 | E46: 0.311 | F46: 81.0 | G46: 63.6 | H46: 30.7 | I46: 44 | J46: 973
A47: Nitrogen . . . . | B47: 3.39 | C47: 89.5 | D47: 126.2 | E47: 0.289 | F47: 185.4 | G47: 141.8 | H47: 88.7 | I47: 75 | J47: 700
A48: Nitrogen dioxide . | B48: 10.1 | C48: 84 | D48: 431 | E48: 0.24 | F48: — | G48: — | H48: — | I48: — | J48: —
A49: Nitrogen oxide . . | B49: 6.48 | C49: 57.7 | D49: 180 | E49: 0.25 | F49: 15.9 | G49: 11 | H49: 372.3 | I49: 122 | J49: 311
A50: Oxygen . . . . . | B50: 5.04 | C50: 73.4 | D50: 154.6 | E50: 0.288 | F50: 152.8 | G50: 117.0 | H50: 108.8 | I50: 90 | J50: 400
A51: Ozone . . . . . | B51: 5.57 | C51: 88.9 | D51: 261.1 | E51: 0.228 | F51: — | G51: — | H51: — | I51: — | J51: —
A52: Phosphine . . . . | B52: 6.5 | C52: — | D52: 324.5 | E52: — | F52: 248.6 | G52: 164.9 | H52: 276.4 | I52: 190 | J52: 297
A53: Radon . . . . . | B53: 6.3 | C53: — | D53: 377 | E53: — | F53: — | G53: — | H53: — | I53: — | J53: —
A54: Silane . . . . . . | B54: 4.84 | C54: — | D54: 269.7 | E54: — | F54: — | G54: — | H54: — | I54: — | J54: —
A55: Silicon tetrachloride . | B55: 3.59 | C55: 326 | D55: 508.1 | E55: 0.277 | F55: — | G55: — | H55: — | I55: — | J55: —
A56: Silicon tetrafluoride . | B56: 3.72 | C56: — | D56: 259.0 | E56: — | F56: 346.7 | G56: 257.2 | H56: 185.5 | I56: 206 | J56: 475
A57: Sulphur . . . . . | B57: 20.7 | C57: — | D57: 1314 | E57: — | F57: — | G57: — | H57: — | I57: — | J57: —
A58: Sulphur dioxide . . | B58: 7.88 | C58: 122 | D58: 430.8 | E58: 0.269 | F58: 134.4 | G58: 72.5 | H58: 606.5 | I58: 265 | J58: 473
A59: Sulphur hexafluoride | B59: 3.77 | C59: 199 | D59: 318.7 | E59: 0.283 | F59: 422.1 | G59: 281.3 | H59: 273.5 | I59: 200 | J59: 525
A60: Sulphur trioxide . . | B60: 8.20 | C60: 127 | D60: 491.0 | E60: 0.255 | F60: — | G60: — | H60: — | I60: — | J60: —
A61: Tin (IV) chloride . . | B61: 3.75 | C61: 351 | D61: 591.9 | E61: 0.267 | F61: — | G61: — | H61: — | I61: — | J61: —
A62: Uranium hexafluoride | B62: 4.66 | C62: 250 | D62: 505.8 | E62: 0.277 | F62: 540.5 | G62: 380.9 | H62: 445 | I62: 321 | J62: 469
A63: Water . . . . . . | B63: 22.06 | C63: 56.0 | D63: 647.1 | E63: 0.229 | F63: 33.0 | G63: 15.2 | H63: 1300.7 | I63: 293 | J63: 1248
A64: Xenon . . . . . . | B64: 5.84 | C64: 118 | D64: 289.7 | E64: 0.287 | F64: 245.6 | G64: 190.9 | H64: 200.2 | I64: 160 | J64: 650
A66: Organic compounds
A67: Acetaldehyde . . . | B67: — | C67: — | D67: 461 | E67: — | F67: −71.8 | G67: 12.3 | H67: 1351 | I67: 288 | J67: 476
A68: Acetic acid . . . | B68: 5.79 | C68: 171 | D68: 592.7 | E68: 0.201 | F68: — | G68: — | H68: — | I68: — | J68: —
A69: Acetone . . . . . | B69: 4.70 | C69: 209 | D69: 508.1 | E69: 0.232 | F69: — | G69: — | H69: — | I69: — | J69: —
A70: Acetonitrile . . . . | B70: 4.85 | C70: 173 | D70: 545.5 | E70: 0.185 | F70: — | G70: — | H70: — | I70: — | J70: —
A71: Acetylene . . . . | B71: 6.14 | C71: 113 | D71: 308.3 | E71: 0.27 | F71: 49.2 | G71: 42.9 | H71: 354.9 | I71: 200 | J71: 273
A72: Aniline . . . . . . | B72: 5.31 | C72: 287 | D72: 699 | E72: 0.262 | F72: — | G72: — | H72: — | I72: — | J72: —
A73: Benzene . . . . . | B73: 4.90 | C73: 256 | D73: 562.0 | E73: 0.268 | F73: 571.4 | G73: 348.4 | H73: 526.6 | I73: 290 | J73: 600
A74: Bromobenzene . . . | B74: 4.52 | C74: 324 | D74: 670 | E74: 0.263 | F74: — | G74: — | H74: — | I74: — | J74: —
A75: Bromoethane . . . . | B75: 6.23 | C75: 215 | D75: 503.9 | E75: 0.32 | F75: — | G75: — | H75: — | I75: — | J75: —
A76: Bromomethane . . . | B76: — | C76: — | D76: 464 | E76: — | F76: 51.1 | G76: 42.4 | H76: 792.2 | I76: 244 | J76: 383
A77: Bromotrifluoromethane
A78: (R13B1) . . . . | B78: 3.97 | C78: 196 | D78: 340.2 | E78: 0.275 | F78: — | G78: — | H78: — | I78: — | J78: —
A79: Buta-1,3-diene . . . | B79: 4.33 | C79: 221 | D79: 425 | E79: 0.27 | F79: — | G79: — | H79: — | I79: — | J79: —
A80: Butane . . . . . | B80: 3.80 | C80: 255 | D80: 425.1 | E80: 0.274 | F80: 165.4 | G80: 135.4 | H80: 555 | I80: 250 | J80: 400
A81: Butanone . . . . . | B81: 4.21 | C81: 267 | D81: 536.8 | E81: 0.252 | F81: 948.6 | G81: 314.6 | H81: 702.4 | I81: 315 | J81: 371
A82: But-1-ene . . . . | B82: 4.02 | C82: 240 | D82: 419.6 | E82: 0.277 | F82: 522.9 | G82: 289.6 | H82: 421.2 | I82: 243 | J82: 420
A83: cis-But-2-ene . . . | B83: 4.20 | C83: 234 | D83: 435.6 | E83: 0.271 | F83: 1369.5 | G83: 778.2 | H83: 297.4 | I83: 251 | J83: 343
A84: trans-But-2-ene . | B84: 3.98 | C84: 238 | D84: 428.6 | E84: 0.266 | F84: 1245.0 | G84: 763.3 | H84: 284.3 | I84: 243 | J84: 333
A85: Carbon tetrachloride | B85: 4.56 | C85: 276 | D85: 556.4 | E85: 0.272 | F85: 607.6 | G85: 463 | H85: 461 | I85: 316 | J85: 419
A86: Carbon tetrafluoride
A87: (R14). . . . . | B87: 3.74 | C87: 140 | D87: 227.6 | E87: 0.276 | F87: 256.32 | G87: 172.80 | H87: 206 | I87: 175 | J87: 625
A89: Chlorobenzene . . | B89: 4.52 | C89: 308 | D89: 632.4 | E89: 0.265 | F89: — | G89: — | H89: — | I89: — | J89: —
A90: Chlorodifluoromethane
A91: (R22) . . . . . | B91: 4.99 | C91: 169 | D91: 369.3 | E91: 0.274 | F91: 374.7 | G91: 270.2 | H91: 287.8 | I91: 298 | J91: 473
A92: Chloroethane . . . | B92: 5.30 | C92: — | D92: 460.4 | E92: — | F92: 182.4 | G92: 88.4 | H92: 717.9 | I92: 273 | J92: 605
A93: Chloroform . . . . | B93: 5.47 | C93: 239 | D93: 536.4 | E93: 0.293 | F93: 485.7 | G93: 272.5 | H93: 542.7 | I93: 316 | J93: 400
A94: Chloromethane . . . | B94: 6.68 | C94: 139 | D94: 416.2 | E94: 0.268 | F94: 396.7 | G94: 259.2 | H94: 337.3 | I94: 280 | J94: 600
A95: Chlorotrifluoromethane
A96: (R13) . . . . . | B96: 3.87 | C96: 180 | D96: 302 | E96: 0.278 | F96: 388.6 | G96: 282.9 | H96: 229.5 | I96: 192 | J96: 533
A97: Cyclohexane . . . | B97: 4.07 | C97: 308 | D97: 553.5 | E97: 0.273 | F97: 677.3 | G97: 393.2 | H97: 531.4 | I97: 300 | J97: 560
A98: Cyclopentane . . . | B98: 4.51 | C98: 260 | D98: 511.7 | E98: 0.275 | F98: — | G98: — | H98: — | I98: — | J98: —
A99: Cyclopropane . . . | B99: 5.58 | C99: 162 | D99: 398.3 | E99: 0.274 | F99: 355.7 | G99: 255.2 | H99: 316.7 | I99: 303 | J99: 403
A100: Dichlorodifluoromethane
A101: (R12) . . . . . | B101: 4.14 | C101: 217 | D101: 385 | E101: 0.28 | F101: 463.1 | G101: 341.7 | H101: 291.2 | I101: 239 | J101: 478
A102: Dichlorofluoromethane
A103: (R21) . . . . . | B103: 5.18 | C103: 196 | D103: 451.6 | E103: 0.271 | F103: 435 | G103: 401.9 | H103: 266.7 | I103: 239 | J103: 450
A104: 1,2-Dichlorotetra-
A105: fluoroethane (R114) | B105: 3.25 | C105: 297 | D105: 418.8 | E105: 0.277 | F105: 639.9 | G105: 431.5 | H105: 361.3 | I105: 296 | J105: 504
A106: Diethylamine . . . | B106: 3.71 | C106: 301 | D106: 496.6 | E106: 0.27 | F106: 673 | G106: 378 | H106: 517.7 | I106: 314 | J106: 405
A107: Diethyl ether . . . | B107: 3.64 | C107: 280 | D107: 466.7 | E107: 0.262 | F107: 968.3 | G107: 346.6 | H107: 552.3 | I107: 280 | J107: 400
A108: Dimethylamine . . . | B108: 5.34 | C108: — | D108: 437.2 | E108: — | F108: 407.7 | G108: 234.2 | H108: 456 | I108: 312 | J108: 405
A109: Dimethyl ether . . | B109: 5.37 | C109: 190 | D109: 400 | E109: 0.307 | F109: 371 | G109: 267.4 | H109: 351.3 | I109: 273 | J109: 328
A110: 2,2-Dimethylpropane | B110: 3.2 | C110: 311 | D110: 433.8 | E110: 0.276 | F110: 407 | G110: 281 | H110: 450 | I110: 250 | J110: 440
A111: 1,4-Dioxan . . . | B111: 5.21 | C111: 238 | D111: 587 | E111: 0.254 | F111: — | G111: — | H111: — | I111: — | J111: —
A112: Ethane . . . . . | B112: 4.87 | C112: 146 | D112: 305.3 | E112: 0.279 | F112: 267.3 | G112: 191.5 | H112: 256 | I112: 210 | J112: 500
A113: Ethanol . . . . . | B113: 6.14 | C113: 168 | D113: 514 | E113: 0.241 | F113: 864.6 | G113: 45.4 | H113: 1345 | I113: 313 | J113: 399
A114: Ethyl acetate . . . | B114: 3.83 | C114: 286 | D114: 523.2 | E114: 0.252 | F114: 982.9 | G114: 407.5 | H114: 598.1 | I114: 330 | J114: 399
A115: Ethylamine . . . . | B115: 5.62 | C115: 182 | D115: 456 | E115: 0.27 | F115: 533.6 | G115: 289 | H115: 452.3 | I115: 293 | J115: 405
A116: Ethylene . . . . . | B116: 5.03 | C116: 130 | D116: 282.3 | E116: 0.28 | F116: 278.9 | G116: 193.5 | H116: 231.2 | I116: 181 | J116: 448
A117: Ethyl formate . . . | B117: 4.74 | C117: 229 | D117: 508.5 | E117: 0.257 | F117: 763.9 | G117: 341 | H117: 542.6 | I117: 323 | J117: 395
A118: Ethyl methyl ether . | B118: 4.40 | C118: 221 | D118: 437.8 | E118: 0.267 | F118: — | G118: — | H118: — | I118: — | J118: —
A119: Fluorobenzene . . | B119: 4.55 | C119: 269 | D119: 560.1 | E119: 0.263 | F119: 613 | G119: 360 | H119: 555.4 | I119: 318 | J119: 623
A120: Fluoromethane . . | B120: 5.88 | C120: 113 | D120: 317.8 | E120: 0.252 | F120: 269.2 | G120: 172.8 | H120: 303.0 | I120: 273 | J120: 423
A121: Heptane . . . . . | B121: 2.74 | C121: 428 | D121: 540.2 | E121: 0.261 | F121: 982 | G121: 523.9 | H121: 582.3 | I121: 300 | J121: 700
A122: Hept-1-ene . . . . | B122: — | C122: — | D122: 537.3 | E122: — | F122: 1245.0 | G122: 635.1 | H122: 530.9 | I122: 334 | J122: 411
A123: Hexane . . . . . . | B123: 3.02 | C123: 368 | D123: 507.6 | E123: 0.264 | F123: 839.6 | G123: 404.1 | H123: 572.6 | I123: 300 | J123: 450
A124: Hex-1-ene . . . . | B124: — | C124: — | D124: 504 | E124: — | F124: 836.6 | G124: 460.4 | H124: 507.1 | I124: 313 | J124: 410
A125: Iodobenzene . . . . | B125: 4.52 | C125: 351 | D125: 721 | E125: 0.265 | F125: — | G125: — | H125: — | I125: — | J125: —
A126: Iodomethane . . . | B126: — | C126: — | D126: 528 | E126: — | F126: 459.8 | G126: 248 | H126: 476.0 | I126: 313 | J126: 383
A127: Isobutane . . . . | B127: 3.64 | C127: 259 | D127: 407.8 | E127: 0.278 | F127: 270.3 | G127: 192.1 | H127: 460 | I127: 250 | J127: 440
A128: Methane . . . . . | B128: 4.60 | C128: 98.6 | D128: 190.6 | E128: 0.286 | F128: 206.4 | G128: 159.5 | H128: 133 | I128: 110 | J128: 600
A129: Methanol . . . . | B129: 8.08 | C129: 117 | D129: 512.5 | E129: 0.223 | F129: 14 | G129: 3.958 | H129: 1840 | I129: 280 | J129: 400
A130: Methyl acetate . . | B130: 4.69 | C130: 228 | D130: 506.8 | E130: 0.254 | F130: 762.9 | G130: 336.7 | H130: 577.9 | I130: 323 | J130: 391
A131: Methylamine . . . | B131: 7.61 | C131: — | D131: 430.7 | E131: — | F131: 85.3 | G131: 57.1 | H131: 685.9 | I131: 293 | J131: 550
A132: 2-Methylbutane . . | B132: 3.38 | C132: 306 | D132: 460.4 | E132: 0.27 | F132: 952.1 | G132: 620.4 | H132: 355.8 | I132: 280 | J132: 450
A133: Methylcyclohexane . | B133: 3.47 | C133: 368 | D133: 572.2 | E133: 0.268 | F133: — | G133: — | H133: — | I133: — | J133: —
A134: Methylcyclopentane | B134: 3.78 | C134: 319 | D134: 532.7 | E134: 0.272 | F134: — | G134: — | H134: — | I134: — | J134: —
A135: Methyl formate . . | B135: 6.00 | C135: 172 | D135: 487.2 | E135: 0.255 | F135: 581 | G135: 269.3 | H135: 525.5 | I135: 319 | J135: 397
A136: 2-Methylpentane . | B136: 3.04 | C136: 368 | D136: 497.7 | E136: 0.27 | F136: — | G136: — | H136: — | I136: — | J136: —
A137: 2-Methylpropene . | B137: 4.00 | C137: 239 | D137: 417.9 | E137: 0.275 | F137: 722.1 | G137: 354.4 | H137: 405.8 | I137: 243 | J137: 333
A138: Naphthalene . . . | B138: 4.05 | C138: 407 | D138: 748.5 | E138: 0.269 | F138: — | G138: — | H138: — | I138: — | J138: —
A139: Octafluorocyclobutane | B139: 2.78 | C139: 324 | D139: 388.5 | E139: 0.279 | F139: 895.7 | G139: 616.4 | H139: 285.6 | I139: 373 | J139: 623
A140: Octane. . . . . . | B140: 2.49 | C140: 492 | D140: 568.7 | E140: 0.259 | F140: 1138.0 | G140: 536.1 | H140: 672.5 | I140: 300 | J140: 700
A141: Oct-1-ene . . . . | B141: — | C141: — | D141: 566.7 | E141: — | F141: 1328.0 | G141: 631.5 | H141: 614.2 | I141: 359 | J141: 412
A142: Pentane . . . . . | B142: 3.37 | C142: 311 | D142: 469.7 | E142: 0.268 | F142: 377.9 | G142: 237.6 | H142: 560 | I142: 270 | J142: 500
A143: Pent-1-ene . . . . | B143: 3.53 | C143: — | D143: 464.8 | E143: — | F143: 655.7 | G143: 344.2 | H143: 499.9 | I143: 294 | J143: 410
A144: Phenol . . . . . . | B144: 6.1 | C144: — | D144: 694.2 | E144: — | F144: — | G144: — | H144: — | I144: — | J144: —
A145: Propadiene . . . . | B145: — | C145: — | D145: 393 | E145: — | F145: 391.4 | G145: 272 | H145: 310.5 | I145: 223 | J145: 353
A146: Propane . . . . . | B146: 4.25 | C146: 200 | D146: 369.8 | E146: 0.281 | F146: 322.8 | G146: 220.3 | H146: 350 | I146: 240 | J146: 330
A147: Propan-1-ol . . . . | B147: 5.17 | C147: 218 | D147: 536.8 | E147: 0.252 | F147: 861.9 | G147: 297.3 | H147: 669.2 | I147: 378 | J147: 423
A148: Propene . . . . . | B148: 4.60 | C148: 181 | D148: 364.8 | E148: 0.274 | F148: 286.6 | G148: 197 | H148: 349 | I148: 220 | J148: 400
A149: Propyne . . . . . | B149: 5.63 | C149: 164 | D149: 402.4 | E149: 0.275 | F149: 444.6 | G149: 314.6 | H149: 292.2 | I149: 348 | J149: 473
A150: Pyridine . . . . . | B150: 5.63 | C150: 254 | D150: 620 | E150: 0.277 | F150: 796.1 | G150: 398.8 | H150: 576.3 | I150: 347 | J150: 438
A151: Tetramethylsilane . | B151: 2.82 | C151: 362 | D151: 448.6 | E151: 0.273 | F151: 792.2 | G151: 502.2 | H151: 403.4 | I151: 295 | J151: 539
A152: Toluene . . . . . | B152: 4.11 | C152: 316 | D152: 591.8 | E152: 0.264 | F152: 719.1 | G152: 373.3 | H152: 646.4 | I152: 341 | J152: 583
A153: Trichlorofluoromethane
A154: (R11) . . . . . | B154: 4.41 | C154: 248 | D154: 471.2 | E154: 0.279 | F154: 532.1 | G154: 394.6 | H154: 351.2 | I154: 239 | J154: 478
A155: Triethylamine . . . | B155: 3.03 | C155: 389 | D155: 535.6 | E155: 0.265 | F155: 1261.6 | G155: 739.1 | H155: 442.1 | I155: 323 | J155: 405
A156: Trimethylamine . . | B156: 4.09 | C156: 254 | D156: 432.8 | E156: 0.288 | F156: 747 | G156: 466.5 | H156: 347.3 | I156: 298 | J156: 375
A157: 2,2,4-Trimethylpentane | B157: 2.57 | C157: 468 | D157: 544 | E157: 0.266 | F157: — | G157: — | H157: — | I157: — | J157: —
A158: m-Xylene . . . . | B158: 3.54 | C158: 375 | D158: 617 | E158: 0.259 | F158: — | G158: — | H158: — | I158: — | J158: —
A159: o-Xylene . . . . | B159: 3.73 | C159: 370 | D159: 630.3 | E159: 0.263 | F159: — | G159: — | H159: — | I159: — | J159: —
A160: p-Xylene . . . . | B160: 3.51 | C160: 378 | D160: 616.2 | E160: 0.259 | F160: — | G160: — | H160: — | I160: — | J160: —

Sheet 1%Ar+D2+4He
B2: D2+4He
B4: R | C4: 8.3144621 | E4: Pa-m3/mol-K
B6: f_D | C6: =Calculator!G8 -> 0.297 | E6: n.u | G6: atom fraction from Calculator tab (input)
B7: f_Ar | C7: 0.01 | E7: n.u | G7: atom fraction
B8: f_4He | C8: =1-SUM(C6:C7) -> 0.693 | E8: n.u. | G8: atom fraction
B10: y_D2 | C10: =C6/2 / ($C$6/2+$C$7+$C$8) -> 0.174398121 | E10: n.u. | G10: molecule fraction
B11: y_Ar | C11: =C7 / ($C$6/2+$C$7+$C$8) -> 0.01174398121 | E11: n.u. | G11: molecule fraction
B12: y_4He | C12: =C8 / ($C$6/2+$C$7+$C$8) -> 0.8138578978 | E12: n.u. | G12: molecule fraction
B14: M_D2 | C14: ='D2'!$C$5 -> 0.004028204 | E14: kg/mol | G14: (Souers Table 1.1)
B15: M_Ar | C15: =Ar!$C$5 -> 0.039948 | E15: kg/mol | G15: Google
B16: M_4He | C16: ='4He'!$C$5 -> 0.0040026 | E16: kg/mol | G16: (Souers Table 1.1)
B18: M_mix | C18: =C10*C14+C11*C15+C12*C16 -> 0.004429207392 | E18: kg/mol | G18: M_mix=y_4He*M_4He+y_D2*M_D2+y_Ar*M_Ar
B20: rho | C20: =Calculator!G5 -> 5 | E20: mg/cm3 | G20: From Calculator tab (input)
B21: rho | C21: =(C20/1000^2)*100^3 -> 5 | E21: kg/m3
B22: rhoM_mix | C22: =C21/C18 -> 1128.870147 | E22: mol/m3
B23: T | C23: =Calculator!G6 -> 32 | E23: K | G23: From Calculator tab (input)
A25: 1 | B25: B_D2 | C25: ='D2'!C16 -> -8.515246186e-05 | E25: m3/mol | G25: PIMC Garberoglio et al. (2012)
A26: 3 | B26: B_Ar | C26: =('VC List'!F21-'VC List'!G21*EXP('VC List'!H21/C23))/100^3 -> -0.003030190962 | E26: m3/mol
A27: 2 | B27: B_4He | C27: ='4He'!C18 -> 4.586267376e-06 | E27: m3/mol | G27: Slaman & Aziz, International Journal of Thermophysics, Vol. 12, No. 5, 1991
B29: B_12 | C29: =(C25+C27)/2 -> -4.028309724e-05 | E29: m3/mol | G29: Second virial cross-coefficient assuming partial volume mixing. Wu & Yeo, SNU Journal of Education Research
B30: B_13 | C30: =(C25+C26)/2 -> -0.001557671712 | E30: m3/mol
B31: B_23 | C31: =(C26+C27)/2 -> -0.001512802347 | E31: m3/mol
B33: B_mix | C33: =(C10^2*C25+C12^2*C27+2*C10*C12*C29) +(C10^2*C25+C11^2*C26+2*C10*C11*C30) +(C12^2*C27+C11^2*C26+2*C12*C11*C31) -> -4.667439786e-05 | E33: m3/mol | G33: Smith & Vanness, Intro. To chemical engineering themodynamics, McGraw Hill (1975), Eqn. 1-103
B34: C_mix | C34: 0 | E34: m6/mol2 | G34: Not using 3rd virial term here because we don't really have a mixing rule
B36: P_mix | C36: =C4*C23*(C22+C33*C22^2+C34*C22^3) -> 284525.0784 | E36: Pa | G36: The calculated pressure for this page
B37: P_virial | C37: =C36/133.32237 -> 2134.113565 | E37: torr
B38: P_ideal | C38: =C22*C4*C23/133.32237 -> 2252.812771 | E38: torr
B40: Na | C40: 6.0221415e+23 | E40: molecule/mol
B42: D atoms/molecule D2 | C42: 2
B44: D atom density | C44: =C22*C40*C42*C10 -> 2.371192109e+26 | E44: atom D/m^3
B45: D atom density | C45: =C44/100^3 -> 2.371192109e+20 | E45: atom D/cc
B47: Ar atoms/molecule Ar | C47: 1
B49: Ar atom density | C49: =C22*C40*C52*C11 -> 7.983811816e+24 | E49: atom Ar/m^3
B50: Ar atom density | C50: =C49/100^3 -> 7.983811816e+18 | E50: atom Ar/cc
B52: 4He atoms/molecule 4He | C52: 1
B54: 4He atom density | C54: =C22*C40*C52*C12 -> 5.532781588e+26 | E54: atom 4He/m^3
B55: 4He atom density | C55: =C54/100^3 -> 5.532781588e+20 | E55: atom 4He/cc
B57: Total atom density | C57: =C45+C50+C55 -> 7.983811816e+20 | E57: atom/cc

Sheet 1%Ar+H2+4He
B2: H2+4He
B4: R | C4: 8.3144621 | E4: Pa-m3/mol-K
B6: f_D | C6: =Calculator!G8 -> 0.297 | E6: n.u | G6: atom fraction from Calculator tab (input)
B7: f_Ar | C7: 0.01 | E7: n.u | G7: atom fraction
B8: f_4He | C8: =1-SUM(C6:C7) -> 0.693 | E8: n.u. | G8: atom fraction
B10: y_H2 | C10: =C6/2 / ($C$6/2+$C$7+$C$8) -> 0.174398121 | E10: n.u. | G10: molecule fraction
B11: y_Ar | C11: =C7 / ($C$6/2+$C$7+$C$8) -> 0.01174398121 | E11: n.u. | G11: molecule fraction
B12: y_4He | C12: =C8 / ($C$6/2+$C$7+$C$8) -> 0.8138578978 | E12: n.u. | G12: molecule fraction
B14: M_H2 | C14: ='H2'!$C$5 -> 0.00201565 | E14: kg/mol | G14: (Souers Table 1.1)
B15: M_Ar | C15: =Ar!$C$5 -> 0.039948 | E15: kg/mol | G15: Google
B16: M_4He | C16: ='4He'!$C$5 -> 0.0040026 | E16: kg/mol | G16: (Souers Table 1.1)
B18: M_mix | C18: =C10*C14+C11*C15+C12*C16 -> 0.004078221756 | E18: kg/mol | G18: M_mix=y_4He*M_4He+y_D2*M_D2+y_Ar*M_Ar
B20: rho | C20: =Calculator!G5 -> 5 | E20: mg/cm3 | G20: From Calculator tab (input)
B21: rho | C21: =(C20/1000^2)*100^3 -> 5 | E21: kg/m3
B22: rhoM_mix | C22: =C21/C18 -> 1226.024552 | E22: mol/m3
B23: T | C23: =Calculator!G6 -> 32 | E23: K | G23: From Calculator tab (input)
A25: 1 | B25: B_H2 | C25: ='H2'!C16 -> -7.285020133e-05 | E25: m3/mol | G25: PIMC Garberoglio et al. (2012)
A26: 3 | B26: B_Ar | C26: =('VC List'!F21-'VC List'!G21*EXP('VC List'!H21/C23))/100^3 -> -0.003030190962 | E26: m3/mol
A27: 2 | B27: B_4He | C27: ='4He'!C18 -> 4.586267376e-06 | E27: m3/mol | G27: Slaman & Aziz, International Journal of Thermophysics, Vol. 12, No. 5, 1991
B29: B_12 | C29: =(C25+C27)/2 -> -3.413196698e-05 | E29: m3/mol | G29: Second virial cross-coefficient assuming partial volume mixing. Wu & Yeo, SNU Journal of Education Research
B30: B_13 | C30: =(C25+C26)/2 -> -0.001551520582 | E30: m3/mol
B31: B_23 | C31: =(C26+C27)/2 -> -0.001512802347 | E31: m3/mol
B33: B_mix | C33: =(C10^2*C25+C12^2*C27+2*C10*C12*C29) +(C10^2*C25+C11^2*C26+2*C10*C11*C30) +(C12^2*C27+C11^2*C26+2*C12*C11*C31) -> -4.415473712e-05 | E33: m3/mol | G33: Smith & Vanness, Intro. To chemical engineering themodynamics, McGraw Hill (1975), Eqn. 1-103
B34: C_mix | C34: 0 | E34: m6/mol2 | G34: Not using 3rd virial term here because we don't really have a mixing rule
B36: P_mix | C36: =C4*C23*(C22+C33*C22^2+C34*C22^3) -> 308540.7669 | E36: Pa | G36: The calculated pressure for this page
B37: P_virial | C37: =C36/133.32237 -> 2314.246041 | E37: torr
B38: P_ideal | C38: =C22*C4*C23/133.32237 -> 2446.6975 | E38: torr
B40: Na | C40: 6.0221415e+23 | E40: molecule/mol
B42: H atoms/molecule H2 | C42: 2
B44: H atom density | C44: =C22*C40*C42*C10 -> 2.575264968e+26 | E44: atom D/m^3
B45: H atom density | C45: =C44/100^3 -> 2.575264968e+20 | E45: atom D/cc
B47: Ar atoms/molecule Ar | C47: 1
B49: Ar atom density | C49: =C22*C40*C52*C11 -> 8.670925817e+24 | E49: atom Ar/m^3
B50: Ar atom density | C50: =C49/100^3 -> 8.670925817e+18 | E50: atom Ar/cc
B52: 4He atoms/molecule 4He | C52: 1
B54: 4He atom density | C54: =C22*C40*C52*C12 -> 6.008951591e+26 | E54: atom 4He/m^3
B55: 4He atom density | C55: =C54/100^3 -> 6.008951591e+20 | E55: atom 4He/cc
B57: Total atom density | C57: =C45+C50+C55 -> 8.670925817e+20 | E57: atom/cc

Sheet 1%Ar+D2+3He
B2: D2+3He
B4: R | C4: 8.3144621 | E4: Pa-m3/mol-K
B6: f_D | C6: =Calculator!G8 -> 0.297 | E6: n.u | G6: atom fraction from Calculator tab (input)
B7: f_Ar | C7: 0.01 | E7: n.u | G7: atom fraction
B8: f_3He | C8: =1-SUM(C6:C7) -> 0.693 | E8: n.u. | G8: atom fraction
B10: y_D2 | C10: =C6/2 / ($C$6/2+$C$7+$C$8) -> 0.174398121 | E10: n.u. | G10: molecule fraction
B11: y_Ar | C11: =C7 / ($C$6/2+$C$7+$C$8) -> 0.01174398121 | E11: n.u. | G11: molecule fraction
B12: y_3He | C12: =C8 / ($C$6/2+$C$7+$C$8) -> 0.8138578978 | E12: n.u. | G12: molecule fraction
B14: M_D2 | C14: ='D2'!$C$5 -> 0.004028204 | E14: kg/mol | G14: (Souers Table 1.1)
B15: M_Ar | C15: =Ar!$C$5 -> 0.039948 | E15: kg/mol | G15: Google
B16: M_3He | C16: ='3He'!$C$5 -> 0.003016 | E16: kg/mol | G16: (Souers Table 1.1)
B18: M_mix | C18: =C10*C14+C11*C15+C12*C16 -> 0.00362625519 | E18: kg/mol | G18: M_mix=y_3He*M_3He+y_D2*M_D2+y_Ar*M_Ar
B20: rho | C20: =Calculator!G5 -> 5 | E20: mg/cm3 | G20: From Calculator tab (input)
B21: rho | C21: =(C20/1000^2)*100^3 -> 5 | E21: kg/m3
B22: rhoM_mix | C22: =C21/C18 -> 1378.832911 | E22: mol/m3
B23: T | C23: =Calculator!G6 -> 32 | E23: K | G23: From Calculator tab (input)
A25: 1 | B25: B_D2 | C25: ='D2'!C16 -> -8.515246186e-05 | E25: m3/mol | G25: PIMC Garberoglio et al. (2012)
A26: 3 | B26: B_Ar | C26: =('VC List'!F21-'VC List'!G21*EXP('VC List'!H21/C23))/100^3 -> -0.003030190962 | E26: m3/mol
A27: 2 | B27: B_3He | C27: ='3He'!C18 -> 6.129464501e-06 | E27: m3/mol | G27: Slaman & Aziz, International Journal of Thermophysics, Vol. 12, No. 5, 1991
B29: B_12 | C29: =(C25+C27)/2 -> -3.951149868e-05 | E29: m3/mol | G29: Second virial cross-coefficient assuming partial volume mixing. Wu & Yeo, SNU Journal of Education Research
B30: B_13 | C30: =(C25+C26)/2 -> -0.001557671712 | E30: m3/mol
B31: B_23 | C31: =(C26+C27)/2 -> -0.001512030749 | E31: m3/mol
B33: B_mix | C33: =(C10^2*C25+C12^2*C27+2*C10*C12*C29) +(C10^2*C25+C11^2*C26+2*C10*C11*C30) +(C12^2*C27+C11^2*C26+2*C12*C11*C31) -> -4.439629542e-05 | E33: m3/mol | G33: Smith & Vanness, Intro. To chemical engineering themodynamics, McGraw Hill (1975), Eqn. 1-103
B34: C_mix | C34: 0 | E34: m6/mol2 | G34: Not using 3rd virial term here because we don't really have a mixing rule
B36: P_mix | C36: =C4*C23*(C22+C33*C22^2+C34*C22^3) -> 344399.0027 | E36: Pa | G36: The calculated pressure for this page
B37: P_virial | C37: =C36/133.32237 -> 2583.204924 | E37: torr
B38: P_ideal | C38: =C22*C4*C23/133.32237 -> 2751.64721 | E38: torr
B40: Na | C40: 6.0221415e+23 | E40: molecule/mol
B42: D atoms/molecule D2 | C42: 2
B44: D atom density | C44: =C22*C40*C42*C10 -> 2.896238976e+26 | E44: atom D/m^3
B45: D atom density | C45: =C44/100^3 -> 2.896238976e+20 | E45: atom D/cc
B47: Ar atoms/molecule Ar | C47: 1
B49: Ar atom density | C49: =C22*C40*C52*C11 -> 9.751646384e+24 | E49: atom Ar/m^3
B50: Ar atom density | C50: =C49/100^3 -> 9.751646384e+18 | E50: atom Ar/cc
B52: 3He atoms/molecule 3He | C52: 1
B54: 3He atom density | C54: =C22*C40*C52*C12 -> 6.757890944e+26 | E54: atom 3He/m^3
B55: 3He atom density | C55: =C54/100^3 -> 6.757890944e+20 | E55: atom 3He/cc
B57: Total atom density | C57: =C45+C50+C55 -> 9.751646384e+20 | E57: atom/cc

Sheet THD_EquilibriumCalculator
S2: Here's what we're solving:
B4: Temperature is from 'Calculator' worksheet | H4: Nominal T:H:D fractions also from 'Calculator' worksheet:
H5: fo_T2 | I5: fo_D2 | J5: fo_H2 | O5: check_sum
A6: T | B6: =Calculator!G6 -> 32 | C6: (K) | H6: =Calculator!G11 -> 0.5 | I6: =Calculator!G13 -> 0.5 | J6: =Calculator!G12 -> 0 | O6: =SUM(H6:J6) -> 1
B8: K_DT | D8: K_HD | F8: K_HT | H8: f_T2 | I8: f_D2 | J8: f_H2 | K8: f_DT | L8: f_HD | M8: f_HT
B9: =INDEX($A$15:$B$29,MATCH(B6,$A$15:$A$29,1),2)+(B6-INDEX($A$15:$B$29,MATCH(B6,$A$15:$A$29,1),1))*(INDEX($A$15:$B$29, MATCH($B6,$A$15:$A$29,1)+1,2)-INDEX($A$15:$B$29, MATCH($B6,$A$15:$A$29,1),2))/(INDEX($A$15:$B$29, MATCH($B6,$A$15:$A$29,1)+1,1)-INDEX($A$15:$B$29,MATCH($B6,$A$15:$A$29,1),1)) -> 2.138 | D9: =INDEX($C$15:$D$29,MATCH(B6,$C$15:$C$29,1),2)+(B6-INDEX($C$15:$D$29,MATCH(B6,$C$15:$C$29,1),1))*(INDEX($C$15:$D$29, MATCH($B6,$C$15:$C$29,1)+1,2)-INDEX($C$15:$D$29, MATCH($B6,$C$15:$C$29,1),2))/(INDEX($C$15:$D$29, MATCH($B6,$C$15:$C$29,1)+1,1)-INDEX($C$15:$D$29,MATCH($B6,$C$15:$C$29,1),1)) -> 0.582 | F9: =INDEX($E$15:$F$29,MATCH(B6,$E$15:$E$29,1),2)+(B6-INDEX($E$15:$F$29,MATCH(B6,$E$15:$E$29,1),1))*(INDEX($E$15:$F$29, MATCH($B6,$E$15:$E$29,1)+1,2)-INDEX($E$15:$F$29, MATCH($B6,$E$15:$E$29,1),2))/(INDEX($E$15:$F$29, MATCH($B6,$E$15:$E$29,1)+1,1)-INDEX($E$15:$F$29,MATCH($B6,$E$15:$E$29,1),1)) -> 0.0636 | H9: =E1035 -> 0.2888345123 | I9: 0.2888345123 | J9: 0 | K9: 0.4223309754 | L9: 0 | M9: 0 | O9: =SUM(H9:M9) -> 1
L11: f_min | M11: =ABS(2*H9+1*M9+1*K9-2*H6)+ABS(2*J9+1*M9+1*L9-2*J6)+ABS(2*I9+1*L9+1*K9-2*I6)+ABS(M9^2-F9*J9*H9)+ABS(L9^2-D9*J9*I9)+ABS(K9^2-B9*I9*H9) -> 0
A13: Equilibrium constants [Souers]
A14: T(K) | B14: K_DT | C14: T(K) | D14: K_HD | E14: T(K) | F14: K_HT
A15: 0 | B15: 0 | C15: 0 | D15: 0 | E15: 0 | F15: 0
A16: 4.2 | B16: 0.048 | C16: 4.2 | D16: 4.9e-08 | E16: 4.2 | F16: 2e-17
A17: 6 | B17: 0.2 | C17: 6 | D17: 1.4e-05 | E17: 6 | F17: 4e-12
A18: 8 | B18: 0.47 | C18: 8 | D18: 0.00036 | E18: 8 | F18: 5e-09
A19: 10 | B19: 0.78 | C19: 10 | D19: 0.0026 | E19: 10 | F19: 3.8e-07
A20: 12 | B20: 1.1 | C20: 12 | D20: 0.0096 | E20: 12 | F20: 6.5e-06
A21: 15 | B21: 1.46 | C21: 15 | D21: 0.036 | E21: 15 | F21: 0.00011
A22: 20 | B22: 1.74 | C22: 20 | D22: 0.13 | E22: 20 | F22: 0.002
A23: 25 | B23: 1.94 | C23: 25 | D23: 0.29 | E23: 25 | F23: 0.011
A24: 30 | B24: 2.09 | C24: 30 | D24: 0.49 | E24: 30 | F24: 0.034
A25: 50 | B25: 2.57 | C25: 50 | D25: 1.41 | E25: 50 | F25: 0.33
A26: 77.4 | B26: 3.06 | C26: 77.4 | D26: 1.94 | E26: 77.4 | F26: 0.64
A27: 100 | B27: 3.29 | C27: 100 | D27: 2.26 | E27: 100 | F27: 0.95
A28: 200 | B28: 3.69 | C28: 200 | D28: 2.9 | E28: 200 | F28: 1.94
A29: 301 | B29: 3.82 | C29: 301 | D29: 3.26 | E29: 301 | F29: 2.58
B34: DT | C34: HD | D34: HT | E34: T2 | F34: D2 | G34: H2 | H34: DT | I34: HD | J34: HT | K34: Factor | L34: sum H | M34: sum D | N34: sum T | Q34: Factor H | R34: Factor D | S34: Factor T | U34: Min | W34: HD | X34: HT | Y34: DT | AA34: H2 | AB34: Sum H | AD34: D2 | AE34: Sum D | AG34: T2 | AH34: Sum T | AI34: 1
A35: 0 | B35: 0 | C35: 0 | D35: 0 | E35: =H6 -> 0.5 | F35: =I6 -> 0.5 | G35: =J6 -> 0 | H35: =SQRT($B$9*F35*E35) -> 0.7310950691 | I35: =SQRT($D$9*G35*F35) -> 0 | J35: =SQRT($F$9*G35*E35) -> 0 | L35: =G35+0.5*I35+0.5*J35 -> 0 | M35: =F35+0.5*I35+0.5*H35 -> 0.8655475345 | N35: =E35+0.5*J35+0.5*H35 -> 0.8655475345 | Q35: =IF($G$35=0,0,$G$35/L35) -> 0 | R35: =IF($F$35=0,0,$F$35/M35) -> 0.5776690246 | S35: =IF($E$35=0,0,$E$35/N35) -> 0.5776690246 | U35: =MIN(Q35:S35) -> 0 | W35: =MIN(Q35,R35)*I35 -> 0 | X35: =MIN(Q35,S35)*J35 -> 0 | Y35: =MIN(R35,S35)*H35 -> 0.4223309754 | AA35: =$G$35-0.5*SUM(W35,X35) -> 0 | AB35: =0.5*W35+0.5*X35+AA35 -> 0 | AD35: =$F$35-0.5*SUM(W35,Y35) -> 0.2888345123 | AE35: =0.5*W35+0.5*Y35+AD35 -> 0.5 | AG35: =$E$35-0.5*SUM(X35:Y35) -> 0.2888345123 | AH35: =0.5*X35+0.5*Y35+AG35 -> 0.5
A36: 1 | B36: =Y35 -> 0.4223309754 | C36: =W35 -> 0 | D36: =X35 -> 0 | E36: =AG35 -> 0.2888345123 | F36: =AD35 -> 0.2888345123 | G36: =AA35 -> 0 | H36: 0.4223309754 | I36: 0 | J36: 0 | L36: 0 | M36: 0.5 | N36: 0.5 | Q36: =IF($G$35=0,0,$G$35/L36) -> 0 | R36: =IF($F$35=0,0,$F$35/M36) -> 1 | S36: =IF($E$35=0,0,$E$35/N36) -> 1 | U36: =MIN(Q36:S36) -> 0 | W36: =MIN(Q36,R36)*I36 -> 0 | X36: =MIN(Q36,S36)*J36 -> 0 | Y36: =MIN(R36,S36)*H36 -> 0.4223309754 | AA36: =$G$35-0.5*SUM(W36,X36) -> 0 | AB36: =0.5*W36+0.5*X36+AA36 -> 0 | AD36: =$F$35-0.5*SUM(W36,Y36) -> 0.2888345123 | AE36: =0.5*W36+0.5*Y36+AD36 -> 0.5 | AG36: =$E$35-0.5*SUM(X36:Y36) -> 0.2888345123 | AH36: =0.5*X36+0.5*Y36+AG36 -> 0.5
A37: 2 | B37: =Y36 -> 0.4223309754 | C37: =W36 -> 0 | D37: =X36 -> 0 | E37: 0.2888345123 | F37: 0.2888345123 | G37: =AA36 -> 0 | H37: 0.4223309754 | I37: 0 | J37: 0 | L37: 0 | M37: 0.5 | N37: 0.5 | Q37: 0 | R37: 1 | S37: 1 | U37: 0 | W37: 0 | X37: 0 | Y37: 0.4223309754 | AA37: 0 | AB37: =0.5*W37+0.5*X37+AA37 -> 0 | AD37: =$F$35-0.5*SUM(W37,Y37) -> 0.2888345123 | AE37: =0.5*W37+0.5*Y37+AD37 -> 0.5 | AG37: =$E$35-0.5*SUM(X37:Y37) -> 0.2888345123 | AH37: =0.5*X37+0.5*Y37+AG37 -> 0.5
A38: 3 | B38: 0.4223309754 | C38: =W37 -> 0 | D38: 0 | E38: 0.2888345123 | F38: 0.2888345123 | G38: =AA37 -> 0 | H38: 0.4223309754 | I38: 0 | J38: 0 | L38: 0 | M38: 0.5 | N38: 0.5 | Q38: 0 | R38: 1 | S38: 1 | U38: 0 | W38: 0 | X38: 0 | Y38: 0.4223309754 | AA38: 0 | AB38: 0 | AD38: 0.2888345123 | AE38: 0.5 | AG38: 0.2888345123 | AH38: 0.5
A39: 4 | B39: 0.4223309754 | C39: 0 | D39: 0 | E39: 0.2888345123 | F39: 0.2888345123 | G39: 0 | H39: 0.4223309754 | I39: 0 | J39: 0 | L39: 0 | M39: 0.5 | N39: 0.5 | Q39: 0 | R39: 1 | S39: 1 | U39: 0 | W39: 0 | X39: 0 | Y39: 0.4223309754 | AA39: 0 | AB39: 0 | AD39: 0.2888345123 | AE39: 0.5 | AG39: 0.2888345123 | AH39: 0.5
A40: 5 | B40: 0.4223309754 | C40: 0 | D40: 0 | E40: 0.2888345123 | F40: 0.2888345123 | G40: 0 | H40: 0.4223309754 | I40: 0 | J40: 0 | L40: 0 | M40: 0.5 | N40: 0.5 | Q40: 0 | R40: 1 | S40: 1 | U40: 0 | W40: 0 | X40: 0 | Y40: 0.4223309754 | AA40: 0 | AB40: 0 | AD40: 0.2888345123 | AE40: 0.5 | AG40: 0.2888345123 | AH40: 0.5
A41: 6 | B41: 0.4223309754 | C41: 0 | D41: 0 | E41: 0.2888345123 | F41: 0.2888345123 | G41: 0 | H41: 0.4223309754 | I41: 0 | J41: 0 | L41: 0 | M41: 0.5 | N41: 0.5 | Q41: 0 | R41: 1 | S41: 1 | U41: 0 | W41: 0 | X41: 0 | Y41: 0.4223309754 | AA41: 0 | AB41: 0 | AD41: 0.2888345123 | AE41: 0.5 | AG41: 0.2888345123 | AH41: 0.5
A42: 7 | B42: 0.4223309754 | C42: 0 | D42: 0 | E42: 0.2888345123 | F42: 0.2888345123 | G42: 0 | H42: 0.4223309754 | I42: 0 | J42: 0 | L42: 0 | M42: 0.5 | N42: 0.5 | Q42: 0 | R42: 1 | S42: 1 | U42: 0 | W42: 0 | X42: 0 | Y42: 0.4223309754 | AA42: 0 | AB42: 0 | AD42: 0.2888345123 | AE42: 0.5 | AG42: 0.2888345123 | AH42: 0.5
A43: 8 | B43: 0.4223309754 | C43: 0 | D43: 0 | E43: 0.2888345123 | F43: 0.2888345123 | G43: 0 | H43: 0.4223309754 | I43: 0 | J43: 0 | L43: 0 | M43: 0.5 | N43: 0.5 | Q43: 0 | R43: 1 | S43: 1 | U43: 0 | W43: 0 | X43: 0 | Y43: 0.4223309754 | AA43: 0 | AB43: 0 | AD43: 0.2888345123 | AE43: 0.5 | AG43: 0.2888345123 | AH43: 0.5
A44: 9 | B44: 0.4223309754 | C44: 0 | D44: 0 | E44: 0.2888345123 | F44: 0.2888345123 | G44: 0 | H44: 0.4223309754 | I44: 0 | J44: 0 | L44: 0 | M44: 0.5 | N44: 0.5 | Q44: 0 | R44: 1 | S44: 1 | U44: 0 | W44: 0 | X44: 0 | Y44: 0.4223309754 | AA44: 0 | AB44: 0 | AD44: 0.2888345123 | AE44: 0.5 | AG44: 0.2888345123 | AH44: 0.5
A45: 10 | B45: 0.4223309754 | C45: 0 | D45: 0 | E45: 0.2888345123 | F45: 0.2888345123 | G45: 0 | H45: 0.4223309754 | I45: 0 | J45: 0 | L45: 0 | M45: 0.5 | N45: 0.5 | Q45: 0 | R45: 1 | S45: 1 | U45: 0 | W45: 0 | X45: 0 | Y45: 0.4223309754 | AA45: 0 | AB45: 0 | AD45: 0.2888345123 | AE45: 0.5 | AG45: 0.2888345123 | AH45: 0.5
A46: 11 | B46: 0.4223309754 | C46: 0 | D46: 0 | E46: 0.2888345123 | F46: 0.2888345123 | G46: 0 | H46: 0.4223309754 | I46: 0 | J46: 0 | L46: 0 | M46: 0.5 | N46: 0.5 | Q46: 0 | R46: 1 | S46: 1 | U46: 0 | W46: 0 | X46: 0 | Y46: 0.4223309754 | AA46: 0 | AB46: 0 | AD46: 0.2888345123 | AE46: 0.5 | AG46: 0.2888345123 | AH46: 0.5
A47: 12 | B47: 0.4223309754 | C47: 0 | D47: 0 | E47: 0.2888345123 | F47: 0.2888345123 | G47: 0 | H47: 0.4223309754 | I47: 0 | J47: 0 | L47: 0 | M47: 0.5 | N47: 0.5 | Q47: 0 | R47: 1 | S47: 1 | U47: 0 | W47: 0 | X47: 0 | Y47: 0.4223309754 | AA47: 0 | AB47: 0 | AD47: 0.2888345123 | AE47: 0.5 | AG47: 0.2888345123 | AH47: 0.5
A48: 13 | B48: 0.4223309754 | C48: 0 | D48: 0 | E48: 0.2888345123 | F48: 0.2888345123 | G48: 0 | H48: 0.4223309754 | I48: 0 | J48: 0 | L48: 0 | M48: 0.5 | N48: 0.5 | Q48: 0 | R48: 1 | S48: 1 | U48: 0 | W48: 0 | X48: 0 | Y48: 0.4223309754 | AA48: 0 | AB48: 0 | AD48: 0.2888345123 | AE48: 0.5 | AG48: 0.2888345123 | AH48: 0.5
A49: 14 | B49: 0.4223309754 | C49: 0 | D49: 0 | E49: 0.2888345123 | F49: 0.2888345123 | G49: 0 | H49: 0.4223309754 | I49: 0 | J49: 0 | L49: 0 | M49: 0.5 | N49: 0.5 | Q49: 0 | R49: 1 | S49: 1 | U49: 0 | W49: 0 | X49: 0 | Y49: 0.4223309754 | AA49: 0 | AB49: 0 | AD49: 0.2888345123 | AE49: 0.5 | AG49: 0.2888345123 | AH49: 0.5
A50: 15 | B50: 0.4223309754 | C50: 0 | D50: 0 | E50: 0.2888345123 | F50: 0.2888345123 | G50: 0 | H50: 0.4223309754 | I50: 0 | J50: 0 | L50: 0 | M50: 0.5 | N50: 0.5 | Q50: 0 | R50: 1 | S50: 1 | U50: 0 | W50: 0 | X50: 0 | Y50: 0.4223309754 | AA50: 0 | AB50: 0 | AD50: 0.2888345123 | AE50: 0.5 | AG50: 0.2888345123 | AH50: 0.5
A51: 16 | B51: 0.4223309754 | C51: 0 | D51: 0 | E51: 0.2888345123 | F51: 0.2888345123 | G51: 0 | H51: 0.4223309754 | I51: 0 | J51: 0 | L51: 0 | M51: 0.5 | N51: 0.5 | Q51: 0 | R51: 1 | S51: 1 | U51: 0 | W51: 0 | X51: 0 | Y51: 0.4223309754 | AA51: 0 | AB51: 0 | AD51: 0.2888345123 | AE51: 0.5 | AG51: 0.2888345123 | AH51: 0.5
A52: 17 | B52: 0.4223309754 | C52: 0 | D52: 0 | E52: 0.2888345123 | F52: 0.2888345123 | G52: 0 | H52: 0.4223309754 | I52: 0 | J52: 0 | L52: 0 | M52: 0.5 | N52: 0.5 | Q52: 0 | R52: 1 | S52: 1 | U52: 0 | W52: 0 | X52: 0 | Y52: 0.4223309754 | AA52: 0 | AB52: 0 | AD52: 0.2888345123 | AE52: 0.5 | AG52: 0.2888345123 | AH52: 0.5
A53: 18 | B53: 0.4223309754 | C53: 0 | D53: 0 | E53: 0.2888345123 | F53: 0.2888345123 | G53: 0 | H53: 0.4223309754 | I53: 0 | J53: 0 | L53: 0 | M53: 0.5 | N53: 0.5 | Q53: 0 | R53: 1 | S53: 1 | U53: 0 | W53: 0 | X53: 0 | Y53: 0.4223309754 | AA53: 0 | AB53: 0 | AD53: 0.2888345123 | AE53: 0.5 | AG53: 0.2888345123 | AH53: 0.5
A54: 19 | B54: 0.4223309754 | C54: =W53 -> 0 | D54: 0 | E54: 0.2888345123 | F54: 0.2888345123 | G54: 0 | H54: 0.4223309754 | I54: 0 | J54: 0 | L54: 0 | M54: 0.5 | N54: 0.5 | Q54: 0 | R54: 1 | S54: 1 | U54: 0 | W54: 0 | X54: 0 | Y54: 0.4223309754 | AA54: 0 | AB54: 0 | AD54: 0.2888345123 | AE54: 0.5 | AG54: 0.2888345123 | AH54: 0.5
A55: 20 | B55: 0.4223309754 | C55: 0 | D55: 0 | E55: 0.2888345123 | F55: 0.2888345123 | G55: 0 | H55: 0.4223309754 | I55: 0 | J55: 0 | L55: 0 | M55: 0.5 | N55: 0.5 | Q55: 0 | R55: 1 | S55: 1 | U55: 0 | W55: 0 | X55: 0 | Y55: 0.4223309754 | AA55: 0 | AB55: 0 | AD55: 0.2888345123 | AE55: 0.5 | AG55: 0.2888345123 | AH55: 0.5
A56: 21 | B56: 0.4223309754 | C56: 0 | D56: 0 | E56: 0.2888345123 | F56: 0.2888345123 | G56: 0 | H56: 0.4223309754 | I56: 0 | J56: 0 | L56: 0 | M56: 0.5 | N56: 0.5 | Q56: 0 | R56: 1 | S56: 1 | U56: 0 | W56: 0 | X56: 0 | Y56: 0.4223309754 | AA56: 0 | AB56: 0 | AD56: 0.2888345123 | AE56: 0.5 | AG56: 0.2888345123 | AH56: 0.5
A57: 22 | B57: 0.4223309754 | C57: 0 | D57: 0 | E57: 0.2888345123 | F57: 0.2888345123 | G57: 0 | H57: 0.4223309754 | I57: 0 | J57: 0 | L57: 0 | M57: 0.5 | N57: 0.5 | Q57: 0 | R57: 1 | S57: 1 | U57: 0 | W57: 0 | X57: 0 | Y57: 0.4223309754 | AA57: 0 | AB57: 0 | AD57: 0.2888345123 | AE57: 0.5 | AG57: 0.2888345123 | AH57: 0.5
A58: 23 | B58: 0.4223309754 | C58: 0 | D58: 0 | E58: 0.2888345123 | F58: 0.2888345123 | G58: 0 | H58: 0.4223309754 | I58: 0 | J58: 0 | L58: 0 | M58: 0.5 | N58: 0.5 | Q58: 0 | R58: 1 | S58: 1 | U58: 0 | W58: 0 | X58: 0 | Y58: 0.4223309754 | AA58: 0 | AB58: 0 | AD58: 0.2888345123 | AE58: 0.5 | AG58: 0.2888345123 | AH58: 0.5
A59: 24 | B59: 0.4223309754 | C59: 0 | D59: 0 | E59: 0.2888345123 | F59: 0.2888345123 | G59: 0 | H59: 0.4223309754 | I59: 0 | J59: 0 | L59: 0 | M59: 0.5 | N59: 0.5 | Q59: 0 | R59: 1 | S59: 1 | U59: 0 | W59: 0 | X59: 0 | Y59: 0.4223309754 | AA59: 0 | AB59: 0 | AD59: 0.2888345123 | AE59: 0.5 | AG59: 0.2888345123 | AH59: 0.5
A60: 25 | B60: 0.4223309754 | C60: 0 | D60: 0 | E60: 0.2888345123 | F60: 0.2888345123 | G60: 0 | H60: 0.4223309754 | I60: 0 | J60: 0 | L60: 0 | M60: 0.5 | N60: 0.5 | Q60: 0 | R60: 1 | S60: 1 | U60: 0 | W60: 0 | X60: 0 | Y60: 0.4223309754 | AA60: 0 | AB60: 0 | AD60: 0.2888345123 | AE60: 0.5 | AG60: 0.2888345123 | AH60: 0.5
A61: 26 | B61: 0.4223309754 | C61: 0 | D61: 0 | E61: 0.2888345123 | F61: 0.2888345123 | G61: 0 | H61: 0.4223309754 | I61: 0 | J61: 0 | L61: 0 | M61: 0.5 | N61: 0.5 | Q61: 0 | R61: 1 | S61: 1 | U61: 0 | W61: 0 | X61: 0 | Y61: 0.4223309754 | AA61: 0 | AB61: 0 | AD61: 0.2888345123 | AE61: 0.5 | AG61: 0.2888345123 | AH61: 0.5
A62: 27 | B62: 0.4223309754 | C62: 0 | D62: 0 | E62: 0.2888345123 | F62: 0.2888345123 | G62: 0 | H62: 0.4223309754 | I62: 0 | J62: 0 | L62: 0 | M62: 0.5 | N62: 0.5 | Q62: 0 | R62: 1 | S62: 1 | U62: 0 | W62: 0 | X62: 0 | Y62: 0.4223309754 | AA62: 0 | AB62: 0 | AD62: 0.2888345123 | AE62: 0.5 | AG62: 0.2888345123 | AH62: 0.5
A63: 28 | B63: 0.4223309754 | C63: 0 | D63: 0 | E63: 0.2888345123 | F63: 0.2888345123 | G63: 0 | H63: 0.4223309754 | I63: 0 | J63: 0 | L63: 0 | M63: 0.5 | N63: 0.5 | Q63: 0 | R63: 1 | S63: 1 | U63: 0 | W63: 0 | X63: 0 | Y63: 0.4223309754 | AA63: 0 | AB63: 0 | AD63: 0.2888345123 | AE63: 0.5 | AG63: 0.2888345123 | AH63: 0.5
A64: 29 | B64: 0.4223309754 | C64: 0 | D64: 0 | E64: 0.2888345123 | F64: 0.2888345123 | G64: 0 | H64: 0.4223309754 | I64: 0 | J64: 0 | L64: 0 | M64: 0.5 | N64: 0.5 | Q64: 0 | R64: 1 | S64: 1 | U64: 0 | W64: 0 | X64: 0 | Y64: 0.4223309754 | AA64: 0 | AB64: 0 | AD64: 0.2888345123 | AE64: 0.5 | AG64: 0.2888345123 | AH64: 0.5
A65: 30 | B65: 0.4223309754 | C65: 0 | D65: 0 | E65: 0.2888345123 | F65: 0.2888345123 | G65: 0 | H65: 0.4223309754 | I65: 0 | J65: 0 | L65: 0 | M65: 0.5 | N65: 0.5 | Q65: 0 | R65: 1 | S65: 1 | U65: 0 | W65: 0 | X65: 0 | Y65: 0.4223309754 | AA65: 0 | AB65: 0 | AD65: 0.2888345123 | AE65: 0.5 | AG65: 0.2888345123 | AH65: 0.5
A66: 31 | B66: 0.4223309754 | C66: 0 | D66: 0 | E66: 0.2888345123 | F66: 0.2888345123 | G66: 0 | H66: 0.4223309754 | I66: 0 | J66: 0 | L66: 0 | M66: 0.5 | N66: 0.5 | Q66: 0 | R66: 1 | S66: 1 | U66: 0 | W66: 0 | X66: 0 | Y66: 0.4223309754 | AA66: 0 | AB66: 0 | AD66: 0.2888345123 | AE66: 0.5 | AG66: 0.2888345123 | AH66: 0.5
A67: 32 | B67: 0.4223309754 | C67: 0 | D67: 0 | E67: 0.2888345123 | F67: 0.2888345123 | G67: 0 | H67: 0.4223309754 | I67: 0 | J67: 0 | L67: 0 | M67: 0.5 | N67: 0.5 | Q67: 0 | R67: 1 | S67: 1 | U67: 0 | W67: 0 | X67: 0 | Y67: 0.4223309754 | AA67: 0 | AB67: 0 | AD67: 0.2888345123 | AE67: 0.5 | AG67: 0.2888345123 | AH67: 0.5
A68: 33 | B68: 0.4223309754 | C68: 0 | D68: 0 | E68: 0.2888345123 | F68: 0.2888345123 | G68: 0 | H68: 0.4223309754 | I68: 0 | J68: 0 | L68: 0 | M68: 0.5 | N68: 0.5 | Q68: 0 | R68: 1 | S68: 1 | U68: 0 | W68: 0 | X68: 0 | Y68: 0.4223309754 | AA68: 0 | AB68: 0 | AD68: 0.2888345123 | AE68: 0.5 | AG68: 0.2888345123 | AH68: 0.5
A69: 34 | B69: 0.4223309754 | C69: 0 | D69: 0 | E69: 0.2888345123 | F69: 0.2888345123 | G69: 0 | H69: 0.4223309754 | I69: 0 | J69: 0 | L69: 0 | M69: 0.5 | N69: 0.5 | Q69: 0 | R69: 1 | S69: 1 | U69: 0 | W69: 0 | X69: 0 | Y69: 0.4223309754 | AA69: 0 | AB69: 0 | AD69: 0.2888345123 | AE69: 0.5 | AG69: 0.2888345123 | AH69: 0.5
A70: 35 | B70: 0.4223309754 | C70: 0 | D70: 0 | E70: 0.2888345123 | F70: 0.2888345123 | G70: 0 | H70: 0.4223309754 | I70: 0 | J70: 0 | L70: 0 | M70: 0.5 | N70: 0.5 | Q70: 0 | R70: 1 | S70: 1 | U70: 0 | W70: 0 | X70: 0 | Y70: 0.4223309754 | AA70: 0 | AB70: 0 | AD70: 0.2888345123 | AE70: 0.5 | AG70: 0.2888345123 | AH70: 0.5
A71: 36 | B71: 0.4223309754 | C71: 0 | D71: 0 | E71: 0.2888345123 | F71: 0.2888345123 | G71: 0 | H71: 0.4223309754 | I71: 0 | J71: 0 | L71: 0 | M71: 0.5 | N71: 0.5 | Q71: 0 | R71: 1 | S71: 1 | U71: 0 | W71: 0 | X71: 0 | Y71: 0.4223309754 | AA71: 0 | AB71: 0 | AD71: 0.2888345123 | AE71: 0.5 | AG71: 0.2888345123 | AH71: 0.5
A72: 37 | B72: 0.4223309754 | C72: 0 | D72: 0 | E72: 0.2888345123 | F72: 0.2888345123 | G72: 0 | H72: 0.4223309754 | I72: 0 | J72: 0 | L72: 0 | M72: 0.5 | N72: 0.5 | Q72: 0 | R72: 1 | S72: 1 | U72: 0 | W72: 0 | X72: 0 | Y72: 0.4223309754 | AA72: 0 | AB72: 0 | AD72: 0.2888345123 | AE72: 0.5 | AG72: 0.2888345123 | AH72: 0.5
A73: 38 | B73: 0.4223309754 | C73: 0 | D73: 0 | E73: 0.2888345123 | F73: 0.2888345123 | G73: 0 | H73: 0.4223309754 | I73: 0 | J73: 0 | L73: 0 | M73: 0.5 | N73: 0.5 | Q73: 0 | R73: 1 | S73: 1 | U73: 0 | W73: 0 | X73: 0 | Y73: 0.4223309754 | AA73: 0 | AB73: 0 | AD73: 0.2888345123 | AE73: 0.5 | AG73: 0.2888345123 | AH73: 0.5
A74: 39 | B74: 0.4223309754 | C74: 0 | D74: 0 | E74: 0.2888345123 | F74: 0.2888345123 | G74: 0 | H74: 0.4223309754 | I74: 0 | J74: 0 | L74: 0 | M74: 0.5 | N74: 0.5 | Q74: 0 | R74: 1 | S74: 1 | U74: 0 | W74: 0 | X74: 0 | Y74: 0.4223309754 | AA74: 0 | AB74: 0 | AD74: 0.2888345123 | AE74: 0.5 | AG74: 0.2888345123 | AH74: 0.5
A75: 40 | B75: 0.4223309754 | C75: 0 | D75: 0 | E75: 0.2888345123 | F75: 0.2888345123 | G75: 0 | H75: 0.4223309754 | I75: 0 | J75: 0 | L75: 0 | M75: 0.5 | N75: 0.5 | Q75: 0 | R75: 1 | S75: 1 | U75: 0 | W75: 0 | X75: 0 | Y75: 0.4223309754 | AA75: 0 | AB75: 0 | AD75: 0.2888345123 | AE75: 0.5 | AG75: 0.2888345123 | AH75: 0.5
A76: 41 | B76: 0.4223309754 | C76: 0 | D76: 0 | E76: 0.2888345123 | F76: 0.2888345123 | G76: 0 | H76: 0.4223309754 | I76: 0 | J76: 0 | L76: 0 | M76: 0.5 | N76: 0.5 | Q76: 0 | R76: 1 | S76: 1 | U76: 0 | W76: 0 | X76: 0 | Y76: 0.4223309754 | AA76: 0 | AB76: 0 | AD76: 0.2888345123 | AE76: 0.5 | AG76: 0.2888345123 | AH76: 0.5
A77: 42 | B77: 0.4223309754 | C77: 0 | D77: 0 | E77: 0.2888345123 | F77: 0.2888345123 | G77: 0 | H77: 0.4223309754 | I77: 0 | J77: 0 | L77: 0 | M77: 0.5 | N77: 0.5 | Q77: 0 | R77: 1 | S77: 1 | U77: 0 | W77: 0 | X77: 0 | Y77: 0.4223309754 | AA77: 0 | AB77: 0 | AD77: 0.2888345123 | AE77: 0.5 | AG77: 0.2888345123 | AH77: 0.5
A78: 43 | B78: 0.4223309754 | C78: 0 | D78: 0 | E78: 0.2888345123 | F78: 0.2888345123 | G78: 0 | H78: 0.4223309754 | I78: 0 | J78: 0 | L78: 0 | M78: 0.5 | N78: 0.5 | Q78: 0 | R78: 1 | S78: 1 | U78: 0 | W78: 0 | X78: 0 | Y78: 0.4223309754 | AA78: 0 | AB78: 0 | AD78: 0.2888345123 | AE78: 0.5 | AG78: 0.2888345123 | AH78: 0.5
A79: 44 | B79: 0.4223309754 | C79: 0 | D79: 0 | E79: 0.2888345123 | F79: 0.2888345123 | G79: 0 | H79: 0.4223309754 | I79: 0 | J79: 0 | L79: 0 | M79: 0.5 | N79: 0.5 | Q79: 0 | R79: 1 | S79: 1 | U79: 0 | W79: 0 | X79: 0 | Y79: 0.4223309754 | AA79: 0 | AB79: 0 | AD79: 0.2888345123 | AE79: 0.5 | AG79: 0.2888345123 | AH79: 0.5
A80: 45 | B80: 0.4223309754 | C80: 0 | D80: 0 | E80: 0.2888345123 | F80: 0.2888345123 | G80: 0 | H80: 0.4223309754 | I80: 0 | J80: 0 | L80: 0 | M80: 0.5 | N80: 0.5 | Q80: 0 | R80: 1 | S80: 1 | U80: 0 | W80: 0 | X80: 0 | Y80: 0.4223309754 | AA80: 0 | AB80: 0 | AD80: 0.2888345123 | AE80: 0.5 | AG80: 0.2888345123 | AH80: 0.5
A81: 46 | B81: 0.4223309754 | C81: 0 | D81: 0 | E81: 0.2888345123 | F81: 0.2888345123 | G81: 0 | H81: 0.4223309754 | I81: 0 | J81: 0 | L81: 0 | M81: 0.5 | N81: 0.5 | Q81: 0 | R81: 1 | S81: 1 | U81: 0 | W81: 0 | X81: 0 | Y81: 0.4223309754 | AA81: 0 | AB81: 0 | AD81: 0.2888345123 | AE81: 0.5 | AG81: 0.2888345123 | AH81: 0.5
A82: 47 | B82: 0.4223309754 | C82: 0 | D82: 0 | E82: 0.2888345123 | F82: 0.2888345123 | G82: 0 | H82: 0.4223309754 | I82: 0 | J82: 0 | L82: 0 | M82: 0.5 | N82: 0.5 | Q82: 0 | R82: 1 | S82: 1 | U82: 0 | W82: 0 | X82: 0 | Y82: 0.4223309754 | AA82: 0 | AB82: 0 | AD82: 0.2888345123 | AE82: 0.5 | AG82: 0.2888345123 | AH82: 0.5
A83: 48 | B83: 0.4223309754 | C83: 0 | D83: 0 | E83: 0.2888345123 | F83: 0.2888345123 | G83: 0 | H83: 0.4223309754 | I83: 0 | J83: 0 | L83: 0 | M83: 0.5 | N83: 0.5 | Q83: 0 | R83: 1 | S83: 1 | U83: 0 | W83: 0 | X83: 0 | Y83: 0.4223309754 | AA83: 0 | AB83: 0 | AD83: 0.2888345123 | AE83: 0.5 | AG83: 0.2888345123 | AH83: 0.5
A84: 49 | B84: 0.4223309754 | C84: 0 | D84: 0 | E84: 0.2888345123 | F84: 0.2888345123 | G84: 0 | H84: 0.4223309754 | I84: 0 | J84: 0 | L84: 0 | M84: 0.5 | N84: 0.5 | Q84: 0 | R84: 1 | S84: 1 | U84: 0 | W84: 0 | X84: 0 | Y84: 0.4223309754 | AA84: 0 | AB84: 0 | AD84: 0.2888345123 | AE84: 0.5 | AG84: 0.2888345123 | AH84: 0.5
A85: 50 | B85: 0.4223309754 | C85: 0 | D85: 0 | E85: 0.2888345123 | F85: 0.2888345123 | G85: 0 | H85: 0.4223309754 | I85: 0 | J85: 0 | L85: 0 | M85: 0.5 | N85: 0.5 | Q85: 0 | R85: 1 | S85: 1 | U85: 0 | W85: 0 | X85: 0 | Y85: 0.4223309754 | AA85: 0 | AB85: 0 | AD85: 0.2888345123 | AE85: 0.5 | AG85: 0.2888345123 | AH85: 0.5
A86: 51 | B86: 0.4223309754 | C86: 0 | D86: 0 | E86: 0.2888345123 | F86: 0.2888345123 | G86: 0 | H86: 0.4223309754 | I86: 0 | J86: 0 | L86: 0 | M86: 0.5 | N86: 0.5 | Q86: 0 | R86: 1 | S86: 1 | U86: 0 | W86: 0 | X86: 0 | Y86: 0.4223309754 | AA86: 0 | AB86: 0 | AD86: 0.2888345123 | AE86: 0.5 | AG86: 0.2888345123 | AH86: 0.5
A87: 52 | B87: 0.4223309754 | C87: 0 | D87: 0 | E87: 0.2888345123 | F87: 0.2888345123 | G87: 0 | H87: 0.4223309754 | I87: 0 | J87: 0 | L87: 0 | M87: 0.5 | N87: 0.5 | Q87: 0 | R87: 1 | S87: 1 | U87: 0 | W87: 0 | X87: 0 | Y87: 0.4223309754 | AA87: 0 | AB87: 0 | AD87: 0.2888345123 | AE87: 0.5 | AG87: 0.2888345123 | AH87: 0.5
A88: 53 | B88: 0.4223309754 | C88: 0 | D88: 0 | E88: 0.2888345123 | F88: 0.2888345123 | G88: 0 | H88: 0.4223309754 | I88: 0 | J88: 0 | L88: 0 | M88: 0.5 | N88: 0.5 | Q88: 0 | R88: 1 | S88: 1 | U88: 0 | W88: 0 | X88: 0 | Y88: 0.4223309754 | AA88: 0 | AB88: 0 | AD88: 0.2888345123 | AE88: 0.5 | AG88: 0.2888345123 | AH88: 0.5
A89: 54 | B89: 0.4223309754 | C89: 0 | D89: 0 | E89: 0.2888345123 | F89: 0.2888345123 | G89: 0 | H89: 0.4223309754 | I89: 0 | J89: 0 | L89: 0 | M89: 0.5 | N89: 0.5 | Q89: 0 | R89: 1 | S89: 1 | U89: 0 | W89: 0 | X89: 0 | Y89: 0.4223309754 | AA89: 0 | AB89: 0 | AD89: 0.2888345123 | AE89: 0.5 | AG89: 0.2888345123 | AH89: 0.5
A90: 55 | B90: 0.4223309754 | C90: 0 | D90: 0 | E90: 0.2888345123 | F90: 0.2888345123 | G90: 0 | H90: 0.4223309754 | I90: 0 | J90: 0 | L90: 0 | M90: 0.5 | N90: 0.5 | Q90: 0 | R90: 1 | S90: 1 | U90: 0 | W90: 0 | X90: 0 | Y90: 0.4223309754 | AA90: 0 | AB90: 0 | AD90: 0.2888345123 | AE90: 0.5 | AG90: 0.2888345123 | AH90: 0.5
A91: 56 | B91: 0.4223309754 | C91: 0 | D91: 0 | E91: 0.2888345123 | F91: 0.2888345123 | G91: 0 | H91: 0.4223309754 | I91: 0 | J91: 0 | L91: 0 | M91: 0.5 | N91: 0.5 | Q91: 0 | R91: 1 | S91: 1 | U91: 0 | W91: 0 | X91: 0 | Y91: 0.4223309754 | AA91: 0 | AB91: 0 | AD91: 0.2888345123 | AE91: 0.5 | AG91: 0.2888345123 | AH91: 0.5
A92: 57 | B92: 0.4223309754 | C92: 0 | D92: 0 | E92: 0.2888345123 | F92: 0.2888345123 | G92: 0 | H92: 0.4223309754 | I92: 0 | J92: 0 | L92: 0 | M92: 0.5 | N92: 0.5 | Q92: 0 | R92: 1 | S92: 1 | U92: 0 | W92: 0 | X92: 0 | Y92: 0.4223309754 | AA92: 0 | AB92: 0 | AD92: 0.2888345123 | AE92: 0.5 | AG92: 0.2888345123 | AH92: 0.5
A93: 58 | B93: 0.4223309754 | C93: 0 | D93: 0 | E93: 0.2888345123 | F93: 0.2888345123 | G93: 0 | H93: 0.4223309754 | I93: 0 | J93: 0 | L93: 0 | M93: 0.5 | N93: 0.5 | Q93: 0 | R93: 1 | S93: 1 | U93: 0 | W93: 0 | X93: 0 | Y93: 0.4223309754 | AA93: 0 | AB93: 0 | AD93: 0.2888345123 | AE93: 0.5 | AG93: 0.2888345123 | AH93: 0.5
A94: 59 | B94: 0.4223309754 | C94: 0 | D94: 0 | E94: 0.2888345123 | F94: 0.2888345123 | G94: 0 | H94: 0.4223309754 | I94: 0 | J94: 0 | L94: 0 | M94: 0.5 | N94: 0.5 | Q94: 0 | R94: 1 | S94: 1 | U94: 0 | W94: 0 | X94: 0 | Y94: 0.4223309754 | AA94: 0 | AB94: 0 | AD94: 0.2888345123 | AE94: 0.5 | AG94: 0.2888345123 | AH94: 0.5
A95: 60 | B95: 0.4223309754 | C95: 0 | D95: 0 | E95: 0.2888345123 | F95: 0.2888345123 | G95: 0 | H95: 0.4223309754 | I95: 0 | J95: 0 | L95: 0 | M95: 0.5 | N95: 0.5 | Q95: 0 | R95: 1 | S95: 1 | U95: 0 | W95: 0 | X95: 0 | Y95: 0.4223309754 | AA95: 0 | AB95: 0 | AD95: 0.2888345123 | AE95: 0.5 | AG95: 0.2888345123 | AH95: 0.5
A96: 61 | B96: 0.4223309754 | C96: 0 | D96: 0 | E96: 0.2888345123 | F96: 0.2888345123 | G96: 0 | H96: 0.4223309754 | I96: 0 | J96: 0 | L96: 0 | M96: 0.5 | N96: 0.5 | Q96: 0 | R96: 1 | S96: 1 | U96: 0 | W96: 0 | X96: 0 | Y96: 0.4223309754 | AA96: 0 | AB96: 0 | AD96: 0.2888345123 | AE96: 0.5 | AG96: 0.2888345123 | AH96: 0.5
A97: 62 | B97: 0.4223309754 | C97: 0 | D97: 0 | E97: 0.2888345123 | F97: 0.2888345123 | G97: 0 | H97: 0.4223309754 | I97: 0 | J97: 0 | L97: 0 | M97: 0.5 | N97: 0.5 | Q97: 0 | R97: 1 | S97: 1 | U97: 0 | W97: 0 | X97: 0 | Y97: 0.4223309754 | AA97: 0 | AB97: 0 | AD97: 0.2888345123 | AE97: 0.5 | AG97: 0.2888345123 | AH97: 0.5
A98: 63 | B98: 0.4223309754 | C98: 0 | D98: 0 | E98: 0.2888345123 | F98: 0.2888345123 | G98: 0 | H98: 0.4223309754 | I98: 0 | J98: 0 | L98: 0 | M98: 0.5 | N98: 0.5 | Q98: 0 | R98: 1 | S98: 1 | U98: 0 | W98: 0 | X98: 0 | Y98: 0.4223309754 | AA98: 0 | AB98: 0 | AD98: 0.2888345123 | AE98: 0.5 | AG98: 0.2888345123 | AH98: 0.5
A99: 64 | B99: 0.4223309754 | C99: 0 | D99: 0 | E99: 0.2888345123 | F99: 0.2888345123 | G99: 0 | H99: =SQRT($B$9*F99*E99) -> 0.4223309754 | I99: =SQRT($D$9*G99*F99) -> 0 | J99: =SQRT($F$9*G99*E99) -> 0 | L99: =G99+0.5*I99+0.5*J99 -> 0 | M99: =F99+0.5*I99+0.5*H99 -> 0.5 | N99: =E99+0.5*J99+0.5*H99 -> 0.5 | Q99: 0 | R99: 1 | S99: 1 | U99: 0 | W99: 0 | X99: 0 | Y99: 0.4223309754 | AA99: 0 | AB99: 0 | AD99: 0.2888345123 | AE99: 0.5 | AG99: 0.2888345123 | AH99: 0.5
A100: 65 | B100: 0.4223309754 | C100: 0 | D100: 0 | E100: =AG99 -> 0.2888345123 | F100: =AD99 -> 0.2888345123 | G100: 0 | H100: 0.4223309754 | I100: 0 | J100: 0 | L100: 0 | M100: 0.5 | N100: 0.5 | Q100: =IF($G$35=0,0,$G$35/L100) -> 0 | R100: =IF($F$35=0,0,$F$35/M100) -> 1 | S100: =IF($E$35=0,0,$E$35/N100) -> 1 | U100: =MIN(Q100:S100) -> 0 | W100: =MIN(Q100,R100)*I100 -> 0 | X100: =MIN(Q100,S100)*J100 -> 0 | Y100: =MIN(R100,S100)*H100 -> 0.4223309754 | AA100: =$G$35-0.5*SUM(W100,X100) -> 0 | AB100: 0 | AD100: 0.2888345123 | AE100: 0.5 | AG100: 0.2888345123 | AH100: 0.5
A101: 66 | B101: =Y100 -> 0.4223309754 | C101: 0 | D101: 0 | E101: 0.2888345123 | F101: 0.2888345123 | G101: 0 | H101: 0.4223309754 | I101: 0 | J101: 0 | L101: 0 | M101: 0.5 | N101: 0.5 | Q101: 0 | R101: 1 | S101: 1 | U101: 0 | W101: 0 | X101: 0 | Y101: 0.4223309754 | AA101: 0 | AB101: =0.5*W101+0.5*X101+AA101 -> 0 | AD101: =$F$35-0.5*SUM(W101,Y101) -> 0.2888345123 | AE101: =0.5*W101+0.5*Y101+AD101 -> 0.5 | AG101: =$E$35-0.5*SUM(X101:Y101) -> 0.2888345123 | AH101: =0.5*X101+0.5*Y101+AG101 -> 0.5
A102: 67 | B102: 0.4223309754 | C102: 0 | D102: 0 | E102: 0.2888345123 | F102: 0.2888345123 | G102: =AA101 -> 0 | H102: 0.4223309754 | I102: 0 | J102: 0 | L102: 0 | M102: 0.5 | N102: 0.5 | Q102: 0 | R102: 1 | S102: 1 | U102: 0 | W102: 0 | X102: 0 | Y102: 0.4223309754 | AA102: 0 | AB102: 0 | AD102: 0.2888345123 | AE102: 0.5 | AG102: 0.2888345123 | AH102: 0.5
A103: 68 | B103: 0.4223309754 | C103: 0 | D103: 0 | E103: 0.2888345123 | F103: 0.2888345123 | G103: 0 | H103: 0.4223309754 | I103: 0 | J103: 0 | L103: 0 | M103: 0.5 | N103: 0.5 | Q103: 0 | R103: 1 | S103: 1 | U103: 0 | W103: 0 | X103: 0 | Y103: 0.4223309754 | AA103: 0 | AB103: 0 | AD103: 0.2888345123 | AE103: 0.5 | AG103: 0.2888345123 | AH103: 0.5
A104: 69 | B104: 0.4223309754 | C104: 0 | D104: 0 | E104: 0.2888345123 | F104: 0.2888345123 | G104: 0 | H104: 0.4223309754 | I104: 0 | J104: 0 | L104: 0 | M104: 0.5 | N104: 0.5 | Q104: 0 | R104: 1 | S104: 1 | U104: 0 | W104: 0 | X104: 0 | Y104: 0.4223309754 | AA104: 0 | AB104: 0 | AD104: 0.2888345123 | AE104: 0.5 | AG104: 0.2888345123 | AH104: 0.5
A105: 70 | B105: 0.4223309754 | C105: 0 | D105: 0 | E105: 0.2888345123 | F105: 0.2888345123 | G105: 0 | H105: 0.4223309754 | I105: 0 | J105: 0 | L105: 0 | M105: 0.5 | N105: 0.5 | Q105: 0 | R105: 1 | S105: 1 | U105: 0 | W105: 0 | X105: 0 | Y105: 0.4223309754 | AA105: 0 | AB105: 0 | AD105: 0.2888345123 | AE105: 0.5 | AG105: 0.2888345123 | AH105: 0.5
A106: 71 | B106: 0.4223309754 | C106: 0 | D106: 0 | E106: 0.2888345123 | F106: 0.2888345123 | G106: 0 | H106: 0.4223309754 | I106: 0 | J106: 0 | L106: 0 | M106: 0.5 | N106: 0.5 | Q106: 0 | R106: 1 | S106: 1 | U106: 0 | W106: 0 | X106: 0 | Y106: 0.4223309754 | AA106: 0 | AB106: 0 | AD106: 0.2888345123 | AE106: 0.5 | AG106: 0.2888345123 | AH106: 0.5
A107: 72 | B107: 0.4223309754 | C107: 0 | D107: 0 | E107: 0.2888345123 | F107: 0.2888345123 | G107: 0 | H107: 0.4223309754 | I107: 0 | J107: 0 | L107: 0 | M107: 0.5 | N107: 0.5 | Q107: 0 | R107: 1 | S107: 1 | U107: 0 | W107: 0 | X107: 0 | Y107: 0.4223309754 | AA107: 0 | AB107: 0 | AD107: 0.2888345123 | AE107: 0.5 | AG107: 0.2888345123 | AH107: 0.5
A108: 73 | B108: 0.4223309754 | C108: 0 | D108: 0 | E108: 0.2888345123 | F108: 0.2888345123 | G108: 0 | H108: 0.4223309754 | I108: 0 | J108: 0 | L108: 0 | M108: 0.5 | N108: 0.5 | Q108: 0 | R108: 1 | S108: 1 | U108: 0 | W108: 0 | X108: 0 | Y108: 0.4223309754 | AA108: 0 | AB108: 0 | AD108: 0.2888345123 | AE108: 0.5 | AG108: 0.2888345123 | AH108: 0.5
A109: 74 | B109: 0.4223309754 | C109: 0 | D109: 0 | E109: 0.2888345123 | F109: 0.2888345123 | G109: 0 | H109: 0.4223309754 | I109: 0 | J109: 0 | L109: 0 | M109: 0.5 | N109: 0.5 | Q109: 0 | R109: 1 | S109: 1 | U109: 0 | W109: 0 | X109: 0 | Y109: 0.4223309754 | AA109: 0 | AB109: 0 | AD109: 0.2888345123 | AE109: 0.5 | AG109: 0.2888345123 | AH109: 0.5
A110: 75 | B110: 0.4223309754 | C110: 0 | D110: 0 | E110: 0.2888345123 | F110: 0.2888345123 | G110: 0 | H110: 0.4223309754 | I110: 0 | J110: 0 | L110: 0 | M110: 0.5 | N110: 0.5 | Q110: 0 | R110: 1 | S110: 1 | U110: 0 | W110: 0 | X110: 0 | Y110: 0.4223309754 | AA110: 0 | AB110: 0 | AD110: 0.2888345123 | AE110: 0.5 | AG110: 0.2888345123 | AH110: 0.5
A111: 76 | B111: 0.4223309754 | C111: 0 | D111: 0 | E111: 0.2888345123 | F111: 0.2888345123 | G111: 0 | H111: 0.4223309754 | I111: 0 | J111: 0 | L111: 0 | M111: 0.5 | N111: 0.5 | Q111: 0 | R111: 1 | S111: 1 | U111: 0 | W111: 0 | X111: 0 | Y111: 0.4223309754 | AA111: 0 | AB111: 0 | AD111: 0.2888345123 | AE111: 0.5 | AG111: 0.2888345123 | AH111: 0.5
A112: 77 | B112: 0.4223309754 | C112: 0 | D112: 0 | E112: 0.2888345123 | F112: 0.2888345123 | G112: 0 | H112: 0.4223309754 | I112: 0 | J112: 0 | L112: 0 | M112: 0.5 | N112: 0.5 | Q112: 0 | R112: 1 | S112: 1 | U112: 0 | W112: 0 | X112: 0 | Y112: 0.4223309754 | AA112: 0 | AB112: 0 | AD112: 0.2888345123 | AE112: 0.5 | AG112: 0.2888345123 | AH112: 0.5
A113: 78 | B113: 0.4223309754 | C113: 0 | D113: 0 | E113: 0.2888345123 | F113: 0.2888345123 | G113: 0 | H113: 0.4223309754 | I113: 0 | J113: 0 | L113: 0 | M113: 0.5 | N113: 0.5 | Q113: 0 | R113: 1 | S113: 1 | U113: 0 | W113: 0 | X113: 0 | Y113: 0.4223309754 | AA113: 0 | AB113: 0 | AD113: 0.2888345123 | AE113: 0.5 | AG113: 0.2888345123 | AH113: 0.5
A114: 79 | B114: 0.4223309754 | C114: 0 | D114: 0 | E114: 0.2888345123 | F114: 0.2888345123 | G114: 0 | H114: 0.4223309754 | I114: 0 | J114: 0 | L114: 0 | M114: 0.5 | N114: 0.5 | Q114: 0 | R114: 1 | S114: 1 | U114: 0 | W114: 0 | X114: 0 | Y114: 0.4223309754 | AA114: 0 | AB114: 0 | AD114: 0.2888345123 | AE114: 0.5 | AG114: 0.2888345123 | AH114: 0.5
A115: 80 | B115: 0.4223309754 | C115: 0 | D115: 0 | E115: 0.2888345123 | F115: 0.2888345123 | G115: 0 | H115: 0.4223309754 | I115: 0 | J115: 0 | L115: 0 | M115: 0.5 | N115: 0.5 | Q115: 0 | R115: 1 | S115: 1 | U115: 0 | W115: 0 | X115: 0 | Y115: 0.4223309754 | AA115: 0 | AB115: 0 | AD115: 0.2888345123 | AE115: 0.5 | AG115: 0.2888345123 | AH115: 0.5
A116: 81 | B116: 0.4223309754 | C116: 0 | D116: 0 | E116: 0.2888345123 | F116: 0.2888345123 | G116: 0 | H116: 0.4223309754 | I116: 0 | J116: 0 | L116: 0 | M116: 0.5 | N116: 0.5 | Q116: 0 | R116: 1 | S116: 1 | U116: 0 | W116: 0 | X116: 0 | Y116: 0.4223309754 | AA116: 0 | AB116: 0 | AD116: 0.2888345123 | AE116: 0.5 | AG116: 0.2888345123 | AH116: 0.5
A117: 82 | B117: 0.4223309754 | C117: 0 | D117: 0 | E117: 0.2888345123 | F117: 0.2888345123 | G117: 0 | H117: 0.4223309754 | I117: 0 | J117: 0 | L117: 0 | M117: 0.5 | N117: 0.5 | Q117: 0 | R117: 1 | S117: 1 | U117: 0 | W117: 0 | X117: 0 | Y117: 0.4223309754 | AA117: 0 | AB117: 0 | AD117: 0.2888345123 | AE117: 0.5 | AG117: 0.2888345123 | AH117: 0.5
A118: 83 | B118: 0.4223309754 | C118: =W117 -> 0 | D118: 0 | E118: 0.2888345123 | F118: 0.2888345123 | G118: 0 | H118: 0.4223309754 | I118: 0 | J118: 0 | L118: 0 | M118: 0.5 | N118: 0.5 | Q118: 0 | R118: 1 | S118: 1 | U118: 0 | W118: 0 | X118: 0 | Y118: 0.4223309754 | AA118: 0 | AB118: 0 | AD118: 0.2888345123 | AE118: 0.5 | AG118: 0.2888345123 | AH118: 0.5
A119: 84 | B119: 0.4223309754 | C119: 0 | D119: 0 | E119: 0.2888345123 | F119: 0.2888345123 | G119: 0 | H119: 0.4223309754 | I119: 0 | J119: 0 | L119: 0 | M119: 0.5 | N119: 0.5 | Q119: 0 | R119: 1 | S119: 1 | U119: 0 | W119: 0 | X119: 0 | Y119: 0.4223309754 | AA119: 0 | AB119: 0 | AD119: 0.2888345123 | AE119: 0.5 | AG119: 0.2888345123 | AH119: 0.5
A120: 85 | B120: 0.4223309754 | C120: 0 | D120: 0 | E120: 0.2888345123 | F120: 0.2888345123 | G120: 0 | H120: 0.4223309754 | I120: 0 | J120: 0 | L120: 0 | M120: 0.5 | N120: 0.5 | Q120: 0 | R120: 1 | S120: 1 | U120: 0 | W120: 0 | X120: 0 | Y120: 0.4223309754 | AA120: 0 | AB120: 0 | AD120: 0.2888345123 | AE120: 0.5 | AG120: 0.2888345123 | AH120: 0.5
A121: 86 | B121: 0.4223309754 | C121: 0 | D121: 0 | E121: 0.2888345123 | F121: 0.2888345123 | G121: 0 | H121: 0.4223309754 | I121: 0 | J121: 0 | L121: 0 | M121: 0.5 | N121: 0.5 | Q121: 0 | R121: 1 | S121: 1 | U121: 0 | W121: 0 | X121: 0 | Y121: 0.4223309754 | AA121: 0 | AB121: 0 | AD121: 0.2888345123 | AE121: 0.5 | AG121: 0.2888345123 | AH121: 0.5
A122: 87 | B122: 0.4223309754 | C122: 0 | D122: 0 | E122: 0.2888345123 | F122: 0.2888345123 | G122: 0 | H122: 0.4223309754 | I122: 0 | J122: 0 | L122: 0 | M122: 0.5 | N122: 0.5 | Q122: 0 | R122: 1 | S122: 1 | U122: 0 | W122: 0 | X122: 0 | Y122: 0.4223309754 | AA122: 0 | AB122: 0 | AD122: 0.2888345123 | AE122: 0.5 | AG122: 0.2888345123 | AH122: 0.5
A123: 88 | B123: 0.4223309754 | C123: 0 | D123: 0 | E123: 0.2888345123 | F123: 0.2888345123 | G123: 0 | H123: 0.4223309754 | I123: 0 | J123: 0 | L123: 0 | M123: 0.5 | N123: 0.5 | Q123: 0 | R123: 1 | S123: 1 | U123: 0 | W123: 0 | X123: 0 | Y123: 0.4223309754 | AA123: 0 | AB123: 0 | AD123: 0.2888345123 | AE123: 0.5 | AG123: 0.2888345123 | AH123: 0.5
A124: 89 | B124: 0.4223309754 | C124: 0 | D124: 0 | E124: 0.2888345123 | F124: 0.2888345123 | G124: 0 | H124: 0.4223309754 | I124: 0 | J124: 0 | L124: 0 | M124: 0.5 | N124: 0.5 | Q124: 0 | R124: 1 | S124: 1 | U124: 0 | W124: 0 | X124: 0 | Y124: 0.4223309754 | AA124: 0 | AB124: 0 | AD124: 0.2888345123 | AE124: 0.5 | AG124: 0.2888345123 | AH124: 0.5
A125: 90 | B125: 0.4223309754 | C125: 0 | D125: 0 | E125: 0.2888345123 | F125: 0.2888345123 | G125: 0 | H125: 0.4223309754 | I125: 0 | J125: 0 | L125: 0 | M125: 0.5 | N125: 0.5 | Q125: 0 | R125: 1 | S125: 1 | U125: 0 | W125: 0 | X125: 0 | Y125: 0.4223309754 | AA125: 0 | AB125: 0 | AD125: 0.2888345123 | AE125: 0.5 | AG125: 0.2888345123 | AH125: 0.5
A126: 91 | B126: 0.4223309754 | C126: 0 | D126: 0 | E126: 0.2888345123 | F126: 0.2888345123 | G126: 0 | H126: 0.4223309754 | I126: 0 | J126: 0 | L126: 0 | M126: 0.5 | N126: 0.5 | Q126: 0 | R126: 1 | S126: 1 | U126: 0 | W126: 0 | X126: 0 | Y126: 0.4223309754 | AA126: 0 | AB126: 0 | AD126: 0.2888345123 | AE126: 0.5 | AG126: 0.2888345123 | AH126: 0.5
A127: 92 | B127: 0.4223309754 | C127: 0 | D127: 0 | E127: 0.2888345123 | F127: 0.2888345123 | G127: 0 | H127: 0.4223309754 | I127: 0 | J127: 0 | L127: 0 | M127: 0.5 | N127: 0.5 | Q127: 0 | R127: 1 | S127: 1 | U127: 0 | W127: 0 | X127: 0 | Y127: 0.4223309754 | AA127: 0 | AB127: 0 | AD127: 0.2888345123 | AE127: 0.5 | AG127: 0.2888345123 | AH127: 0.5
A128: 93 | B128: 0.4223309754 | C128: 0 | D128: 0 | E128: 0.2888345123 | F128: 0.2888345123 | G128: 0 | H128: 0.4223309754 | I128: 0 | J128: 0 | L128: 0 | M128: 0.5 | N128: 0.5 | Q128: 0 | R128: 1 | S128: 1 | U128: 0 | W128: 0 | X128: 0 | Y128: 0.4223309754 | AA128: 0 | AB128: 0 | AD128: 0.2888345123 | AE128: 0.5 | AG128: 0.2888345123 | AH128: 0.5
A129: 94 | B129: 0.4223309754 | C129: 0 | D129: 0 | E129: 0.2888345123 | F129: 0.2888345123 | G129: 0 | H129: 0.4223309754 | I129: 0 | J129: 0 | L129: 0 | M129: 0.5 | N129: 0.5 | Q129: 0 | R129: 1 | S129: 1 | U129: 0 | W129: 0 | X129: 0 | Y129: 0.4223309754 | AA129: 0 | AB129: 0 | AD129: 0.2888345123 | AE129: 0.5 | AG129: 0.2888345123 | AH129: 0.5
A130: 95 | B130: 0.4223309754 | C130: 0 | D130: 0 | E130: 0.2888345123 | F130: 0.2888345123 | G130: 0 | H130: 0.4223309754 | I130: 0 | J130: 0 | L130: 0 | M130: 0.5 | N130: 0.5 | Q130: 0 | R130: 1 | S130: 1 | U130: 0 | W130: 0 | X130: 0 | Y130: 0.4223309754 | AA130: 0 | AB130: 0 | AD130: 0.2888345123 | AE130: 0.5 | AG130: 0.2888345123 | AH130: 0.5
A131: 96 | B131: 0.4223309754 | C131: 0 | D131: 0 | E131: 0.2888345123 | F131: 0.2888345123 | G131: 0 | H131: 0.4223309754 | I131: 0 | J131: 0 | L131: 0 | M131: 0.5 | N131: 0.5 | Q131: 0 | R131: 1 | S131: 1 | U131: 0 | W131: 0 | X131: 0 | Y131: 0.4223309754 | AA131: 0 | AB131: 0 | AD131: 0.2888345123 | AE131: 0.5 | AG131: 0.2888345123 | AH131: 0.5
A132: 97 | B132: 0.4223309754 | C132: 0 | D132: 0 | E132: 0.2888345123 | F132: 0.2888345123 | G132: 0 | H132: 0.4223309754 | I132: 0 | J132: 0 | L132: 0 | M132: 0.5 | N132: 0.5 | Q132: 0 | R132: 1 | S132: 1 | U132: 0 | W132: 0 | X132: 0 | Y132: 0.4223309754 | AA132: 0 | AB132: 0 | AD132: 0.2888345123 | AE132: 0.5 | AG132: 0.2888345123 | AH132: 0.5
A133: 98 | B133: 0.4223309754 | C133: 0 | D133: 0 | E133: 0.2888345123 | F133: 0.2888345123 | G133: 0 | H133: 0.4223309754 | I133: 0 | J133: 0 | L133: 0 | M133: 0.5 | N133: 0.5 | Q133: 0 | R133: 1 | S133: 1 | U133: 0 | W133: 0 | X133: 0 | Y133: 0.4223309754 | AA133: 0 | AB133: 0 | AD133: 0.2888345123 | AE133: 0.5 | AG133: 0.2888345123 | AH133: 0.5
A134: 99 | B134: 0.4223309754 | C134: 0 | D134: 0 | E134: 0.2888345123 | F134: 0.2888345123 | G134: 0 | H134: 0.4223309754 | I134: 0 | J134: 0 | L134: 0 | M134: 0.5 | N134: 0.5 | Q134: 0 | R134: 1 | S134: 1 | U134: 0 | W134: 0 | X134: 0 | Y134: 0.4223309754 | AA134: 0 | AB134: 0 | AD134: 0.2888345123 | AE134: 0.5 | AG134: 0.2888345123 | AH134: 0.5
A135: 100 | B135: 0.4223309754 | C135: 0 | D135: 0 | E135: 0.2888345123 | F135: 0.2888345123 | G135: 0 | H135: 0.4223309754 | I135: 0 | J135: 0 | L135: 0 | M135: 0.5 | N135: 0.5 | Q135: 0 | R135: 1 | S135: 1 | U135: 0 | W135: 0 | X135: 0 | Y135: 0.4223309754 | AA135: 0 | AB135: 0 | AD135: 0.2888345123 | AE135: 0.5 | AG135: 0.2888345123 | AH135: 0.5
A136: 101 | B136: 0.4223309754 | C136: 0 | D136: 0 | E136: 0.2888345123 | F136: 0.2888345123 | G136: 0 | H136: 0.4223309754 | I136: 0 | J136: 0 | L136: 0 | M136: 0.5 | N136: 0.5 | Q136: 0 | R136: 1 | S136: 1 | U136: 0 | W136: 0 | X136: 0 | Y136: 0.4223309754 | AA136: 0 | AB136: 0 | AD136: 0.2888345123 | AE136: 0.5 | AG136: 0.2888345123 | AH136: 0.5
A137: 102 | B137: 0.4223309754 | C137: 0 | D137: 0 | E137: 0.2888345123 | F137: 0.2888345123 | G137: 0 | H137: 0.4223309754 | I137: 0 | J137: 0 | L137: 0 | M137: 0.5 | N137: 0.5 | Q137: 0 | R137: 1 | S137: 1 | U137: 0 | W137: 0 | X137: 0 | Y137: 0.4223309754 | AA137: 0 | AB137: 0 | AD137: 0.2888345123 | AE137: 0.5 | AG137: 0.2888345123 | AH137: 0.5
A138: 103 | B138: 0.4223309754 | C138: 0 | D138: 0 | E138: 0.2888345123 | F138: 0.2888345123 | G138: 0 | H138: 0.4223309754 | I138: 0 | J138: 0 | L138: 0 | M138: 0.5 | N138: 0.5 | Q138: 0 | R138: 1 | S138: 1 | U138: 0 | W138: 0 | X138: 0 | Y138: 0.4223309754 | AA138: 0 | AB138: 0 | AD138: 0.2888345123 | AE138: 0.5 | AG138: 0.2888345123 | AH138: 0.5
A139: 104 | B139: 0.4223309754 | C139: 0 | D139: 0 | E139: 0.2888345123 | F139: 0.2888345123 | G139: 0 | H139: 0.4223309754 | I139: 0 | J139: 0 | L139: 0 | M139: 0.5 | N139: 0.5 | Q139: 0 | R139: 1 | S139: 1 | U139: 0 | W139: 0 | X139: 0 | Y139: 0.4223309754 | AA139: 0 | AB139: 0 | AD139: 0.2888345123 | AE139: 0.5 | AG139: 0.2888345123 | AH139: 0.5
A140: 105 | B140: 0.4223309754 | C140: 0 | D140: 0 | E140: 0.2888345123 | F140: 0.2888345123 | G140: 0 | H140: 0.4223309754 | I140: 0 | J140: 0 | L140: 0 | M140: 0.5 | N140: 0.5 | Q140: 0 | R140: 1 | S140: 1 | U140: 0 | W140: 0 | X140: 0 | Y140: 0.4223309754 | AA140: 0 | AB140: 0 | AD140: 0.2888345123 | AE140: 0.5 | AG140: 0.2888345123 | AH140: 0.5
A141: 106 | B141: 0.4223309754 | C141: 0 | D141: 0 | E141: 0.2888345123 | F141: 0.2888345123 | G141: 0 | H141: 0.4223309754 | I141: 0 | J141: 0 | L141: 0 | M141: 0.5 | N141: 0.5 | Q141: 0 | R141: 1 | S141: 1 | U141: 0 | W141: 0 | X141: 0 | Y141: 0.4223309754 | AA141: 0 | AB141: 0 | AD141: 0.2888345123 | AE141: 0.5 | AG141: 0.2888345123 | AH141: 0.5
A142: 107 | B142: 0.4223309754 | C142: 0 | D142: 0 | E142: 0.2888345123 | F142: 0.2888345123 | G142: 0 | H142: 0.4223309754 | I142: 0 | J142: 0 | L142: 0 | M142: 0.5 | N142: 0.5 | Q142: 0 | R142: 1 | S142: 1 | U142: 0 | W142: 0 | X142: 0 | Y142: 0.4223309754 | AA142: 0 | AB142: 0 | AD142: 0.2888345123 | AE142: 0.5 | AG142: 0.2888345123 | AH142: 0.5
A143: 108 | B143: 0.4223309754 | C143: 0 | D143: 0 | E143: 0.2888345123 | F143: 0.2888345123 | G143: 0 | H143: 0.4223309754 | I143: 0 | J143: 0 | L143: 0 | M143: 0.5 | N143: 0.5 | Q143: 0 | R143: 1 | S143: 1 | U143: 0 | W143: 0 | X143: 0 | Y143: 0.4223309754 | AA143: 0 | AB143: 0 | AD143: 0.2888345123 | AE143: 0.5 | AG143: 0.2888345123 | AH143: 0.5
A144: 109 | B144: 0.4223309754 | C144: 0 | D144: 0 | E144: 0.2888345123 | F144: 0.2888345123 | G144: 0 | H144: 0.4223309754 | I144: 0 | J144: 0 | L144: 0 | M144: 0.5 | N144: 0.5 | Q144: 0 | R144: 1 | S144: 1 | U144: 0 | W144: 0 | X144: 0 | Y144: 0.4223309754 | AA144: 0 | AB144: 0 | AD144: 0.2888345123 | AE144: 0.5 | AG144: 0.2888345123 | AH144: 0.5
A145: 110 | B145: 0.4223309754 | C145: 0 | D145: 0 | E145: 0.2888345123 | F145: 0.2888345123 | G145: 0 | H145: 0.4223309754 | I145: 0 | J145: 0 | L145: 0 | M145: 0.5 | N145: 0.5 | Q145: 0 | R145: 1 | S145: 1 | U145: 0 | W145: 0 | X145: 0 | Y145: 0.4223309754 | AA145: 0 | AB145: 0 | AD145: 0.2888345123 | AE145: 0.5 | AG145: 0.2888345123 | AH145: 0.5
A146: 111 | B146: 0.4223309754 | C146: 0 | D146: 0 | E146: 0.2888345123 | F146: 0.2888345123 | G146: 0 | H146: 0.4223309754 | I146: 0 | J146: 0 | L146: 0 | M146: 0.5 | N146: 0.5 | Q146: 0 | R146: 1 | S146: 1 | U146: 0 | W146: 0 | X146: 0 | Y146: 0.4223309754 | AA146: 0 | AB146: 0 | AD146: 0.2888345123 | AE146: 0.5 | AG146: 0.2888345123 | AH146: 0.5
A147: 112 | B147: 0.4223309754 | C147: 0 | D147: 0 | E147: 0.2888345123 | F147: 0.2888345123 | G147: 0 | H147: 0.4223309754 | I147: 0 | J147: 0 | L147: 0 | M147: 0.5 | N147: 0.5 | Q147: 0 | R147: 1 | S147: 1 | U147: 0 | W147: 0 | X147: 0 | Y147: 0.4223309754 | AA147: 0 | AB147: 0 | AD147: 0.2888345123 | AE147: 0.5 | AG147: 0.2888345123 | AH147: 0.5
A148: 113 | B148: 0.4223309754 | C148: 0 | D148: 0 | E148: 0.2888345123 | F148: 0.2888345123 | G148: 0 | H148: 0.4223309754 | I148: 0 | J148: 0 | L148: 0 | M148: 0.5 | N148: 0.5 | Q148: 0 | R148: 1 | S148: 1 | U148: 0 | W148: 0 | X148: 0 | Y148: 0.4223309754 | AA148: 0 | AB148: 0 | AD148: 0.2888345123 | AE148: 0.5 | AG148: 0.2888345123 | AH148: 0.5
A149: 114 | B149: 0.4223309754 | C149: 0 | D149: 0 | E149: 0.2888345123 | F149: 0.2888345123 | G149: 0 | H149: 0.4223309754 | I149: 0 | J149: 0 | L149: 0 | M149: 0.5 | N149: 0.5 | Q149: 0 | R149: 1 | S149: 1 | U149: 0 | W149: 0 | X149: 0 | Y149: 0.4223309754 | AA149: 0 | AB149: 0 | AD149: 0.2888345123 | AE149: 0.5 | AG149: 0.2888345123 | AH149: 0.5
A150: 115 | B150: 0.4223309754 | C150: 0 | D150: 0 | E150: 0.2888345123 | F150: 0.2888345123 | G150: 0 | H150: 0.4223309754 | I150: 0 | J150: 0 | L150: 0 | M150: 0.5 | N150: 0.5 | Q150: 0 | R150: 1 | S150: 1 | U150: 0 | W150: 0 | X150: 0 | Y150: 0.4223309754 | AA150: 0 | AB150: 0 | AD150: 0.2888345123 | AE150: 0.5 | AG150: 0.2888345123 | AH150: 0.5
A151: 116 | B151: 0.4223309754 | C151: 0 | D151: 0 | E151: 0.2888345123 | F151: 0.2888345123 | G151: 0 | H151: 0.4223309754 | I151: 0 | J151: 0 | L151: 0 | M151: 0.5 | N151: 0.5 | Q151: 0 | R151: 1 | S151: 1 | U151: 0 | W151: 0 | X151: 0 | Y151: 0.4223309754 | AA151: 0 | AB151: 0 | AD151: 0.2888345123 | AE151: 0.5 | AG151: 0.2888345123 | AH151: 0.5
A152: 117 | B152: 0.4223309754 | C152: 0 | D152: 0 | E152: 0.2888345123 | F152: 0.2888345123 | G152: 0 | H152: 0.4223309754 | I152: 0 | J152: 0 | L152: 0 | M152: 0.5 | N152: 0.5 | Q152: 0 | R152: 1 | S152: 1 | U152: 0 | W152: 0 | X152: 0 | Y152: 0.4223309754 | AA152: 0 | AB152: 0 | AD152: 0.2888345123 | AE152: 0.5 | AG152: 0.2888345123 | AH152: 0.5
A153: 118 | B153: 0.4223309754 | C153: 0 | D153: 0 | E153: 0.2888345123 | F153: 0.2888345123 | G153: 0 | H153: 0.4223309754 | I153: 0 | J153: 0 | L153: 0 | M153: 0.5 | N153: 0.5 | Q153: 0 | R153: 1 | S153: 1 | U153: 0 | W153: 0 | X153: 0 | Y153: 0.4223309754 | AA153: 0 | AB153: 0 | AD153: 0.2888345123 | AE153: 0.5 | AG153: 0.2888345123 | AH153: 0.5
A154: 119 | B154: 0.4223309754 | C154: 0 | D154: 0 | E154: 0.2888345123 | F154: 0.2888345123 | G154: 0 | H154: 0.4223309754 | I154: 0 | J154: 0 | L154: 0 | M154: 0.5 | N154: 0.5 | Q154: 0 | R154: 1 | S154: 1 | U154: 0 | W154: 0 | X154: 0 | Y154: 0.4223309754 | AA154: 0 | AB154: 0 | AD154: 0.2888345123 | AE154: 0.5 | AG154: 0.2888345123 | AH154: 0.5
A155: 120 | B155: 0.4223309754 | C155: 0 | D155: 0 | E155: 0.2888345123 | F155: 0.2888345123 | G155: 0 | H155: 0.4223309754 | I155: 0 | J155: 0 | L155: 0 | M155: 0.5 | N155: 0.5 | Q155: 0 | R155: 1 | S155: 1 | U155: 0 | W155: 0 | X155: 0 | Y155: 0.4223309754 | AA155: 0 | AB155: 0 | AD155: 0.2888345123 | AE155: 0.5 | AG155: 0.2888345123 | AH155: 0.5
A156: 121 | B156: 0.4223309754 | C156: 0 | D156: 0 | E156: 0.2888345123 | F156: 0.2888345123 | G156: 0 | H156: 0.4223309754 | I156: 0 | J156: 0 | L156: 0 | M156: 0.5 | N156: 0.5 | Q156: 0 | R156: 1 | S156: 1 | U156: 0 | W156: 0 | X156: 0 | Y156: 0.4223309754 | AA156: 0 | AB156: 0 | AD156: 0.2888345123 | AE156: 0.5 | AG156: 0.2888345123 | AH156: 0.5
A157: 122 | B157: 0.4223309754 | C157: 0 | D157: 0 | E157: 0.2888345123 | F157: 0.2888345123 | G157: 0 | H157: 0.4223309754 | I157: 0 | J157: 0 | L157: 0 | M157: 0.5 | N157: 0.5 | Q157: 0 | R157: 1 | S157: 1 | U157: 0 | W157: 0 | X157: 0 | Y157: 0.4223309754 | AA157: 0 | AB157: 0 | AD157: 0.2888345123 | AE157: 0.5 | AG157: 0.2888345123 | AH157: 0.5
A158: 123 | B158: 0.4223309754 | C158: 0 | D158: 0 | E158: 0.2888345123 | F158: 0.2888345123 | G158: 0 | H158: 0.4223309754 | I158: 0 | J158: 0 | L158: 0 | M158: 0.5 | N158: 0.5 | Q158: 0 | R158: 1 | S158: 1 | U158: 0 | W158: 0 | X158: 0 | Y158: 0.4223309754 | AA158: 0 | AB158: 0 | AD158: 0.2888345123 | AE158: 0.5 | AG158: 0.2888345123 | AH158: 0.5
A159: 124 | B159: 0.4223309754 | C159: 0 | D159: 0 | E159: 0.2888345123 | F159: 0.2888345123 | G159: 0 | H159: 0.4223309754 | I159: 0 | J159: 0 | L159: 0 | M159: 0.5 | N159: 0.5 | Q159: 0 | R159: 1 | S159: 1 | U159: 0 | W159: 0 | X159: 0 | Y159: 0.4223309754 | AA159: 0 | AB159: 0 | AD159: 0.2888345123 | AE159: 0.5 | AG159: 0.2888345123 | AH159: 0.5
A160: 125 | B160: 0.4223309754 | C160: 0 | D160: 0 | E160: 0.2888345123 | F160: 0.2888345123 | G160: 0 | H160: 0.4223309754 | I160: 0 | J160: 0 | L160: 0 | M160: 0.5 | N160: 0.5 | Q160: 0 | R160: 1 | S160: 1 | U160: 0 | W160: 0 | X160: 0 | Y160: 0.4223309754 | AA160: 0 | AB160: 0 | AD160: 0.2888345123 | AE160: 0.5 | AG160: 0.2888345123 | AH160: 0.5
A161: 126 | B161: 0.4223309754 | C161: 0 | D161: 0 | E161: 0.2888345123 | F161: 0.2888345123 | G161: 0 | H161: 0.4223309754 | I161: 0 | J161: 0 | L161: 0 | M161: 0.5 | N161: 0.5 | Q161: 0 | R161: 1 | S161: 1 | U161: 0 | W161: 0 | X161: 0 | Y161: 0.4223309754 | AA161: 0 | AB161: 0 | AD161: 0.2888345123 | AE161: 0.5 | AG161: 0.2888345123 | AH161: 0.5
A162: 127 | B162: 0.4223309754 | C162: 0 | D162: 0 | E162: 0.2888345123 | F162: 0.2888345123 | G162: 0 | H162: 0.4223309754 | I162: 0 | J162: 0 | L162: 0 | M162: 0.5 | N162: 0.5 | Q162: 0 | R162: 1 | S162: 1 | U162: 0 | W162: 0 | X162: 0 | Y162: 0.4223309754 | AA162: 0 | AB162: 0 | AD162: 0.2888345123 | AE162: 0.5 | AG162: 0.2888345123 | AH162: 0.5
A163: 128 | B163: 0.4223309754 | C163: 0 | D163: 0 | E163: 0.2888345123 | F163: 0.2888345123 | G163: 0 | H163: =SQRT($B$9*F163*E163) -> 0.4223309754 | I163: =SQRT($D$9*G163*F163) -> 0 | J163: =SQRT($F$9*G163*E163) -> 0 | L163: =G163+0.5*I163+0.5*J163 -> 0 | M163: =F163+0.5*I163+0.5*H163 -> 0.5 | N163: =E163+0.5*J163+0.5*H163 -> 0.5 | Q163: 0 | R163: 1 | S163: 1 | U163: 0 | W163: 0 | X163: 0 | Y163: 0.4223309754 | AA163: 0 | AB163: 0 | AD163: 0.2888345123 | AE163: 0.5 | AG163: 0.2888345123 | AH163: 0.5
A164: 129 | B164: 0.4223309754 | C164: 0 | D164: 0 | E164: =AG163 -> 0.2888345123 | F164: =AD163 -> 0.2888345123 | G164: 0 | H164: 0.4223309754 | I164: 0 | J164: 0 | L164: 0 | M164: 0.5 | N164: 0.5 | Q164: =IF($G$35=0,0,$G$35/L164) -> 0 | R164: =IF($F$35=0,0,$F$35/M164) -> 1 | S164: =IF($E$35=0,0,$E$35/N164) -> 1 | U164: =MIN(Q164:S164) -> 0 | W164: =MIN(Q164,R164)*I164 -> 0 | X164: =MIN(Q164,S164)*J164 -> 0 | Y164: =MIN(R164,S164)*H164 -> 0.4223309754 | AA164: =$G$35-0.5*SUM(W164,X164) -> 0 | AB164: 0 | AD164: 0.2888345123 | AE164: 0.5 | AG164: 0.2888345123 | AH164: 0.5
A165: 130 | B165: =Y164 -> 0.4223309754 | C165: 0 | D165: 0 | E165: 0.2888345123 | F165: 0.2888345123 | G165: 0 | H165: 0.4223309754 | I165: 0 | J165: 0 | L165: 0 | M165: 0.5 | N165: 0.5 | Q165: 0 | R165: 1 | S165: 1 | U165: 0 | W165: 0 | X165: 0 | Y165: 0.4223309754 | AA165: 0 | AB165: =0.5*W165+0.5*X165+AA165 -> 0 | AD165: =$F$35-0.5*SUM(W165,Y165) -> 0.2888345123 | AE165: =0.5*W165+0.5*Y165+AD165 -> 0.5 | AG165: =$E$35-0.5*SUM(X165:Y165) -> 0.2888345123 | AH165: =0.5*X165+0.5*Y165+AG165 -> 0.5
A166: 131 | B166: 0.4223309754 | C166: 0 | D166: 0 | E166: 0.2888345123 | F166: 0.2888345123 | G166: =AA165 -> 0 | H166: 0.4223309754 | I166: 0 | J166: 0 | L166: 0 | M166: 0.5 | N166: 0.5 | Q166: 0 | R166: 1 | S166: 1 | U166: 0 | W166: 0 | X166: 0 | Y166: 0.4223309754 | AA166: 0 | AB166: 0 | AD166: 0.2888345123 | AE166: 0.5 | AG166: 0.2888345123 | AH166: 0.5
A167: 132 | B167: 0.4223309754 | C167: 0 | D167: 0 | E167: 0.2888345123 | F167: 0.2888345123 | G167: 0 | H167: 0.4223309754 | I167: 0 | J167: 0 | L167: 0 | M167: 0.5 | N167: 0.5 | Q167: 0 | R167: 1 | S167: 1 | U167: 0 | W167: 0 | X167: 0 | Y167: 0.4223309754 | AA167: 0 | AB167: 0 | AD167: 0.2888345123 | AE167: 0.5 | AG167: 0.2888345123 | AH167: 0.5
A168: 133 | B168: 0.4223309754 | C168: 0 | D168: 0 | E168: 0.2888345123 | F168: 0.2888345123 | G168: 0 | H168: 0.4223309754 | I168: 0 | J168: 0 | L168: 0 | M168: 0.5 | N168: 0.5 | Q168: 0 | R168: 1 | S168: 1 | U168: 0 | W168: 0 | X168: 0 | Y168: 0.4223309754 | AA168: 0 | AB168: 0 | AD168: 0.2888345123 | AE168: 0.5 | AG168: 0.2888345123 | AH168: 0.5
A169: 134 | B169: 0.4223309754 | C169: 0 | D169: 0 | E169: 0.2888345123 | F169: 0.2888345123 | G169: 0 | H169: 0.4223309754 | I169: 0 | J169: 0 | L169: 0 | M169: 0.5 | N169: 0.5 | Q169: 0 | R169: 1 | S169: 1 | U169: 0 | W169: 0 | X169: 0 | Y169: 0.4223309754 | AA169: 0 | AB169: 0 | AD169: 0.2888345123 | AE169: 0.5 | AG169: 0.2888345123 | AH169: 0.5
A170: 135 | B170: 0.4223309754 | C170: 0 | D170: 0 | E170: 0.2888345123 | F170: 0.2888345123 | G170: 0 | H170: 0.4223309754 | I170: 0 | J170: 0 | L170: 0 | M170: 0.5 | N170: 0.5 | Q170: 0 | R170: 1 | S170: 1 | U170: 0 | W170: 0 | X170: 0 | Y170: 0.4223309754 | AA170: 0 | AB170: 0 | AD170: 0.2888345123 | AE170: 0.5 | AG170: 0.2888345123 | AH170: 0.5
A171: 136 | B171: 0.4223309754 | C171: 0 | D171: 0 | E171: 0.2888345123 | F171: 0.2888345123 | G171: 0 | H171: 0.4223309754 | I171: 0 | J171: 0 | L171: 0 | M171: 0.5 | N171: 0.5 | Q171: 0 | R171: 1 | S171: 1 | U171: 0 | W171: 0 | X171: 0 | Y171: 0.4223309754 | AA171: 0 | AB171: 0 | AD171: 0.2888345123 | AE171: 0.5 | AG171: 0.2888345123 | AH171: 0.5
A172: 137 | B172: 0.4223309754 | C172: 0 | D172: 0 | E172: 0.2888345123 | F172: 0.2888345123 | G172: 0 | H172: 0.4223309754 | I172: 0 | J172: 0 | L172: 0 | M172: 0.5 | N172: 0.5 | Q172: 0 | R172: 1 | S172: 1 | U172: 0 | W172: 0 | X172: 0 | Y172: 0.4223309754 | AA172: 0 | AB172: 0 | AD172: 0.2888345123 | AE172: 0.5 | AG172: 0.2888345123 | AH172: 0.5
A173: 138 | B173: 0.4223309754 | C173: 0 | D173: 0 | E173: 0.2888345123 | F173: 0.2888345123 | G173: 0 | H173: 0.4223309754 | I173: 0 | J173: 0 | L173: 0 | M173: 0.5 | N173: 0.5 | Q173: 0 | R173: 1 | S173: 1 | U173: 0 | W173: 0 | X173: 0 | Y173: 0.4223309754 | AA173: 0 | AB173: 0 | AD173: 0.2888345123 | AE173: 0.5 | AG173: 0.2888345123 | AH173: 0.5
A174: 139 | B174: 0.4223309754 | C174: 0 | D174: 0 | E174: 0.2888345123 | F174: 0.2888345123 | G174: 0 | H174: 0.4223309754 | I174: 0 | J174: 0 | L174: 0 | M174: 0.5 | N174: 0.5 | Q174: 0 | R174: 1 | S174: 1 | U174: 0 | W174: 0 | X174: 0 | Y174: 0.4223309754 | AA174: 0 | AB174: 0 | AD174: 0.2888345123 | AE174: 0.5 | AG174: 0.2888345123 | AH174: 0.5
A175: 140 | B175: 0.4223309754 | C175: 0 | D175: 0 | E175: 0.2888345123 | F175: 0.2888345123 | G175: 0 | H175: 0.4223309754 | I175: 0 | J175: 0 | L175: 0 | M175: 0.5 | N175: 0.5 | Q175: 0 | R175: 1 | S175: 1 | U175: 0 | W175: 0 | X175: 0 | Y175: 0.4223309754 | AA175: 0 | AB175: 0 | AD175: 0.2888345123 | AE175: 0.5 | AG175: 0.2888345123 | AH175: 0.5
A176: 141 | B176: 0.4223309754 | C176: 0 | D176: 0 | E176: 0.2888345123 | F176: 0.2888345123 | G176: 0 | H176: 0.4223309754 | I176: 0 | J176: 0 | L176: 0 | M176: 0.5 | N176: 0.5 | Q176: 0 | R176: 1 | S176: 1 | U176: 0 | W176: 0 | X176: 0 | Y176: 0.4223309754 | AA176: 0 | AB176: 0 | AD176: 0.2888345123 | AE176: 0.5 | AG176: 0.2888345123 | AH176: 0.5
A177: 142 | B177: 0.4223309754 | C177: 0 | D177: 0 | E177: 0.2888345123 | F177: 0.2888345123 | G177: 0 | H177: 0.4223309754 | I177: 0 | J177: 0 | L177: 0 | M177: 0.5 | N177: 0.5 | Q177: 0 | R177: 1 | S177: 1 | U177: 0 | W177: 0 | X177: 0 | Y177: 0.4223309754 | AA177: 0 | AB177: 0 | AD177: 0.2888345123 | AE177: 0.5 | AG177: 0.2888345123 | AH177: 0.5
A178: 143 | B178: 0.4223309754 | C178: 0 | D178: 0 | E178: 0.2888345123 | F178: 0.2888345123 | G178: 0 | H178: 0.4223309754 | I178: 0 | J178: 0 | L178: 0 | M178: 0.5 | N178: 0.5 | Q178: 0 | R178: 1 | S178: 1 | U178: 0 | W178: 0 | X178: 0 | Y178: 0.4223309754 | AA178: 0 | AB178: 0 | AD178: 0.2888345123 | AE178: 0.5 | AG178: 0.2888345123 | AH178: 0.5
A179: 144 | B179: 0.4223309754 | C179: 0 | D179: 0 | E179: 0.2888345123 | F179: 0.2888345123 | G179: 0 | H179: 0.4223309754 | I179: 0 | J179: 0 | L179: 0 | M179: 0.5 | N179: 0.5 | Q179: 0 | R179: 1 | S179: 1 | U179: 0 | W179: 0 | X179: 0 | Y179: 0.4223309754 | AA179: 0 | AB179: 0 | AD179: 0.2888345123 | AE179: 0.5 | AG179: 0.2888345123 | AH179: 0.5
A180: 145 | B180: 0.4223309754 | C180: 0 | D180: 0 | E180: 0.2888345123 | F180: 0.2888345123 | G180: 0 | H180: 0.4223309754 | I180: 0 | J180: 0 | L180: 0 | M180: 0.5 | N180: 0.5 | Q180: 0 | R180: 1 | S180: 1 | U180: 0 | W180: 0 | X180: 0 | Y180: 0.4223309754 | AA180: 0 | AB180: 0 | AD180: 0.2888345123 | AE180: 0.5 | AG180: 0.2888345123 | AH180: 0.5
A181: 146 | B181: 0.4223309754 | C181: 0 | D181: 0 | E181: 0.2888345123 | F181: 0.2888345123 | G181: 0 | H181: 0.4223309754 | I181: 0 | J181: 0 | L181: 0 | M181: 0.5 | N181: 0.5 | Q181: 0 | R181: 1 | S181: 1 | U181: 0 | W181: 0 | X181: 0 | Y181: 0.4223309754 | AA181: 0 | AB181: 0 | AD181: 0.2888345123 | AE181: 0.5 | AG181: 0.2888345123 | AH181: 0.5
A182: 147 | B182: 0.4223309754 | C182: =W181 -> 0 | D182: 0 | E182: 0.2888345123 | F182: 0.2888345123 | G182: 0 | H182: 0.4223309754 | I182: 0 | J182: 0 | L182: 0 | M182: 0.5 | N182: 0.5 | Q182: 0 | R182: 1 | S182: 1 | U182: 0 | W182: 0 | X182: 0 | Y182: 0.4223309754 | AA182: 0 | AB182: 0 | AD182: 0.2888345123 | AE182: 0.5 | AG182: 0.2888345123 | AH182: 0.5
A183: 148 | B183: 0.4223309754 | C183: 0 | D183: 0 | E183: 0.2888345123 | F183: 0.2888345123 | G183: 0 | H183: 0.4223309754 | I183: 0 | J183: 0 | L183: 0 | M183: 0.5 | N183: 0.5 | Q183: 0 | R183: 1 | S183: 1 | U183: 0 | W183: 0 | X183: 0 | Y183: 0.4223309754 | AA183: 0 | AB183: 0 | AD183: 0.2888345123 | AE183: 0.5 | AG183: 0.2888345123 | AH183: 0.5
A184: 149 | B184: 0.4223309754 | C184: 0 | D184: 0 | E184: 0.2888345123 | F184: 0.2888345123 | G184: 0 | H184: 0.4223309754 | I184: 0 | J184: 0 | L184: 0 | M184: 0.5 | N184: 0.5 | Q184: 0 | R184: 1 | S184: 1 | U184: 0 | W184: 0 | X184: 0 | Y184: 0.4223309754 | AA184: 0 | AB184: 0 | AD184: 0.2888345123 | AE184: 0.5 | AG184: 0.2888345123 | AH184: 0.5
A185: 150 | B185: 0.4223309754 | C185: 0 | D185: 0 | E185: 0.2888345123 | F185: 0.2888345123 | G185: 0 | H185: 0.4223309754 | I185: 0 | J185: 0 | L185: 0 | M185: 0.5 | N185: 0.5 | Q185: 0 | R185: 1 | S185: 1 | U185: 0 | W185: 0 | X185: 0 | Y185: 0.4223309754 | AA185: 0 | AB185: 0 | AD185: 0.2888345123 | AE185: 0.5 | AG185: 0.2888345123 | AH185: 0.5
A186: 151 | B186: 0.4223309754 | C186: 0 | D186: 0 | E186: 0.2888345123 | F186: 0.2888345123 | G186: 0 | H186: 0.4223309754 | I186: 0 | J186: 0 | L186: 0 | M186: 0.5 | N186: 0.5 | Q186: 0 | R186: 1 | S186: 1 | U186: 0 | W186: 0 | X186: 0 | Y186: 0.4223309754 | AA186: 0 | AB186: 0 | AD186: 0.2888345123 | AE186: 0.5 | AG186: 0.2888345123 | AH186: 0.5
A187: 152 | B187: 0.4223309754 | C187: 0 | D187: 0 | E187: 0.2888345123 | F187: 0.2888345123 | G187: 0 | H187: 0.4223309754 | I187: 0 | J187: 0 | L187: 0 | M187: 0.5 | N187: 0.5 | Q187: 0 | R187: 1 | S187: 1 | U187: 0 | W187: 0 | X187: 0 | Y187: 0.4223309754 | AA187: 0 | AB187: 0 | AD187: 0.2888345123 | AE187: 0.5 | AG187: 0.2888345123 | AH187: 0.5
A188: 153 | B188: 0.4223309754 | C188: 0 | D188: 0 | E188: 0.2888345123 | F188: 0.2888345123 | G188: 0 | H188: 0.4223309754 | I188: 0 | J188: 0 | L188: 0 | M188: 0.5 | N188: 0.5 | Q188: 0 | R188: 1 | S188: 1 | U188: 0 | W188: 0 | X188: 0 | Y188: 0.4223309754 | AA188: 0 | AB188: 0 | AD188: 0.2888345123 | AE188: 0.5 | AG188: 0.2888345123 | AH188: 0.5
A189: 154 | B189: 0.4223309754 | C189: 0 | D189: 0 | E189: 0.2888345123 | F189: 0.2888345123 | G189: 0 | H189: 0.4223309754 | I189: 0 | J189: 0 | L189: 0 | M189: 0.5 | N189: 0.5 | Q189: 0 | R189: 1 | S189: 1 | U189: 0 | W189: 0 | X189: 0 | Y189: 0.4223309754 | AA189: 0 | AB189: 0 | AD189: 0.2888345123 | AE189: 0.5 | AG189: 0.2888345123 | AH189: 0.5
A190: 155 | B190: 0.4223309754 | C190: 0 | D190: 0 | E190: 0.2888345123 | F190: 0.2888345123 | G190: 0 | H190: 0.4223309754 | I190: 0 | J190: 0 | L190: 0 | M190: 0.5 | N190: 0.5 | Q190: 0 | R190: 1 | S190: 1 | U190: 0 | W190: 0 | X190: 0 | Y190: 0.4223309754 | AA190: 0 | AB190: 0 | AD190: 0.2888345123 | AE190: 0.5 | AG190: 0.2888345123 | AH190: 0.5
A191: 156 | B191: 0.4223309754 | C191: 0 | D191: 0 | E191: 0.2888345123 | F191: 0.2888345123 | G191: 0 | H191: 0.4223309754 | I191: 0 | J191: 0 | L191: 0 | M191: 0.5 | N191: 0.5 | Q191: 0 | R191: 1 | S191: 1 | U191: 0 | W191: 0 | X191: 0 | Y191: 0.4223309754 | AA191: 0 | AB191: 0 | AD191: 0.2888345123 | AE191: 0.5 | AG191: 0.2888345123 | AH191: 0.5
A192: 157 | B192: 0.4223309754 | C192: 0 | D192: 0 | E192: 0.2888345123 | F192: 0.2888345123 | G192: 0 | H192: 0.4223309754 | I192: 0 | J192: 0 | L192: 0 | M192: 0.5 | N192: 0.5 | Q192: 0 | R192: 1 | S192: 1 | U192: 0 | W192: 0 | X192: 0 | Y192: 0.4223309754 | AA192: 0 | AB192: 0 | AD192: 0.2888345123 | AE192: 0.5 | AG192: 0.2888345123 | AH192: 0.5
A193: 158 | B193: 0.4223309754 | C193: 0 | D193: 0 | E193: 0.2888345123 | F193: 0.2888345123 | G193: 0 | H193: 0.4223309754 | I193: 0 | J193: 0 | L193: 0 | M193: 0.5 | N193: 0.5 | Q193: 0 | R193: 1 | S193: 1 | U193: 0 | W193: 0 | X193: 0 | Y193: 0.4223309754 | AA193: 0 | AB193: 0 | AD193: 0.2888345123 | AE193: 0.5 | AG193: 0.2888345123 | AH193: 0.5
A194: 159 | B194: 0.4223309754 | C194: 0 | D194: 0 | E194: 0.2888345123 | F194: 0.2888345123 | G194: 0 | H194: 0.4223309754 | I194: 0 | J194: 0 | L194: 0 | M194: 0.5 | N194: 0.5 | Q194: 0 | R194: 1 | S194: 1 | U194: 0 | W194: 0 | X194: 0 | Y194: 0.4223309754 | AA194: 0 | AB194: 0 | AD194: 0.2888345123 | AE194: 0.5 | AG194: 0.2888345123 | AH194: 0.5
A195: 160 | B195: 0.4223309754 | C195: 0 | D195: 0 | E195: 0.2888345123 | F195: 0.2888345123 | G195: 0 | H195: 0.4223309754 | I195: 0 | J195: 0 | L195: 0 | M195: 0.5 | N195: 0.5 | Q195: 0 | R195: 1 | S195: 1 | U195: 0 | W195: 0 | X195: 0 | Y195: 0.4223309754 | AA195: 0 | AB195: 0 | AD195: 0.2888345123 | AE195: 0.5 | AG195: 0.2888345123 | AH195: 0.5
A196: 161 | B196: 0.4223309754 | C196: 0 | D196: 0 | E196: 0.2888345123 | F196: 0.2888345123 | G196: 0 | H196: 0.4223309754 | I196: 0 | J196: 0 | L196: 0 | M196: 0.5 | N196: 0.5 | Q196: 0 | R196: 1 | S196: 1 | U196: 0 | W196: 0 | X196: 0 | Y196: 0.4223309754 | AA196: 0 | AB196: 0 | AD196: 0.2888345123 | AE196: 0.5 | AG196: 0.2888345123 | AH196: 0.5
A197: 162 | B197: 0.4223309754 | C197: 0 | D197: 0 | E197: 0.2888345123 | F197: 0.2888345123 | G197: 0 | H197: 0.4223309754 | I197: 0 | J197: 0 | L197: 0 | M197: 0.5 | N197: 0.5 | Q197: 0 | R197: 1 | S197: 1 | U197: 0 | W197: 0 | X197: 0 | Y197: 0.4223309754 | AA197: 0 | AB197: 0 | AD197: 0.2888345123 | AE197: 0.5 | AG197: 0.2888345123 | AH197: 0.5
A198: 163 | B198: 0.4223309754 | C198: 0 | D198: 0 | E198: 0.2888345123 | F198: 0.2888345123 | G198: 0 | H198: 0.4223309754 | I198: 0 | J198: 0 | L198: 0 | M198: 0.5 | N198: 0.5 | Q198: 0 | R198: 1 | S198: 1 | U198: 0 | W198: 0 | X198: 0 | Y198: 0.4223309754 | AA198: 0 | AB198: 0 | AD198: 0.2888345123 | AE198: 0.5 | AG198: 0.2888345123 | AH198: 0.5
A199: 164 | B199: 0.4223309754 | C199: 0 | D199: 0 | E199: 0.2888345123 | F199: 0.2888345123 | G199: 0 | H199: 0.4223309754 | I199: 0 | J199: 0 | L199: 0 | M199: 0.5 | N199: 0.5 | Q199: 0 | R199: 1 | S199: 1 | U199: 0 | W199: 0 | X199: 0 | Y199: 0.4223309754 | AA199: 0 | AB199: 0 | AD199: 0.2888345123 | AE199: 0.5 | AG199: 0.2888345123 | AH199: 0.5
A200: 165 | B200: 0.4223309754 | C200: 0 | D200: 0 | E200: 0.2888345123 | F200: 0.2888345123 | G200: 0 | H200: 0.4223309754 | I200: 0 | J200: 0 | L200: 0 | M200: 0.5 | N200: 0.5 | Q200: 0 | R200: 1 | S200: 1 | U200: 0 | W200: 0 | X200: 0 | Y200: 0.4223309754 | AA200: 0 | AB200: 0 | AD200: 0.2888345123 | AE200: 0.5 | AG200: 0.2888345123 | AH200: 0.5
A201: 166 | B201: 0.4223309754 | C201: 0 | D201: 0 | E201: 0.2888345123 | F201: 0.2888345123 | G201: 0 | H201: 0.4223309754 | I201: 0 | J201: 0 | L201: 0 | M201: 0.5 | N201: 0.5 | Q201: 0 | R201: 1 | S201: 1 | U201: 0 | W201: 0 | X201: 0 | Y201: 0.4223309754 | AA201: 0 | AB201: 0 | AD201: 0.2888345123 | AE201: 0.5 | AG201: 0.2888345123 | AH201: 0.5
A202: 167 | B202: 0.4223309754 | C202: 0 | D202: 0 | E202: 0.2888345123 | F202: 0.2888345123 | G202: 0 | H202: 0.4223309754 | I202: 0 | J202: 0 | L202: 0 | M202: 0.5 | N202: 0.5 | Q202: 0 | R202: 1 | S202: 1 | U202: 0 | W202: 0 | X202: 0 | Y202: 0.4223309754 | AA202: 0 | AB202: 0 | AD202: 0.2888345123 | AE202: 0.5 | AG202: 0.2888345123 | AH202: 0.5
A203: 168 | B203: 0.4223309754 | C203: 0 | D203: 0 | E203: 0.2888345123 | F203: 0.2888345123 | G203: 0 | H203: 0.4223309754 | I203: 0 | J203: 0 | L203: 0 | M203: 0.5 | N203: 0.5 | Q203: 0 | R203: 1 | S203: 1 | U203: 0 | W203: 0 | X203: 0 | Y203: 0.4223309754 | AA203: 0 | AB203: 0 | AD203: 0.2888345123 | AE203: 0.5 | AG203: 0.2888345123 | AH203: 0.5
A204: 169 | B204: 0.4223309754 | C204: 0 | D204: 0 | E204: 0.2888345123 | F204: 0.2888345123 | G204: 0 | H204: 0.4223309754 | I204: 0 | J204: 0 | L204: 0 | M204: 0.5 | N204: 0.5 | Q204: 0 | R204: 1 | S204: 1 | U204: 0 | W204: 0 | X204: 0 | Y204: 0.4223309754 | AA204: 0 | AB204: 0 | AD204: 0.2888345123 | AE204: 0.5 | AG204: 0.2888345123 | AH204: 0.5
A205: 170 | B205: 0.4223309754 | C205: 0 | D205: 0 | E205: 0.2888345123 | F205: 0.2888345123 | G205: 0 | H205: 0.4223309754 | I205: 0 | J205: 0 | L205: 0 | M205: 0.5 | N205: 0.5 | Q205: 0 | R205: 1 | S205: 1 | U205: 0 | W205: 0 | X205: 0 | Y205: 0.4223309754 | AA205: 0 | AB205: 0 | AD205: 0.2888345123 | AE205: 0.5 | AG205: 0.2888345123 | AH205: 0.5
A206: 171 | B206: 0.4223309754 | C206: 0 | D206: 0 | E206: 0.2888345123 | F206: 0.2888345123 | G206: 0 | H206: 0.4223309754 | I206: 0 | J206: 0 | L206: 0 | M206: 0.5 | N206: 0.5 | Q206: 0 | R206: 1 | S206: 1 | U206: 0 | W206: 0 | X206: 0 | Y206: 0.4223309754 | AA206: 0 | AB206: 0 | AD206: 0.2888345123 | AE206: 0.5 | AG206: 0.2888345123 | AH206: 0.5
A207: 172 | B207: 0.4223309754 | C207: 0 | D207: 0 | E207: 0.2888345123 | F207: 0.2888345123 | G207: 0 | H207: 0.4223309754 | I207: 0 | J207: 0 | L207: 0 | M207: 0.5 | N207: 0.5 | Q207: 0 | R207: 1 | S207: 1 | U207: 0 | W207: 0 | X207: 0 | Y207: 0.4223309754 | AA207: 0 | AB207: 0 | AD207: 0.2888345123 | AE207: 0.5 | AG207: 0.2888345123 | AH207: 0.5
A208: 173 | B208: 0.4223309754 | C208: 0 | D208: 0 | E208: 0.2888345123 | F208: 0.2888345123 | G208: 0 | H208: 0.4223309754 | I208: 0 | J208: 0 | L208: 0 | M208: 0.5 | N208: 0.5 | Q208: 0 | R208: 1 | S208: 1 | U208: 0 | W208: 0 | X208: 0 | Y208: 0.4223309754 | AA208: 0 | AB208: 0 | AD208: 0.2888345123 | AE208: 0.5 | AG208: 0.2888345123 | AH208: 0.5
A209: 174 | B209: 0.4223309754 | C209: 0 | D209: 0 | E209: 0.2888345123 | F209: 0.2888345123 | G209: 0 | H209: 0.4223309754 | I209: 0 | J209: 0 | L209: 0 | M209: 0.5 | N209: 0.5 | Q209: 0 | R209: 1 | S209: 1 | U209: 0 | W209: 0 | X209: 0 | Y209: 0.4223309754 | AA209: 0 | AB209: 0 | AD209: 0.2888345123 | AE209: 0.5 | AG209: 0.2888345123 | AH209: 0.5
... 826 more rows

Sheet Xe+HDT
B2: Xe-HDT
B4: R | C4: 8.3144621 | E4: Pa-m3/mol-K
B6: f_H | C6: =Calculator!G12/SUM(Calculator!G11:'Calculator'!G13)*(1-Calculator!G9) -> 0 | E6: n.u. | G6: atom fraction from Calculator tab (input)
B7: f_D | C7: =Calculator!G13/SUM(Calculator!G11:'Calculator'!G13)*(1-Calculator!G9) -> 0.49975 | E7: n.u | G7: atom fraction from Calculator tab (input)
B8: f_T | C8: =Calculator!G11/SUM(Calculator!G11:'Calculator'!G13)*(1-Calculator!G9) -> 0.49975 | E8: n.u. | G8: atom fraction from Calculator tab (input)
B9: f_Xe | C9: =Calculator!G9 -> 0.0005 | E9: n.u | G9: atom fraction from Calculator tab (input)
B11: y_H | C11: =C6 /2 / ($C$7/2+$C$9+$C$8/2+$C$6/2) -> 0 | E11: n.u. | G11: molecular fraction
B12: y_D | C12: =C7/2 / ($C$7/2+$C$9+$C$8/2+$C$6/2) -> 0.4995002499 | E12: n.u. | G12: molecular fraction
B13: y_T | C13: =C8 /2 / ($C$7/2+$C$9+$C$8/2+$C$6/2) -> 0.4995002499 | E13: n.u. | G13: molecular fraction
B14: y_Xe | C14: =C9 /($C$7/2+$C$9+$C$8/2+$C$6/2) -> 0.0009995002499 | E14: n.u. | G14: molecular fraction
B16: M_H2 | C16: ='H2'!$C$5 -> 0.00201565 | E16: kg/mol | G16: (Souers Table 1.1)
B17: M_D2 | C17: ='D2'!$C$5 -> 0.004028204 | E17: kg/mol | G17: (Souers Table 1.1)
B18: M_T2 | C18: ='T2'!$C$5 -> 0.0060321 | E18: kg/mol | G18: (Souers Table 1.1)
B19: M_Xe | C19: =Xe!$C$5 -> 0.131293 | E19: kg/mol | G19: Google
B21: M_mix | C21: =C11*C16+C12*C17+C14*C19+C13*C18 -> 0.005156351748 | E21: kg/mol | G21: M_mix= y_T2*M_T2 + y_D2*M_D2 + y_Xe*M_Xe + y_H2*M_H2
B23: rho | C23: =Calculator!G5 -> 5 | E23: mg/cm3 | G23: From Calculator tab (input)
B24: rho | C24: =(C23/1000^2)*100^3 -> 5 | E24: kg/m3
B25: rhoM_mix | C25: =C24/C21 -> 969.6778351 | E25: mol/m3
B26: T | C26: =Calculator!G6 -> 32 | E26: K | G26: From Calculator tab (input)
A28: 1 | B28: B_H2 | C28: ='H2'!$C$16 -> -7.285020133e-05 | E28: m3/mol | G28: PIMC Garberoglio et al. (2012)
A29: 2 | B29: B_D2 | C29: ='D2'!$C$16 -> -8.515246186e-05 | E29: m3/mol | G29: PIMC Garberoglio et al. (2012)
A30: 3 | B30: B_T2 | C30: ='T2'!$C$16 -> -9.030094541e-05 | E30: m3/mol | G30: PIMC Garberoglio et al. (2012)
A31: 4 | B31: B_Xe | C31: =('VC List'!F64-'VC List'!G64*EXP('VC List'!H64/C26))/100^3 -> -0.09926303773 | E31: m3/mol
E33: Second virial cross-coefficient assuming partial volume mixing. Wu & Yeo, SNU Journal of Education Research
F34: B_1 | G34: B_2 | H34: B_3 | I34: B_4 | L34: y1 | M34: y2 | N34: y3 | O34: y4 | R34: yB | S34: yB | T34: yB | U34: yB
E35: B_1 | F35: =($C$28+C28)/2 -> -7.285020133e-05 | G35: =($C$29+C28)/2 -> -7.900133159e-05 | H35: =($C$30+C28)/2 -> -8.157557337e-05 | I35: =($C$31+C28)/2 -> -0.04966794397 | K35: y1 | L35: =C$11*C11 -> 0 | M35: =C$12*C11 -> 0 | N35: =$C$13*C11 -> 0 | O35: =$C$14*C11 -> 0 | Q35: yB | R35: =F35*L35 -> 0 | S35: =G35*M35 -> 0 | T35: 0 | U35: =I35*O35 -> 0
E36: B_2 | F36: =($C$28+C29)/2 -> -7.900133159e-05 | G36: =($C$29+C29)/2 -> -8.515246186e-05 | H36: =($C$30+C29)/2 -> -8.772670363e-05 | I36: =($C$31+C29)/2 -> -0.0496740951 | K36: y2 | L36: =C$11*C12 -> 0 | M36: =C$12*C12 -> 0.2495004996 | N36: =$C$13*C12 -> 0.2495004996 | O36: =$C$14*C12 -> 0.0004992506246 | Q36: yB | R36: =F36*L36 -> 0 | S36: -2.124558178e-05 | T36: -2.188785639e-05 | U36: -2.4799823e-05
E37: B_3 | F37: =($C$28+C30)/2 -> -8.157557337e-05 | G37: =($C$29+C30)/2 -> -8.772670363e-05 | H37: =($C$30+C30)/2 -> -9.030094541e-05 | I37: =($C$31+C30)/2 -> -0.04967666934 | K37: y3 | L37: =C$11*C13 -> 0 | M37: =C$12*C13 -> 0.2495004996 | N37: =$C$13*C13 -> 0.2495004996 | O37: =$C$14*C13 -> 0.0004992506246 | Q37: yB | R37: 0 | S37: -2.188785639e-05 | T37: -2.2530131e-05 | U37: -2.480110819e-05
E38: B_4 | F38: =($C$28+C31)/2 -> -0.04966794397 | G38: =($C$29+C31)/2 -> -0.0496740951 | H38: =($C$30+C31)/2 -> -0.04967666934 | I38: =($C$31+C31)/2 -> -0.09926303773 | K38: y4 | L38: =C$11*C14 -> 0 | M38: =C$12*C14 -> 0.0004992506246 | N38: =$C$13*C14 -> 0.0004992506246 | O38: =$C$14*C14 -> 9.990007495e-07 | Q38: yB | R38: 0 | S38: -2.4799823e-05 | T38: -2.480110819e-05 | U38: -9.916384909e-08
B40: B_mix | C40: =SUM(R35:U38) -> -0.0001868524518 | E40: m3/mol | G40: Smith & Vanness, Intro. To chemical engineering themodynamics, McGraw Hill (1975), Eqn. 1-103
B41: C_mix | C41: 0 | E41: m6/mol2 | G41: Not using 3rd virial term here because we don't really have a mixing rule
B43: P_mix | C43: =C4*C26*(C25+C40*C25^2+C41*C25^3) -> 211249.8958 | E43: Pa | G43: The calculated pressure for this page
B44: P_virial | C44: =C43/133.32237 -> 1584.504504 | E44: torr
B45: P_ideal | C45: =C25*C4*C26/133.32237 -> 1935.123022 | E45: torr
B47: Na | C47: 6.0221415e+23 | E47: molecule/mol
B49: H atoms/molecule H2 | C49: 2
B51: H atom density | C51: =C25*C47*C49*C11 -> 0 | E51: atom H/m3 | H51: H electron density | I51: =C51 -> 0 | J51: electron H/m3
B52: H atom density | C52: =C51/100^3 -> 0 | E52: atom H/cm3 | H52: H electron density | I52: =C52 -> 0 | J52: electron H/cm3
B54: D atoms/molecule D2 | C54: 2 | H54: D electrons/molecule D2
B56: D atom density | C56: =C25*C47*C54*C12 -> 5.833700513e+26 | E56: atom D/m^3 | H56: D electron density | I56: =C56 -> 5.833700513e+26 | J56: electron D/m^3
B57: D atom density | C57: =C56/100^3 -> 5.833700513e+20 | E57: atom D/cc | H57: D electron density | I57: =C57 -> 5.833700513e+20 | J57: electron D/cc
B59: Xe atoms/molecule Xe | C59: 1 | H59: Xe electrons/molecule Xe
B61: Xe atom density | C61: =C25*C47*C64*C14 -> 1.167323765e+24 | E61: atom Xe/m^3 | H61: Xe electron density | I61: =C61*54 -> 6.303548329e+25 | J61: electron Xe/m^3
B62: Xe atom density | C62: =C61/100^3 -> 1.167323765e+18 | E62: atom Xe/cc | H62: Xe electron density | I62: =C62*54 -> 6.303548329e+19 | J62: electron Xe/cc
B64: T2 atoms/molecule T2 | C64: 2 | H64: T2 electrons/molecule T2
B66: T2 atom density | C66: =C25*C47*C64*C13 -> 5.833700513e+26 | E66: atom T/m^3 | H66: T2 electron density | I66: =C66 -> 5.833700513e+26 | J66: electron T/m^3
B67: T2 atom density | C67: =C66/100^3 -> 5.833700513e+20 | E67: atom T/cc | H67: T2 electron density | I67: =C67 -> 5.833700513e+20 | J67: electron T/cc
B69: Total atom density | C69: =C52+C57+C62+C67 -> 1.167907426e+21 | E69: atom/cm3 | H69: Total electron density | I69: =I52+I57+I62+I67 -> 1.229775586e+21 | J69: electron/cm3
B73: Ppart(Xe) | C73: =C14*C44 -> 1.583712648 | E73: Torr
B74: Psat(Xe) | C74: =Xe!$C$32 -> no data | E74: Torr
B76: Psat_Mix | C76: =IF(OR(C74="no data",C74="supercritical"),C74,C74/C14) -> no data | E76: Torr

Sheet Xe
T1: T | U1: B (within model range) | V1: B -extrapolated low | W1: B -extrapolated high
B2: Xe | T2: 55 | V2: =($C$7-$C$8*EXP($C$9/T2))/100^3 -> -0.007026131631
E3: Units | G3: Reference | T3: 60 | V3: =($C$7-$C$8*EXP($C$9/T3))/100^3 -> -0.005123504412
B4: R | C4: 8.3144621 | E4: Pa-m3/mol-K | T4: 65 | V4: -0.003908079017 | AA4: Vapor Pressure | AJ4: Psat (Torr) | AK4: Tmin, K | AL4: Tmax, K
B5: M | C5: 0.131293 | E5: kg/mol | T5: 70 | V5: -0.003087805492 | AA5: Summary | AJ5: =LOOKUP(1,AJ7:AJ13,AM7:AM13) -> no data | AK5: =MIN(AK7:AL14) -> 4 | AL5: =MAX(AK7:AL14) -> 289.7
C6: B/(cm3 mol−1) = a − b exp{c(K/T)}. | T6: 75 | V6: -0.002509153005 | AB6: A | AC6: B | AD6: C | AE6: D | AF6: E | AG6: F | AH6: G | AI6: R | AJ6: Psat (Torr) | AK6: Tmin, K | AL6: Tmax, K | AM6: Formula | AN6: Formula
B7: A | C7: ='VC List'!$F$64 -> 245.6 | E7: cm3 mol−1 | T7: 80 | V7: -0.002085859466 | AA7: Xenon | AJ7: =IF(AND($C$16>AK7,$C$16<=AL7),1,"") -> 1 | AK7: 4 | AL7: 70 | AM7: =IF(AND($C$16<=AL7,$C$16>AK7),"no data","") -> no data
B8: B | C8: ='VC List'!$G$64 -> 190.9 | E8: cm3 mol−1 | T8: 85 | V8: -0.001766720572 | AB8: 8.044 | AC8: 833.33 | AJ8: =IF(AND($C$16>AK8,$C$16<=AL8),1,"") ->  | AK8: 70 | AL8: 90 | AM8: =IF(AND($C$16<=AL8,$C$16>AK8),10^(AB8-(AC8/$C$16)),"") ->  | AN8: 10^(A - B/T)
B9: C | C9: ='VC List'!$H$64 -> 200.2 | E9: K | T9: 90 | V9: -0.001519908757 | AB9: 1.5088e-39 | AC9: 19.219 | AI9: 0.99795 | AK9: 90 | AL9: 110 | AM9: =IF(AND($C$16<=AL9,$C$16>AK9),AB9*$C$16^AC9,"") ->  | AN9: ATB
B10: TL | C10: ='VC List'!$I$64 -> 160 | E10: K | T10: 95 | V10: -0.001324851053 | AB10: 7.7371 | AC10: 790.1 | AK10: 110 | AL10: 160.56 | AM10: =IF(AND($C$16<=AL10,$C$16>AK10),10^(AB10-(AC10/$C$16)),"") ->  | AN10: 10^(A - B/T)
B11: TU | C11: ='VC List'!$J$64 -> 650 | E11: K | T11: 100 | V11: -0.001167794774 | AK11: 160.56 | AL11: 161.7 | AM11: =IF(AND($C$16<=AL11,$C$16>AK11),AVERAGE(10^(AB10-(AC10/$C$16)),10^(AB12-AC12/$C$16 -AD12*LOG($C$16) +AE12)),"") ->  | AN11: avg(10^(A - B/T), 10^(A - B/T - C*log(T) +D*T))
T12: 105 | V12: -0.00103927459 | AB12: 26.08413 | AC12: 1040.76 | AD12: 8.25369 | AE12: 0.0085216 | AJ12: =IF(AND($C$16>AK12,$C$16<=AL12),1,"") ->  | AK12: 161.7 | AL12: 289.2 | AM12: =IF(AND($C$16<=AL12,$C$16>AK12),10^(AB12-AC12/$C$16 -AD12*LOG($C$16) +AE12),"") ->  | AN12: 10^(A - B/T - C*log(T) +D*T)
B13: rho | C13: =Calculator!$G$5 -> 5 | E13: mg/cm3 | G13: From Calculator tab (input) | T13: 110 | V13: -0.0009326077781 | AJ13: =IF($C$16>AK13,1,"") ->  | AK13: =$C$42 -> 289.7 | AM13: =IF($C$16>AK13,"supercritical","") -> 
B14: rho | C14: =(C13/1000^2)*100^3 -> 5 | E14: kg/m3 | T14: 115 | V14: -0.0008429690297
B15: rho | C15: =C14/C5 -> 38.08276146 | E15: mol/m3 | T15: 120 | V15: -0.0007668040854
B16: T | C16: =Calculator!$G$6 -> 32 | E16: K | G16: From Calculator tab (input) | T16: 125 | V16: -0.000701447955
T17: 130 | V17: -0.0006448702827
B18: B | C18: =(C7-C8*EXP(C9/C16))/100^3 -> -0.09926303773 | E18: m3/mol | T18: 135 | V18: -0.0005955017955
B19: C | C19: 0 | E19: m6/mol2 | G19: Not used here (set to zero) | T19: 140 | V19: -0.0005521136757
T20: 145 | V20: -0.0005137322175
B21: P | C21: =C4*C16*(C15+C18*C15^2+C19*C15^3) -> -28170.22148 | E21: Pa | G21: The calculated pressure for this page | T21: 150 | V21: -0.0004795774601
B22: P_virial | C22: =IF(AND(C16>=AK8,C16<=C11),C21/133.32237,"no data") -> no data | E22: torr | T22: 155 | V22: -0.0004490184027
B23: P_ideal | C23: =IF(C16<AL7,AJ5,C4*C16*C15/133.32237) -> no data | E23: torr | T23: 160 | U23: =((IF($C$10>T23,0,IF($C$11<T23,0,$C$7-$C$8*EXP($C$9/T23)))))/100^3 -> -0.0004215398744
T24: 165 | U24: -0.0003967177148
B25: Na | C25: 6.0221415e+23 | E25: molecule/mol | T25: 170 | U25: -0.0003741999654
T26: 175 | U26: -0.0003536924628
B27: atoms/molecule | C27: 1 | T27: 180 | U27: -0.0003349476911
T28: 185 | U28: -0.0003177560776
B29: atom density | C29: =C15*C25*C27 -> 2.293397782e+25 | E29: atom Xe/m3 | T29: 190 | U29: -0.0003019391365
B30: atom density | C30: =C29/100^3 -> 2.293397782e+19 | E30: atom Xe/cm3 | T30: 195 | U30: -0.0002873440237
T31: 200 | U31: -0.0002738391806
B32: Psat(Kr) | C32: =$AJ$5 -> no data | E32: torr | T32: 205 | U32: -0.000261310823
T33: 210 | U33: -0.0002496600925
C34: 54 | E34: electrons/molecule | T34: 215 | U34: -0.0002388007313
T35: 220 | U35: -0.0002286571716
B36: electron density | C36: =C34*C29 -> 1.238434802e+27 | E36: electron Xe/m3 | T36: 225 | U36: -0.0002191629583
B37: electron density | C37: =C34*C30 -> 1.238434802e+21 | E37: electron Xe/cm3 | T37: 230 | U37: -0.0002102594386
T38: 235 | U38: -0.0002018946688
B39: psat(TL) | C39: =$AK$8 -> 70 | E39: K | T39: 240 | U39: -0.000194022497
B40: psat(TU) | C40: =AL5 -> 289.7 | E40: K | T40: 245 | U40: -0.000186601791
T41: 250 | U41: -0.0001795957838
B42: Tc | C42: ='VC List'!$D$64 -> 289.7 | E42: K | T42: 255 | U42: -0.0001729715194
B43: Pc | C43: ='VC List'!$B$64/0.101325*760 -> 43803.60227 | E43: Torr | T43: 260 | U43: -0.0001666993778
B44: Ttp | C44: 161.405 | E44: K | T44: 265 | U44: -0.0001607526704
T45: 270 | U45: -0.0001551072906
T46: 275 | U46: -0.000149741414
T47: 280 | U47: -0.0001446352376
T48: 285 | U48: -0.0001397707551
T49: 290 | U49: -0.0001351315594
T50: 295 | U50: -0.0001307026721
T51: 300 | U51: -0.0001264703927
T52: 305 | U52: -0.0001224221672
T53: 310 | U53: -0.000118546472
T54: 315 | U54: -0.0001148327116
T55: 320 | U55: -0.000111271128
T56: 325 | U56: -0.0001078527209
T57: 330 | U57: -0.0001045691759
T58: 335 | U58: -0.0001014128014
T59: 340 | U59: -9.837647216e-05
T60: 345 | U60: -9.545357821e-05
T61: 350 | U61: -9.263798005e-05
T62: 355 | U62: -8.992396773e-05
T63: 360 | U63: -8.730622438e-05
T64: 365 | U64: -8.477979328e-05
T65: 370 | U65: -8.23400482e-05
T66: 375 | U66: -7.998266658e-05
T67: 380 | U67: -7.770360522e-05
T68: 385 | U68: -7.549907833e-05
T69: 390 | U69: -7.336553751e-05
T70: 395 | U70: -7.129965365e-05
T71: 400 | U71: -6.929830037e-05
T72: 405 | U72: -6.735853896e-05
T73: 410 | U73: -6.547760464e-05
T74: 415 | U74: -6.365289398e-05
T75: 420 | U75: -6.18819534e-05
T76: 425 | U76: -6.016246865e-05
T77: 430 | U77: =((IF($C$10>T77,0,IF($C$11<T77,0,$C$7-$C$8*EXP($C$9/T77)))))/100^3 -> -5.84922551e-05
T78: 435 | U78: -5.68692489e-05
T79: 440 | U79: -5.529149882e-05
T80: 445 | U80: -5.375715868e-05
T81: 450 | U81: -5.226448049e-05
T82: 455 | U82: -5.081180801e-05
T83: 460 | U83: -4.939757089e-05
T84: 465 | U84: -4.802027918e-05
T85: 470 | U85: -4.667851832e-05
T86: 475 | U86: -4.537094445e-05
T87: 480 | U87: -4.409628007e-05
T88: 485 | U88: -4.285331004e-05
T89: 490 | U89: -4.164087782e-05
T90: 495 | U90: -4.045788206e-05
T91: 500 | U91: -3.93032733e-05
T92: 505 | U92: -3.817605101e-05
T93: 510 | U93: -3.707526077e-05
T94: 515 | U94: -3.59999917e-05
T95: 520 | U95: -3.494937396e-05
T96: 525 | U96: -3.392257654e-05
T97: 530 | U97: -3.291880507e-05
T98: 535 | U98: -3.19372999e-05
T99: 540 | U99: -3.097733418e-05
T100: 545 | U100: -3.003821215e-05
T101: 550 | U101: -2.911926748e-05
T102: 555 | U102: -2.821986179e-05
T103: 560 | U103: -2.733938313e-05
T104: 565 | U104: -2.647724472e-05
T105: 570 | U105: -2.563288359e-05
T106: 575 | U106: -2.480575947e-05
T107: 580 | U107: -2.399535362e-05
T108: 585 | U108: -2.320116775e-05
T109: 590 | U109: -2.242272311e-05
T110: 595 | U110: -2.165955945e-05
T111: 600 | U111: -2.091123422e-05
T112: 605 | U112: -2.017732168e-05
T113: 610 | U113: -1.945741212e-05
T114: 615 | U114: -1.875111115e-05
T115: 620 | U115: -1.805803896e-05
T116: 625 | U116: -1.737782965e-05
T117: 630 | U117: -1.671013065e-05
T118: 635 | U118: -1.605460206e-05
T119: 640 | U119: -1.541091614e-05
T120: 645 | U120: -1.477875673e-05
T121: 650 | U121: -1.415781879e-05
T122: 655 | W122: =($C$7-$C$8*EXP($C$9/T122))/100^3 -> -1.354780787e-05
T123: 660 | W123: -1.294843971e-05
T124: 665 | W124: -1.235943975e-05
T125: 670 | W125: -1.178054277e-05
T126: 675 | W126: -1.121149244e-05
T127: 680 | W127: -1.065204104e-05
T128: 685 | W128: -1.010194899e-05
T129: 690 | W129: -9.560984637e-06
T130: 695 | W130: -9.028923838e-06
T131: 700 | W131: -8.505549708e-06
T132: 705 | W132: =($C$7-$C$8*EXP($C$9/T132))/100^3 -> -7.990652318e-06
T133: 710 | W133: -7.484028418e-06
T134: 715 | W134: -6.985481175e-06
T135: 720 | W135: -6.494819926e-06
T136: 725 | W136: -6.011859934e-06
T137: 730 | W137: -5.536422163e-06
T138: 735 | W138: -5.068333062e-06
T139: 740 | W139: -4.607424355e-06
T140: 745 | W140: -4.153532843e-06
T141: 750 | W141: -3.706500217e-06
T142: 755 | W142: -3.266172874e-06
T143: 760 | W143: -2.832401746e-06
T144: 765 | W144: -2.405042132e-06
T145: 770 | W145: -1.983953544e-06
T146: 775 | W146: -1.568999552e-06
T147: 780 | W147: -1.160047639e-06
T148: 785 | W148: -7.56969063e-07
T149: 790 | W149: -3.596387257e-07
T150: 795 | W150: 3.206495806e-08
T151: 800 | W151: 4.182601806e-07

Sheet C3D8
B2: C3D8 | C2: In the absence of better data, this page uses the VCs and vapor pressure data for C3H8.
E3: Units | G3: Reference
B4: R | C4: 8.3144621 | E4: Pa-m3/mol-K | AA4: Tmin, K | AB4: Tmax, K | AC4: Psat (Torr)
B5: M | C5: =(3*12.011+2.014102*8)/1000 -> 0.052145816 | E5: kg/mol | AA5: =MIN(AA7:AA11) -> 4 | AB5: =MAX(AB7:AB10) -> 1000 | AC5: =LOOKUP(1,AC7:AC10,AD7:AD10) -> no data
C6: B/(cm3 mol−1) = a − b exp{c(K/T)}. | V6: A | W6: B | X6: C | Y6: Tmin, °C | Z6: Tmax, °C | AA6: Tmin, K | AB6: Tmax, K | AC6: Lookup | AD6: Test
B7: A | C7: ='VC List'!$F$146 -> 322.8 | E7: cm3 mol−1 | AA7: 4 | AB7: 144.25 | AC7: =IF(AND($C$16>AA7,$C$16<AB7),1,"") -> 1 | AD7: =IF(AND($C$16>AA7,$C$16<AB7),"no data","") -> no data
B8: B | C8: ='VC List'!$G$146 -> 220.3 | E8: cm3 mol−1 | U8: Propane | V8: 6.82973 | W8: -813.2 | X8: 248 | Y8: -128.9 | Z8: 94.8 | AA8: =Y8+273.15 -> 144.25 | AB8: =Z8+273.15 -> 367.95 | AC8: =IF(AND($C$16>AA8,$C$16<AB8),1,"") ->  | AD8: =IF(AND($C$16>AA8,$C$16<AB8),10^(V8+(W8/(X8+(C16-273.15)))),"") -> 
B9: C | C9: ='VC List'!$H$146 -> 350 | E9: K | AA9: =AB8 -> 367.95 | AB9: 1000 | AD9: =IF(AND($C$16>AA9,$C$16<AB9),"supercritical","") -> 
B10: TL | C10: ='VC List'!$I$146 -> 240 | E10: K | U10: \log_{10}P = A - \frac{B}{C + T}
B11: TU | C11: ='VC List'!$J$146 -> 330 | E11: K | U11: where the temperature T is in degrees Celsius and the vapour pressure P is in mmHg. The constants are given as
B13: rho | C13: =Calculator!G5 -> 5 | E13: mg/cm3 | G13: From Calculator tab (input)
B14: rho | C14: =(C13/1000^2)*100^3 -> 5 | E14: kg/m3
B15: rho | C15: =C14/C5 -> 95.88496995 | E15: mol/m3
B16: T | C16: =Calculator!G6 -> 32 | E16: K | G16: From Calculator tab (input)
B18: B | C18: =((IF(C10>C16,0,IF(C11<C16,0,C7-C8*EXP(C9/C16)))))/100^3 -> 0 | E18: m3/mol
B19: C | C19: 0 | E19: m6/mol2 | G19: Not used here (set to zero)
B21: P | C21: =C4*C16*(C15+C18*C15^2+C19*C15^3) -> 25511.42235 | E21: Pa | G21: The calculated pressure for this page
B22: P_virial | C22: =IF(AND(C16>=C10,C16<=C11),C21/133.32237,"no data") -> no data | E22: torr
B23: P_ideal | C23: =IF(C16<AB7,AC5,C4*C16*C15/133.32237) -> no data | E23: torr
B25: Na | C25: 6.0221415e+23 | E25: molecule/mol
B27: atoms/molecule | C27: 11
B29: atom density | C29: =C15*C25*C27 -> 6.351761424e+26 | E29: atoms C+H: C3H8/m3
B30: atom density | C30: =C29/100^3 -> 6.351761424e+20 | E30: atoms C+H: C3H8/cm3
B33: p_sat | C33: =$AC$5 -> no data | E33: torr
C35: 26 | E35: electrons/molecule
B37: electron density | C37: =C15*C25*C35 -> 1.501325428e+27 | E37: electron C3H8/m3
B38: electron density | C38: =C37/100^3 -> 1.501325428e+21 | E38: electron C3H8/cm3
